Workbook

Sheet Enter Data
A1: PackHouse | B1: Date | C1: CustName | D1: Rejection or A- | E1: Check | F1: Reason | G1: Variety | H1: Pack | I1: CTNQnt | J1: CalculatePack | K1: Multiplier | L1: BushEquiv | M1: Where did product end up | N1: Order# | O1: Comments | P1: WALMART
A2: APPLE WEDGE | B2: 44120 | C2: WALMART- PAGELAND, SC | D2: A- | E2: =CONCATENATE(D2,Table2[[#This Row],[PackHouse]]) -> A-APPLE WEDGE | F2: INTERNAL BROWNING | G2: FUJI | H2: BAGS | I2: 50 | J2: 8/3 ALL | K2: =IFERROR(LOOKUP(Table2[[#This Row],[CalculatePack]],'Look Up'!K:K,'Look Up'!M:M),"") -> 0.6 | L2: =IFERROR(Table2[[#This Row],[CTNQnt]]*Table2[[#This Row],[Multiplier]],"") -> 30 | N2: 41320 | P2: =ISNUMBER(SEARCH(Table2[[#Headers],[WALMART]],C:C)) -> TRUE
A3: APPLE WEDGE | B3: 44125 | C3: WALMART- PAGELAND, SC | D3: Rejection | E3: =CONCATENATE(D3,Table2[[#This Row],[PackHouse]]) -> RejectionAPPLE WEDGE | F3: BITTERPIT | G3: FUJI | H3: BAGS | I3: 100 | J3: 8/3 ALL | K3: =IFERROR(LOOKUP(Table2[[#This Row],[CalculatePack]],'Look Up'!K:K,'Look Up'!M:M),"") -> 0.6 | L3: =IFERROR(Table2[[#This Row],[CTNQnt]]*Table2[[#This Row],[Multiplier]],"") -> 60 | N3: 41412 | P3: =ISNUMBER(SEARCH(Table2[[#Headers],[WALMART]],C:C)) -> TRUE
A4: APPLE WEDGE | B4: 44127 | C4: WALMART- PAGELAND, SC | D4: Rejection | E4: =CONCATENATE(D4,Table2[[#This Row],[PackHouse]]) -> RejectionAPPLE WEDGE | F4: INTERNAL BROWNING | G4: FUJI | H4: BULK | I4: 150 | J4: Large Bulk RPC | K4: =IFERROR(LOOKUP(Table2[[#This Row],[CalculatePack]],'Look Up'!K:K,'Look Up'!M:M),"") -> 0.675 | L4: =IFERROR(Table2[[#This Row],[CTNQnt]]*Table2[[#This Row],[Multiplier]],"") -> 101.25 | N4: 41525 | P4: =ISNUMBER(SEARCH(Table2[[#Headers],[WALMART]],C:C)) -> TRUE
A5: APPLE WEDGE | B5: 44127 | C5: WALMART- MEBANE, NC | D5: Rejection | E5: =CONCATENATE(D5,Table2[[#This Row],[PackHouse]]) -> RejectionAPPLE WEDGE | F5: INTERNAL BROWNING | G5: FUJI | H5: BAGS | I5: 300 | J5: 8/3 ALL | K5: =IFERROR(LOOKUP(Table2[[#This Row],[CalculatePack]],'Look Up'!K:K,'Look Up'!M:M),"") -> 0.6 | L5: =IFERROR(Table2[[#This Row],[CTNQnt]]*Table2[[#This Row],[Multiplier]],"") -> 180 | N5: 41530 | P5: =ISNUMBER(SEARCH(Table2[[#Headers],[WALMART]],C:C)) -> TRUE
A6: APPLE WEDGE | B6: 44127 | C6: WALMART- HENDERSON, NC | D6: Rejection | E6: =CONCATENATE(D6,Table2[[#This Row],[PackHouse]]) -> RejectionAPPLE WEDGE | F6: DECAY | G6: FUJI | H6: BULK | I6: 150 | J6: Large Bulk RPC | K6: =IFERROR(LOOKUP(Table2[[#This Row],[CalculatePack]],'Look Up'!K:K,'Look Up'!M:M),"") -> 0.675 | L6: =IFERROR(Table2[[#This Row],[CTNQnt]]*Table2[[#This Row],[Multiplier]],"") -> 101.25 | N6: 41527 | P6: =ISNUMBER(SEARCH(Table2[[#Headers],[WALMART]],C:C)) -> TRUE
A7: APPLE WEDGE | B7: 44141 | C7: WALMART- MEBANE, NC | D7: Rejection | E7: =CONCATENATE(D7,Table2[[#This Row],[PackHouse]]) -> RejectionAPPLE WEDGE | F7: INTERNAL BROWNING | G7: FUJI | H7: BAGS | I7: 350 | J7: 8/3 ALL | K7: =IFERROR(LOOKUP(Table2[[#This Row],[CalculatePack]],'Look Up'!K:K,'Look Up'!M:M),"") -> 0.6 | L7: =IFERROR(Table2[[#This Row],[CTNQnt]]*Table2[[#This Row],[Multiplier]],"") -> 210 | N7: 41971 | P7: =ISNUMBER(SEARCH(Table2[[#Headers],[WALMART]],C:C)) -> TRUE
A8: APPLE WEDGE | B8: 44141 | C8: WALMART- PAGELAND, SC | D8: Rejection | E8: =CONCATENATE(D8,Table2[[#This Row],[PackHouse]]) -> RejectionAPPLE WEDGE | F8: INTERNAL BROWNING | G8: FUJI | H8: BAGS | I8: 200 | J8: 8/3 ALL | K8: =IFERROR(LOOKUP(Table2[[#This Row],[CalculatePack]],'Look Up'!K:K,'Look Up'!M:M),"") -> 0.6 | L8: =IFERROR(Table2[[#This Row],[CTNQnt]]*Table2[[#This Row],[Multiplier]],"") -> 120 | N8: 41974 | P8: =ISNUMBER(SEARCH(Table2[[#Headers],[WALMART]],C:C)) -> TRUE
A9: APPLE WEDGE | B9: 44147 | C9: WALMART- PAGELAND, SC | D9: A- | E9: =CONCATENATE(D9,Table2[[#This Row],[PackHouse]]) -> A-APPLE WEDGE | F9: PLU STICKER COVERAGE | G9: FUJI | H9: BULK | I9: 50 | J9: Large Bulk RPC | K9: =IFERROR(LOOKUP(Table2[[#This Row],[CalculatePack]],'Look Up'!K:K,'Look Up'!M:M),"") -> 0.675 | L9: =IFERROR(Table2[[#This Row],[CTNQnt]]*Table2[[#This Row],[Multiplier]],"") -> 33.75 | N9: 42147 | P9: =ISNUMBER(SEARCH(Table2[[#Headers],[WALMART]],C:C)) -> TRUE
A10: APPLE WEDGE | B10: 44169 | C10: WALMART- HENDERSON, NC | D10: Rejection | E10: =CONCATENATE(D10,Table2[[#This Row],[PackHouse]]) -> RejectionAPPLE WEDGE | F10: BRUISE & BROKEN SKINS | G10: PINK LADY | H10: BAGS | I10: 50 | J10: 8/3 ALL | K10: =IFERROR(LOOKUP(Table2[[#This Row],[CalculatePack]],'Look Up'!K:K,'Look Up'!M:M),"") -> 0.6 | L10: =IFERROR(Table2[[#This Row],[CTNQnt]]*Table2[[#This Row],[Multiplier]],"") -> 30 | N10: 42815 | P10: =ISNUMBER(SEARCH(Table2[[#Headers],[WALMART]],C:C)) -> TRUE
A11: APPLE WEDGE | B11: 44169 | C11: WALMART- HENDERSON, NC | D11: A- | E11: =CONCATENATE(D11,Table2[[#This Row],[PackHouse]]) -> A-APPLE WEDGE | F11: DECAY | G11: RED DELICIOUS | H11: BAGS | I11: 450 | J11: 5/5 RPC | K11: =IFERROR(LOOKUP(Table2[[#This Row],[CalculatePack]],'Look Up'!K:K,'Look Up'!M:M),"") -> 0.625 | L11: =IFERROR(Table2[[#This Row],[CTNQnt]]*Table2[[#This Row],[Multiplier]],"") -> 281.25 | N11: 42815 | P11: =ISNUMBER(SEARCH(Table2[[#Headers],[WALMART]],C:C)) -> TRUE
A12: APPLEWOOD FRESH | B12: 10/902/2020 | C12: WALMART- LEWISTON, ME | D12: Rejection | E12: =CONCATENATE(D12,Table2[[#This Row],[PackHouse]]) -> RejectionAPPLEWOOD FRESH | F12: BITTERPIT | G12: GALA | H12: BULK | I12: 250 | J12: Large Bulk RPC | K12: =IFERROR(LOOKUP(Table2[[#This Row],[CalculatePack]],'Look Up'!K:K,'Look Up'!M:M),"") -> 0.675 | L12: =IFERROR(Table2[[#This Row],[CTNQnt]]*Table2[[#This Row],[Multiplier]],"") -> 168.75 | N12: 40818 | P12: =ISNUMBER(SEARCH(Table2[[#Headers],[WALMART]],C:C)) -> TRUE
A13: APPLE WEDGE | B13: 44113 | C13: WALMART- NEW ALBANY, MS | D13: A- | E13: =CONCATENATE(D13,Table2[[#This Row],[PackHouse]]) -> A-APPLE WEDGE | F13: BRUISE | G13: SWEETANGO | H13: BAGS | I13: 150 | J13: 12/2 Pouch | K13: =IFERROR(LOOKUP(Table2[[#This Row],[CalculatePack]],'Look Up'!K:K,'Look Up'!M:M),"") -> 0.6 | L13: =IFERROR(Table2[[#This Row],[CTNQnt]]*Table2[[#This Row],[Multiplier]],"") -> 90 | N13: 41041 | P13: =ISNUMBER(SEARCH(Table2[[#Headers],[WALMART]],C:C)) -> TRUE
A14: APPLE WEDGE | B14: 44167 | C14: WALMART- PAGELAND, SC | D14: Rejection | E14: =CONCATENATE(D14,Table2[[#This Row],[PackHouse]]) -> RejectionAPPLE WEDGE | F14: TEMPERATURE | G14: GALA | H14: BAGS | I14: 1200 | J14: 8/3 ALL | K14: =IFERROR(LOOKUP(Table2[[#This Row],[CalculatePack]],'Look Up'!K:K,'Look Up'!M:M),"") -> 0.6 | L14: =IFERROR(Table2[[#This Row],[CTNQnt]]*Table2[[#This Row],[Multiplier]],"") -> 720 | N14: 42703 | P14: =ISNUMBER(SEARCH(Table2[[#Headers],[WALMART]],C:C)) -> TRUE
A15: MAIN OFFICE | B15: 44134 | C15: SAM'S CLUB- POTTSVILLE, PA | D15: Rejection | E15: =CONCATENATE(D15,Table2[[#This Row],[PackHouse]]) -> RejectionMAIN OFFICE | F15: CARRIER DAMAGE | G15: MCINTOSH | H15: BAGS | I15: 160 | J15: 7/6 Bag | K15: =IFERROR(LOOKUP(Table2[[#This Row],[CalculatePack]],'Look Up'!K:K,'Look Up'!M:M),"") -> 1.05 | L15: =IFERROR(Table2[[#This Row],[CTNQnt]]*Table2[[#This Row],[Multiplier]],"") -> 168 | N15: 41668 | P15: =ISNUMBER(SEARCH(Table2[[#Headers],[WALMART]],C:C)) -> FALSE
A16: MAIN OFFICE | B16: 44169 | C16: WALMART- PAGELAND, SC | D16: Rejection | E16: =CONCATENATE(D16,Table2[[#This Row],[PackHouse]]) -> RejectionMAIN OFFICE | F16: CARRIER DAMAGE | G16: GALA | H16: BAGS | I16: 440 | J16: 8/5 Bag | K16: =IFERROR(LOOKUP(Table2[[#This Row],[CalculatePack]],'Look Up'!K:K,'Look Up'!M:M),"") -> 1 | L16: =IFERROR(Table2[[#This Row],[CTNQnt]]*Table2[[#This Row],[Multiplier]],"") -> 440 | N16: 41668 | P16: =ISNUMBER(SEARCH(Table2[[#Headers],[WALMART]],C:C)) -> TRUE
A17: MAIN OFFICE | B17: 44169 | C17: WALMART- COCOA, FL | D17: Rejection | E17: =CONCATENATE(D17,Table2[[#This Row],[PackHouse]]) -> RejectionMAIN OFFICE | F17: CARRIER DAMAGE | G17: HONEYCRISP | H17: BULK | I17: 100 | J17: Large Bulk RPC | K17: =IFERROR(LOOKUP(Table2[[#This Row],[CalculatePack]],'Look Up'!K:K,'Look Up'!M:M),"") -> 0.675 | L17: =IFERROR(Table2[[#This Row],[CTNQnt]]*Table2[[#This Row],[Multiplier]],"") -> 67.5 | N17: 42743 | O17: warren wheeler | P17: =ISNUMBER(SEARCH(Table2[[#Headers],[WALMART]],C:C)) -> TRUE
A18: MAIN OFFICE | B18: 44184 | C18: WALMART- LEWISTON, ME | D18: Rejection | E18: =CONCATENATE(D18,Table2[[#This Row],[PackHouse]]) -> RejectionMAIN OFFICE | F18: CARRIER DAMAGE | G18: HoneYCRISP | H18: BULK | I18: 2 | J18: Large Bulk RPC | K18: =IFERROR(LOOKUP(Table2[[#This Row],[CalculatePack]],'Look Up'!K:K,'Look Up'!M:M),"") -> 0.675 | L18: =IFERROR(Table2[[#This Row],[CTNQnt]]*Table2[[#This Row],[Multiplier]],"") -> 1.35 | N18: 43153 | O18: WM BKHL | P18: =ISNUMBER(SEARCH(Table2[[#Headers],[WALMART]],C:C)) -> TRUE
A19: MAIN OFFICE | B19: 44157 | C19: WALMART- MACCLENNY, FL | D19: Rejection | E19: =CONCATENATE(D19,Table2[[#This Row],[PackHouse]]) -> RejectionMAIN OFFICE | F19: CARRIER DAMAGE | G19: HONEYCRISP | H19: BAGS | I19: 3 | J19: 8/3 ALL | K19: =IFERROR(LOOKUP(Table2[[#This Row],[CalculatePack]],'Look Up'!K:K,'Look Up'!M:M),"") -> 0.6 | L19: =IFERROR(Table2[[#This Row],[CTNQnt]]*Table2[[#This Row],[Multiplier]],"") -> 1.8 | N19: 43102 | O19: SUNTECK TRANSPORT | P19: =ISNUMBER(SEARCH(Table2[[#Headers],[WALMART]],C:C)) -> TRUE
A20: CHAZY ORCHARDS | B20: 44173 | C20: WALMART- OPELIKA, AL | D20: A- | E20: =CONCATENATE(D20,Table2[[#This Row],[PackHouse]]) -> A-CHAZY ORCHARDS | F20: PLU STICKER COVERAGE | G20: GALA | H20: BULK | I20: 150 | J20: Large Bulk RPC | K20: =IFERROR(LOOKUP(Table2[[#This Row],[CalculatePack]],'Look Up'!K:K,'Look Up'!M:M),"") -> 0.675 | L20: =IFERROR(Table2[[#This Row],[CTNQnt]]*Table2[[#This Row],[Multiplier]],"") -> 101.25 | N20: 40230 | P20: =ISNUMBER(SEARCH(Table2[[#Headers],[WALMART]],C:C)) -> TRUE
A21: CHAZY ORCHARDS | B21: 44188 | C21: WALMART- OPELIKA, AL | D21: Rejection | E21: =CONCATENATE(D21,Table2[[#This Row],[PackHouse]]) -> RejectionCHAZY ORCHARDS | F21: BITTERPIT & STEM PUNCTURES | G21: GALA | H21: BULK | I21: 50 | J21: Large Bulk RPC | K21: =IFERROR(LOOKUP(Table2[[#This Row],[CalculatePack]],'Look Up'!K:K,'Look Up'!M:M),"") -> 0.675 | L21: =IFERROR(Table2[[#This Row],[CTNQnt]]*Table2[[#This Row],[Multiplier]],"") -> 33.75 | N21: 40789 | P21: =ISNUMBER(SEARCH(Table2[[#Headers],[WALMART]],C:C)) -> TRUE
A22: CROWN ORCHARDS | B22: 44084 | C22: WALMART- PAGELAND, SC | D22: A- | E22: =CONCATENATE(D22,Table2[[#This Row],[PackHouse]]) -> A-CROWN ORCHARDS | F22: BLUSH | G22: GOLDEN DELICIOUS | H22: BULK | I22: 100 | J22: Large Bulk RPC | K22: =IFERROR(LOOKUP(Table2[[#This Row],[CalculatePack]],'Look Up'!K:K,'Look Up'!M:M),"") -> 0.675 | L22: =IFERROR(Table2[[#This Row],[CTNQnt]]*Table2[[#This Row],[Multiplier]],"") -> 67.5 | N22: 40230 | P22: =ISNUMBER(SEARCH(Table2[[#Headers],[WALMART]],C:C)) -> TRUE
A23: CROWN ORCHARDS | B23: 44102 | C23: WALMART- PAGELAND, SC | D23: Rejection | E23: =CONCATENATE(D23,Table2[[#This Row],[PackHouse]]) -> RejectionCROWN ORCHARDS | F23: PACKAGING | G23: GRANNY SMITH | H23: BAGS | I23: 140 | J23: ALL Totes | K23: =IFERROR(LOOKUP(Table2[[#This Row],[CalculatePack]],'Look Up'!K:K,'Look Up'!M:M),"") -> 1 | L23: =IFERROR(Table2[[#This Row],[CTNQnt]]*Table2[[#This Row],[Multiplier]],"") -> 140 | N23: 40789 | P23: =ISNUMBER(SEARCH(Table2[[#Headers],[WALMART]],C:C)) -> TRUE
A24: EMPIRE FRUIT | B24: 44098 | C24: WALMART- COCOA, FL | D24: A- | E24: =CONCATENATE(D24,Table2[[#This Row],[PackHouse]]) -> A-EMPIRE FRUIT | F24: DECAY | G24: HONEYCRISP | H24: BULK | I24: 300 | J24: Large Bulk RPC | K24: =IFERROR(LOOKUP(Table2[[#This Row],[CalculatePack]],'Look Up'!K:K,'Look Up'!M:M),"") -> 0.675 | L24: =IFERROR(Table2[[#This Row],[CTNQnt]]*Table2[[#This Row],[Multiplier]],"") -> 202.5 | N24: 40507 | P24: =ISNUMBER(SEARCH(Table2[[#Headers],[WALMART]],C:C)) -> TRUE
A25: EMPIRE FRUIT | B25: 44099 | C25: SAM'S CLUB- JOHNSTOWN, NY | D25: A- | E25: =CONCATENATE(D25,Table2[[#This Row],[PackHouse]]) -> A-EMPIRE FRUIT | F25: BRUISE | G25: MCINTOSH | H25: BAGS | I25: 240 | J25: 7/6 Bag | K25: =IFERROR(LOOKUP(Table2[[#This Row],[CalculatePack]],'Look Up'!K:K,'Look Up'!M:M),"") -> 1.05 | L25: =IFERROR(Table2[[#This Row],[CTNQnt]]*Table2[[#This Row],[Multiplier]],"") -> 252 | N25: 40640 | P25: =ISNUMBER(SEARCH(Table2[[#Headers],[WALMART]],C:C)) -> FALSE
A26: EMPIRE FRUIT | B26: 44118 | C26: WALMART- COCOA, FL | D26: Rejection | E26: =CONCATENATE(D26,Table2[[#This Row],[PackHouse]]) -> RejectionEMPIRE FRUIT | F26: BRUISE | G26: MCINTOSH | H26: BAGS | I26: 288 | J26: 8/3 ALL | K26: =IFERROR(LOOKUP(Table2[[#This Row],[CalculatePack]],'Look Up'!K:K,'Look Up'!M:M),"") -> 0.6 | L26: =IFERROR(Table2[[#This Row],[CTNQnt]]*Table2[[#This Row],[Multiplier]],"") -> 172.8 | N26: 41219 | P26: =ISNUMBER(SEARCH(Table2[[#Headers],[WALMART]],C:C)) -> TRUE
A27: EMPIRE FRUIT | B27: 44120 | C27: SAM'S CLUB- POTTSVILLE, PA | D27: A- | E27: =CONCATENATE(D27,Table2[[#This Row],[PackHouse]]) -> A-EMPIRE FRUIT | F27: BITTERPIT | G27: HONEYCRISP | H27: BAGS | I27: 200 | J27: 9/4 Pouch | K27: =IFERROR(LOOKUP(Table2[[#This Row],[CalculatePack]],'Look Up'!K:K,'Look Up'!M:M),"") -> 0.9 | L27: =IFERROR(Table2[[#This Row],[CTNQnt]]*Table2[[#This Row],[Multiplier]],"") -> 180 | N27: 41242 | P27: =ISNUMBER(SEARCH(Table2[[#Headers],[WALMART]],C:C)) -> FALSE
A28: EMPIRE FRUIT | B28: 44181 | C28: WALMART- LONDON, KY | D28: A- | E28: =CONCATENATE(D28,Table2[[#This Row],[PackHouse]]) -> A-EMPIRE FRUIT | F28: DECAY | G28: GALA | H28: BAGS | I28: 700 | J28: 8/3 ALL | K28: =IFERROR(LOOKUP(Table2[[#This Row],[CalculatePack]],'Look Up'!K:K,'Look Up'!M:M),"") -> 0.6 | L28: =IFERROR(Table2[[#This Row],[CTNQnt]]*Table2[[#This Row],[Multiplier]],"") -> 420 | N28: 43340 | P28: =ISNUMBER(SEARCH(Table2[[#Headers],[WALMART]],C:C)) -> TRUE
A29: EMPIRE FRUIT | B29: 44187 | C29: MARKET BASKET | D29: A- | E29: =CONCATENATE(D29,Table2[[#This Row],[PackHouse]]) -> A-EMPIRE FRUIT | F29: BRUISE | G29: HONEYCRISP | H29: BULK | I29: 40 | J29: Regular TP | K29: =IFERROR(LOOKUP(Table2[[#This Row],[CalculatePack]],'Look Up'!K:K,'Look Up'!M:M),"") -> 1 | L29: =IFERROR(Table2[[#This Row],[CTNQnt]]*Table2[[#This Row],[Multiplier]],"") -> 40 | N29: 43335 | P29: =ISNUMBER(SEARCH(Table2[[#Headers],[WALMART]],C:C)) -> FALSE
A30: EMPIRE FRUIT | B30: 44187 | C30: WALMART- MEBANE, NC | D30: A- | E30: =CONCATENATE(D30,Table2[[#This Row],[PackHouse]]) -> A-EMPIRE FRUIT | F30: DECAY | G30: GALA | H30: BAGS | I30: 700 | J30: 8/3 ALL | K30: =IFERROR(LOOKUP(Table2[[#This Row],[CalculatePack]],'Look Up'!K:K,'Look Up'!M:M),"") -> 0.6 | L30: =IFERROR(Table2[[#This Row],[CTNQnt]]*Table2[[#This Row],[Multiplier]],"") -> 420 | N30: 43340 | P30: =ISNUMBER(SEARCH(Table2[[#Headers],[WALMART]],C:C)) -> TRUE
A31: EMPIRE FRUIT | B31: 44191 | C31: WALMART- COCOA, FL | D31: A- | E31: =CONCATENATE(D31,Table2[[#This Row],[PackHouse]]) -> A-EMPIRE FRUIT | F31: DECAY | G31: FUJI | H31: BULK | I31: 150 | J31: Large Bulk RPC | K31: =IFERROR(LOOKUP(Table2[[#This Row],[CalculatePack]],'Look Up'!K:K,'Look Up'!M:M),"") -> 0.675 | L31: =IFERROR(Table2[[#This Row],[CTNQnt]]*Table2[[#This Row],[Multiplier]],"") -> 101.25 | N31: 43228 | P31: =ISNUMBER(SEARCH(Table2[[#Headers],[WALMART]],C:C)) -> TRUE
A32: EMPIRE FRUIT | B32: 44195 | C32: WALMART- COCOA, FL | D32: A- | E32: =CONCATENATE(D32,Table2[[#This Row],[PackHouse]]) -> A-EMPIRE FRUIT | F32: DECAY | G32: FUJI | H32: BAGS | I32: 100 | J32: 8/3 ALL | K32: =IFERROR(LOOKUP(Table2[[#This Row],[CalculatePack]],'Look Up'!K:K,'Look Up'!M:M),"") -> 0.6 | L32: =IFERROR(Table2[[#This Row],[CTNQnt]]*Table2[[#This Row],[Multiplier]],"") -> 60 | N32: 43356 | P32: =ISNUMBER(SEARCH(Table2[[#Headers],[WALMART]],C:C)) -> TRUE
A33: EMPIRE FRUIT | B33: 44201 | C33: WALMART- LONDON, KY | D33: Rejection | E33: =CONCATENATE(D33,Table2[[#This Row],[PackHouse]]) -> RejectionEMPIRE FRUIT | F33: DECAY | G33: GRANNY SMITH | H33: BAGS | I33: 350 | J33: 8/3 ALL | K33: =IFERROR(LOOKUP(Table2[[#This Row],[CalculatePack]],'Look Up'!K:K,'Look Up'!M:M),"") -> 0.6 | L33: =IFERROR(Table2[[#This Row],[CTNQnt]]*Table2[[#This Row],[Multiplier]],"") -> 210 | N33: 43503 | P33: =ISNUMBER(SEARCH(Table2[[#Headers],[WALMART]],C:C)) -> TRUE
A34: FIX BROS | B34: 44159 | C34: SAM'S CLUB- JOHNSTOWN, NY | D34: A- | E34: =CONCATENATE(D34,Table2[[#This Row],[PackHouse]]) -> A-FIX BROS | F34: PLU STICKER COVERAGE | G34: FUJI | H34: BULK | I34: 50 | J34: Large Bulk RPC | K34: =IFERROR(LOOKUP(Table2[[#This Row],[CalculatePack]],'Look Up'!K:K,'Look Up'!M:M),"") -> 0.675 | L34: =IFERROR(Table2[[#This Row],[CTNQnt]]*Table2[[#This Row],[Multiplier]],"") -> 33.75 | N34: 42467 | P34: =ISNUMBER(SEARCH(Table2[[#Headers],[WALMART]],C:C)) -> FALSE
A35: GLAIZE | B35: 44156 | C35: WALMART- PAGELAND, SC | D35: A- | E35: =CONCATENATE(D35,Table2[[#This Row],[PackHouse]]) -> A-GLAIZE | F35: PLU STICKER COVERAGE | G35: GALA | H35: BULK | I35: 150 | J35: Large Bulk RPC | K35: =IFERROR(LOOKUP(Table2[[#This Row],[CalculatePack]],'Look Up'!K:K,'Look Up'!M:M),"") -> 0.675 | L35: =IFERROR(Table2[[#This Row],[CTNQnt]]*Table2[[#This Row],[Multiplier]],"") -> 101.25 | N35: 42350 | P35: =ISNUMBER(SEARCH(Table2[[#Headers],[WALMART]],C:C)) -> TRUE
A36: GLAIZE | B36: 44193 | C36: WALMART- LONDON, KY | D36: Rejection | E36: =CONCATENATE(D36,Table2[[#This Row],[PackHouse]]) -> RejectionGLAIZE | F36: BLUSH | G36: GRANNY SMITH | H36: BULK | I36: 350 | J36: Large Bulk RPC | K36: =IFERROR(LOOKUP(Table2[[#This Row],[CalculatePack]],'Look Up'!K:K,'Look Up'!M:M),"") -> 0.675 | L36: =IFERROR(Table2[[#This Row],[CTNQnt]]*Table2[[#This Row],[Multiplier]],"") -> 236.25 | N36: 43378 | P36: =ISNUMBER(SEARCH(Table2[[#Headers],[WALMART]],C:C)) -> TRUE
A37: GLAIZE | B37: 44193 | C37: WALMART- LONDON, KY | D37: A- | E37: =CONCATENATE(D37,Table2[[#This Row],[PackHouse]]) -> A-GLAIZE | F37: BLUSH | G37: GRANNY SMITH | H37: BULK | I37: 850 | J37: Large Bulk RPC | K37: =IFERROR(LOOKUP(Table2[[#This Row],[CalculatePack]],'Look Up'!K:K,'Look Up'!M:M),"") -> 0.675 | L37: =IFERROR(Table2[[#This Row],[CTNQnt]]*Table2[[#This Row],[Multiplier]],"") -> 573.75 | N37: 43379 | P37: =ISNUMBER(SEARCH(Table2[[#Headers],[WALMART]],C:C)) -> TRUE
A38: SAULPAUGH | B38: 44172 | C38: WALMART- JOHNSTOWN, NY | D38: A- | E38: =CONCATENATE(D38,Table2[[#This Row],[PackHouse]]) -> A-SAULPAUGH | F38: PLU STICKER COVERAGE | G38: GALA | H38: BULK | I38: 100 | J38: Large Bulk RPC | K38: =IFERROR(LOOKUP(Table2[[#This Row],[CalculatePack]],'Look Up'!K:K,'Look Up'!M:M),"") -> 0.675 | L38: =IFERROR(Table2[[#This Row],[CTNQnt]]*Table2[[#This Row],[Multiplier]],"") -> 67.5 | N38: 42838 | P38: =ISNUMBER(SEARCH(Table2[[#Headers],[WALMART]],C:C)) -> TRUE
A39: SAULPAUGH | B39: 44183 | C39: WALMART- JOHNSTOWN, NY | D39: A- | E39: =CONCATENATE(D39,Table2[[#This Row],[PackHouse]]) -> A-SAULPAUGH | F39: PLU STICKER COVERAGE | G39: CORTLAND | H39: BULK | I39: 50 | J39: Large Bulk RPC | K39: =IFERROR(LOOKUP(Table2[[#This Row],[CalculatePack]],'Look Up'!K:K,'Look Up'!M:M),"") -> 0.675 | L39: =IFERROR(Table2[[#This Row],[CTNQnt]]*Table2[[#This Row],[Multiplier]],"") -> 33.75 | N39: 43100 | P39: =ISNUMBER(SEARCH(Table2[[#Headers],[WALMART]],C:C)) -> TRUE
A40: JP SULLIVAN | B40: 44120 | C40: WALMART- LEWISTON, ME | D40: Rejection | E40: =CONCATENATE(D40,Table2[[#This Row],[PackHouse]]) -> RejectionJP SULLIVAN | F40: BITTERPIT | G40: HONEYCRISP | H40: BULK | I40: 100 | J40: Large Bulk RPC | K40: =IFERROR(LOOKUP(Table2[[#This Row],[CalculatePack]],'Look Up'!K:K,'Look Up'!M:M),"") -> 0.675 | L40: =IFERROR(Table2[[#This Row],[CTNQnt]]*Table2[[#This Row],[Multiplier]],"") -> 67.5 | N40: 41329 | P40: =ISNUMBER(SEARCH(Table2[[#Headers],[WALMART]],C:C)) -> TRUE
A41: LAKE ONTARIO | B41: 44096 | C41: FOOD LION | D41: Rejection | E41: =CONCATENATE(D41,Table2[[#This Row],[PackHouse]]) -> RejectionLAKE ONTARIO | F41: BRUISE | G41: SWEETANGO | H41: BAGS | I41: 50 | J41: 12/2 Pouch | K41: =IFERROR(LOOKUP(Table2[[#This Row],[CalculatePack]],'Look Up'!K:K,'Look Up'!M:M),"") -> 0.6 | L41: =IFERROR(Table2[[#This Row],[CTNQnt]]*Table2[[#This Row],[Multiplier]],"") -> 30 | M41: food bank | N41: 40695 | P41: =ISNUMBER(SEARCH(Table2[[#Headers],[WALMART]],C:C)) -> FALSE
A42: LAKE ONTARIO | B42: 44096 | C42: LANCASTER FOODS | D42: Rejection | E42: =CONCATENATE(D42,Table2[[#This Row],[PackHouse]]) -> RejectionLAKE ONTARIO | F42: BITTERPIT & DECAY | G42: SWEETANGO | H42: BULK | I42: 78 | J42: Regular TP | K42: =IFERROR(LOOKUP(Table2[[#This Row],[CalculatePack]],'Look Up'!K:K,'Look Up'!M:M),"") -> 1 | L42: =IFERROR(Table2[[#This Row],[CTNQnt]]*Table2[[#This Row],[Multiplier]],"") -> 78 | M42: lancaster foods | N42: 40734 | P42: =ISNUMBER(SEARCH(Table2[[#Headers],[WALMART]],C:C)) -> FALSE
A43: LAKE ONTARIO | B43: 44098 | C43: SAM'S CLUB- JOHNSTOWN, NY | D43: A- | E43: =CONCATENATE(D43,Table2[[#This Row],[PackHouse]]) -> A-LAKE ONTARIO | F43: BRUISE | G43: SWEETANGO | H43: BAGS | I43: 40 | J43: 9/4 Pouch | K43: =IFERROR(LOOKUP(Table2[[#This Row],[CalculatePack]],'Look Up'!K:K,'Look Up'!M:M),"") -> 0.9 | L43: =IFERROR(Table2[[#This Row],[CTNQnt]]*Table2[[#This Row],[Multiplier]],"") -> 36 | M43: accepted | N43: 40640 | P43: =ISNUMBER(SEARCH(Table2[[#Headers],[WALMART]],C:C)) -> FALSE
A44: LAKE ONTARIO | B44: 44098 | C44: WALMART- NEW ALBANY, MS | D44: A- | E44: =CONCATENATE(D44,Table2[[#This Row],[PackHouse]]) -> A-LAKE ONTARIO | F44: BRUISE & BROKEN SKINS | G44: SWEETANGO | H44: BULK | I44: 50 | J44: Large Bulk RPC | K44: =IFERROR(LOOKUP(Table2[[#This Row],[CalculatePack]],'Look Up'!K:K,'Look Up'!M:M),"") -> 0.675 | L44: =IFERROR(Table2[[#This Row],[CTNQnt]]*Table2[[#This Row],[Multiplier]],"") -> 33.75 | M44: accepted | N44: 40586 | P44: =ISNUMBER(SEARCH(Table2[[#Headers],[WALMART]],C:C)) -> TRUE
A45: LAKE ONTARIO | B45: 44099 | C45: WALMART- ARCADIA, FL | D45: Rejection | E45: =CONCATENATE(D45,Table2[[#This Row],[PackHouse]]) -> RejectionLAKE ONTARIO | F45: PACKAGING | G45: SWEETANGO | H45: BAGS | I45: 1 | J45: 12/2 Pouch | K45: =IFERROR(LOOKUP(Table2[[#This Row],[CalculatePack]],'Look Up'!K:K,'Look Up'!M:M),"") -> 0.6 | L45: =IFERROR(Table2[[#This Row],[CTNQnt]]*Table2[[#This Row],[Multiplier]],"") -> 0.6 | M45: accepted | N45: 40604 | P45: =ISNUMBER(SEARCH(Table2[[#Headers],[WALMART]],C:C)) -> TRUE
A46: LAKE ONTARIO | B46: 44108 | C46: WALMART- MACCLENNY, FL | D46: A- | E46: =CONCATENATE(D46,Table2[[#This Row],[PackHouse]]) -> A-LAKE ONTARIO | F46: BRUISE | G46: SWEETANGO | H46: BAGS | I46: 80 | J46: 12/2 Pouch | K46: =IFERROR(LOOKUP(Table2[[#This Row],[CalculatePack]],'Look Up'!K:K,'Look Up'!M:M),"") -> 0.6 | L46: =IFERROR(Table2[[#This Row],[CTNQnt]]*Table2[[#This Row],[Multiplier]],"") -> 48 | M46: accepted | N46: 40847 | P46: =ISNUMBER(SEARCH(Table2[[#Headers],[WALMART]],C:C)) -> TRUE
A47: LAKE ONTARIO | B47: 44129 | C47: SAMS - MANKATO | D47: Rejection | E47: =CONCATENATE(D47,Table2[[#This Row],[PackHouse]]) -> RejectionLAKE ONTARIO | F47: BRUISE | G47: SWEETANGO | H47: BAGS | I47: 120 | J47: 9/4 Pouch | K47: =IFERROR(LOOKUP(Table2[[#This Row],[CalculatePack]],'Look Up'!K:K,'Look Up'!M:M),"") -> 0.9 | L47: =IFERROR(Table2[[#This Row],[CTNQnt]]*Table2[[#This Row],[Multiplier]],"") -> 108 | M47: heartland | N47: 41459 | P47: =ISNUMBER(SEARCH(Table2[[#Headers],[WALMART]],C:C)) -> FALSE
A48: LAKE ONTARIO | B48: 44133 | C48: SAMS - MANKATO | D48: Rejection | E48: =CONCATENATE(D48,Table2[[#This Row],[PackHouse]]) -> RejectionLAKE ONTARIO | F48: BITTERPIT | G48: SWEETANGO | H48: BAGS | I48: 120 | J48: 9/4 Pouch | K48: =IFERROR(LOOKUP(Table2[[#This Row],[CalculatePack]],'Look Up'!K:K,'Look Up'!M:M),"") -> 0.9 | L48: =IFERROR(Table2[[#This Row],[CTNQnt]]*Table2[[#This Row],[Multiplier]],"") -> 108 | M48: heartland | N48: 41845 | P48: =ISNUMBER(SEARCH(Table2[[#Headers],[WALMART]],C:C)) -> FALSE
A49: LAKE ONTARIO | B49: 44133 | C49: WALMART- WINTER HAVEN, FL | D49: A- | E49: =CONCATENATE(D49,Table2[[#This Row],[PackHouse]]) -> A-LAKE ONTARIO | F49: INTERNAL BROWNING | G49: SWEETANGO | H49: BAGS | I49: 200 | J49: 8/3 ALL | K49: =IFERROR(LOOKUP(Table2[[#This Row],[CalculatePack]],'Look Up'!K:K,'Look Up'!M:M),"") -> 0.6 | L49: =IFERROR(Table2[[#This Row],[CTNQnt]]*Table2[[#This Row],[Multiplier]],"") -> 120 | N49: 41597 | P49: =ISNUMBER(SEARCH(Table2[[#Headers],[WALMART]],C:C)) -> TRUE
A50: PORPIGLIA FARMS | B50: 44136 | C50: WALMART- COCOA, FL | D50: A- | E50: =CONCATENATE(D50,Table2[[#This Row],[PackHouse]]) -> A-PORPIGLIA FARMS | F50: PLU STICKER COVERAGE | G50: HONEYCRISP | H50: BULK | I50: 200 | J50: Large Bulk RPC | K50: =IFERROR(LOOKUP(Table2[[#This Row],[CalculatePack]],'Look Up'!K:K,'Look Up'!M:M),"") -> 0.675 | L50: =IFERROR(Table2[[#This Row],[CTNQnt]]*Table2[[#This Row],[Multiplier]],"") -> 135 | N50: 41731 | P50: =ISNUMBER(SEARCH(Table2[[#Headers],[WALMART]],C:C)) -> TRUE
A51: LAKE ONTARIO | B51: 44138 | C51: SAMS - BEDFORD, PA | D51: Rejection | E51: =CONCATENATE(D51,Table2[[#This Row],[PackHouse]]) -> RejectionLAKE ONTARIO | F51: BRUISE | G51: SWEETANGO | H51: BAGS | I51: 80 | J51: 9/4 Pouch | K51: =IFERROR(LOOKUP(Table2[[#This Row],[CalculatePack]],'Look Up'!K:K,'Look Up'!M:M),"") -> 0.9 | L51: =IFERROR(Table2[[#This Row],[CTNQnt]]*Table2[[#This Row],[Multiplier]],"") -> 72 | N51: 41834 | P51: =ISNUMBER(SEARCH(Table2[[#Headers],[WALMART]],C:C)) -> FALSE
A52: LAKE ONTARIO | B52: 44140 | C52: SAMS - MANKATO | D52: Rejection | E52: =CONCATENATE(D52,Table2[[#This Row],[PackHouse]]) -> RejectionLAKE ONTARIO | F52: BITTERPIT & STEM PUNCTURES | G52: SWEETANGO | H52: BAGS | I52: 120 | J52: 9/4 Pouch | K52: =IFERROR(LOOKUP(Table2[[#This Row],[CalculatePack]],'Look Up'!K:K,'Look Up'!M:M),"") -> 0.9 | L52: =IFERROR(Table2[[#This Row],[CTNQnt]]*Table2[[#This Row],[Multiplier]],"") -> 108 | N52: 41830 | P52: =ISNUMBER(SEARCH(Table2[[#Headers],[WALMART]],C:C)) -> FALSE
A53: LAKE ONTARIO | B53: 44147 | C53: WALMART- COCOA, FL | D53: A- | E53: =CONCATENATE(D53,Table2[[#This Row],[PackHouse]]) -> A-LAKE ONTARIO | F53: PLU STICKER COVERAGE | G53: HONEYCRISP | H53: BULK | I53: 400 | J53: Large Bulk RPC | K53: =IFERROR(LOOKUP(Table2[[#This Row],[CalculatePack]],'Look Up'!K:K,'Look Up'!M:M),"") -> 0.675 | L53: =IFERROR(Table2[[#This Row],[CTNQnt]]*Table2[[#This Row],[Multiplier]],"") -> 270 | N53: 42015 | P53: =ISNUMBER(SEARCH(Table2[[#Headers],[WALMART]],C:C)) -> TRUE
A54: LAKE ONTARIO | B54: 44147 | C54: SAMS - MANKATO | D54: A- | E54: =CONCATENATE(D54,Table2[[#This Row],[PackHouse]]) -> A-LAKE ONTARIO | F54: BRUISE | G54: SWEETANGO | H54: BAGS | I54: 80 | J54: 9/4 Pouch | K54: =IFERROR(LOOKUP(Table2[[#This Row],[CalculatePack]],'Look Up'!K:K,'Look Up'!M:M),"") -> 0.9 | L54: =IFERROR(Table2[[#This Row],[CTNQnt]]*Table2[[#This Row],[Multiplier]],"") -> 72 | N54: 42030 | P54: =ISNUMBER(SEARCH(Table2[[#Headers],[WALMART]],C:C)) -> FALSE
A55: LAKE ONTARIO | B55: 44148 | C55: WALMART- LONDON, KY | D55: Rejection | E55: =CONCATENATE(D55,Table2[[#This Row],[PackHouse]]) -> RejectionLAKE ONTARIO | F55: DECAY | G55: GALA | H55: BULK | I55: 50 | J55: Large Bulk RPC | K55: =IFERROR(LOOKUP(Table2[[#This Row],[CalculatePack]],'Look Up'!K:K,'Look Up'!M:M),"") -> 0.675 | L55: =IFERROR(Table2[[#This Row],[CTNQnt]]*Table2[[#This Row],[Multiplier]],"") -> 33.75 | N55: 42084 | P55: =ISNUMBER(SEARCH(Table2[[#Headers],[WALMART]],C:C)) -> TRUE
A56: LAKE ONTARIO | B56: 44175 | C56: WALMART- JOHNSTOWN, NY | D56: A- | E56: =CONCATENATE(D56,Table2[[#This Row],[PackHouse]]) -> A-LAKE ONTARIO | F56: PLU STICKER COVERAGE | G56: GALA | H56: BULK | I56: 50 | J56: Large Bulk RPC | K56: =IFERROR(LOOKUP(Table2[[#This Row],[CalculatePack]],'Look Up'!K:K,'Look Up'!M:M),"") -> 0.675 | L56: =IFERROR(Table2[[#This Row],[CTNQnt]]*Table2[[#This Row],[Multiplier]],"") -> 33.75 | N56: 42928 | P56: =ISNUMBER(SEARCH(Table2[[#Headers],[WALMART]],C:C)) -> TRUE
A57: LAKE ONTARIO | B57: 44204 | C57: WALMART- MACCLENNY, FL | D57: Rejection | E57: =CONCATENATE(D57,Table2[[#This Row],[PackHouse]]) -> RejectionLAKE ONTARIO | F57: DECAY | G57: GALA | H57: BAGS | I57: 309 | J57: 8/3 ALL | K57: =IFERROR(LOOKUP(Table2[[#This Row],[CalculatePack]],'Look Up'!K:K,'Look Up'!M:M),"") -> 0.6 | L57: =IFERROR(Table2[[#This Row],[CTNQnt]]*Table2[[#This Row],[Multiplier]],"") -> 185.4 | N57: 43527 | P57: =ISNUMBER(SEARCH(Table2[[#Headers],[WALMART]],C:C)) -> TRUE
A58: MAIN OFFICE | B58: 44093 | C58: WALMART- MACCLENNY, FL | D58: Rejection | E58: =CONCATENATE(D58,Table2[[#This Row],[PackHouse]]) -> RejectionMAIN OFFICE | F58: CARRIER DAMAGE | G58: GALA | H58: BULK | I58: 5 | J58: Large Bulk RPC | K58: =IFERROR(LOOKUP(Table2[[#This Row],[CalculatePack]],'Look Up'!K:K,'Look Up'!M:M),"") -> 0.675 | L58: =IFERROR(Table2[[#This Row],[CTNQnt]]*Table2[[#This Row],[Multiplier]],"") -> 3.375 | N58: 40418 | P58: =ISNUMBER(SEARCH(Table2[[#Headers],[WALMART]],C:C)) -> TRUE
A59: MAIN OFFICE | B59: 44096 | C59: WALMART- MEBANE, NC | D59: Rejection | E59: =CONCATENATE(D59,Table2[[#This Row],[PackHouse]]) -> RejectionMAIN OFFICE | F59: CARRIER DAMAGE | G59: HONEYCRISP | H59: BULK | I59: 5 | J59: Large Bulk RPC | K59: =IFERROR(LOOKUP(Table2[[#This Row],[CalculatePack]],'Look Up'!K:K,'Look Up'!M:M),"") -> 0.675 | L59: =IFERROR(Table2[[#This Row],[CTNQnt]]*Table2[[#This Row],[Multiplier]],"") -> 3.375 | N59: 40522 | P59: =ISNUMBER(SEARCH(Table2[[#Headers],[WALMART]],C:C)) -> TRUE
A60: MAIN OFFICE | B60: 44116 | C60: WALMART- WINTER HAVEN, FL | D60: Rejection | E60: =CONCATENATE(D60,Table2[[#This Row],[PackHouse]]) -> RejectionMAIN OFFICE | F60: CARRIER DAMAGE | G60: SWEETANGO | H60: BAGS | I60: 99 | J60: 12/2 Pouch | K60: =IFERROR(LOOKUP(Table2[[#This Row],[CalculatePack]],'Look Up'!K:K,'Look Up'!M:M),"") -> 0.6 | L60: =IFERROR(Table2[[#This Row],[CTNQnt]]*Table2[[#This Row],[Multiplier]],"") -> 59.4 | M60: SUNTECK TRANSPORT | N60: 41038 | P60: =ISNUMBER(SEARCH(Table2[[#Headers],[WALMART]],C:C)) -> TRUE
A61: MAIN OFFICE | B61: 44122 | C61: Harris Teeter | D61: Rejection | E61: =CONCATENATE(D61,Table2[[#This Row],[PackHouse]]) -> RejectionMAIN OFFICE | F61: CARRIER DAMAGE | G61: SNAPDRAGON | H61: BULK | I61: 12 | J61: Regular TP | K61: =IFERROR(LOOKUP(Table2[[#This Row],[CalculatePack]],'Look Up'!K:K,'Look Up'!M:M),"") -> 1 | L61: =IFERROR(Table2[[#This Row],[CTNQnt]]*Table2[[#This Row],[Multiplier]],"") -> 12 | M61: TG | N61: 41253 | P61: =ISNUMBER(SEARCH(Table2[[#Headers],[WALMART]],C:C)) -> FALSE
A62: MAIN OFFICE | B62: 44124 | C62: HEB | D62: Rejection | E62: =CONCATENATE(D62,Table2[[#This Row],[PackHouse]]) -> RejectionMAIN OFFICE | F62: CARRIER DAMAGE | G62: HONEYCRISP | H62: BULK | I62: 7 | J62: Regular TP | K62: =IFERROR(LOOKUP(Table2[[#This Row],[CalculatePack]],'Look Up'!K:K,'Look Up'!M:M),"") -> 1 | L62: =IFERROR(Table2[[#This Row],[CTNQnt]]*Table2[[#This Row],[Multiplier]],"") -> 7 | M62: ENTOURAGE | N62: 41446 | P62: =ISNUMBER(SEARCH(Table2[[#Headers],[WALMART]],C:C)) -> FALSE
A63: MAIN OFFICE | B63: 44127 | C63: WALMART- JOHNSTOWN, NY | D63: Rejection | E63: =CONCATENATE(D63,Table2[[#This Row],[PackHouse]]) -> RejectionMAIN OFFICE | F63: CARRIER DAMAGE | G63: RED DELICIOUS | H63: BULK | I63: 50 | J63: Large Bulk RPC | K63: =IFERROR(LOOKUP(Table2[[#This Row],[CalculatePack]],'Look Up'!K:K,'Look Up'!M:M),"") -> 0.675 | L63: =IFERROR(Table2[[#This Row],[CTNQnt]]*Table2[[#This Row],[Multiplier]],"") -> 33.75 | M63: TORNABENE | N63: 41469 | P63: =ISNUMBER(SEARCH(Table2[[#Headers],[WALMART]],C:C)) -> TRUE
A64: MAIN OFFICE | B64: 44128 | C64: WALMART- OPELIKA, AL | D64: A- | E64: =CONCATENATE(D64,Table2[[#This Row],[PackHouse]]) -> A-MAIN OFFICE | F64: WATERCORE | G64: RED DELICIOUS | H64: BULK | I64: 200 | J64: Large Bulk RPC | K64: =IFERROR(LOOKUP(Table2[[#This Row],[CalculatePack]],'Look Up'!K:K,'Look Up'!M:M),"") -> 0.675 | L64: =IFERROR(Table2[[#This Row],[CTNQnt]]*Table2[[#This Row],[Multiplier]],"") -> 135 | M64: YONDER FARMS | N64: 41471 | P64: =ISNUMBER(SEARCH(Table2[[#Headers],[WALMART]],C:C)) -> TRUE
A65: MAIN OFFICE | B65: 44131 | C65: WALMART- JOHNSTOWN, NY | D65: Rejection | E65: =CONCATENATE(D65,Table2[[#This Row],[PackHouse]]) -> RejectionMAIN OFFICE | F65: WATERCORE | G65: FUJI | H65: BAGS | I65: 150 | J65: 8/3 ALL | K65: =IFERROR(LOOKUP(Table2[[#This Row],[CalculatePack]],'Look Up'!K:K,'Look Up'!M:M),"") -> 0.6 | L65: =IFERROR(Table2[[#This Row],[CTNQnt]]*Table2[[#This Row],[Multiplier]],"") -> 90 | M65: FIX | N65: 41596 | P65: =ISNUMBER(SEARCH(Table2[[#Headers],[WALMART]],C:C)) -> TRUE
A66: MAIN OFFICE | B66: 44143 | C66: WALMART- LEWISTON, ME | D66: A- | E66: =CONCATENATE(D66,Table2[[#This Row],[PackHouse]]) -> A-MAIN OFFICE | F66: WATERCORE | G66: RED DELICIOUS | H66: BAGS | I66: 200 | J66: 5/5 RPC | K66: =IFERROR(LOOKUP(Table2[[#This Row],[CalculatePack]],'Look Up'!K:K,'Look Up'!M:M),"") -> 0.625 | L66: =IFERROR(Table2[[#This Row],[CTNQnt]]*Table2[[#This Row],[Multiplier]],"") -> 125 | N66: 42120 | P66: =ISNUMBER(SEARCH(Table2[[#Headers],[WALMART]],C:C)) -> TRUE
A67: LAKE ONTARIO | B67: 44149 | C67: WALMART- COCOA, FL | D67: A- | E67: =CONCATENATE(D67,Table2[[#This Row],[PackHouse]]) -> A-LAKE ONTARIO | F67: WATERCORE | G67: RED DELICIOUS | H67: BAGS | I67: 100 | J67: 5/5 RPC | K67: =IFERROR(LOOKUP(Table2[[#This Row],[CalculatePack]],'Look Up'!K:K,'Look Up'!M:M),"") -> 0.625 | L67: =IFERROR(Table2[[#This Row],[CTNQnt]]*Table2[[#This Row],[Multiplier]],"") -> 62.5 | N67: 42083 | P67: =ISNUMBER(SEARCH(Table2[[#Headers],[WALMART]],C:C)) -> TRUE
A68: MAIN OFFICE | B68: 44168 | C68: WALMART- MEBANE, NC | D68: Rejection | E68: =CONCATENATE(D68,Table2[[#This Row],[PackHouse]]) -> RejectionMAIN OFFICE | F68: TEMPERATURE | G68: FUJI | H68: BAGS | I68: 350 | J68: 8/3 ALL | K68: =IFERROR(LOOKUP(Table2[[#This Row],[CalculatePack]],'Look Up'!K:K,'Look Up'!M:M),"") -> 0.6 | L68: =IFERROR(Table2[[#This Row],[CTNQnt]]*Table2[[#This Row],[Multiplier]],"") -> 210 | N68: 42649 | P68: =ISNUMBER(SEARCH(Table2[[#Headers],[WALMART]],C:C)) -> TRUE
A69: MAIN OFFICE | B69: 44168 | C69: WALMART- MEBANE, NC | D69: Rejection | E69: =CONCATENATE(D69,Table2[[#This Row],[PackHouse]]) -> RejectionMAIN OFFICE | F69: TEMPERATURE | G69: MCINTOSH | H69: BAGS | I69: 300 | J69: 8/3 ALL | K69: =IFERROR(LOOKUP(Table2[[#This Row],[CalculatePack]],'Look Up'!K:K,'Look Up'!M:M),"") -> 0.6 | L69: =IFERROR(Table2[[#This Row],[CTNQnt]]*Table2[[#This Row],[Multiplier]],"") -> 180 | N69: 42649 | P69: =ISNUMBER(SEARCH(Table2[[#Headers],[WALMART]],C:C)) -> TRUE
A70: MAIN OFFICE | B70: 44168 | C70: WALMART- MEBANE, NC | D70: Rejection | E70: =CONCATENATE(D70,Table2[[#This Row],[PackHouse]]) -> RejectionMAIN OFFICE | F70: TEMPERATURE | G70: HONEYCRISP | H70: BAGS | I70: 700 | J70: 8/3 ALL | K70: =IFERROR(LOOKUP(Table2[[#This Row],[CalculatePack]],'Look Up'!K:K,'Look Up'!M:M),"") -> 0.6 | L70: =IFERROR(Table2[[#This Row],[CTNQnt]]*Table2[[#This Row],[Multiplier]],"") -> 420 | N70: 42649 | P70: =ISNUMBER(SEARCH(Table2[[#Headers],[WALMART]],C:C)) -> TRUE
A71: MAIN OFFICE | B71: 44179 | C71: WALMART- WINTER HAVEN, FL | D71: Rejection | E71: =CONCATENATE(D71,Table2[[#This Row],[PackHouse]]) -> RejectionMAIN OFFICE | F71: CARRIER DAMAGE | G71: RED DELICIOUS | H71: BULK | I71: 7 | J71: Large Bulk RPC | K71: =IFERROR(LOOKUP(Table2[[#This Row],[CalculatePack]],'Look Up'!K:K,'Look Up'!M:M),"") -> 0.675 | L71: =IFERROR(Table2[[#This Row],[CTNQnt]]*Table2[[#This Row],[Multiplier]],"") -> 4.725 | N71: 43027 | P71: =ISNUMBER(SEARCH(Table2[[#Headers],[WALMART]],C:C)) -> TRUE
A72: MAIN OFFICE | B72: 44183 | C72: WALMART- MEBANE, NC | D72: Rejection | E72: =CONCATENATE(D72,Table2[[#This Row],[PackHouse]]) -> RejectionMAIN OFFICE | F72: TEMPERATURE | G72: GALA | H72: BAGS | I72: 700 | J72: 8/3 ALL | K72: =IFERROR(LOOKUP(Table2[[#This Row],[CalculatePack]],'Look Up'!K:K,'Look Up'!M:M),"") -> 0.6 | L72: =IFERROR(Table2[[#This Row],[CTNQnt]]*Table2[[#This Row],[Multiplier]],"") -> 420 | N72: 43080 | P72: =ISNUMBER(SEARCH(Table2[[#Headers],[WALMART]],C:C)) -> TRUE
A73: MAIN OFFICE | B73: 44183 | C73: WALMART- MEBANE, NC | D73: Rejection | E73: =CONCATENATE(D73,Table2[[#This Row],[PackHouse]]) -> RejectionMAIN OFFICE | F73: TEMPERATURE | G73: HONEYCRISP | H73: BULK | I73: 300 | J73: Large Bulk RPC | K73: =IFERROR(LOOKUP(Table2[[#This Row],[CalculatePack]],'Look Up'!K:K,'Look Up'!M:M),"") -> 0.675 | L73: =IFERROR(Table2[[#This Row],[CTNQnt]]*Table2[[#This Row],[Multiplier]],"") -> 202.5 | N73: 43080 | P73: =ISNUMBER(SEARCH(Table2[[#Headers],[WALMART]],C:C)) -> TRUE
A74: MAIN OFFICE | B74: 44183 | C74: WALMART- MEBANE, NC | D74: Rejection | E74: =CONCATENATE(D74,Table2[[#This Row],[PackHouse]]) -> RejectionMAIN OFFICE | F74: TEMPERATURE | G74: GALA | H74: BULK | I74: 100 | J74: Large Bulk RPC | K74: =IFERROR(LOOKUP(Table2[[#This Row],[CalculatePack]],'Look Up'!K:K,'Look Up'!M:M),"") -> 0.675 | L74: =IFERROR(Table2[[#This Row],[CTNQnt]]*Table2[[#This Row],[Multiplier]],"") -> 67.5 | N74: 43080 | P74: =ISNUMBER(SEARCH(Table2[[#Headers],[WALMART]],C:C)) -> TRUE
A75: MAIN OFFICE | B75: 44183 | C75: WALMART- MEBANE, NC | D75: Rejection | E75: =CONCATENATE(D75,Table2[[#This Row],[PackHouse]]) -> RejectionMAIN OFFICE | F75: TEMPERATURE | G75: FUJI | H75: BULK | I75: 100 | J75: Large Bulk RPC | K75: =IFERROR(LOOKUP(Table2[[#This Row],[CalculatePack]],'Look Up'!K:K,'Look Up'!M:M),"") -> 0.675 | L75: =IFERROR(Table2[[#This Row],[CTNQnt]]*Table2[[#This Row],[Multiplier]],"") -> 67.5 | N75: 43080 | P75: =ISNUMBER(SEARCH(Table2[[#Headers],[WALMART]],C:C)) -> TRUE
A76: MAIN OFFICE | B76: 44183 | C76: WALMART- MEBANE, NC | D76: Rejection | E76: =CONCATENATE(D76,Table2[[#This Row],[PackHouse]]) -> RejectionMAIN OFFICE | F76: TEMPERATURE | G76: HONEYCRISP | H76: BAGS | I76: 150 | J76: 8/3 ALL | K76: =IFERROR(LOOKUP(Table2[[#This Row],[CalculatePack]],'Look Up'!K:K,'Look Up'!M:M),"") -> 0.6 | L76: =IFERROR(Table2[[#This Row],[CTNQnt]]*Table2[[#This Row],[Multiplier]],"") -> 90 | N76: 43080 | P76: =ISNUMBER(SEARCH(Table2[[#Headers],[WALMART]],C:C)) -> TRUE
A77: MAIN OFFICE | B77: 44184 | C77: WALMART- MEBANE, NC | D77: Rejection | E77: =CONCATENATE(D77,Table2[[#This Row],[PackHouse]]) -> RejectionMAIN OFFICE | F77: TEMPERATURE | G77: GALA | H77: BAGS | I77: 700 | J77: 8/3 ALL | K77: =IFERROR(LOOKUP(Table2[[#This Row],[CalculatePack]],'Look Up'!K:K,'Look Up'!M:M),"") -> 0.6 | L77: =IFERROR(Table2[[#This Row],[CTNQnt]]*Table2[[#This Row],[Multiplier]],"") -> 420 | N77: deleted | P77: =ISNUMBER(SEARCH(Table2[[#Headers],[WALMART]],C:C)) -> TRUE
A78: MAIN OFFICE | B78: 44184 | C78: WALMART- MEBANE, NC | D78: Rejection | E78: =CONCATENATE(D78,Table2[[#This Row],[PackHouse]]) -> RejectionMAIN OFFICE | F78: TEMPERATURE | G78: HONEYCRISP | H78: BULK | I78: 300 | J78: Large Bulk RPC | K78: =IFERROR(LOOKUP(Table2[[#This Row],[CalculatePack]],'Look Up'!K:K,'Look Up'!M:M),"") -> 0.675 | L78: =IFERROR(Table2[[#This Row],[CTNQnt]]*Table2[[#This Row],[Multiplier]],"") -> 202.5 | N78: deleted | P78: =ISNUMBER(SEARCH(Table2[[#Headers],[WALMART]],C:C)) -> TRUE
A79: MAIN OFFICE | B79: 44184 | C79: WALMART- MEBANE, NC | D79: Rejection | E79: =CONCATENATE(D79,Table2[[#This Row],[PackHouse]]) -> RejectionMAIN OFFICE | F79: TEMPERATURE | G79: GALA | H79: BULK | I79: 100 | J79: Large Bulk RPC | K79: =IFERROR(LOOKUP(Table2[[#This Row],[CalculatePack]],'Look Up'!K:K,'Look Up'!M:M),"") -> 0.675 | L79: =IFERROR(Table2[[#This Row],[CTNQnt]]*Table2[[#This Row],[Multiplier]],"") -> 67.5 | N79: deleted | P79: =ISNUMBER(SEARCH(Table2[[#Headers],[WALMART]],C:C)) -> TRUE
A80: MAIN OFFICE | B80: 44184 | C80: WALMART- MEBANE, NC | D80: Rejection | E80: =CONCATENATE(D80,Table2[[#This Row],[PackHouse]]) -> RejectionMAIN OFFICE | F80: TEMPERATURE | G80: FUJI | H80: BULK | I80: 100 | J80: Large Bulk RPC | K80: =IFERROR(LOOKUP(Table2[[#This Row],[CalculatePack]],'Look Up'!K:K,'Look Up'!M:M),"") -> 0.675 | L80: =IFERROR(Table2[[#This Row],[CTNQnt]]*Table2[[#This Row],[Multiplier]],"") -> 67.5 | N80: deleted | P80: =ISNUMBER(SEARCH(Table2[[#Headers],[WALMART]],C:C)) -> TRUE
A81: MAIN OFFICE | B81: 44184 | C81: WALMART- MEBANE, NC | D81: Rejection | E81: =CONCATENATE(D81,Table2[[#This Row],[PackHouse]]) -> RejectionMAIN OFFICE | F81: TEMPERATURE | G81: HONEYCRISP | H81: BAGS | I81: 150 | J81: 8/3 ALL | K81: =IFERROR(LOOKUP(Table2[[#This Row],[CalculatePack]],'Look Up'!K:K,'Look Up'!M:M),"") -> 0.6 | L81: =IFERROR(Table2[[#This Row],[CTNQnt]]*Table2[[#This Row],[Multiplier]],"") -> 90 | N81: deleted | P81: =ISNUMBER(SEARCH(Table2[[#Headers],[WALMART]],C:C)) -> TRUE
A82: MAIN OFFICE | B82: 44204 | C82: WALMART- MACCLENNY, FL | D82: Rejection | E82: =CONCATENATE(D82,Table2[[#This Row],[PackHouse]]) -> RejectionMAIN OFFICE | F82: DECAY | G82: GALA | H82: BAGS | I82: 41 | J82: 8/3 ALL | K82: =IFERROR(LOOKUP(Table2[[#This Row],[CalculatePack]],'Look Up'!K:K,'Look Up'!M:M),"") -> 0.6 | L82: =IFERROR(Table2[[#This Row],[CTNQnt]]*Table2[[#This Row],[Multiplier]],"") -> 24.6 | N82: 43527 | P82: =ISNUMBER(SEARCH(Table2[[#Headers],[WALMART]],C:C)) -> TRUE
A83: POMONA PACKING | B83: 44141 | C83: WALMART- JOHNSTOWN, NY | D83: A- | E83: =CONCATENATE(D83,Table2[[#This Row],[PackHouse]]) -> A-POMONA PACKING | F83: PLU STICKER COVERAGE | G83: GALA | H83: BULK | I83: 150 | J83: Large Bulk RPC | K83: =IFERROR(LOOKUP(Table2[[#This Row],[CalculatePack]],'Look Up'!K:K,'Look Up'!M:M),"") -> 0.675 | L83: =IFERROR(Table2[[#This Row],[CTNQnt]]*Table2[[#This Row],[Multiplier]],"") -> 101.25 | N83: 41927 | P83: =ISNUMBER(SEARCH(Table2[[#Headers],[WALMART]],C:C)) -> TRUE
A84: YONDER FARMS | B84: 44117 | C84: HANNAFORD | D84: Rejection | E84: =CONCATENATE(D84,Table2[[#This Row],[PackHouse]]) -> RejectionYONDER FARMS | F84: BRUISE | G84: GOLDEN DELICIOUS | H84: BAGS | I84: 40 | J84: ALL Totes | K84: =IFERROR(LOOKUP(Table2[[#This Row],[CalculatePack]],'Look Up'!K:K,'Look Up'!M:M),"") -> 1 | L84: =IFERROR(Table2[[#This Row],[CTNQnt]]*Table2[[#This Row],[Multiplier]],"") -> 40 | N84: 41306 | P84: =ISNUMBER(SEARCH(Table2[[#Headers],[WALMART]],C:C)) -> FALSE
A85: YONDER FARMS | B85: 44119 | C85: HANNAFORD | D85: Rejection | E85: =CONCATENATE(D85,Table2[[#This Row],[PackHouse]]) -> RejectionYONDER FARMS | F85: BRUISE | G85: GOLDEN DELICIOUS | H85: BAGS | I85: 40 | J85: ALL Totes | K85: =IFERROR(LOOKUP(Table2[[#This Row],[CalculatePack]],'Look Up'!K:K,'Look Up'!M:M),"") -> 1 | L85: =IFERROR(Table2[[#This Row],[CTNQnt]]*Table2[[#This Row],[Multiplier]],"") -> 40 | N85: 41366 | P85: =ISNUMBER(SEARCH(Table2[[#Headers],[WALMART]],C:C)) -> FALSE
A86: YONDER FARMS | B86: 43836 | C86: WALMART- JOHNSTOWN, NY | D86: A- | E86: =CONCATENATE(D86,Table2[[#This Row],[PackHouse]]) -> A-YONDER FARMS | F86: PLU STICKER COVERAGE | G86: RED DELICIOUS | H86: BULK | I86: 150 | J86: Large Bulk RPC | K86: =IFERROR(LOOKUP(Table2[[#This Row],[CalculatePack]],'Look Up'!K:K,'Look Up'!M:M),"") -> 0.675 | L86: =IFERROR(Table2[[#This Row],[CTNQnt]]*Table2[[#This Row],[Multiplier]],"") -> 101.25 | N86: 41923 | P86: =ISNUMBER(SEARCH(Table2[[#Headers],[WALMART]],C:C)) -> TRUE
A87: YONDER FARMS | B87: 44147 | C87: WALMART- JOHNSTOWN, NY | D87: A- | E87: =CONCATENATE(D87,Table2[[#This Row],[PackHouse]]) -> A-YONDER FARMS | F87: PLU STICKER COVERAGE | G87: CORTLAND | H87: BULK | I87: 75 | J87: Large Bulk RPC | K87: =IFERROR(LOOKUP(Table2[[#This Row],[CalculatePack]],'Look Up'!K:K,'Look Up'!M:M),"") -> 0.675 | L87: =IFERROR(Table2[[#This Row],[CTNQnt]]*Table2[[#This Row],[Multiplier]],"") -> 50.625 | N87: 42087 | P87: =ISNUMBER(SEARCH(Table2[[#Headers],[WALMART]],C:C)) -> TRUE
A88: YONDER FARMS | B88: 44147 | C88: WALMART- JOHNSTOWN, NY | D88: A- | E88: =CONCATENATE(D88,Table2[[#This Row],[PackHouse]]) -> A-YONDER FARMS | F88: PLU STICKER COVERAGE | G88: CORTLAND | H88: BULK | I88: 50 | J88: Large Bulk RPC | K88: =IFERROR(LOOKUP(Table2[[#This Row],[CalculatePack]],'Look Up'!K:K,'Look Up'!M:M),"") -> 0.675 | L88: =IFERROR(Table2[[#This Row],[CTNQnt]]*Table2[[#This Row],[Multiplier]],"") -> 33.75 | N88: 42086 | P88: =ISNUMBER(SEARCH(Table2[[#Headers],[WALMART]],C:C)) -> TRUE
A89: YONDER FARMS | B89: 44154 | C89: WALMART- JOHNSTOWN, NY | D89: A- | E89: =CONCATENATE(D89,Table2[[#This Row],[PackHouse]]) -> A-YONDER FARMS | F89: PLU STICKER COVERAGE | G89: CORTLAND | H89: BULK | I89: 50 | J89: Large Bulk RPC | K89: =IFERROR(LOOKUP(Table2[[#This Row],[CalculatePack]],'Look Up'!K:K,'Look Up'!M:M),"") -> 0.675 | L89: =IFERROR(Table2[[#This Row],[CTNQnt]]*Table2[[#This Row],[Multiplier]],"") -> 33.75 | N89: 42288 | P89: =ISNUMBER(SEARCH(Table2[[#Headers],[WALMART]],C:C)) -> TRUE
A90: YONDER FARMS | B90: 44155 | C90: WALMART- JOHNSTOWN, NY | D90: A- | E90: =CONCATENATE(D90,Table2[[#This Row],[PackHouse]]) -> A-YONDER FARMS | F90: PLU STICKER COVERAGE | G90: CORTLAND | H90: BULK | I90: 50 | J90: Large Bulk RPC | K90: =IFERROR(LOOKUP(Table2[[#This Row],[CalculatePack]],'Look Up'!K:K,'Look Up'!M:M),"") -> 0.675 | L90: =IFERROR(Table2[[#This Row],[CTNQnt]]*Table2[[#This Row],[Multiplier]],"") -> 33.75 | N90: 42355 | P90: =ISNUMBER(SEARCH(Table2[[#Headers],[WALMART]],C:C)) -> TRUE
A91: LAKE ONTARIO | B91: 44211 | C91: WALMART- LONDON, KY | D91: Rejection | E91: =CONCATENATE(D91,Table2[[#This Row],[PackHouse]]) -> RejectionLAKE ONTARIO | F91: PACKAGING | G91: RED DELICIOUS | H91: BAGS | I91: 50 | J91: 5/5 RPC | K91: =IFERROR(LOOKUP(Table2[[#This Row],[CalculatePack]],'Look Up'!K:K,'Look Up'!M:M),"") -> 0.625 | L91: =IFERROR(Table2[[#This Row],[CTNQnt]]*Table2[[#This Row],[Multiplier]],"") -> 31.25 | N91: 43740 | P91: =ISNUMBER(SEARCH(Table2[[#Headers],[WALMART]],C:C)) -> TRUE
A92: MAIN OFFICE | B92: 44212 | C92: WALMART- MEBANE, NC | D92: Rejection | E92: =CONCATENATE(D92,Table2[[#This Row],[PackHouse]]) -> RejectionMAIN OFFICE | F92: TEMPERATURE | G92: FUJI | H92: BAGS | I92: 400 | J92: 8/3 ALL | K92: =IFERROR(LOOKUP(Table2[[#This Row],[CalculatePack]],'Look Up'!K:K,'Look Up'!M:M),"") -> 0.6 | L92: =IFERROR(Table2[[#This Row],[CTNQnt]]*Table2[[#This Row],[Multiplier]],"") -> 240 | N92: 43713 | P92: =ISNUMBER(SEARCH(Table2[[#Headers],[WALMART]],C:C)) -> TRUE
A93: MAIN OFFICE | B93: 44212 | C93: WALMART- MEBANE, NC | D93: Rejection | E93: =CONCATENATE(D93,Table2[[#This Row],[PackHouse]]) -> RejectionMAIN OFFICE | F93: TEMPERATURE | G93: GALA | H93: BAGS | I93: 550 | J93: 8/3 ALL | K93: =IFERROR(LOOKUP(Table2[[#This Row],[CalculatePack]],'Look Up'!K:K,'Look Up'!M:M),"") -> 0.6 | L93: =IFERROR(Table2[[#This Row],[CTNQnt]]*Table2[[#This Row],[Multiplier]],"") -> 330 | N93: 43713 | P93: =ISNUMBER(SEARCH(Table2[[#Headers],[WALMART]],C:C)) -> TRUE
A94: MAIN OFFICE | B94: 44212 | C94: WALMART- MEBANE, NC | D94: Rejection | E94: =CONCATENATE(D94,Table2[[#This Row],[PackHouse]]) -> RejectionMAIN OFFICE | F94: TEMPERATURE | G94: GALA | H94: BULK | I94: 400 | J94: Large Bulk RPC | K94: =IFERROR(LOOKUP(Table2[[#This Row],[CalculatePack]],'Look Up'!K:K,'Look Up'!M:M),"") -> 0.675 | L94: =IFERROR(Table2[[#This Row],[CTNQnt]]*Table2[[#This Row],[Multiplier]],"") -> 270 | N94: 43713 | P94: =ISNUMBER(SEARCH(Table2[[#Headers],[WALMART]],C:C)) -> TRUE
A95: YONDER FARMS | B95: 44212 | C95: WALMART- MEBANE, NC | D95: Rejection | E95: =CONCATENATE(D95,Table2[[#This Row],[PackHouse]]) -> RejectionYONDER FARMS | F95: INTERNAL BROWNING | G95: FUJI | H95: BULK | I95: 100 | J95: Large Bulk RPC | K95: =IFERROR(LOOKUP(Table2[[#This Row],[CalculatePack]],'Look Up'!K:K,'Look Up'!M:M),"") -> 0.675 | L95: =IFERROR(Table2[[#This Row],[CTNQnt]]*Table2[[#This Row],[Multiplier]],"") -> 67.5 | N95: 43706 | P95: =ISNUMBER(SEARCH(Table2[[#Headers],[WALMART]],C:C)) -> TRUE
A96: LAKE ONTARIO | B96: 44212 | C96: WALMART- LONDON, KY | D96: A- | E96: =CONCATENATE(D96,Table2[[#This Row],[PackHouse]]) -> A-LAKE ONTARIO | F96: DECAY | G96: PINK LADY | H96: BAGS | I96: 50 | J96: 8/3 ALL | K96: =IFERROR(LOOKUP(Table2[[#This Row],[CalculatePack]],'Look Up'!K:K,'Look Up'!M:M),"") -> 0.6 | L96: =IFERROR(Table2[[#This Row],[CTNQnt]]*Table2[[#This Row],[Multiplier]],"") -> 30 | N96: 43716 | P96: =ISNUMBER(SEARCH(Table2[[#Headers],[WALMART]],C:C)) -> TRUE
A97: CHAZY ORCHARDS | B97: 44212 | C97: WALMART- LONDON, KY | D97: Rejection | E97: =CONCATENATE(D97,Table2[[#This Row],[PackHouse]]) -> RejectionCHAZY ORCHARDS | F97: DECAY | G97: HONEYCRISP | H97: BULK | I97: 600 | J97: Large Bulk RPC | K97: =IFERROR(LOOKUP(Table2[[#This Row],[CalculatePack]],'Look Up'!K:K,'Look Up'!M:M),"") -> 0.675 | L97: =IFERROR(Table2[[#This Row],[CTNQnt]]*Table2[[#This Row],[Multiplier]],"") -> 405 | N97: 43714 | P97: =ISNUMBER(SEARCH(Table2[[#Headers],[WALMART]],C:C)) -> TRUE
A98: CRIST BROTHERS | B98: 44217 | C98: WALMART- JOHNSTOWN, NY | D98: A- | E98: =CONCATENATE(D98,Table2[[#This Row],[PackHouse]]) -> A-CRIST BROTHERS | F98: DECAY | G98: PINK LADY | H98: BULK | I98: 25 | J98: Large Bulk RPC | K98: =IFERROR(LOOKUP(Table2[[#This Row],[CalculatePack]],'Look Up'!K:K,'Look Up'!M:M),"") -> 0.675 | L98: =IFERROR(Table2[[#This Row],[CTNQnt]]*Table2[[#This Row],[Multiplier]],"") -> 16.875 | N98: 43845 | P98: =ISNUMBER(SEARCH(Table2[[#Headers],[WALMART]],C:C)) -> TRUE
E99: =CONCATENATE(D99,A99) ->  | K99: =IFERROR(LOOKUP(J99,'Look Up'!K:K,'Look Up'!M:M),"") ->  | L99: =IFERROR(Table2[[#This Row],[CTNQnt]]*Table2[[#This Row],[Multiplier]],"") -> 
K100: =IFERROR(LOOKUP(J100,'Look Up'!K:K,'Look Up'!M:M),"") ->  | L100: =IFERROR(Table2[[#This Row],[CTNQnt]]*Table2[[#This Row],[Multiplier]],"") -> 
K101: =IFERROR(LOOKUP(J101,'Look Up'!K:K,'Look Up'!M:M),"") ->  | L101: =IFERROR(Table2[[#This Row],[CTNQnt]]*Table2[[#This Row],[Multiplier]],"") -> 
K102: =IFERROR(LOOKUP(J102,'Look Up'!K:K,'Look Up'!M:M),"") ->  | L102: =IFERROR(Table2[[#This Row],[CTNQnt]]*Table2[[#This Row],[Multiplier]],"") -> 
K103: =IFERROR(LOOKUP(J103,'Look Up'!K:K,'Look Up'!M:M),"") ->  | L103: =IFERROR(Table2[[#This Row],[CTNQnt]]*Table2[[#This Row],[Multiplier]],"") -> 
K104: =IFERROR(LOOKUP(J104,'Look Up'!K:K,'Look Up'!M:M),"") ->  | L104: =IFERROR(Table2[[#This Row],[CTNQnt]]*Table2[[#This Row],[Multiplier]],"") -> 
K105: =IFERROR(LOOKUP(J105,'Look Up'!K:K,'Look Up'!M:M),"") ->  | L105: =IFERROR(Table2[[#This Row],[CTNQnt]]*Table2[[#This Row],[Multiplier]],"") -> 
K106: =IFERROR(LOOKUP(J106,'Look Up'!K:K,'Look Up'!M:M),"") ->  | L106: =IFERROR(Table2[[#This Row],[CTNQnt]]*Table2[[#This Row],[Multiplier]],"") -> 
K107: =IFERROR(LOOKUP(J107,'Look Up'!K:K,'Look Up'!M:M),"") ->  | L107: =IFERROR(Table2[[#This Row],[CTNQnt]]*Table2[[#This Row],[Multiplier]],"") -> 
K108: =IFERROR(LOOKUP(J108,'Look Up'!K:K,'Look Up'!M:M),"") ->  | L108: =IFERROR(Table2[[#This Row],[CTNQnt]]*Table2[[#This Row],[Multiplier]],"") -> 
K109: =IFERROR(LOOKUP(J109,'Look Up'!K:K,'Look Up'!M:M),"") ->  | L109: =IFERROR(Table2[[#This Row],[CTNQnt]]*Table2[[#This Row],[Multiplier]],"") -> 
K110: =IFERROR(LOOKUP(J110,'Look Up'!K:K,'Look Up'!M:M),"") ->  | L110: =IFERROR(Table2[[#This Row],[CTNQnt]]*Table2[[#This Row],[Multiplier]],"") -> 
K111: =IFERROR(LOOKUP(J111,'Look Up'!K:K,'Look Up'!M:M),"") ->  | L111: =IFERROR(Table2[[#This Row],[CTNQnt]]*Table2[[#This Row],[Multiplier]],"") -> 
K112: =IFERROR(LOOKUP(J112,'Look Up'!K:K,'Look Up'!M:M),"") ->  | L112: =IFERROR(Table2[[#This Row],[CTNQnt]]*Table2[[#This Row],[Multiplier]],"") -> 
K113: =IFERROR(LOOKUP(J113,'Look Up'!K:K,'Look Up'!M:M),"") ->  | L113: =IFERROR(Table2[[#This Row],[CTNQnt]]*Table2[[#This Row],[Multiplier]],"") -> 
K114: =IFERROR(LOOKUP(J114,'Look Up'!K:K,'Look Up'!M:M),"") ->  | L114: =IFERROR(Table2[[#This Row],[CTNQnt]]*Table2[[#This Row],[Multiplier]],"") -> 
K115: =IFERROR(LOOKUP(J115,'Look Up'!K:K,'Look Up'!M:M),"") ->  | L115: =IFERROR(Table2[[#This Row],[CTNQnt]]*Table2[[#This Row],[Multiplier]],"") -> 
K116: =IFERROR(LOOKUP(J116,'Look Up'!K:K,'Look Up'!M:M),"") ->  | L116: =IFERROR(Table2[[#This Row],[CTNQnt]]*Table2[[#This Row],[Multiplier]],"") -> 
K117: =IFERROR(LOOKUP(J117,'Look Up'!K:K,'Look Up'!M:M),"") ->  | L117: =IFERROR(Table2[[#This Row],[CTNQnt]]*Table2[[#This Row],[Multiplier]],"") -> 
L118: =IFERROR(Table2[[#This Row],[CTNQnt]]*Table2[[#This Row],[Multiplier]],"") -> 
L119: =IFERROR(Table2[[#This Row],[CTNQnt]]*Table2[[#This Row],[Multiplier]],"") -> 
L120: =IFERROR(Table2[[#This Row],[CTNQnt]]*Table2[[#This Row],[Multiplier]],"") -> 
L121: =IFERROR(Table2[[#This Row],[CTNQnt]]*Table2[[#This Row],[Multiplier]],"") -> 
L122: =IFERROR(Table2[[#This Row],[CTNQnt]]*Table2[[#This Row],[Multiplier]],"") -> 
L123: =IFERROR(Table2[[#This Row],[CTNQnt]]*Table2[[#This Row],[Multiplier]],"") -> 
L124: =IFERROR(Table2[[#This Row],[CTNQnt]]*Table2[[#This Row],[Multiplier]],"") -> 
L125: =IFERROR(Table2[[#This Row],[CTNQnt]]*Table2[[#This Row],[Multiplier]],"") -> 
L126: =IFERROR(Table2[[#This Row],[CTNQnt]]*Table2[[#This Row],[Multiplier]],"") -> 
L127: =IFERROR(Table2[[#This Row],[CTNQnt]]*Table2[[#This Row],[Multiplier]],"") -> 
L128: =IFERROR(Table2[[#This Row],[CTNQnt]]*Table2[[#This Row],[Multiplier]],"") -> 
L129: =IFERROR(Table2[[#This Row],[CTNQnt]]*Table2[[#This Row],[Multiplier]],"") -> 
L130: =IFERROR(Table2[[#This Row],[CTNQnt]]*Table2[[#This Row],[Multiplier]],"") -> 
L131: =IFERROR(Table2[[#This Row],[CTNQnt]]*Table2[[#This Row],[Multiplier]],"") -> 
L132: =IFERROR(Table2[[#This Row],[CTNQnt]]*Table2[[#This Row],[Multiplier]],"") -> 
L133: =IFERROR(Table2[[#This Row],[CTNQnt]]*Table2[[#This Row],[Multiplier]],"") -> 
L134: =IFERROR(Table2[[#This Row],[CTNQnt]]*Table2[[#This Row],[Multiplier]],"") -> 
L135: =IFERROR(Table2[[#This Row],[CTNQnt]]*Table2[[#This Row],[Multiplier]],"") -> 
L136: =IFERROR(Table2[[#This Row],[CTNQnt]]*Table2[[#This Row],[Multiplier]],"") -> 
L137: =IFERROR(Table2[[#This Row],[CTNQnt]]*Table2[[#This Row],[Multiplier]],"") -> 
L138: =IFERROR(Table2[[#This Row],[CTNQnt]]*Table2[[#This Row],[Multiplier]],"") -> 
L139: =IFERROR(Table2[[#This Row],[CTNQnt]]*Table2[[#This Row],[Multiplier]],"") -> 
L140: =IFERROR(Table2[[#This Row],[CTNQnt]]*Table2[[#This Row],[Multiplier]],"") -> 
L141: =IFERROR(Table2[[#This Row],[CTNQnt]]*Table2[[#This Row],[Multiplier]],"") -> 
L142: =IFERROR(Table2[[#This Row],[CTNQnt]]*Table2[[#This Row],[Multiplier]],"") -> 
L143: =IFERROR(Table2[[#This Row],[CTNQnt]]*Table2[[#This Row],[Multiplier]],"") -> 
L144: =IFERROR(Table2[[#This Row],[CTNQnt]]*Table2[[#This Row],[Multiplier]],"") -> 
L145: =IFERROR(Table2[[#This Row],[CTNQnt]]*Table2[[#This Row],[Multiplier]],"") -> 
L146: =IFERROR(Table2[[#This Row],[CTNQnt]]*Table2[[#This Row],[Multiplier]],"") -> 
L147: =IFERROR(Table2[[#This Row],[CTNQnt]]*Table2[[#This Row],[Multiplier]],"") -> 
L148: =IFERROR(Table2[[#This Row],[CTNQnt]]*Table2[[#This Row],[Multiplier]],"") -> 
E149: =CONCATENATE(D149,A149) ->  | L149: =IFERROR(Table2[[#This Row],[CTNQnt]]*Table2[[#This Row],[Multiplier]],"") -> 
L150: =IFERROR(Table2[[#This Row],[CTNQnt]]*Table2[[#This Row],[Multiplier]],"") -> 
L151: =IFERROR(Table2[[#This Row],[CTNQnt]]*Table2[[#This Row],[Multiplier]],"") -> 
L152: =IFERROR(Table2[[#This Row],[CTNQnt]]*Table2[[#This Row],[Multiplier]],"") -> 
L153: =IFERROR(Table2[[#This Row],[CTNQnt]]*Table2[[#This Row],[Multiplier]],"") -> 
L154: =IFERROR(Table2[[#This Row],[CTNQnt]]*Table2[[#This Row],[Multiplier]],"") -> 
L155: =IFERROR(Table2[[#This Row],[CTNQnt]]*Table2[[#This Row],[Multiplier]],"") -> 
L156: =IFERROR(Table2[[#This Row],[CTNQnt]]*Table2[[#This Row],[Multiplier]],"") -> 
L157: =IFERROR(Table2[[#This Row],[CTNQnt]]*Table2[[#This Row],[Multiplier]],"") -> 
L158: =IFERROR(Table2[[#This Row],[CTNQnt]]*Table2[[#This Row],[Multiplier]],"") -> 
L159: =IFERROR(Table2[[#This Row],[CTNQnt]]*Table2[[#This Row],[Multiplier]],"") -> 
L160: =IFERROR(Table2[[#This Row],[CTNQnt]]*Table2[[#This Row],[Multiplier]],"") -> 
L161: =IFERROR(Table2[[#This Row],[CTNQnt]]*Table2[[#This Row],[Multiplier]],"") -> 
L162: =IFERROR(Table2[[#This Row],[CTNQnt]]*Table2[[#This Row],[Multiplier]],"") -> 
L163: =IFERROR(Table2[[#This Row],[CTNQnt]]*Table2[[#This Row],[Multiplier]],"") -> 
L164: =IFERROR(Table2[[#This Row],[CTNQnt]]*Table2[[#This Row],[Multiplier]],"") -> 

Sheet Overall WM
A1: Rejection by DC in Bushels | J1: Rejection by Reason in Bushels
A2: DC | B2: DC Lookup | C2: Rejection | D2: A- | E2: Total | F2: Total Delivery | G2: % of Delivery | J2: TRUE | K2: Rejection | L2: A- | M2: Total | N2: %
A3: WALMART- LONDON, KY | B3: LONDON, KY 6097 | C3: =SUMIFS('Enter Data'!L:L,'Enter Data'!C:C,'Overall WM'!A3,'Enter Data'!D:D,'Overall WM'!$C$2) -> 916.25 | D3: =SUMIFS('Enter Data'!L:L,'Enter Data'!C:C,'Overall WM'!A3,'Enter Data'!D:D,'Overall WM'!$D$2) -> 1023.75 | E3: =SUM(C3:D3) -> 1940 | F3: =SUMIF('Key Central Report'!V:V,'Overall WM'!B3,'Key Central Report'!AP:AP) -> 150395 | G3: =E3/F3 -> 0.01289936501 | J3: BITTERPIT | K3: =SUMIFS('Enter Data'!L:L,'Enter Data'!F:F,'Overall WM'!J3,'Enter Data'!D:D,'Overall WM'!$K$2,'Enter Data'!P:P,'Overall WM'!$J$2) -> 296.25 | L3: =SUMIFS('Enter Data'!L:L,'Enter Data'!F:F,'Overall WM'!J3,'Enter Data'!D:D,'Overall WM'!$L$2,'Enter Data'!P:P,'Overall WM'!$J$2) -> 0 | M3: =SUM(K3:L3) -> 296.25 | N3: =M3/M$22 -> 0.02913752914
A4: WALMART- MEBANE, NC | B4: MEBANE, NC 6858 | C4: =SUMIFS('Enter Data'!L:L,'Enter Data'!C:C,'Overall WM'!A4,'Enter Data'!D:D,'Overall WM'!$C$2) -> 3805.875 | D4: =SUMIFS('Enter Data'!L:L,'Enter Data'!C:C,'Overall WM'!A4,'Enter Data'!D:D,'Overall WM'!$D$2) -> 420 | E4: 4225.875 | F4: =SUMIF('Key Central Report'!V:V,'Overall WM'!B4,'Key Central Report'!AP:AP) -> 123416 | G4: =E4/F4 -> 0.03424090069 | J4: BITTERPIT & DECAY | K4: =SUMIFS('Enter Data'!L:L,'Enter Data'!F:F,'Overall WM'!J4,'Enter Data'!D:D,'Overall WM'!$K$2,'Enter Data'!P:P,'Overall WM'!$J$2) -> 0 | L4: =SUMIFS('Enter Data'!L:L,'Enter Data'!F:F,'Overall WM'!J4,'Enter Data'!D:D,'Overall WM'!$L$2,'Enter Data'!P:P,'Overall WM'!$J$2) -> 0 | M4: =SUM(K4:L4) -> 0 | N4: =M4/M$22 -> 0
A5: WALMART- ARCADIA, FL | B5: ARCADIA, FL 7023 | C5: =SUMIFS('Enter Data'!L:L,'Enter Data'!C:C,'Overall WM'!A5,'Enter Data'!D:D,'Overall WM'!$C$2) -> 0.6 | D5: =SUMIFS('Enter Data'!L:L,'Enter Data'!C:C,'Overall WM'!A5,'Enter Data'!D:D,'Overall WM'!$D$2) -> 0 | E5: 0.6 | F5: =SUMIF('Key Central Report'!V:V,'Overall WM'!B5,'Key Central Report'!AP:AP) -> 65283 | G5: 9.190754101e-06 | J5: BITTERPIT & STEM PUNCTURES | K5: =SUMIFS('Enter Data'!L:L,'Enter Data'!F:F,'Overall WM'!J5,'Enter Data'!D:D,'Overall WM'!$K$2,'Enter Data'!P:P,'Overall WM'!$J$2) -> 33.75 | L5: =SUMIFS('Enter Data'!L:L,'Enter Data'!F:F,'Overall WM'!J5,'Enter Data'!D:D,'Overall WM'!$L$2,'Enter Data'!P:P,'Overall WM'!$J$2) -> 0 | M5: 33.75 | N5: 0.003319465345
A6: WALMART- JOHNSTOWN, NY | B6: JOHNSTOWN, NY 6096 | C6: =SUMIFS('Enter Data'!L:L,'Enter Data'!C:C,'Overall WM'!A6,'Enter Data'!D:D,'Overall WM'!$C$2) -> 123.75 | D6: =SUMIFS('Enter Data'!L:L,'Enter Data'!C:C,'Overall WM'!A6,'Enter Data'!D:D,'Overall WM'!$D$2) -> 506.25 | E6: 630 | F6: =SUMIF('Key Central Report'!V:V,'Overall WM'!B6,'Key Central Report'!AP:AP) -> 123703 | G6: 0.005092843343 | J6: BLUSH | K6: =SUMIFS('Enter Data'!L:L,'Enter Data'!F:F,'Overall WM'!J6,'Enter Data'!D:D,'Overall WM'!$K$2,'Enter Data'!P:P,'Overall WM'!$J$2) -> 236.25 | L6: =SUMIFS('Enter Data'!L:L,'Enter Data'!F:F,'Overall WM'!J6,'Enter Data'!D:D,'Overall WM'!$L$2,'Enter Data'!P:P,'Overall WM'!$J$2) -> 641.25 | M6: 877.5 | N6: 0.08630609896
A7: WALMART- COCOA, FL | B7: COCOA, FL 8851 | C7: =SUMIFS('Enter Data'!L:L,'Enter Data'!C:C,'Overall WM'!A7,'Enter Data'!D:D,'Overall WM'!$C$2) -> 240.3 | D7: =SUMIFS('Enter Data'!L:L,'Enter Data'!C:C,'Overall WM'!A7,'Enter Data'!D:D,'Overall WM'!$D$2) -> 831.25 | E7: 1071.55 | F7: =SUMIF('Key Central Report'!V:V,'Overall WM'!B7,'Key Central Report'!AP:AP) -> 29822 | G7: 0.03593152706 | J7: BROKEN SKINS | K7: =SUMIFS('Enter Data'!L:L,'Enter Data'!F:F,'Overall WM'!J7,'Enter Data'!D:D,'Overall WM'!$K$2,'Enter Data'!P:P,'Overall WM'!$J$2) -> 0 | L7: =SUMIFS('Enter Data'!L:L,'Enter Data'!F:F,'Overall WM'!J7,'Enter Data'!D:D,'Overall WM'!$L$2,'Enter Data'!P:P,'Overall WM'!$J$2) -> 0 | M7: 0 | N7: 0
A8: WALMART- WINTER HAVEN, FL | B8: WINTERHAVEN, FL 6071 | C8: =SUMIFS('Enter Data'!L:L,'Enter Data'!C:C,'Overall WM'!A8,'Enter Data'!D:D,'Overall WM'!$C$2) -> 64.125 | D8: =SUMIFS('Enter Data'!L:L,'Enter Data'!C:C,'Overall WM'!A8,'Enter Data'!D:D,'Overall WM'!$D$2) -> 120 | E8: 184.125 | F8: =SUMIF('Key Central Report'!V:V,'Overall WM'!B8,'Key Central Report'!AP:AP) -> 28831 | G8: 0.006386354965 | J8: BRUISE | K8: =SUMIFS('Enter Data'!L:L,'Enter Data'!F:F,'Overall WM'!J8,'Enter Data'!D:D,'Overall WM'!$K$2,'Enter Data'!P:P,'Overall WM'!$J$2) -> 172.8 | L8: =SUMIFS('Enter Data'!L:L,'Enter Data'!F:F,'Overall WM'!J8,'Enter Data'!D:D,'Overall WM'!$L$2,'Enter Data'!P:P,'Overall WM'!$J$2) -> 138 | M8: 310.8 | N8: 0.03056858753
A9: WALMART- GORDONSVILLE, VA | B9: GORDONSVILLE, VA 7016 | C9: =SUMIFS('Enter Data'!L:L,'Enter Data'!C:C,'Overall WM'!A9,'Enter Data'!D:D,'Overall WM'!$C$2) -> 0 | D9: =SUMIFS('Enter Data'!L:L,'Enter Data'!C:C,'Overall WM'!A9,'Enter Data'!D:D,'Overall WM'!$D$2) -> 0 | E9: 0 | F9: =SUMIF('Key Central Report'!V:V,'Overall WM'!B9,'Key Central Report'!AP:AP) -> 0 | J9: BRUISE & BROKEN SKINS | K9: =SUMIFS('Enter Data'!L:L,'Enter Data'!F:F,'Overall WM'!J9,'Enter Data'!D:D,'Overall WM'!$K$2,'Enter Data'!P:P,'Overall WM'!$J$2) -> 30 | L9: =SUMIFS('Enter Data'!L:L,'Enter Data'!F:F,'Overall WM'!J9,'Enter Data'!D:D,'Overall WM'!$L$2,'Enter Data'!P:P,'Overall WM'!$J$2) -> 33.75 | M9: 63.75 | N9: 0.006270101207
A10: WALMART- OPELIKA, AL | B10: OPELIKA, AL 6095 | C10: =SUMIFS('Enter Data'!L:L,'Enter Data'!C:C,'Overall WM'!A10,'Enter Data'!D:D,'Overall WM'!$C$2) -> 33.75 | D10: =SUMIFS('Enter Data'!L:L,'Enter Data'!C:C,'Overall WM'!A10,'Enter Data'!D:D,'Overall WM'!$D$2) -> 236.25 | E10: 270 | F10: =SUMIF('Key Central Report'!V:V,'Overall WM'!B10,'Key Central Report'!AP:AP) -> 108577 | G10: 0.002486714498 | J10: CARRIER DAMAGE | K10: =SUMIFS('Enter Data'!L:L,'Enter Data'!F:F,'Overall WM'!J10,'Enter Data'!D:D,'Overall WM'!$K$2,'Enter Data'!P:P,'Overall WM'!$J$2) -> 615.275 | L10: =SUMIFS('Enter Data'!L:L,'Enter Data'!F:F,'Overall WM'!J10,'Enter Data'!D:D,'Overall WM'!$L$2,'Enter Data'!P:P,'Overall WM'!$J$2) -> 0 | M10: 615.275 | N10: 0.06051508267
A11: WALMART- MONROE, GA | B11: MONROE, GA 6055 | C11: =SUMIFS('Enter Data'!L:L,'Enter Data'!C:C,'Overall WM'!A11,'Enter Data'!D:D,'Overall WM'!$C$2) -> 0 | D11: =SUMIFS('Enter Data'!L:L,'Enter Data'!C:C,'Overall WM'!A11,'Enter Data'!D:D,'Overall WM'!$D$2) -> 0 | E11: 0 | F11: =SUMIF('Key Central Report'!V:V,'Overall WM'!B11,'Key Central Report'!AP:AP) -> 10247 | G11: 0 | J11: COLOR/DISCOLORATION | K11: =SUMIFS('Enter Data'!L:L,'Enter Data'!F:F,'Overall WM'!J11,'Enter Data'!D:D,'Overall WM'!$K$2,'Enter Data'!P:P,'Overall WM'!$J$2) -> 0 | L11: =SUMIFS('Enter Data'!L:L,'Enter Data'!F:F,'Overall WM'!J11,'Enter Data'!D:D,'Overall WM'!$L$2,'Enter Data'!P:P,'Overall WM'!$J$2) -> 0 | M11: 0 | N11: 0
A12: WALMART- SHELBYVILLE, TN | C12: =SUMIFS('Enter Data'!L:L,'Enter Data'!C:C,'Overall WM'!A12,'Enter Data'!D:D,'Overall WM'!$C$2) -> 0 | D12: =SUMIFS('Enter Data'!L:L,'Enter Data'!C:C,'Overall WM'!A12,'Enter Data'!D:D,'Overall WM'!$D$2) -> 0 | E12: 0 | F12: =SUMIF('Key Central Report'!V:V,'Overall WM'!B12,'Key Central Report'!AP:AP) -> 0 | G12: 0 | J12: DECAY | K12: =SUMIFS('Enter Data'!L:L,'Enter Data'!F:F,'Overall WM'!J12,'Enter Data'!D:D,'Overall WM'!$K$2,'Enter Data'!P:P,'Overall WM'!$J$2) -> 960 | L12: =SUMIFS('Enter Data'!L:L,'Enter Data'!F:F,'Overall WM'!J12,'Enter Data'!D:D,'Overall WM'!$L$2,'Enter Data'!P:P,'Overall WM'!$J$2) -> 1531.875 | M12: 2491.875 | N12: 0.2450871913
A13: WALMART- PAGELAND, SC | B13: PAGELAND, SC 6073 | C13: =SUMIFS('Enter Data'!L:L,'Enter Data'!C:C,'Overall WM'!A13,'Enter Data'!D:D,'Overall WM'!$C$2) -> 1581.25 | D13: =SUMIFS('Enter Data'!L:L,'Enter Data'!C:C,'Overall WM'!A13,'Enter Data'!D:D,'Overall WM'!$D$2) -> 232.5 | E13: 1813.75 | F13: =SUMIF('Key Central Report'!V:V,'Overall WM'!B13,'Key Central Report'!AP:AP) -> 106487 | G13: 0.01703259553 | J13: SIZE | K13: =SUMIFS('Enter Data'!L:L,'Enter Data'!F:F,'Overall WM'!J13,'Enter Data'!D:D,'Overall WM'!$K$2,'Enter Data'!P:P,'Overall WM'!$J$2) -> 0 | L13: =SUMIFS('Enter Data'!L:L,'Enter Data'!F:F,'Overall WM'!J13,'Enter Data'!D:D,'Overall WM'!$L$2,'Enter Data'!P:P,'Overall WM'!$J$2) -> 0 | M13: 0 | N13: 0
A14: WALMART- LEWISTON, ME | B14: LEWISTON, ME 7014 | C14: =SUMIFS('Enter Data'!L:L,'Enter Data'!C:C,'Overall WM'!A14,'Enter Data'!D:D,'Overall WM'!$C$2) -> 237.6 | D14: =SUMIFS('Enter Data'!L:L,'Enter Data'!C:C,'Overall WM'!A14,'Enter Data'!D:D,'Overall WM'!$D$2) -> 125 | E14: 362.6 | F14: =SUMIF('Key Central Report'!V:V,'Overall WM'!B14,'Key Central Report'!AP:AP) -> 138395 | G14: 0.002620036851 | J14: TEMPERATURE | K14: =SUMIFS('Enter Data'!L:L,'Enter Data'!F:F,'Overall WM'!J14,'Enter Data'!D:D,'Overall WM'!$K$2,'Enter Data'!P:P,'Overall WM'!$J$2) -> 4065 | L14: =SUMIFS('Enter Data'!L:L,'Enter Data'!F:F,'Overall WM'!J14,'Enter Data'!D:D,'Overall WM'!$L$2,'Enter Data'!P:P,'Overall WM'!$J$2) -> 0 | M14: 4065 | N14: 0.3998111593
A15: WALMART- CHEYENNE, WY | C15: =SUMIFS('Enter Data'!L:L,'Enter Data'!C:C,'Overall WM'!A15,'Enter Data'!D:D,'Overall WM'!$C$2) -> 0 | D15: =SUMIFS('Enter Data'!L:L,'Enter Data'!C:C,'Overall WM'!A15,'Enter Data'!D:D,'Overall WM'!$D$2) -> 0 | E15: 0 | F15: =SUMIF('Key Central Report'!V:V,'Overall WM'!B15,'Key Central Report'!AP:AP) -> 0 | G15: 0 | J15: INTERNAL BROWNING | K15: =SUMIFS('Enter Data'!L:L,'Enter Data'!F:F,'Overall WM'!J15,'Enter Data'!D:D,'Overall WM'!$K$2,'Enter Data'!P:P,'Overall WM'!$J$2) -> 678.75 | L15: =SUMIFS('Enter Data'!L:L,'Enter Data'!F:F,'Overall WM'!J15,'Enter Data'!D:D,'Overall WM'!$L$2,'Enter Data'!P:P,'Overall WM'!$J$2) -> 150 | M15: 828.75 | N15: 0.08151131569
A16: WALMART- NEW ALBANY, MS | B16: NEW ALBANY, MS 6072 | C16: =SUMIFS('Enter Data'!L:L,'Enter Data'!C:C,'Overall WM'!A16,'Enter Data'!D:D,'Overall WM'!$C$2) -> 0 | D16: =SUMIFS('Enter Data'!L:L,'Enter Data'!C:C,'Overall WM'!A16,'Enter Data'!D:D,'Overall WM'!$D$2) -> 123.75 | E16: 123.75 | F16: =SUMIF('Key Central Report'!V:V,'Overall WM'!B16,'Key Central Report'!AP:AP) -> 3100 | G16: 0.03991935484 | J16: JONATHAN SPOT | K16: =SUMIFS('Enter Data'!L:L,'Enter Data'!F:F,'Overall WM'!J16,'Enter Data'!D:D,'Overall WM'!$K$2,'Enter Data'!P:P,'Overall WM'!$J$2) -> 0 | L16: =SUMIFS('Enter Data'!L:L,'Enter Data'!F:F,'Overall WM'!J16,'Enter Data'!D:D,'Overall WM'!$L$2,'Enter Data'!P:P,'Overall WM'!$J$2) -> 0 | M16: 0 | N16: 0
A17: WALMART- WASHINGTON COURTHOUSE, OH | C17: =SUMIFS('Enter Data'!L:L,'Enter Data'!C:C,'Overall WM'!A17,'Enter Data'!D:D,'Overall WM'!$C$2) -> 0 | D17: =SUMIFS('Enter Data'!L:L,'Enter Data'!C:C,'Overall WM'!A17,'Enter Data'!D:D,'Overall WM'!$D$2) -> 0 | E17: 0 | F17: =SUMIF('Key Central Report'!V:V,'Overall WM'!B17,'Key Central Report'!AP:AP) -> 0 | G17: 0 | J17: PACKAGING | K17: =SUMIFS('Enter Data'!L:L,'Enter Data'!F:F,'Overall WM'!J17,'Enter Data'!D:D,'Overall WM'!$K$2,'Enter Data'!P:P,'Overall WM'!$J$2) -> 171.85 | L17: =SUMIFS('Enter Data'!L:L,'Enter Data'!F:F,'Overall WM'!J17,'Enter Data'!D:D,'Overall WM'!$L$2,'Enter Data'!P:P,'Overall WM'!$J$2) -> 0 | M17: 171.85 | N17: 0.01690222576
A18: WALMART- HENDERSON, NC | B18: HENDERSON, NC 6091 | C18: =SUMIFS('Enter Data'!L:L,'Enter Data'!C:C,'Overall WM'!A18,'Enter Data'!D:D,'Overall WM'!$C$2) -> 131.25 | D18: =SUMIFS('Enter Data'!L:L,'Enter Data'!C:C,'Overall WM'!A18,'Enter Data'!D:D,'Overall WM'!$D$2) -> 281.25 | E18: 412.5 | F18: =SUMIF('Key Central Report'!V:V,'Overall WM'!B18,'Key Central Report'!AP:AP) -> 72937 | G18: 0.005655565762 | J18: SCALD | K18: =SUMIFS('Enter Data'!L:L,'Enter Data'!F:F,'Overall WM'!J18,'Enter Data'!D:D,'Overall WM'!$K$2,'Enter Data'!P:P,'Overall WM'!$J$2) -> 0 | L18: =SUMIFS('Enter Data'!L:L,'Enter Data'!F:F,'Overall WM'!J18,'Enter Data'!D:D,'Overall WM'!$L$2,'Enter Data'!P:P,'Overall WM'!$J$2) -> 0 | M18: 0 | N18: 0
A19: WALMART- MACCLENNY, FL | B19: MACCLENNY, FL 6099 | C19: =SUMIFS('Enter Data'!L:L,'Enter Data'!C:C,'Overall WM'!A19,'Enter Data'!D:D,'Overall WM'!$C$2) -> 215.175 | D19: =SUMIFS('Enter Data'!L:L,'Enter Data'!C:C,'Overall WM'!A19,'Enter Data'!D:D,'Overall WM'!$D$2) -> 48 | E19: 263.175 | F19: =SUMIF('Key Central Report'!V:V,'Overall WM'!B19,'Key Central Report'!AP:AP) -> 91439 | G19: 0.002878148274 | J19: WEIGHT | K19: =SUMIFS('Enter Data'!L:L,'Enter Data'!F:F,'Overall WM'!J19,'Enter Data'!D:D,'Overall WM'!$K$2,'Enter Data'!P:P,'Overall WM'!$J$2) -> 0 | L19: =SUMIFS('Enter Data'!L:L,'Enter Data'!F:F,'Overall WM'!J19,'Enter Data'!D:D,'Overall WM'!$L$2,'Enter Data'!P:P,'Overall WM'!$J$2) -> 0 | M19: 0 | N19: 0
A20: WALMART- BRUNDIDGE, AL | B20: BRUNDIDGE, AL 7019 | C20: =SUMIFS('Enter Data'!L:L,'Enter Data'!C:C,'Overall WM'!A20,'Enter Data'!D:D,'Overall WM'!$C$2) -> 0 | D20: =SUMIFS('Enter Data'!L:L,'Enter Data'!C:C,'Overall WM'!A20,'Enter Data'!D:D,'Overall WM'!$D$2) -> 0 | E20: 0 | F20: =SUMIF('Key Central Report'!V:V,'Overall WM'!B20,'Key Central Report'!AP:AP) -> 95935 | G20: 0 | J20: WATERCORE | K20: =SUMIFS('Enter Data'!L:L,'Enter Data'!F:F,'Overall WM'!J20,'Enter Data'!D:D,'Overall WM'!$K$2,'Enter Data'!P:P,'Overall WM'!$J$2) -> 90 | L20: =SUMIFS('Enter Data'!L:L,'Enter Data'!F:F,'Overall WM'!J20,'Enter Data'!D:D,'Overall WM'!$L$2,'Enter Data'!P:P,'Overall WM'!$J$2) -> 322.5 | M20: 412.5 | N20: 0.0405712431
A21: Total: | C21: =SUM(C3:C20) -> 7349.925 | D21: =SUM(D3:D20) -> 3948 | E21: =SUM(E3:E20) -> 11297.925 | F21: =SUM(F3:F20) -> 1148567 | G21: =E21/F21 -> 0.009836539793 | J21: QUALITY | K21: =SUMIFS('Enter Data'!L:L,'Enter Data'!F:F,'Overall WM'!J21,'Enter Data'!D:D,'Overall WM'!$K$2,'Enter Data'!P:P,'Overall WM'!$J$2) -> 0 | L21: =SUMIFS('Enter Data'!L:L,'Enter Data'!F:F,'Overall WM'!J21,'Enter Data'!D:D,'Overall WM'!$L$2,'Enter Data'!P:P,'Overall WM'!$J$2) -> 0 | M21: 0 | N21: 0
J22: Total: | K22: =SUM(K3:K21) -> 7349.925 | L22: =SUM(L3:L21) -> 2817.375 | M22: =SUM(M3:M21) -> 10167.3

Sheet Weekly WM
A1: WALMART | B1: TRUE | D1: Cases | H1: Quality
A2: Week | D2: Shipped | E2: Rejection | F2: A- | G2: Received | H2: Red | I2: Amber | J2: Green | L2: Target: | M2: 0.995
A3: Total | D3: =SUM(D4:D48) -> 1153688 | E3: =SUM(E4:E48) -> 9140 | F3: =SUM(F4:F48) -> 5905 | G3: =SUM(G4:G48) -> 1144548 | H3: =E3/D3 -> 0.007922419233 | I3: =F3/D3 -> 0.005118368224 | J3: =IFERROR(100%-(I3)-(H3),"") -> 0.9869592125
A4: 29 | B4: 44058 | C4: 44064 | D4: =SUMIFS('Key Central Report'!AP:AP,'Key Central Report'!AM:AM,'Weekly WM'!$A$1,'Key Central Report'!I:I,">="&'Weekly WM'!B4,'Key Central Report'!I:I,"<="&'Weekly WM'!C4) -> 2112 | E4: =SUMIFS('Enter Data'!I:I,'Enter Data'!P:P,'Weekly WM'!$B$1,'Enter Data'!D:D,'Weekly WM'!$E$2,'Enter Data'!B:B,">="&'Weekly WM'!B4,'Enter Data'!B:B,"<="&'Weekly WM'!C4) -> 0 | F4: =SUMIFS('Enter Data'!I:I,'Enter Data'!P:P,'Weekly WM'!$B$1,'Enter Data'!D:D,'Weekly WM'!$F$2,'Enter Data'!B:B,">="&'Weekly WM'!B4,'Enter Data'!B:B,"<="&'Weekly WM'!C4) -> 0 | G4: =D4-E4 -> 2112 | H4: =E4/D4 -> 0 | I4: =F4/D4 -> 0 | J4: 1
A5: 30 | B5: 44065 | C5: 44071 | D5: =SUMIFS('Key Central Report'!AP:AP,'Key Central Report'!AM:AM,'Weekly WM'!$A$1,'Key Central Report'!I:I,">="&'Weekly WM'!B5,'Key Central Report'!I:I,"<="&'Weekly WM'!C5) -> 5760 | E5: =SUMIFS('Enter Data'!I:I,'Enter Data'!P:P,'Weekly WM'!$B$1,'Enter Data'!D:D,'Weekly WM'!$E$2,'Enter Data'!B:B,">="&'Weekly WM'!B5,'Enter Data'!B:B,"<="&'Weekly WM'!C5) -> 0 | F5: =SUMIFS('Enter Data'!I:I,'Enter Data'!P:P,'Weekly WM'!$B$1,'Enter Data'!D:D,'Weekly WM'!$F$2,'Enter Data'!B:B,">="&'Weekly WM'!B5,'Enter Data'!B:B,"<="&'Weekly WM'!C5) -> 0 | G5: =D5-E5 -> 5760 | H5: =E5/D5 -> 0 | I5: =F5/D5 -> 0 | J5: 1
A6: 31 | B6: 44072 | C6: 44078 | D6: =SUMIFS('Key Central Report'!AP:AP,'Key Central Report'!AM:AM,'Weekly WM'!$A$1,'Key Central Report'!I:I,">="&'Weekly WM'!B6,'Key Central Report'!I:I,"<="&'Weekly WM'!C6) -> 0 | E6: =SUMIFS('Enter Data'!I:I,'Enter Data'!P:P,'Weekly WM'!$B$1,'Enter Data'!D:D,'Weekly WM'!$E$2,'Enter Data'!B:B,">="&'Weekly WM'!B6,'Enter Data'!B:B,"<="&'Weekly WM'!C6) -> 0 | F6: =SUMIFS('Enter Data'!I:I,'Enter Data'!P:P,'Weekly WM'!$B$1,'Enter Data'!D:D,'Weekly WM'!$F$2,'Enter Data'!B:B,">="&'Weekly WM'!B6,'Enter Data'!B:B,"<="&'Weekly WM'!C6) -> 0 | G6: =D6-E6 -> 0 | H6: =E6/D6 ->  | I6: =F6/D6 ->  | J6: =IFERROR(100%-(I6)-(H6),"") -> 
A7: 32 | B7: 44079 | C7: 44085 | D7: =SUMIFS('Key Central Report'!AP:AP,'Key Central Report'!AM:AM,'Weekly WM'!$A$1,'Key Central Report'!I:I,">="&'Weekly WM'!B7,'Key Central Report'!I:I,"<="&'Weekly WM'!C7) -> 33247 | E7: =SUMIFS('Enter Data'!I:I,'Enter Data'!P:P,'Weekly WM'!$B$1,'Enter Data'!D:D,'Weekly WM'!$E$2,'Enter Data'!B:B,">="&'Weekly WM'!B7,'Enter Data'!B:B,"<="&'Weekly WM'!C7) -> 0 | F7: =SUMIFS('Enter Data'!I:I,'Enter Data'!P:P,'Weekly WM'!$B$1,'Enter Data'!D:D,'Weekly WM'!$F$2,'Enter Data'!B:B,">="&'Weekly WM'!B7,'Enter Data'!B:B,"<="&'Weekly WM'!C7) -> 100 | G7: =D7-E7 -> 33247 | H7: =E7/D7 -> 0 | I7: =F7/D7 -> 0.003007790177 | J7: =IFERROR(100%-(I7)-(H7),"") -> 0.9969922098
A8: 33 | B8: 44086 | C8: 44092 | D8: =SUMIFS('Key Central Report'!AP:AP,'Key Central Report'!AM:AM,'Weekly WM'!$A$1,'Key Central Report'!I:I,">="&'Weekly WM'!B8,'Key Central Report'!I:I,"<="&'Weekly WM'!C8) -> 30768 | E8: =SUMIFS('Enter Data'!I:I,'Enter Data'!P:P,'Weekly WM'!$B$1,'Enter Data'!D:D,'Weekly WM'!$E$2,'Enter Data'!B:B,">="&'Weekly WM'!B8,'Enter Data'!B:B,"<="&'Weekly WM'!C8) -> 0 | F8: =SUMIFS('Enter Data'!I:I,'Enter Data'!P:P,'Weekly WM'!$B$1,'Enter Data'!D:D,'Weekly WM'!$F$2,'Enter Data'!B:B,">="&'Weekly WM'!B8,'Enter Data'!B:B,"<="&'Weekly WM'!C8) -> 0 | G8: =D8-E8 -> 30768 | H8: =E8/D8 -> 0 | I8: =F8/D8 -> 0 | J8: =IFERROR(100%-(I8)-(H8),"") -> 1
A9: 34 | B9: 44093 | C9: 44099 | D9: =SUMIFS('Key Central Report'!AP:AP,'Key Central Report'!AM:AM,'Weekly WM'!$A$1,'Key Central Report'!I:I,">="&'Weekly WM'!B9,'Key Central Report'!I:I,"<="&'Weekly WM'!C9) -> 68588 | E9: =SUMIFS('Enter Data'!I:I,'Enter Data'!P:P,'Weekly WM'!$B$1,'Enter Data'!D:D,'Weekly WM'!$E$2,'Enter Data'!B:B,">="&'Weekly WM'!B9,'Enter Data'!B:B,"<="&'Weekly WM'!C9) -> 11 | F9: =SUMIFS('Enter Data'!I:I,'Enter Data'!P:P,'Weekly WM'!$B$1,'Enter Data'!D:D,'Weekly WM'!$F$2,'Enter Data'!B:B,">="&'Weekly WM'!B9,'Enter Data'!B:B,"<="&'Weekly WM'!C9) -> 350 | G9: =D9-E9 -> 68577 | H9: =E9/D9 -> 0.0001603779087 | I9: =F9/D9 -> 0.005102933458 | J9: =IFERROR(100%-(I9)-(H9),"") -> 0.9947366886
A10: 35 | B10: 44100 | C10: 44106 | D10: =SUMIFS('Key Central Report'!AP:AP,'Key Central Report'!AM:AM,'Weekly WM'!$A$1,'Key Central Report'!I:I,">="&'Weekly WM'!B10,'Key Central Report'!I:I,"<="&'Weekly WM'!C10) -> 62193 | E10: =SUMIFS('Enter Data'!I:I,'Enter Data'!P:P,'Weekly WM'!$B$1,'Enter Data'!D:D,'Weekly WM'!$E$2,'Enter Data'!B:B,">="&'Weekly WM'!B10,'Enter Data'!B:B,"<="&'Weekly WM'!C10) -> 140 | F10: =SUMIFS('Enter Data'!I:I,'Enter Data'!P:P,'Weekly WM'!$B$1,'Enter Data'!D:D,'Weekly WM'!$F$2,'Enter Data'!B:B,">="&'Weekly WM'!B10,'Enter Data'!B:B,"<="&'Weekly WM'!C10) -> 0 | G10: =D10-E10 -> 62053 | H10: =E10/D10 -> 0.002251057193 | I10: =F10/D10 -> 0 | J10: =IFERROR(100%-(I10)-(H10),"") -> 0.9977489428
A11: 36 | B11: 44107 | C11: 44113 | D11: =SUMIFS('Key Central Report'!AP:AP,'Key Central Report'!AM:AM,'Weekly WM'!$A$1,'Key Central Report'!I:I,">="&'Weekly WM'!B11,'Key Central Report'!I:I,"<="&'Weekly WM'!C11) -> 60846 | E11: =SUMIFS('Enter Data'!I:I,'Enter Data'!P:P,'Weekly WM'!$B$1,'Enter Data'!D:D,'Weekly WM'!$E$2,'Enter Data'!B:B,">="&'Weekly WM'!B11,'Enter Data'!B:B,"<="&'Weekly WM'!C11) -> 0 | F11: =SUMIFS('Enter Data'!I:I,'Enter Data'!P:P,'Weekly WM'!$B$1,'Enter Data'!D:D,'Weekly WM'!$F$2,'Enter Data'!B:B,">="&'Weekly WM'!B11,'Enter Data'!B:B,"<="&'Weekly WM'!C11) -> 230 | G11: =D11-E11 -> 60846 | H11: =E11/D11 -> 0 | I11: =F11/D11 -> 0.003780034842 | J11: =IFERROR(100%-(I11)-(H11),"") -> 0.9962199652
A12: 37 | B12: 44114 | C12: 44120 | D12: =SUMIFS('Key Central Report'!AP:AP,'Key Central Report'!AM:AM,'Weekly WM'!$A$1,'Key Central Report'!I:I,">="&'Weekly WM'!B12,'Key Central Report'!I:I,"<="&'Weekly WM'!C12) -> 64699 | E12: =SUMIFS('Enter Data'!I:I,'Enter Data'!P:P,'Weekly WM'!$B$1,'Enter Data'!D:D,'Weekly WM'!$E$2,'Enter Data'!B:B,">="&'Weekly WM'!B12,'Enter Data'!B:B,"<="&'Weekly WM'!C12) -> 487 | F12: =SUMIFS('Enter Data'!I:I,'Enter Data'!P:P,'Weekly WM'!$B$1,'Enter Data'!D:D,'Weekly WM'!$F$2,'Enter Data'!B:B,">="&'Weekly WM'!B12,'Enter Data'!B:B,"<="&'Weekly WM'!C12) -> 50 | G12: =D12-E12 -> 64212 | H12: =E12/D12 -> 0.007527164253 | I12: =F12/D12 -> 0.0007728094716 | J12: =IFERROR(100%-(I12)-(H12),"") -> 0.9917000263
A13: 38 | B13: 44121 | C13: 44127 | D13: =SUMIFS('Key Central Report'!AP:AP,'Key Central Report'!AM:AM,'Weekly WM'!$A$1,'Key Central Report'!I:I,">="&'Weekly WM'!B13,'Key Central Report'!I:I,"<="&'Weekly WM'!C13) -> 79558 | E13: =SUMIFS('Enter Data'!I:I,'Enter Data'!P:P,'Weekly WM'!$B$1,'Enter Data'!D:D,'Weekly WM'!$E$2,'Enter Data'!B:B,">="&'Weekly WM'!B13,'Enter Data'!B:B,"<="&'Weekly WM'!C13) -> 750 | F13: =SUMIFS('Enter Data'!I:I,'Enter Data'!P:P,'Weekly WM'!$B$1,'Enter Data'!D:D,'Weekly WM'!$F$2,'Enter Data'!B:B,">="&'Weekly WM'!B13,'Enter Data'!B:B,"<="&'Weekly WM'!C13) -> 0 | G13: =D13-E13 -> 78808 | H13: =E13/D13 -> 0.009427084643 | I13: =F13/D13 -> 0 | J13: =IFERROR(100%-(I13)-(H13),"") -> 0.9905729154
A14: 39 | B14: 44128 | C14: 44134 | D14: =SUMIFS('Key Central Report'!AP:AP,'Key Central Report'!AM:AM,'Weekly WM'!$A$1,'Key Central Report'!I:I,">="&'Weekly WM'!B14,'Key Central Report'!I:I,"<="&'Weekly WM'!C14) -> 76218 | E14: =SUMIFS('Enter Data'!I:I,'Enter Data'!P:P,'Weekly WM'!$B$1,'Enter Data'!D:D,'Weekly WM'!$E$2,'Enter Data'!B:B,">="&'Weekly WM'!B14,'Enter Data'!B:B,"<="&'Weekly WM'!C14) -> 150 | F14: =SUMIFS('Enter Data'!I:I,'Enter Data'!P:P,'Weekly WM'!$B$1,'Enter Data'!D:D,'Weekly WM'!$F$2,'Enter Data'!B:B,">="&'Weekly WM'!B14,'Enter Data'!B:B,"<="&'Weekly WM'!C14) -> 400 | G14: =D14-E14 -> 76068 | H14: =E14/D14 -> 0.001968039046 | I14: =F14/D14 -> 0.005248104122 | J14: =IFERROR(100%-(I14)-(H14),"") -> 0.9927838568
A15: 40 | B15: 44135 | C15: 44141 | D15: =SUMIFS('Key Central Report'!AP:AP,'Key Central Report'!AM:AM,'Weekly WM'!$A$1,'Key Central Report'!I:I,">="&'Weekly WM'!B15,'Key Central Report'!I:I,"<="&'Weekly WM'!C15) -> 51232 | E15: =SUMIFS('Enter Data'!I:I,'Enter Data'!P:P,'Weekly WM'!$B$1,'Enter Data'!D:D,'Weekly WM'!$E$2,'Enter Data'!B:B,">="&'Weekly WM'!B15,'Enter Data'!B:B,"<="&'Weekly WM'!C15) -> 550 | F15: =SUMIFS('Enter Data'!I:I,'Enter Data'!P:P,'Weekly WM'!$B$1,'Enter Data'!D:D,'Weekly WM'!$F$2,'Enter Data'!B:B,">="&'Weekly WM'!B15,'Enter Data'!B:B,"<="&'Weekly WM'!C15) -> 350 | G15: =D15-E15 -> 50682 | H15: =E15/D15 -> 0.01073547783 | I15: =F15/D15 -> 0.006831667708 | J15: =IFERROR(100%-(I15)-(H15),"") -> 0.9824328545
A16: 41 | B16: 44142 | C16: 44148 | D16: =SUMIFS('Key Central Report'!AP:AP,'Key Central Report'!AM:AM,'Weekly WM'!$A$1,'Key Central Report'!I:I,">="&'Weekly WM'!B16,'Key Central Report'!I:I,"<="&'Weekly WM'!C16) -> 55048 | E16: =SUMIFS('Enter Data'!I:I,'Enter Data'!P:P,'Weekly WM'!$B$1,'Enter Data'!D:D,'Weekly WM'!$E$2,'Enter Data'!B:B,">="&'Weekly WM'!B16,'Enter Data'!B:B,"<="&'Weekly WM'!C16) -> 50 | F16: =SUMIFS('Enter Data'!I:I,'Enter Data'!P:P,'Weekly WM'!$B$1,'Enter Data'!D:D,'Weekly WM'!$F$2,'Enter Data'!B:B,">="&'Weekly WM'!B16,'Enter Data'!B:B,"<="&'Weekly WM'!C16) -> 775 | G16: =D16-E16 -> 54998 | H16: =E16/D16 -> 0.0009082982125 | I16: =F16/D16 -> 0.01407862229 | J16: =IFERROR(100%-(I16)-(H16),"") -> 0.9850130795
A17: 42 | B17: 44149 | C17: 44155 | D17: =SUMIFS('Key Central Report'!AP:AP,'Key Central Report'!AM:AM,'Weekly WM'!$A$1,'Key Central Report'!I:I,">="&'Weekly WM'!B17,'Key Central Report'!I:I,"<="&'Weekly WM'!C17) -> 72116 | E17: =SUMIFS('Enter Data'!I:I,'Enter Data'!P:P,'Weekly WM'!$B$1,'Enter Data'!D:D,'Weekly WM'!$E$2,'Enter Data'!B:B,">="&'Weekly WM'!B17,'Enter Data'!B:B,"<="&'Weekly WM'!C17) -> 0 | F17: =SUMIFS('Enter Data'!I:I,'Enter Data'!P:P,'Weekly WM'!$B$1,'Enter Data'!D:D,'Weekly WM'!$F$2,'Enter Data'!B:B,">="&'Weekly WM'!B17,'Enter Data'!B:B,"<="&'Weekly WM'!C17) -> 200 | G17: =D17-E17 -> 72116 | H17: =E17/D17 -> 0 | I17: =F17/D17 -> 0.002773309668 | J17: =IFERROR(100%-(I17)-(H17),"") -> 0.9972266903
A18: 43 | B18: 44156 | C18: 44162 | D18: =SUMIFS('Key Central Report'!AP:AP,'Key Central Report'!AM:AM,'Weekly WM'!$A$1,'Key Central Report'!I:I,">="&'Weekly WM'!B18,'Key Central Report'!I:I,"<="&'Weekly WM'!C18) -> 52618 | E18: =SUMIFS('Enter Data'!I:I,'Enter Data'!P:P,'Weekly WM'!$B$1,'Enter Data'!D:D,'Weekly WM'!$E$2,'Enter Data'!B:B,">="&'Weekly WM'!B18,'Enter Data'!B:B,"<="&'Weekly WM'!C18) -> 3 | F18: =SUMIFS('Enter Data'!I:I,'Enter Data'!P:P,'Weekly WM'!$B$1,'Enter Data'!D:D,'Weekly WM'!$F$2,'Enter Data'!B:B,">="&'Weekly WM'!B18,'Enter Data'!B:B,"<="&'Weekly WM'!C18) -> 150 | G18: =D18-E18 -> 52615 | H18: =E18/D18 -> 5.70147098e-05 | I18: =F18/D18 -> 0.00285073549 | J18: =IFERROR(100%-(I18)-(H18),"") -> 0.9970922498
A19: 44 | B19: 44163 | C19: 44169 | D19: =SUMIFS('Key Central Report'!AP:AP,'Key Central Report'!AM:AM,'Weekly WM'!$A$1,'Key Central Report'!I:I,">="&'Weekly WM'!B19,'Key Central Report'!I:I,"<="&'Weekly WM'!C19) -> 80549 | E19: =SUMIFS('Enter Data'!I:I,'Enter Data'!P:P,'Weekly WM'!$B$1,'Enter Data'!D:D,'Weekly WM'!$E$2,'Enter Data'!B:B,">="&'Weekly WM'!B19,'Enter Data'!B:B,"<="&'Weekly WM'!C19) -> 3140 | F19: =SUMIFS('Enter Data'!I:I,'Enter Data'!P:P,'Weekly WM'!$B$1,'Enter Data'!D:D,'Weekly WM'!$F$2,'Enter Data'!B:B,">="&'Weekly WM'!B19,'Enter Data'!B:B,"<="&'Weekly WM'!C19) -> 450 | G19: =D19-E19 -> 77409 | H19: =E19/D19 -> 0.03898248271 | I19: =F19/D19 -> 0.005586661535 | J19: =IFERROR(100%-(I19)-(H19),"") -> 0.9554308558
A20: 45 | B20: 44170 | C20: 44176 | D20: =SUMIFS('Key Central Report'!AP:AP,'Key Central Report'!AM:AM,'Weekly WM'!$A$1,'Key Central Report'!I:I,">="&'Weekly WM'!B20,'Key Central Report'!I:I,"<="&'Weekly WM'!C20) -> 67616 | E20: =SUMIFS('Enter Data'!I:I,'Enter Data'!P:P,'Weekly WM'!$B$1,'Enter Data'!D:D,'Weekly WM'!$E$2,'Enter Data'!B:B,">="&'Weekly WM'!B20,'Enter Data'!B:B,"<="&'Weekly WM'!C20) -> 0 | F20: =SUMIFS('Enter Data'!I:I,'Enter Data'!P:P,'Weekly WM'!$B$1,'Enter Data'!D:D,'Weekly WM'!$F$2,'Enter Data'!B:B,">="&'Weekly WM'!B20,'Enter Data'!B:B,"<="&'Weekly WM'!C20) -> 300 | G20: =D20-E20 -> 67616 | H20: =E20/D20 -> 0 | I20: =F20/D20 -> 0.004436819688 | J20: =IFERROR(100%-(I20)-(H20),"") -> 0.9955631803
A21: 46 | B21: 44177 | C21: 44183 | D21: =SUMIFS('Key Central Report'!AP:AP,'Key Central Report'!AM:AM,'Weekly WM'!$A$1,'Key Central Report'!I:I,">="&'Weekly WM'!B21,'Key Central Report'!I:I,"<="&'Weekly WM'!C21) -> 63288 | E21: =SUMIFS('Enter Data'!I:I,'Enter Data'!P:P,'Weekly WM'!$B$1,'Enter Data'!D:D,'Weekly WM'!$E$2,'Enter Data'!B:B,">="&'Weekly WM'!B21,'Enter Data'!B:B,"<="&'Weekly WM'!C21) -> 1357 | F21: =SUMIFS('Enter Data'!I:I,'Enter Data'!P:P,'Weekly WM'!$B$1,'Enter Data'!D:D,'Weekly WM'!$F$2,'Enter Data'!B:B,">="&'Weekly WM'!B21,'Enter Data'!B:B,"<="&'Weekly WM'!C21) -> 750 | G21: 61931 | H21: 0.02144166351 | I21: 0.01185058779 | J21: 0.9667077487
A22: 47 | B22: 44184 | C22: 44190 | D22: =SUMIFS('Key Central Report'!AP:AP,'Key Central Report'!AM:AM,'Weekly WM'!$A$1,'Key Central Report'!I:I,">="&'Weekly WM'!B22,'Key Central Report'!I:I,"<="&'Weekly WM'!C22) -> 52551 | E22: =SUMIFS('Enter Data'!I:I,'Enter Data'!P:P,'Weekly WM'!$B$1,'Enter Data'!D:D,'Weekly WM'!$E$2,'Enter Data'!B:B,">="&'Weekly WM'!B22,'Enter Data'!B:B,"<="&'Weekly WM'!C22) -> 1402 | F22: =SUMIFS('Enter Data'!I:I,'Enter Data'!P:P,'Weekly WM'!$B$1,'Enter Data'!D:D,'Weekly WM'!$F$2,'Enter Data'!B:B,">="&'Weekly WM'!B22,'Enter Data'!B:B,"<="&'Weekly WM'!C22) -> 700 | G22: =D22-E22 -> 51149 | H22: =E22/D22 -> 0.02667884531 | I22: =F22/D22 -> 0.01332039352 | J22: =IFERROR(100%-(I22)-(H22),"") -> 0.9600007612
A23: 48 | B23: 44191 | C23: 44197 | D23: =SUMIFS('Key Central Report'!AP:AP,'Key Central Report'!AM:AM,'Weekly WM'!$A$1,'Key Central Report'!I:I,">="&'Weekly WM'!B23,'Key Central Report'!I:I,"<="&'Weekly WM'!C23) -> 90100 | E23: =SUMIFS('Enter Data'!I:I,'Enter Data'!P:P,'Weekly WM'!$B$1,'Enter Data'!D:D,'Weekly WM'!$E$2,'Enter Data'!B:B,">="&'Weekly WM'!B23,'Enter Data'!B:B,"<="&'Weekly WM'!C23) -> 350 | F23: =SUMIFS('Enter Data'!I:I,'Enter Data'!P:P,'Weekly WM'!$B$1,'Enter Data'!D:D,'Weekly WM'!$F$2,'Enter Data'!B:B,">="&'Weekly WM'!B23,'Enter Data'!B:B,"<="&'Weekly WM'!C23) -> 1100 | G23: =D23-E23 -> 89750 | H23: =E23/D23 -> 0.003884572697 | I23: =F23/D23 -> 0.01220865705 | J23: =IFERROR(100%-(I23)-(H23),"") -> 0.9839067703
A24: 49 | B24: 44198 | C24: 44204 | D24: =SUMIFS('Key Central Report'!AP:AP,'Key Central Report'!AM:AM,'Weekly WM'!$A$1,'Key Central Report'!I:I,">="&'Weekly WM'!B24,'Key Central Report'!I:I,"<="&'Weekly WM'!C24) -> 31125 | E24: =SUMIFS('Enter Data'!I:I,'Enter Data'!P:P,'Weekly WM'!$B$1,'Enter Data'!D:D,'Weekly WM'!$E$2,'Enter Data'!B:B,">="&'Weekly WM'!B24,'Enter Data'!B:B,"<="&'Weekly WM'!C24) -> 700 | F24: =SUMIFS('Enter Data'!I:I,'Enter Data'!P:P,'Weekly WM'!$B$1,'Enter Data'!D:D,'Weekly WM'!$F$2,'Enter Data'!B:B,">="&'Weekly WM'!B24,'Enter Data'!B:B,"<="&'Weekly WM'!C24) -> 0 | G24: =D24-E24 -> 30425 | H24: =E24/D24 -> 0.02248995984 | I24: =F24/D24 -> 0 | J24: =IFERROR(100%-(I24)-(H24),"") -> 0.9775100402
A25: 50 | B25: 44205 | C25: 44211 | D25: =SUMIFS('Key Central Report'!AP:AP,'Key Central Report'!AM:AM,'Weekly WM'!$A$1,'Key Central Report'!I:I,">="&'Weekly WM'!B25,'Key Central Report'!I:I,"<="&'Weekly WM'!C25) -> 53456 | E25: =SUMIFS('Enter Data'!I:I,'Enter Data'!P:P,'Weekly WM'!$B$1,'Enter Data'!D:D,'Weekly WM'!$E$2,'Enter Data'!B:B,">="&'Weekly WM'!B25,'Enter Data'!B:B,"<="&'Weekly WM'!C25) -> 50 | F25: =SUMIFS('Enter Data'!I:I,'Enter Data'!P:P,'Weekly WM'!$B$1,'Enter Data'!D:D,'Weekly WM'!$F$2,'Enter Data'!B:B,">="&'Weekly WM'!B25,'Enter Data'!B:B,"<="&'Weekly WM'!C25) -> 0 | G25: =D25-E25 -> 53406 | H25: =E25/D25 -> 0.000935348698 | I25: =F25/D25 -> 0 | J25: =IFERROR(100%-(I25)-(H25),"") -> 0.9990646513
A26: =IFERROR(100%-(#REF!)-(#REF!),"") -> 
A27: =IFERROR(100%-(#REF!)-(#REF!),"") -> 
A28: =IFERROR(100%-(#REF!)-(#REF!),"") -> 
A29: =IFERROR(100%-(#REF!)-(#REF!),"") -> 
A30: =IFERROR(100%-(#REF!)-(#REF!),"") -> 
A31: =IFERROR(100%-(#REF!)-(#REF!),"") -> 
A32: =IFERROR(100%-(#REF!)-(#REF!),"") -> 
A33: =IFERROR(100%-(#REF!)-(#REF!),"") -> 
A34: =IFERROR(100%-(#REF!)-(#REF!),"") -> 
A35: =IFERROR(100%-(#REF!)-(#REF!),"") -> 
A36: =IFERROR(100%-(#REF!)-(#REF!),"") -> 
A37: =IFERROR(100%-(#REF!)-(#REF!),"") -> 
A38: =IFERROR(100%-(#REF!)-(#REF!),"") -> 

Sheet RAG Report
H1: RED AMBER GREEN REPORT
B2: YTD: | C2: 44216 | H2: YTD: | I2: =C2 -> 44216
A4: PACKHOUSE | B4: RED | C4: AMBER | D4: GREEN | E4: TOTAL | H4: PACKHOUSE | I4: RED | J4: AMBER | K4: GREEN
A5: CRIST BROTHERS | B5: =IFERROR(SUMIF('Enter Data'!E:L,"RejectionCRIST BROTHERS",'Enter Data'!L:L)/Table48[[#This Row],[TOTAL]],"0.00%") -> 0 | C5: =IFERROR(SUMIF('Enter Data'!E:E,"A-CRIST BROTHERS",'Enter Data'!L:L)/Table48[[#This Row],[TOTAL]],"0.00%") -> 0.0001727754521 | D5: =IFERROR(100%-(C5)-(B5),"") -> 0.9998272245 | E5: =IFERROR(VLOOKUP("CRIST BROTHERS",'Pivot Table'!L:N,3,FALSE),"") -> 97670.125 | H5: =IF(Table48[[#This Row],[PACKHOUSE]]="YONDER FARMS","YONDER FARMS","") ->  | I5: =B5 -> 0 | J5: =C5 -> 0.0001727754521 | K5: =D5 -> 0.9998272245
A6: POMONA PACKING | B6: =IFERROR(SUMIF('Enter Data'!E:L,"RejectionPOMONA PACKING",'Enter Data'!L:L)/Table48[[#This Row],[TOTAL]],"0.00%") -> 0 | C6: =IFERROR(SUMIF('Enter Data'!E:E,"A-POMONA PACKING",'Enter Data'!L:L)/Table48[[#This Row],[TOTAL]],"0.00%") -> 0.0004290884579 | D6: =IFERROR(100%-(C6)-(B6),"") -> 0.9995709115 | E6: =IFERROR(VLOOKUP("POMONA PACKING",'Pivot Table'!L:N,3,FALSE),"") -> 235965.331 | H6: =IF(Table48[[#This Row],[PACKHOUSE]]="YONDER FARMS","YONDER FARMS","") ->  | I6: =B6 -> 0 | J6: 0.0004290884579 | K6: 0.9995709115
A7: CHAZY ORCHARDS | B7: =IFERROR(SUMIF('Enter Data'!E:L,"RejectionCHAZY ORCHARDS",'Enter Data'!L:L)/Table48[[#This Row],[TOTAL]],"0.00%") -> 0.008745253022 | C7: =IFERROR(SUMIF('Enter Data'!E:E,"A-CHAZY ORCHARDS",'Enter Data'!L:L)/Table48[[#This Row],[TOTAL]],"0.00%") -> 0.002018135313 | D7: =IFERROR(100%-(C7)-(B7),"") -> 0.9892366117 | E7: =IFERROR(VLOOKUP("CHAZY ORCHARDS",'Pivot Table'!L:N,3,FALSE),"") -> 50170.075 | H7: =IF(Table48[[#This Row],[PACKHOUSE]]="YONDER FARMS","YONDER FARMS","") ->  | I7: =B7 -> 0.008745253022 | J7: 0.002018135313 | K7: 0.9892366117
A8: SAULPAUGH | B8: =IFERROR(SUMIF('Enter Data'!E:L,"RejectionSAULPAUGH",'Enter Data'!L:L)/Table48[[#This Row],[TOTAL]],"0.00%") -> 0 | C8: =IFERROR(SUMIF('Enter Data'!E:E,"A-SAULPAUGH",'Enter Data'!L:L)/Table48[[#This Row],[TOTAL]],"0.00%") -> 0.001659343023 | D8: 0.998340657 | E8: =IFERROR(VLOOKUP("SAULPAUGH",'Pivot Table'!L:N,3,FALSE),"") -> 61018.125 | H8: =IF(Table48[[#This Row],[PACKHOUSE]]="YONDER FARMS","YONDER FARMS","") ->  | I8: 0 | J8: 0.001659343023 | K8: 0.998340657
A9: FIX BROS | B9: =IFERROR(SUMIF('Enter Data'!E:L,"RejectionFIX BROTHERS",'Enter Data'!L:L)/Table48[[#This Row],[TOTAL]],"0.00%") -> 0 | C9: =IFERROR(SUMIF('Enter Data'!E:E,"A-FIX BROS",'Enter Data'!L:L)/Table48[[#This Row],[TOTAL]],"0.00%") -> 0.0004467638216 | D9: 0.9995532362 | E9: =IFERROR(VLOOKUP("FIX BROS",'Pivot Table'!L:N,3,FALSE),"") -> 75543.27 | H9: =IF(Table48[[#This Row],[PACKHOUSE]]="YONDER FARMS","YONDER FARMS","") ->  | I9: 0 | J9: 0.0004467638216 | K9: 0.9995532362
A10: LAKE ONTARIO | B10: =IFERROR(SUMIF('Enter Data'!E:L,"RejectionLAKE ONTARIO",'Enter Data'!L:L)/Table48[[#This Row],[TOTAL]],"0.00%") -> 0.001514137621 | C10: =IFERROR(SUMIF('Enter Data'!E:E,"A-LAKE ONTARIO",'Enter Data'!L:L)/Table48[[#This Row],[TOTAL]],"0.00%") -> 0.001415869087 | D10: 0.9970699933 | E10: =IFERROR(VLOOKUP("LAKE ONTARIO",'Pivot Table'!L:N,3,FALSE),"") -> 498633.6706 | H10: =IF(Table48[[#This Row],[PACKHOUSE]]="YONDER FARMS","YONDER FARMS","") ->  | I10: 0.001514137621 | J10: 0.001415869087 | K10: 0.9970699933
A11: YONDER FARMS | B11: =IFERROR(SUMIF('Enter Data'!E:L,"RejectionYONDER FARMS",'Enter Data'!L:L)/Table48[[#This Row],[TOTAL]],"0.00%") -> 0.001445363543 | C11: =IFERROR(SUMIF('Enter Data'!E:E,"A-YONDER FARMS",'Enter Data'!L:L)/Table48[[#This Row],[TOTAL]],"0.00%") -> 0.002480390826 | D11: 0.9960742456 | E11: =IFERROR(VLOOKUP("YONDER FARMS",'Pivot Table'!L:N,3,FALSE),"") -> 102050.45 | H11: =IF(Table48[[#This Row],[PACKHOUSE]]="YONDER FARMS","YONDER FARMS","") -> YONDER FARMS | I11: 0.001445363543 | J11: 0.002480390826 | K11: 0.9960742456
A12: EMPIRE FRUIT | B12: =IFERROR(SUMIF('Enter Data'!E:L,"RejectionEMPIRE FRUIT",'Enter Data'!L:L)/Table48[[#This Row],[TOTAL]],"0.00%") -> 0.001382319017 | C12: =IFERROR(SUMIF('Enter Data'!E:E,"A-EMPIRE FRUIT",'Enter Data'!L:L)/Table48[[#This Row],[TOTAL]],"0.00%") -> 0.006051256772 | D12: 0.9925664242 | E12: =IFERROR(VLOOKUP("EMPIRE FRUIT",'Pivot Table'!L:N,3,FALSE),"") -> 276925.945 | H12: =IF(Table48[[#This Row],[PACKHOUSE]]="YONDER FARMS","YONDER FARMS","") ->  | I12: 0.001382319017 | J12: 0.006051256772 | K12: 0.9925664242
A13: PORPIGLIA FARMS | B13: =IFERROR(SUMIF('Enter Data'!E:L,"RejectionPORPIGLIA FARMS",'Enter Data'!L:L)/Table48[[#This Row],[TOTAL]],"0.00%") -> 0 | C13: =IFERROR(SUMIF('Enter Data'!E:E,"A-PORPIGLIA FARMS",'Enter Data'!L:L)/Table48[[#This Row],[TOTAL]],"0.00%") -> 0.006564527482 | D13: 0.9934354725 | E13: =IFERROR(VLOOKUP("PORPIGLIA FARMS",'Pivot Table'!L:N,3,FALSE),"") -> 20565.075 | H13: =IF(Table48[[#This Row],[PACKHOUSE]]="YONDER FARMS","YONDER FARMS","") ->  | I13: 0 | J13: 0.006564527482 | K13: 0.9934354725
A14: TotalAverage% | B14: =AVERAGE(B5:B13) -> 0.001454119245 | C14: =AVERAGE(C5:C13) -> 0.00235979447 | D14: 0.9961860863 | E14: =SUM(E5:E13) -> 1418542.067 | H14: =A14 -> TotalAverage% | I14: 0.001454119245 | J14: 0.00235979447 | K14: 0.9961860863
C16: All Shipments | D16: 0.993 | G16: Date | H16: PackHouse | I16: CustName | J16: Rejection or A- | K16: Reason | L16: Variety | M16: Bushels
G17: 44084 | H17: CROWN ORCHARDS | I17: WALMART- PAGELAND, SC | J17: A- | K17: BLUSH | L17: GOLDEN DELICIOUS | M17: 67.5
G18: 44093 | H18: MAIN OFFICE | I18: WALMART- MACCLENNY, FL | J18: Rejection | K18: CARRIER DAMAGE | L18: GALA | M18: 3.375
G19: 9/24/2020 | H19: EMPIRE FRUIT | I19: WALMART- COCOA, FL | J19: A- | K19: DECAY | L19: HONEYCRISP | M19: 202.5
G20: 9/24/2020 | H20: LAKE ONTARIO | I20: SAM'S CLUB- JOHNSTOWN, NY | J20: A- | K20: BRUISE | L20: SWEETANGO | M20: 36
G21: 9/24/2020 | H21: LAKE ONTARIO | I21: WALMART- NEW ALBANY, MS | J21: A- | K21: BRUISE & BROKEN SKINS | L21: SWEETANGO | M21: 33.75
G22: 44099 | H22: EMPIRE FRUIT | I22: SAM'S CLUB- JOHNSTOWN, NY | J22: A- | K22: BRUISE | L22: MCINTOSH | M22: 252
G23: 44099 | H23: LAKE ONTARIO | I23: WALMART- ARCADIA, FL | J23: Rejection | K23: PACKAGING | L23: SWEETANGO | M23: 0.6
G24: 44096 | H24: LAKE ONTARIO | I24: FOOD LION | J24: Rejection | K24: BRUISE | L24: SWEETANGO | M24: 30
G25: 44096 | H25: LAKE ONTARIO | I25: LANCASTER FOODS | J25: Rejection | K25: BITTERPIT & DECAY | L25: SWEETANGO | M25: 78
G26: 44096 | H26: MAIN OFFICE | I26: WALMART- MEBANE, NC | J26: Rejection | K26: CARRIER DAMAGE | L26: HONEYCRISP | M26: 3.375
G27: 44102 | H27: CROWN ORCHARDS | I27: WALMART- PAGELAND, SC | J27: Rejection | K27: PACKAGING | L27: GRANNY SMITH | M27: 140
G28: 44108 | H28: LAKE ONTARIO | I28: WALMART- MACCLENNY, FL | J28: A- | K28: BRUISE | L28: SWEETANGO | M28: 48
G29: 44113 | H29: APPLE WEDGE | I29: WALMART- NEW ALBANY, MS | J29: A- | K29: BRUISE | L29: SWEETANGO | M29: 90
G30: 44116 | H30: MAIN OFFICE | I30: WALMART- WINTER HAVEN, FL | J30: Rejection | K30: CARRIER DAMAGE | L30: SWEETANGO | M30: 59.4
G31: 44118 | H31: EMPIRE FRUIT | I31: WALMART- COCOA, FL | J31: Rejection | K31: BRUISE | L31: MCINTOSH | M31: 172.8
G32: 44117 | H32: YONDER FARMS | I32: HANNAFORD | J32: Rejection | K32: BRUISE | L32: GOLDEN DELICIOUS | M32: 40
G33: 44119 | H33: YONDER FARMS | I33: HANNAFORD | J33: Rejection | K33: BRUISE | L33: GOLDEN DELICIOUS | M33: 40
G34: 44120 | H34: EMPIRE FRUIT | I34: SAM'S CLUB- POTTSVILLE, PA | J34: A- | K34: BITTERPIT | L34: HONEYCRISP | M34: 180
G35: 44120 | H35: APPLE WEDGE | I35: WALMART- PAGELAND, SC | J35: A- | K35: INTERNAL BROWNING | L35: FUJI | M35: 30
G36: 44120 | H36: JP SULLIVAN | I36: WALMART- LEWISTON, ME | J36: Rejection | K36: BITTERPIT | L36: HONEYCRISP | M36: 67.5
G37: 44122 | H37: MAIN OFFICE | I37: Harris Teeter | J37: Rejection | K37: CARRIER DAMAGE | L37: SNAPDRAGON | M37: 12
G38: 44124 | H38: MAIN OFFICE | I38: HEB | J38: Rejection | K38: CARRIER DAMAGE | L38: HONEYCRISP | M38: 7
G39: 44125 | H39: APPLE WEDGE | I39: WALMART- PAGELAND, SC | J39: Rejection | K39: BITTERPIT | L39: FUJI | M39: 60
G40: 44127 | H40: MAIN OFFICE | I40: WALMART- JOHNSTOWN, NY | J40: Rejection | K40: CARRIER DAMAGE | L40: RED DELICIOUS | M40: 33.75
G41: 44127 | H41: APPLE WEDGE | I41: WALMART- MEBANE, NC | J41: Rejection | K41: INTERNAL BROWNING | L41: FUJI | M41: 180
G42: 44127 | H42: APPLE WEDGE | I42: WALMART- PAGELAND, SC | J42: Rejection | K42: INTERNAL BROWNING | L42: FUJI | M42: 101.25
G43: 44127 | H43: APPLE WEDGE | I43: WALMART- HENDERSON, NC | J43: Rejection | K43: DECAY | L43: FUJI | M43: 101.25
G44: 44129 | H44: LAKE ONTARIO | I44: SAMS - MANKATO | J44: Rejection | K44: BRUISE | L44: SWEETANGO | M44: 108
G45: 44133 | H45: LAKE ONTARIO | I45: WALMART- WINTER HAVEN, FL | J45: A- | K45: INTERNAL BROWNING | L45: SWEETANGO | M45: 120
G46: 44133 | H46: LAKE ONTARIO | I46: SAMS - MANKATO | J46: Rejection | K46: BITTERPIT | L46: SWEETANGO | M46: 108
G47: 44128 | H47: MAIN OFFICE | I47: WALMART- OPELIKA, AL | J47: A- | K47: WATERCORE | L47: RED DELICIOUS | M47: 135
G48: 44136 | H48: PORPIGLIA FARMS | I48: WALMART- COCOA, FL | J48: A- | K48: PLU STICKER COVERAGE | L48: HONEYCRISP | M48: 135
G49: 44138 | H49: LAKE ONTARIO | I49: SAMS - BEDFORD, PA | J49: Rejection | K49: BRUISE | L49: SWEETANGO | M49: 72
G50: 44140 | H50: LAKE ONTARIO | I50: SAMS - MANKATO | J50: Rejection | K50: BITTERPIT & STEM PUNCTURES | L50: SWEETANGO | M50: 108
G51: 44141 | H51: POMONA PACKING | I51: WALMART- JOHNSTOWN, NY | J51: A- | K51: PLU STICKER COVERAGE | L51: GALA | M51: 101.25
G52: 44141 | H52: APPLE WEDGE | I52: WALMART- MEBANE, NC | J52: Rejection | K52: INTERNAL BROWNING | L52: FUJI | M52: 210
G53: 44141 | H53: APPLE WEDGE | I53: WALMART- PAGELAND, SC | J53: Rejection | K53: INTERNAL BROWNING | L53: FUJI | M53: 120
G54: 44147 | H54: LAKE ONTARIO | I54: WALMART- COCOA, FL | J54: A- | K54: PLU STICKER COVERAGE | L54: HONEYCRISP | M54: 270
G55: 44147 | H55: LAKE ONTARIO | I55: SAMS - MANKATO | J55: A- | K55: BRUISE | L55: SWEETANGO | M55: 72
G56: 44147 | H56: YONDER FARMS | I56: WALMART- JOHNSTOWN, NY | J56: A- | K56: PLU STICKER COVERAGE | L56: CORTLAND | M56: 84.375
G57: 44147 | H57: APPLE WEDGE | I57: WALMART- PAGELAND, SC | J57: A- | K57: PLU STICKER COVERAGE | L57: FUJI | M57: 33.75
G58: 44148 | H58: LAKE ONTARIO | I58: WALMART- LONDON, KY | J58: Rejection | K58: DECAY | L58: GALA | M58: 33.75
G59: 44154 | H59: YONDER FARMS | I59: WALMART- JOHNSTOWN, NY | J59: A- | K59: PLU STICKER COVERAGE | L59: CORTLAND | M59: 33.75
G60: 44155 | H60: YONDER FARMS | I60: WALMART- JOHNSTOWN, NY | J60: A- | K60: PLU STICKER COVERAGE | L60: CORTLAND | M60: 33.75
G61: 44159 | H61: FIX BROS | I61: SAM'S CLUB- JOHNSTOWN, NY | J61: A- | K61: PLU STICKER COVERAGE | L61: FUJI | M61: 33.75
G62: 44131 | H62: MAIN OFFICE | I62: WALMART- JOHNSTOWN, NY | J62: Rejection | K62: WATERCORE | L62: FUJI | M62: 90
G63: 44167 | H63: APPLE WEDGE | I63: WALMART- PAGELAND, SC | J63: Rejection | K63: TEMPERATURE | L63: GALA | M63: 720
G64: 44168 | H64: MAIN OFFICE | I64: WALMART- MEBANE, NC | J64: Rejection | K64: TEMPERATURE | L64: HONEYCRISP | M64: 420
G65: 44168 | H65: MAIN OFFICE | I65: WALMART- MEBANE, NC | J65: Rejection | K65: TEMPERATURE | L65: MCINTOSH | M65: 180
G66: 44168 | H66: MAIN OFFICE | I66: WALMART- MEBANE, NC | J66: Rejection | K66: TEMPERATURE | L66: FUJI | M66: 210
G67: 44169 | H67: MAIN OFFICE | I67: WALMART- COCOA, FL | J67: Rejection | K67: CARRIER DAMAGE | L67: HONEYCRISP | M67: 67.5
G68: 44169 | H68: MAIN OFFICE | I68: WALMART- PAGELAND, SC | J68: Rejection | K68: CARRIER DAMAGE | L68: GALA | M68: 440
G69: 44169 | H69: APPLE WEDGE | I69: WALMART- HENDERSON, NC | J69: A- | K69: DECAY | L69: RED DELICIOUS | M69: 281.25
G70: 44169 | H70: APPLE WEDGE | I70: WALMART- HENDERSON, NC | J70: Rejection | K70: BRUISE & BROKEN SKINS | L70: PINK LADY | M70: 30
G71: 44172 | H71: SAULPAUGH | I71: WALMART- JOHNSTOWN, NY | J71: A- | K71: PLU STICKER COVERAGE | L71: GALA | M71: 67.5
G72: 44175 | H72: LAKE ONTARIO | I72: WALMART- JOHNSTOWN, NY | J72: A- | K72: PLU STICKER COVERAGE | L72: GALA | M72: 33.75
G73: 44179 | H73: MAIN OFFICE | I73: WALMART- WINTER HAVEN, FL | J73: Rejection | K73: CARRIER DAMAGE | L73: RED DELICIOUS | M73: 4.725
G74: 44181 | H74: EMPIRE FRUIT | I74: WALMART- LONDON, KY | J74: A- | K74: DECAY | L74: GALA | M74: 420
G75: 44187 | H75: EMPIRE FRUIT | I75: MARKET BASKET | J75: A- | K75: BRUISE | L75: HONEYCRISP | M75: 40
G76: 44187 | H76: EMPIRE FRUIT | I76: WALMART- MEBANE, NC | J76: A- | K76: DECAY | L76: GALA | M76: 420
G77: 44193 | H77: GLAIZE | I77: WALMART- LONDON, KY | J77: A- | K77: BLUSH | L77: GRANNY SMITH | M77: 573.75
G78: 44193 | H78: GLAIZE | I78: WALMART- LONDON, KY | J78: Rejection | K78: BLUSH | L78: GRANNY SMITH | M78: 236.25
G79: 44201 | H79: EMPIRE FRUIT | I79: WALMART- LONDON, KY | J79: Rejection | K79: DECAY | L79: GRANNY SMITH | M79: 210
G80: 10/902/2020 | H80: APPLEWOOD FRESH | I80: WALMART- LEWISTON, ME | J80: Rejection | K80: BITTERPIT | L80: GALA | M80: 168.75
G81: 44134 | H81: MAIN OFFICE | I81: SAM'S CLUB- POTTSVILLE, PA | J81: Rejection | K81: CARRIER DAMAGE | L81: MCINTOSH | M81: 168
G82: 44184 | H82: MAIN OFFICE | I82: WALMART- MEBANE, NC | J82: Rejection | K82: TEMPERATURE | L82: HONEYCRISP | M82: 292.5
G83: 44184 | H83: MAIN OFFICE | I83: WALMART- MEBANE, NC | J83: Rejection | K83: TEMPERATURE | L83: GALA | M83: 487.5
G84: 44184 | H84: MAIN OFFICE | I84: WALMART- MEBANE, NC | J84: Rejection | K84: TEMPERATURE | L84: FUJI | M84: 67.5
G85: 44184 | H85: MAIN OFFICE | I85: WALMART- LEWISTON, ME | J85: Rejection | K85: CARRIER DAMAGE | L85: HONEYCRISP | M85: 1.35
G86: 44157 | H86: MAIN OFFICE | I86: WALMART- MACCLENNY, FL | J86: Rejection | K86: CARRIER DAMAGE | L86: HONEYCRISP | M86: 1.8
G87: 44173 | H87: CHAZY ORCHARDS | I87: WALMART- OPELIKA, AL | J87: A- | K87: PLU STICKER COVERAGE | L87: GALA | M87: 101.25
G88: 44188 | H88: CHAZY ORCHARDS | I88: WALMART- OPELIKA, AL | J88: Rejection | K88: BITTERPIT & STEM PUNCTURES | L88: GALA | M88: 33.75
G89: 44191 | H89: EMPIRE FRUIT | I89: WALMART- COCOA, FL | J89: A- | K89: DECAY | L89: FUJI | M89: 101.25
G90: 44195 | H90: EMPIRE FRUIT | I90: WALMART- COCOA, FL | J90: A- | K90: DECAY | L90: FUJI | M90: 60
G91: 44156 | H91: GLAIZE | I91: WALMART- PAGELAND, SC | J91: A- | K91: PLU STICKER COVERAGE | L91: GALA | M91: 101.25
G92: 44183 | H92: SAULPAUGH | I92: WALMART- JOHNSTOWN, NY | J92: A- | K92: PLU STICKER COVERAGE | L92: CORTLAND | M92: 33.75
G93: 44183 | H93: MAIN OFFICE | I93: WALMART- MEBANE, NC | J93: Rejection | K93: TEMPERATURE | L93: HONEYCRISP | M93: 292.5
G94: 44183 | H94: MAIN OFFICE | I94: WALMART- MEBANE, NC | J94: Rejection | K94: TEMPERATURE | L94: GALA | M94: 487.5
G95: 44183 | H95: MAIN OFFICE | I95: WALMART- MEBANE, NC | J95: Rejection | K95: TEMPERATURE | L95: FUJI | M95: 67.5
G96: 44204 | H96: LAKE ONTARIO | I96: WALMART- MACCLENNY, FL | J96: Rejection | K96: DECAY | L96: GALA | M96: 185.4
G97: 44204 | H97: MAIN OFFICE | I97: WALMART- MACCLENNY, FL | J97: Rejection | K97: DECAY | L97: GALA | M97: 24.6
G98: 44143 | H98: MAIN OFFICE | I98: WALMART- LEWISTON, ME | J98: A- | K98: WATERCORE | L98: RED DELICIOUS | M98: 125
G99: 44149 | H99: LAKE ONTARIO | I99: WALMART- COCOA, FL | J99: A- | K99: WATERCORE | L99: RED DELICIOUS | M99: 62.5
G100: 43836 | H100: YONDER FARMS | I100: WALMART- JOHNSTOWN, NY | J100: A- | K100: PLU STICKER COVERAGE | L100: RED DELICIOUS | M100: 101.25
G101: 44211 | H101: LAKE ONTARIO | I101: WALMART- LONDON, KY | J101: Rejection | K101: PACKAGING | L101: RED DELICIOUS | M101: 31.25
G102: 44212 | H102: CHAZY ORCHARDS | I102: WALMART- LONDON, KY | J102: Rejection | K102: DECAY | L102: HONEYCRISP | M102: 405
G103: 44212 | H103: LAKE ONTARIO | I103: WALMART- LONDON, KY | J103: A- | K103: DECAY | L103: PINK LADY | M103: 30
G104: 44212 | H104: YONDER FARMS | I104: WALMART- MEBANE, NC | J104: Rejection | K104: INTERNAL BROWNING | L104: FUJI | M104: 67.5
G105: 44212 | H105: MAIN OFFICE | I105: WALMART- MEBANE, NC | J105: Rejection | K105: TEMPERATURE | L105: GALA | M105: 600
G106: 44212 | H106: MAIN OFFICE | I106: WALMART- MEBANE, NC | J106: Rejection | K106: TEMPERATURE | L106: FUJI | M106: 240
G107: 44217 | H107: CRIST BROTHERS | I107: WALMART- JOHNSTOWN, NY | J107: A- | K107: DECAY | L107: PINK LADY | M107: 16.875
G108: Grand Total | M108: 12682.675

Sheet Pivot Table
A1: Warehouse | B1: GrowerName | C1: Sum of Qnt | D1: Sum of EquivQnt | F1: PACKHOUSE | G1: NYAS | H1: Cases | I1: Bushels | L1: NYAS | M1: Y
A2: APPLE WEDGE | B2: APPLE WEDGE PACKERS | C2: 88457 | D2: 65768.375 | F2: =VLOOKUP(B2,'Look Up'!A:B,2,FALSE) -> APPLE WEDGE | G2: =VLOOKUP(F2,'Look Up'!D:E,2,FALSE) -> N | H2: =C2 -> 88457 | I2: =D2 -> 65768.375
A3: APPLE WEDGE | B3: CHAZY ORCHARDS | C3: 100 | D3: 60 | F3: =VLOOKUP(B3,'Look Up'!A:B,2,FALSE) -> CHAZY ORCHARDS | G3: =VLOOKUP(F3,'Look Up'!D:E,2,FALSE) -> Y | H3: 100 | I3: 60 | L3: Row Labels | M3: Sum of Cases | N3: Sum of Bushels
A4: APPLE WEDGE | B4: CRIST | C4: 200 | D4: 135 | F4: =VLOOKUP(B4,'Look Up'!A:B,2,FALSE) -> CRIST BROTHERS | G4: =VLOOKUP(F4,'Look Up'!D:E,2,FALSE) -> Y | H4: 200 | I4: 135 | L4: CHAZY ORCHARDS | M4: 71749 | N4: 50170.075
A5: APPLE WEDGE | B5: FIX BROTHERS INC. | C5: 881 | D5: 530.925 | F5: =VLOOKUP(B5,'Look Up'!A:B,2,FALSE) -> FIX BROS | G5: =VLOOKUP(F5,'Look Up'!D:E,2,FALSE) -> Y | H5: 881 | I5: 530.925 | L5: CRIST BROTHERS | M5: 125965 | N5: 97670.125
A6: APPLE WEDGE | B6: GW SAULPAUGH | C6: 269 | D6: 181.575 | F6: =VLOOKUP(B6,'Look Up'!A:B,2,FALSE) -> SAULPAUGH | G6: =VLOOKUP(F6,'Look Up'!D:E,2,FALSE) -> Y | H6: 269 | I6: 181.575 | L6: EMPIRE FRUIT | M6: 355468.5 | N6: 276925.945
A7: APPLE WEDGE | B7: YONDER FARMS FRUIT DIST., LLC | C7: 2200 | D7: 1338.75 | F7: =VLOOKUP(B7,'Look Up'!A:B,2,FALSE) -> YONDER FARMS | G7: =VLOOKUP(F7,'Look Up'!D:E,2,FALSE) -> Y | H7: 2200 | I7: 1338.75 | L7: FIX BROS | M7: 91351 | N7: 75543.27
A8: APPLEWOOD FRESH | B8: APPLEWOOD FRESH GROWERS | C8: 76250 | D8: 45795 | F8: =VLOOKUP(B8,'Look Up'!A:B,2,FALSE) -> APPLEWOOD FRESH | G8: =VLOOKUP(F8,'Look Up'!D:E,2,FALSE) -> N | H8: 76250 | I8: 45795 | L8: LAKE ONTARIO | M8: 636723.44 | N8: 498633.6706
A9: CHAZY ORCHARDS | B9: CHAZY ORCHARDS | C9: 14784 | D9: 10389 | F9: =VLOOKUP(B9,'Look Up'!A:B,2,FALSE) -> CHAZY ORCHARDS | G9: =VLOOKUP(F9,'Look Up'!D:E,2,FALSE) -> Y | H9: 14784 | I9: 10389 | L9: POMONA PACKING | M9: 256619.541 | N9: 235965.331
A10: CRIST BROTHERS | B10: CHAZY ORCHARDS | C10: 24197 | D10: 15600 | F10: =VLOOKUP(B10,'Look Up'!A:B,2,FALSE) -> CHAZY ORCHARDS | G10: =VLOOKUP(F10,'Look Up'!D:E,2,FALSE) -> Y | H10: 24197 | I10: 15600 | L10: PORPIGLIA FARMS | M10: 25058 | N10: 20565.075
A11: CRIST BROTHERS | B11: CRIST | C11: 120938 | D11: 93930.35 | F11: =VLOOKUP(B11,'Look Up'!A:B,2,FALSE) -> CRIST BROTHERS | G11: =VLOOKUP(F11,'Look Up'!D:E,2,FALSE) -> Y | H11: 120938 | I11: 93930.35 | L11: SAULPAUGH | M11: 76701 | N11: 61018.125
A12: CRIST BROTHERS | B12: FIX BROTHERS INC. | C12: 289 | D12: 289 | F12: =VLOOKUP(B12,'Look Up'!A:B,2,FALSE) -> FIX BROS | G12: =VLOOKUP(F12,'Look Up'!D:E,2,FALSE) -> Y | H12: 289 | I12: 289 | L12: YONDER FARMS | M12: 126886 | N12: 102050.45
A13: CRIST BROTHERS | B13: FOWLER BROTHERS | C13: 2400 | D13: 1440 | F13: =VLOOKUP(B13,'Look Up'!A:B,2,FALSE) -> FOWLER BROTHERS | G13: =VLOOKUP(F13,'Look Up'!D:E,2,FALSE) -> N | H13: 2400 | I13: 1440 | L13: Grand Total | M13: 1766521.481 | N13: 1418542.067
A14: CRIST BROTHERS | B14: HUDSON RIVER FRUIT | C14: 3337 | D14: 2684.55 | F14: =VLOOKUP(B14,'Look Up'!A:B,2,FALSE) -> HUDSON RIVER | G14: =VLOOKUP(F14,'Look Up'!D:E,2,FALSE) -> N | H14: 3337 | I14: 2684.55
A15: CROWN ORCHARDS | B15: CROWN ORCHARD COMPANY LP LLP | C15: 39530 | D15: 26172.875 | F15: =VLOOKUP(B15,'Look Up'!A:B,2,FALSE) -> CROWN ORCHARDS | G15: =VLOOKUP(F15,'Look Up'!D:E,2,FALSE) -> N | H15: 39530 | I15: 26172.875
A16: DOBBINS | B16: DOBBINS | C16: 1710 | D16: 1710 | F16: =VLOOKUP(B16,'Look Up'!A:B,2,FALSE) -> DOBBINS | G16: =VLOOKUP(F16,'Look Up'!D:E,2,FALSE) -> N | H16: 1710 | I16: 1710
A17: EASTERN PROPAC | B17: STARR RANCH GROWERS | C17: 4683 | D17: 3161.025 | F17: =VLOOKUP(B17,'Look Up'!A:B,2,FALSE) -> ONEONTA | G17: =VLOOKUP(F17,'Look Up'!D:E,2,FALSE) -> N | H17: 4683 | I17: 3161.025
A18: EMPIRE FRUIT | B18: CRIST | C18: 518 | D18: 372.65 | F18: =VLOOKUP(B18,'Look Up'!A:B,2,FALSE) -> CRIST BROTHERS | G18: =VLOOKUP(F18,'Look Up'!D:E,2,FALSE) -> Y | H18: 518 | I18: 372.65
A19: EMPIRE FRUIT | B19: EMPIRE FRUIT | C19: 355418.5 | D19: 276892.195 | F19: =VLOOKUP(B19,'Look Up'!A:B,2,FALSE) -> EMPIRE FRUIT | G19: =VLOOKUP(F19,'Look Up'!D:E,2,FALSE) -> Y | H19: 355418.5 | I19: 276892.195
A20: EMPIRE FRUIT | B20: FIX BROTHERS INC. | C20: 40 | D20: 40 | F20: =VLOOKUP(B20,'Look Up'!A:B,2,FALSE) -> FIX BROS | G20: =VLOOKUP(F20,'Look Up'!D:E,2,FALSE) -> Y | H20: 40 | I20: 40
A21: EMPIRE FRUIT | B21: GW SAULPAUGH | C21: 431 | D21: 313.575 | F21: =VLOOKUP(B21,'Look Up'!A:B,2,FALSE) -> SAULPAUGH | G21: =VLOOKUP(F21,'Look Up'!D:E,2,FALSE) -> Y | H21: 431 | I21: 313.575
A22: EMPIRE FRUIT | B22: PORPIGLIA FARMS | C22: 123 | D22: 119.1 | F22: =VLOOKUP(B22,'Look Up'!A:B,2,FALSE) -> PORPIGLIA FARMS | G22: =VLOOKUP(F22,'Look Up'!D:E,2,FALSE) -> Y | H22: 123 | I22: 119.1
A23: EMPIRE FRUIT | B23: YONDER FARMS FRUIT DIST., LLC | C23: 511 | D23: 452.925 | F23: =VLOOKUP(B23,'Look Up'!A:B,2,FALSE) -> YONDER FARMS | G23: =VLOOKUP(F23,'Look Up'!D:E,2,FALSE) -> Y | H23: 511 | I23: 452.925
A24: EMPIRE FRUIT | B24: (blank) | C24: 20 | D24: 360 | F24: =VLOOKUP(B24,'Look Up'!A:B,2,FALSE) -> NOT ASSIGNED | G24: =VLOOKUP(F24,'Look Up'!D:E,2,FALSE) -> N | H24: 20 | I24: 360
A25: EMPIRE FRUIT | B25: SMITH BROTHERS FARM | C25: 133 | D25: 139.65 | F25: =VLOOKUP(B25,'Look Up'!A:B,2,FALSE) -> POMONA PACKING | G25: =VLOOKUP(F25,'Look Up'!D:E,2,FALSE) -> Y | H25: 133 | I25: 139.65
A26: FIX BROS | B26: FIX BROTHERS INC. | C26: 85429 | D26: 71285.92 | F26: =VLOOKUP(B26,'Look Up'!A:B,2,FALSE) -> FIX BROS | G26: =VLOOKUP(F26,'Look Up'!D:E,2,FALSE) -> Y | H26: 85429 | I26: 71285.92
A27: FIX BROS | B27: GW SAULPAUGH | C27: 157 | D27: 105.975 | F27: =VLOOKUP(B27,'Look Up'!A:B,2,FALSE) -> SAULPAUGH | G27: =VLOOKUP(F27,'Look Up'!D:E,2,FALSE) -> Y | H27: 157 | I27: 105.975
A28: FOWLER BROTHERS | B28: FOWLER BROTHERS | C28: 1713 | D28: 1087.8 | F28: =VLOOKUP(B28,'Look Up'!A:B,2,FALSE) -> FOWLER BROTHERS | G28: =VLOOKUP(F28,'Look Up'!D:E,2,FALSE) -> N | H28: 1713 | I28: 1087.8
A29: FOWLER BROTHERS | B29: (blank) | C29: 3190 | D29: 2390 | F29: =VLOOKUP(B29,'Look Up'!A:B,2,FALSE) -> NOT ASSIGNED | G29: =VLOOKUP(F29,'Look Up'!D:E,2,FALSE) -> N | H29: 3190 | I29: 2390
A30: GLAIZE | B30: EMPIRE FRUIT | C30: 50 | D30: 33.75 | F30: =VLOOKUP(B30,'Look Up'!A:B,2,FALSE) -> EMPIRE FRUIT | G30: =VLOOKUP(F30,'Look Up'!D:E,2,FALSE) -> Y | H30: 50 | I30: 33.75
A31: GLAIZE | B31: GLAIZE | C31: 61654 | D31: 40179.675 | F31: =VLOOKUP(B31,'Look Up'!A:B,2,FALSE) -> GLAIZE | G31: =VLOOKUP(F31,'Look Up'!D:E,2,FALSE) -> N | H31: 61654 | I31: 40179.675
A32: HUDSON RIVER | B32: HUDSON RIVER FRUIT | C32: 1624 | D32: 1461.6 | F32: =VLOOKUP(B32,'Look Up'!A:B,2,FALSE) -> HUDSON RIVER | G32: =VLOOKUP(F32,'Look Up'!D:E,2,FALSE) -> N | H32: 1624 | I32: 1461.6
A33: JP SULLIVAN | B33: CHAZY ORCHARDS | C33: 587 | D33: 396.225 | F33: =VLOOKUP(B33,'Look Up'!A:B,2,FALSE) -> CHAZY ORCHARDS | G33: =VLOOKUP(F33,'Look Up'!D:E,2,FALSE) -> Y | H33: 587 | I33: 396.225
A34: JP SULLIVAN | B34: JP SULLIVAN | C34: 34329 | D34: 23631.425 | F34: =VLOOKUP(B34,'Look Up'!A:B,2,FALSE) -> JP SULLIVAN | G34: =VLOOKUP(F34,'Look Up'!D:E,2,FALSE) -> N | H34: 34329 | I34: =D34 -> 23631.425
A35: JP SULLIVAN | B35: LAMONT FRUIT FARM, INC | C35: 13 | D35: 8.775 | F35: =VLOOKUP(B35,'Look Up'!A:B,2,FALSE) -> LAKE ONTARIO | G35: =VLOOKUP(F35,'Look Up'!D:E,2,FALSE) -> Y | H35: 13 | I35: 8.775
A36: JP SULLIVAN | B36: FRUIT GROWERS MARKETING | C36: 736 | D36: 441.6 | F36: =VLOOKUP(B36,'Look Up'!A:B,2,FALSE) -> POMONA PACKING | G36: =VLOOKUP(F36,'Look Up'!D:E,2,FALSE) -> Y | H36: 736 | I36: 441.6
A37: KEYSTONE FRUIT MARKETING | B37: KEYSTONE FRUIT MARKETING, INC | C37: 210 | D37: 210 | F37: =VLOOKUP(B37,'Look Up'!A:B,2,FALSE) -> KEYSTONE FRUIT MARKETING | G37: =VLOOKUP(F37,'Look Up'!D:E,2,FALSE) -> N | H37: 210 | I37: 210
A38: LAKE ONTARIO | B38: A&J KIRBY FARMS LLC | C38: 20995 | D38: 17542.225 | F38: =VLOOKUP(B38,'Look Up'!A:B,2,FALSE) -> LAKE ONTARIO | G38: =VLOOKUP(F38,'Look Up'!D:E,2,FALSE) -> Y | H38: 20995 | I38: 17542.225
A39: LAKE ONTARIO | B39: D. DEMARREE FRUIT FARM | C39: 12528 | D39: 9844.8 | F39: =VLOOKUP(B39,'Look Up'!A:B,2,FALSE) -> LAKE ONTARIO | G39: =VLOOKUP(F39,'Look Up'!D:E,2,FALSE) -> Y | H39: 12528 | I39: 9844.8
A40: LAKE ONTARIO | B40: DOBBINS | C40: 1278 | D40: 1278 | F40: =VLOOKUP(B40,'Look Up'!A:B,2,FALSE) -> DOBBINS | G40: =VLOOKUP(F40,'Look Up'!D:E,2,FALSE) -> N | H40: 1278 | I40: 1278
A41: LAKE ONTARIO | B41: EXCELSIOR FARMS | C41: 1013 | D41: 729.525 | F41: =VLOOKUP(B41,'Look Up'!A:B,2,FALSE) -> LAKE ONTARIO | G41: =VLOOKUP(F41,'Look Up'!D:E,2,FALSE) -> Y | H41: 1013 | I41: 729.525
A42: LAKE ONTARIO | B42: FISHCREEK ORCHARDS | C42: 18324 | D42: 15063.825 | F42: =VLOOKUP(B42,'Look Up'!A:B,2,FALSE) -> LAKE ONTARIO | G42: =VLOOKUP(F42,'Look Up'!D:E,2,FALSE) -> Y | H42: 18324 | I42: 15063.825
A43: LAKE ONTARIO | B43: FIX BROTHERS INC. | C43: 122 | D43: 122 | F43: =VLOOKUP(B43,'Look Up'!A:B,2,FALSE) -> FIX BROS | G43: =VLOOKUP(F43,'Look Up'!D:E,2,FALSE) -> Y | H43: 122 | I43: 122
A44: LAKE ONTARIO | B44: GW SAULPAUGH | C44: 292 | D44: 210.75 | F44: =VLOOKUP(B44,'Look Up'!A:B,2,FALSE) -> SAULPAUGH | G44: =VLOOKUP(F44,'Look Up'!D:E,2,FALSE) -> Y | H44: 292 | I44: 210.75
A45: LAKE ONTARIO | B45: HAYLETT FARMS | C45: 4613 | D45: 3474.2 | F45: =VLOOKUP(B45,'Look Up'!A:B,2,FALSE) -> LAKE ONTARIO | G45: =VLOOKUP(F45,'Look Up'!D:E,2,FALSE) -> Y | H45: 4613 | I45: 3474.2
A46: LAKE ONTARIO | B46: HOBBS FARMS | C46: 7477 | D46: 5449.3 | F46: =VLOOKUP(B46,'Look Up'!A:B,2,FALSE) -> LAKE ONTARIO | G46: =VLOOKUP(F46,'Look Up'!D:E,2,FALSE) -> Y | H46: 7477 | I46: 5449.3
A47: LAKE ONTARIO | B47: KAST FARMS, INC | C47: 14125 | D47: 11156.6 | F47: =VLOOKUP(B47,'Look Up'!A:B,2,FALSE) -> LAKE ONTARIO | G47: =VLOOKUP(F47,'Look Up'!D:E,2,FALSE) -> Y | H47: 14125 | I47: 11156.6
A48: LAKE ONTARIO | B48: KIRBY CIDER MILL | C48: 2548 | D48: 1762.75 | F48: =VLOOKUP(B48,'Look Up'!A:B,2,FALSE) -> LAKE ONTARIO | G48: =VLOOKUP(F48,'Look Up'!D:E,2,FALSE) -> Y | H48: 2548 | I48: 1762.75
A49: LAKE ONTARIO | B49: KIRBY'S FARM MARKET LLC | C49: 3382 | D49: 2739.55 | F49: =VLOOKUP(B49,'Look Up'!A:B,2,FALSE) -> LAKE ONTARIO | G49: =VLOOKUP(F49,'Look Up'!D:E,2,FALSE) -> Y | H49: 3382 | I49: 2739.55
A50: LAKE ONTARIO | B50: LAKE ONTARIO FRUIT | C50: 283 | D50: 203 | F50: =VLOOKUP(B50,'Look Up'!A:B,2,FALSE) -> LAKE ONTARIO | G50: =VLOOKUP(F50,'Look Up'!D:E,2,FALSE) -> Y | H50: 283 | I50: 203
A51: LAKE ONTARIO | B51: LAMONT FRUIT FARM, INC | C51: 118215 | D51: 89198.525 | F51: =VLOOKUP(B51,'Look Up'!A:B,2,FALSE) -> LAKE ONTARIO | G51: =VLOOKUP(F51,'Look Up'!D:E,2,FALSE) -> Y | H51: 118215 | I51: 89198.525
A52: LAKE ONTARIO | B52: LEDGE ROCK FARMS | C52: 4106 | D52: 3097.45 | F52: =VLOOKUP(B52,'Look Up'!A:B,2,FALSE) -> LAKE ONTARIO | G52: =VLOOKUP(F52,'Look Up'!D:E,2,FALSE) -> Y | H52: 4106 | I52: 3097.45
A53: LAKE ONTARIO | B53: LYN-OAKEN FARMS | C53: 12220 | D53: 9671.55 | F53: =VLOOKUP(B53,'Look Up'!A:B,2,FALSE) -> LAKE ONTARIO | G53: =VLOOKUP(F53,'Look Up'!D:E,2,FALSE) -> Y | H53: 12220 | I53: 9671.55
A54: LAKE ONTARIO | B54: NESBITT BROS., LLC | C54: 6412 | D54: 5059.025 | F54: =VLOOKUP(B54,'Look Up'!A:B,2,FALSE) -> LAKE ONTARIO | G54: =VLOOKUP(F54,'Look Up'!D:E,2,FALSE) -> Y | H54: 6412 | I54: 5059.025
A55: LAKE ONTARIO | B55: NESBITT FARMS | C55: 68906.88 | D55: 49077.39 | F55: =VLOOKUP(B55,'Look Up'!A:B,2,FALSE) -> LAKE ONTARIO | G55: =VLOOKUP(F55,'Look Up'!D:E,2,FALSE) -> Y | H55: 68906.88 | I55: 49077.39
A56: LAKE ONTARIO | B56: ORCHARD DALE FRUIT CO LLC | C56: 100178.98 | D56: 76185.1116 | F56: =VLOOKUP(B56,'Look Up'!A:B,2,FALSE) -> LAKE ONTARIO | G56: =VLOOKUP(F56,'Look Up'!D:E,2,FALSE) -> Y | H56: 100178.98 | I56: 76185.1116
A57: LAKE ONTARIO | B57: PACELLO ORCHARDS | C57: 1613 | D57: 1118.6 | F57: =VLOOKUP(B57,'Look Up'!A:B,2,FALSE) -> LAKE ONTARIO | G57: =VLOOKUP(F57,'Look Up'!D:E,2,FALSE) -> Y | H57: 1613 | I57: 1118.6
A58: LAKE ONTARIO | B58: PORPIGLIA FARMS | C58: 100 | D58: 67.5 | F58: =VLOOKUP(B58,'Look Up'!A:B,2,FALSE) -> PORPIGLIA FARMS | G58: =VLOOKUP(F58,'Look Up'!D:E,2,FALSE) -> Y | H58: 100 | I58: 67.5
A59: LAKE ONTARIO | B59: RIVER VIEW FARMS, LLC | C59: 10016 | D59: 7105.325 | F59: =VLOOKUP(B59,'Look Up'!A:B,2,FALSE) -> LAKE ONTARIO | G59: =VLOOKUP(F59,'Look Up'!D:E,2,FALSE) -> Y | H59: 10016 | I59: 7105.325
A60: LAKE ONTARIO | B60: ROBERTS FAMILY FRUIT FARM, LLC | C60: 621 | D60: 592.9 | F60: =VLOOKUP(B60,'Look Up'!A:B,2,FALSE) -> LAKE ONTARIO | G60: =VLOOKUP(F60,'Look Up'!D:E,2,FALSE) -> Y | H60: 621 | I60: 592.9
A61: LAKE ONTARIO | B61: RUSSELL FRUIT FARM | C61: 9159 | D61: 7382.3 | F61: =VLOOKUP(B61,'Look Up'!A:B,2,FALSE) -> LAKE ONTARIO | G61: =VLOOKUP(F61,'Look Up'!D:E,2,FALSE) -> Y | H61: 9159 | I61: 7382.3
A62: LAKE ONTARIO | B62: SANDY KNOLL FARMS, INC | C62: 82329.11 | D62: 68093.74 | F62: =VLOOKUP(B62,'Look Up'!A:B,2,FALSE) -> LAKE ONTARIO | G62: =VLOOKUP(F62,'Look Up'!D:E,2,FALSE) -> Y | H62: 82329.11 | I62: 68093.74
A63: LAKE ONTARIO | B63: SCOTIAN GOLD COOPERATIVE LIMITED | C63: 1848 | D63: 1848 | F63: =VLOOKUP(B63,'Look Up'!A:B,2,FALSE) -> SCOTIAN GOLD | G63: =VLOOKUP(F63,'Look Up'!D:E,2,FALSE) -> N | H63: 1848 | I63: 1848
A64: LAKE ONTARIO | B64: SIMPELAAR FRUIT FARM | C64: 2852 | D64: 2065.625 | F64: =VLOOKUP(B64,'Look Up'!A:B,2,FALSE) -> LAKE ONTARIO | G64: =VLOOKUP(F64,'Look Up'!D:E,2,FALSE) -> Y | H64: 2852 | I64: 2065.625
A65: LAKE ONTARIO | B65: TOUSSAINT FARMS | C65: 2842 | D65: 2171.25 | F65: =VLOOKUP(B65,'Look Up'!A:B,2,FALSE) -> LAKE ONTARIO | G65: =VLOOKUP(F65,'Look Up'!D:E,2,FALSE) -> Y | H65: 2842 | I65: 2171.25
A66: LAKE ONTARIO | B66: TWO OF CLUBS ORCHARD. LLC | C66: 14313 | D66: 10867.225 | F66: =VLOOKUP(B66,'Look Up'!A:B,2,FALSE) -> LAKE ONTARIO | G66: =VLOOKUP(F66,'Look Up'!D:E,2,FALSE) -> Y | H66: =C66 -> 14313 | I66: =D66 -> 10867.225
A67: LAKE ONTARIO | B67: ZINGLER FARMS, INC. | C67: 64296 | D67: 51638.535 | F67: =VLOOKUP(B67,'Look Up'!A:B,2,FALSE) -> LAKE ONTARIO | G67: =VLOOKUP(F67,'Look Up'!D:E,2,FALSE) -> Y | H67: 64296 | I67: 51638.535
A68: LAKE ONTARIO | B68: (blank) | C68: 615 | D68: 584.5 | F68: =VLOOKUP(B68,'Look Up'!A:B,2,FALSE) -> NOT ASSIGNED | G68: =VLOOKUP(F68,'Look Up'!D:E,2,FALSE) -> N | H68: 615 | I68: 584.5
A69: MAIN OFFICE | B69: NEW YORK APPLE SALES | C69: 227 | D69: 166.7 | F69: =VLOOKUP(B69,'Look Up'!A:B,2,FALSE) -> MAIN OFFICE | G69: =VLOOKUP(F69,'Look Up'!D:E,2,FALSE) -> N | H69: 227 | I69: 166.7
A70: MAYER BROS | B70: MAYER BROS | C70: 85008 | D70: 85008 | F70: =VLOOKUP(B70,'Look Up'!A:B,2,FALSE) -> MAYER BROS | G70: =VLOOKUP(F70,'Look Up'!D:E,2,FALSE) -> N | H70: 85008 | I70: 85008
A71: MOYERSAPPLE PRODUCTS LTD | B71: MOYERS APPLE PRODUCTS LTD | C71: 11040 | D71: 11040 | F71: =VLOOKUP(B71,'Look Up'!A:B,2,FALSE) -> MOYERS | G71: =VLOOKUP(F71,'Look Up'!D:E,2,FALSE) -> N | H71: 11040 | I71: 11040
A72: POMONA PACKING | B72: APPLEWOOD FRESH GROWERS | C72: 10450 | D72: 6446.25 | F72: =VLOOKUP(B72,'Look Up'!A:B,2,FALSE) -> APPLEWOOD FRESH | G72: =VLOOKUP(F72,'Look Up'!D:E,2,FALSE) -> N | H72: 10450 | I72: 6446.25
A73: POMONA PACKING | B73: BURNAP FRUIT FARM | C73: 7694.81 | D73: 6435.395 | F73: =VLOOKUP(B73,'Look Up'!A:B,2,FALSE) -> LAKE ONTARIO | G73: =VLOOKUP(F73,'Look Up'!D:E,2,FALSE) -> Y | H73: 7694.81 | I73: 6435.395
A74: POMONA PACKING | B74: CHAZY ORCHARDS | C74: 32081 | D74: 23724.85 | F74: =VLOOKUP(B74,'Look Up'!A:B,2,FALSE) -> CHAZY ORCHARDS | G74: =VLOOKUP(F74,'Look Up'!D:E,2,FALSE) -> Y | H74: 32081 | I74: 23724.85
A75: POMONA PACKING | B75: CRIST | C75: 4219 | D75: 3142.125 | F75: =VLOOKUP(B75,'Look Up'!A:B,2,FALSE) -> CRIST BROTHERS | G75: =VLOOKUP(F75,'Look Up'!D:E,2,FALSE) -> Y | H75: =C75 -> 4219 | I75: =D75 -> 3142.125
A76: POMONA PACKING | B76: FIX BROTHERS INC. | C76: 4590 | D76: 3275.425 | F76: =VLOOKUP(B76,'Look Up'!A:B,2,FALSE) -> FIX BROS | G76: =VLOOKUP(F76,'Look Up'!D:E,2,FALSE) -> Y | H76: 4590 | I76: 3275.425
A77: POMONA PACKING | B77: FOWLER BROTHERS | C77: 22239 | D77: 13578.6 | F77: =VLOOKUP(B77,'Look Up'!A:B,2,FALSE) -> FOWLER BROTHERS | G77: =VLOOKUP(F77,'Look Up'!D:E,2,FALSE) -> N | H77: 22239 | I77: 13578.6
A78: POMONA PACKING | B78: FRESH START ORCHARDS | C78: 24714.585 | D78: 22702.11 | F78: =VLOOKUP(B78,'Look Up'!A:B,2,FALSE) -> LAKE ONTARIO | G78: =VLOOKUP(F78,'Look Up'!D:E,2,FALSE) -> Y | H78: 24714.585 | I78: 22702.11
A79: POMONA PACKING | B79: GLAIZE | C79: 1894 | D79: 1696.5 | F79: =VLOOKUP(B79,'Look Up'!A:B,2,FALSE) -> GLAIZE | G79: =VLOOKUP(F79,'Look Up'!D:E,2,FALSE) -> N | H79: 1894 | I79: 1696.5
A80: POMONA PACKING | B80: GW SAULPAUGH | C80: 2011 | D80: 1864.4 | F80: =VLOOKUP(B80,'Look Up'!A:B,2,FALSE) -> SAULPAUGH | G80: =VLOOKUP(F80,'Look Up'!D:E,2,FALSE) -> Y | H80: 2011 | I80: 1864.4
A81: POMONA PACKING | B81: HILLTOP FRUIT FARMS, LLC | C81: 2519.095 | D81: 2279.385 | F81: =VLOOKUP(B81,'Look Up'!A:B,2,FALSE) -> LAKE ONTARIO | G81: =VLOOKUP(F81,'Look Up'!D:E,2,FALSE) -> Y | H81: 2519.095 | I81: 2279.385
A82: POMONA PACKING | B82: HUDSON RIVER FRUIT | C82: 48 | D82: 32.4 | F82: =VLOOKUP(B82,'Look Up'!A:B,2,FALSE) -> HUDSON RIVER | G82: =VLOOKUP(F82,'Look Up'!D:E,2,FALSE) -> N | H82: 48 | I82: 32.4
A83: POMONA PACKING | B83: K.S. DATTHYN FARMS | C83: 3588.09 | D83: 2896.89 | F83: =VLOOKUP(B83,'Look Up'!A:B,2,FALSE) -> LAKE ONTARIO | G83: =VLOOKUP(F83,'Look Up'!D:E,2,FALSE) -> Y | H83: 3588.09 | I83: 2896.89
A84: POMONA PACKING | B84: KNAPP FARMS | C84: 14825.89 | D84: 13020.789 | F84: =VLOOKUP(B84,'Look Up'!A:B,2,FALSE) -> LAKE ONTARIO | G84: =VLOOKUP(F84,'Look Up'!D:E,2,FALSE) -> Y | H84: 14825.89 | I84: 13020.789
A85: POMONA PACKING | B85: POMONA PACKING | C85: 1597 | D85: 1416.3 | F85: =VLOOKUP(B85,'Look Up'!A:B,2,FALSE) -> POMONA PACKING | G85: =VLOOKUP(F85,'Look Up'!D:E,2,FALSE) -> Y | H85: =C85 -> 1597 | I85: =D85 -> 1416.3
A86: POMONA PACKING | B86: SCOTIAN GOLD COOPERATIVE LIMITED | C86: 13119 | D86: 12266.85 | F86: =VLOOKUP(B86,'Look Up'!A:B,2,FALSE) -> SCOTIAN GOLD | G86: =VLOOKUP(F86,'Look Up'!D:E,2,FALSE) -> N | H86: 13119 | I86: 12266.85
A87: POMONA PACKING | B87: YONDER FARMS FRUIT DIST., LLC | C87: 3545 | D87: 3224.7 | F87: =VLOOKUP(B87,'Look Up'!A:B,2,FALSE) -> YONDER FARMS | G87: =VLOOKUP(F87,'Look Up'!D:E,2,FALSE) -> Y | H87: 3545 | I87: 3224.7
A88: POMONA PACKING | B88: (blank) | C88: 2152 | D88: 1896 | F88: =VLOOKUP(B88,'Look Up'!A:B,2,FALSE) -> NOT ASSIGNED | G88: =VLOOKUP(F88,'Look Up'!D:E,2,FALSE) -> N | H88: =C88 -> 2152 | I88: =D88 -> 1896
A89: POMONA PACKING | B89: SMITH BROTHERS FARM | C89: 67208.13 | D89: 65561.0075 | F89: =VLOOKUP(B89,'Look Up'!A:B,2,FALSE) -> POMONA PACKING | G89: =VLOOKUP(F89,'Look Up'!D:E,2,FALSE) -> Y | H89: 67208.13 | I89: 65561.0075
A90: POMONA PACKING | B90: B& D FARMS, INC. | C90: 12635.646 | D90: 9643.86 | F90: =VLOOKUP(B90,'Look Up'!A:B,2,FALSE) -> POMONA PACKING | G90: =VLOOKUP(F90,'Look Up'!D:E,2,FALSE) -> Y | H90: 12635.646 | I90: 9643.86
A91: POMONA PACKING | B91: FARM FRESH FIRST | C91: 41255.085 | D91: 35319.385 | F91: =VLOOKUP(B91,'Look Up'!A:B,2,FALSE) -> POMONA PACKING | G91: =VLOOKUP(F91,'Look Up'!D:E,2,FALSE) -> Y | H91: 41255.085 | I91: 35319.385
A92: POMONA PACKING | B92: SIMPELAAR FARM | C92: 9557.045 | D92: 9379.256 | F92: =VLOOKUP(B92,'Look Up'!A:B,2,FALSE) -> POMONA PACKING | G92: =VLOOKUP(F92,'Look Up'!D:E,2,FALSE) -> Y | H92: =C92 -> 9557.045 | I92: =D92 -> 9379.256
A93: POMONA PACKING | B93: CAHOON FARMS | C93: 35696.355 | D93: 31589 | F93: =VLOOKUP(B93,'Look Up'!A:B,2,FALSE) -> POMONA PACKING | G93: =VLOOKUP(F93,'Look Up'!D:E,2,FALSE) -> Y | H93: 35696.355 | I93: 31589
A94: POMONA PACKING | B94: DANIEL DEMARREE | C94: 4551.98 | D94: 4483.975 | F94: =VLOOKUP(B94,'Look Up'!A:B,2,FALSE) -> POMONA PACKING | G94: =VLOOKUP(F94,'Look Up'!D:E,2,FALSE) -> Y | H94: 4551.98 | I94: 4483.975
A95: POMONA PACKING | B95: NYAS - POMONA | C95: 327.85 | D95: 239.575 | F95: =VLOOKUP(B95,'Look Up'!A:B,2,FALSE) -> POMONA PACKING | G95: =VLOOKUP(F95,'Look Up'!D:E,2,FALSE) -> Y | H95: =C95 -> 327.85 | I95: =D95 -> 239.575
A96: POMONA PACKING | B96: BOVEE FARMS, LLC | C96: 11878.21 | D96: 11869.065 | F96: =VLOOKUP(B96,'Look Up'!A:B,2,FALSE) -> POMONA PACKING | G96: =VLOOKUP(F96,'Look Up'!D:E,2,FALSE) -> Y | H96: 11878.21 | I96: 11869.065
A97: POMONA PACKING | B97: MORGAN FARMS | C97: 9888.75 | D97: 7971.055 | F97: =VLOOKUP(B97,'Look Up'!A:B,2,FALSE) -> POMONA PACKING | G97: =VLOOKUP(F97,'Look Up'!D:E,2,FALSE) -> Y | H97: 9888.75 | I97: 7971.055
A98: POMONA PACKING | B98: DAN VAN ACKER | C98: 3001.73 | D98: 2384.71 | F98: =VLOOKUP(B98,'Look Up'!A:B,2,FALSE) -> POMONA PACKING | G98: =VLOOKUP(F98,'Look Up'!D:E,2,FALSE) -> Y | H98: 3001.73 | I98: 2384.71
A99: POMONA PACKING | B99: JAMES DEMAY | C99: 3954.33 | D99: 3652.8725 | F99: =VLOOKUP(B99,'Look Up'!A:B,2,FALSE) -> POMONA PACKING | G99: =VLOOKUP(F99,'Look Up'!D:E,2,FALSE) -> Y | H99: 3954.33 | I99: 3652.8725
A100: POMONA PACKING | B100: JAY DEBADTS & SONS | C100: 18873.15 | D100: 19922.86 | F100: =VLOOKUP(B100,'Look Up'!A:B,2,FALSE) -> POMONA PACKING | G100: =VLOOKUP(F100,'Look Up'!D:E,2,FALSE) -> Y | H100: 18873.15 | I100: 19922.86
A101: POMONA PACKING | B101: STRICKLAND FARMS | C101: 1177.42 | D101: 969.93 | F101: =VLOOKUP(B101,'Look Up'!A:B,2,FALSE) -> POMONA PACKING | G101: =VLOOKUP(F101,'Look Up'!D:E,2,FALSE) -> Y | H101: 1177.42 | I101: 969.93
A102: POMONA PACKING | B102: FRUITION FRUIT FARM | C102: 1115.59 | D102: 919.315 | F102: =VLOOKUP(B102,'Look Up'!A:B,2,FALSE) -> POMONA PACKING | G102: =VLOOKUP(F102,'Look Up'!D:E,2,FALSE) -> Y | H102: 1115.59 | I102: 919.315
A103: POMONA PACKING | B103: SPRINGBROOK ORCHARDS, INC. | C103: 1056.1 | D103: 986.875 | F103: =VLOOKUP(B103,'Look Up'!A:B,2,FALSE) -> POMONA PACKING | G103: =VLOOKUP(F103,'Look Up'!D:E,2,FALSE) -> Y | H103: =C103 -> 1056.1 | I103: =D103 -> 986.875
A104: POMONA PACKING | B104: ABE DATTHYN | C104: 1071.4 | D104: 796.27 | F104: =VLOOKUP(B104,'Look Up'!A:B,2,FALSE) -> POMONA PACKING | G104: =VLOOKUP(F104,'Look Up'!D:E,2,FALSE) -> Y | H104: =C104 -> 1071.4 | I104: =D104 -> 796.27
A105: POMONA PACKING | B105: WHITE SPRINGS ORCHARDS, LLC | C105: 18952.44 | D105: 20476.39 | F105: =VLOOKUP(B105,'Look Up'!A:B,2,FALSE) -> POMONA PACKING | G105: =VLOOKUP(F105,'Look Up'!D:E,2,FALSE) -> Y | H105: 18952.44 | I105: 20476.39
A106: POMONA PACKING | B106: SERGEANT FARMS | C106: 2077.33 | D106: 1686.63 | F106: =VLOOKUP(B106,'Look Up'!A:B,2,FALSE) -> POMONA PACKING | G106: =VLOOKUP(F106,'Look Up'!D:E,2,FALSE) -> Y | H106: 2077.33 | I106: 1686.63
A107: POMONA PACKING | B107: FRUIT GROWERS MARKETING | C107: 9445 | D107: 5685.75 | F107: =VLOOKUP(B107,'Look Up'!A:B,2,FALSE) -> POMONA PACKING | G107: =VLOOKUP(F107,'Look Up'!D:E,2,FALSE) -> Y | H107: =C107 -> 9445 | I107: =D107 -> 5685.75
A108: PORPIGLIA FARMS | B108: PORPIGLIA FARMS | C108: 24835 | D108: 20378.475 | F108: =VLOOKUP(B108,'Look Up'!A:B,2,FALSE) -> PORPIGLIA FARMS | G108: =VLOOKUP(F108,'Look Up'!D:E,2,FALSE) -> Y | H108: =C108 -> 24835 | I108: =D108 -> 20378.475
A109: RED JACKET ORCHARDS | B109: RED JACKET ORCHARDS | C109: 430 | D109: 430 | F109: =VLOOKUP(B109,'Look Up'!A:B,2,FALSE) -> POMONA PACKING | G109: =VLOOKUP(F109,'Look Up'!D:E,2,FALSE) -> Y | H109: 430 | I109: 430
A110: SAULPAUGH | B110: CRIST | C110: 90 | D110: 90 | F110: =VLOOKUP(B110,'Look Up'!A:B,2,FALSE) -> CRIST BROTHERS | G110: =VLOOKUP(F110,'Look Up'!D:E,2,FALSE) -> Y | H110: 90 | I110: 90
A111: SAULPAUGH | B111: GW SAULPAUGH | C111: 73541 | D111: 58341.85 | F111: =VLOOKUP(B111,'Look Up'!A:B,2,FALSE) -> SAULPAUGH | G111: =VLOOKUP(F111,'Look Up'!D:E,2,FALSE) -> Y | H111: 73541 | I111: 58341.85
A112: SCOTIAN GOLD | B112: SCOTIAN GOLD COOPERATIVE LIMITED | C112: 924 | D112: 924 | F112: =VLOOKUP(B112,'Look Up'!A:B,2,FALSE) -> SCOTIAN GOLD | G112: =VLOOKUP(F112,'Look Up'!D:E,2,FALSE) -> N | H112: =C112 -> 924 | I112: =D112 -> 924
A113: YONDER FARMS | B113: YONDER FARMS FRUIT DIST., LLC | C113: 120630 | D113: 97034.075 | F113: =VLOOKUP(B113,'Look Up'!A:B,2,FALSE) -> YONDER FARMS | G113: =VLOOKUP(F113,'Look Up'!D:E,2,FALSE) -> Y | H113: 120630 | I113: 97034.075
A114: (blank) | B114: NEW YORK APPLE SALES | C114: 99 | D114: 59.4 | F114: =VLOOKUP(B114,'Look Up'!A:B,2,FALSE) -> MAIN OFFICE | G114: =VLOOKUP(F114,'Look Up'!D:E,2,FALSE) -> N | H114: =C114 -> 99 | I114: =D114 -> 59.4
A115: (blank) | B115: (blank) | C115: 20620 | D115: 16624.75 | F115: =VLOOKUP(B115,'Look Up'!A:B,2,FALSE) -> NOT ASSIGNED | G115: =VLOOKUP(F115,'Look Up'!D:E,2,FALSE) -> N | H115: 20620 | I115: 16624.75
A116: GEORGE S. ORR | B116: KEYSTONE FRUIT MARKETING, INC | C116: 3192 | D116: 3145.8 | F116: =VLOOKUP(B116,'Look Up'!A:B,2,FALSE) -> KEYSTONE FRUIT MARKETING | G116: =VLOOKUP(F116,'Look Up'!D:E,2,FALSE) -> N | H116: 3192 | I116: 3145.8
A117: TURKEY KNOB | B117: KEYSTONE FRUIT MARKETING, INC | C117: 126 | D117: 113.4 | F117: =VLOOKUP(B117,'Look Up'!A:B,2,FALSE) -> KEYSTONE FRUIT MARKETING | G117: =VLOOKUP(F117,'Look Up'!D:E,2,FALSE) -> N | H117: 126 | I117: 113.4
A118: RICKER HILL | B118: APPLEWOOD FRESH GROWERS | C118: 224 | D118: 151.2 | F118: =VLOOKUP(B118,'Look Up'!A:B,2,FALSE) -> APPLEWOOD FRESH | G118: =VLOOKUP(F118,'Look Up'!D:E,2,FALSE) -> N | H118: 224 | I118: 151.2
A119: EL VISTA ORCHARDS | B119: KEYSTONE FRUIT MARKETING, INC | C119: 1638 | D119: 1638 | F119: =VLOOKUP(B119,'Look Up'!A:B,2,FALSE) -> KEYSTONE FRUIT MARKETING | G119: =VLOOKUP(F119,'Look Up'!D:E,2,FALSE) -> N | H119: 1638 | I119: 1638
A120: FRUIT GROWERS MARKETING | B120: (blank) | C120: 14300 | D120: 8677.5 | F120: =VLOOKUP(B120,'Look Up'!A:B,2,FALSE) -> NOT ASSIGNED | G120: =VLOOKUP(F120,'Look Up'!D:E,2,FALSE) -> N | H120: =C120 -> 14300 | I120: =D120 -> 8677.5
A121: BREAM ORCHARDS | B121: KEYSTONE FRUIT MARKETING, INC | C121: 1364 | D121: 1320 | F121: =VLOOKUP(B121,'Look Up'!A:B,2,FALSE) -> KEYSTONE FRUIT MARKETING | G121: =VLOOKUP(F121,'Look Up'!D:E,2,FALSE) -> N | H121: 1364 | I121: 1320

Sheet Key Central Report
A1: SoNo | B1: Sales Load # | C1: Sales Load Descr | D1: Sales Load Carrier | E1: TagIdx | F1: TagId | G1: OrderDateTime | H1: ShipDateTime | I1: DeliveryDateTime | J1: Year | K1: Month | L1: Day | M1: Week | N1: Year-Week | O1: Year-Month | P1: CustName-ShipToDescr | Q1: CustName | R1: CustCity | S1: CustState | T1: CustPO | U1: ShipToName | V1: ShipToDescr | W1: ShipToCity | X1: ShipToState | Y1: ShipToZip | Z1: ShipToCountry | AA1: Type | AB1: SalesPerson | AC1: Warehouse | AD1: InvDescr | AE1: FamInvDescr | AF1: Commodity | AG1: CommodityDescr | AH1: VarietyGroup | AI1: Variety | AJ1: Style | AK1: Size | AL1: Grade | AM1: Label | AN1: Region | AO1: Method | AP1: Qnt | AQ1: EquivQnt | AR1: PalletQnt | AS1: Freight Amt | AT1: FOBAmt | AU1: Weight | AV1: SalesAmt | AW1: FOBPrice | AX1: SalesPrice | AY1: LotID | AZ1: FIS UPC | BA1: FIS SKU | BB1: GrowerName | BC1: GrowerBlockId | BD1: PackerName | BE1: ArAmt | BF1: ReceiptAmt | BG1: InvoiceDate | BH1: ApPoNo | BI1: Uom | BJ1: CostPrice | BK1: ConsignFlag | BL1: StyleId | BM1: CustId | BN1: CustLocationSeq | BO1: ShipToIdx | BP1: ShipToLocationSeq | BQ1: VarietyGroupIdx | BR1: RegionIdx | BS1: MethodIdx | BT1: SoStatus | BU1: FillType | BV1: StorageIdx | BW1: ColorName | BX1: ColorIdx
A2: 40223 | E2: 250337 | F2: 108342 | G2: 44054 | H2: 44085 | I2: 44086 | J2: 2020 | K2: 9 | L2: 11 | M2: 37 | N2: 2020-37 | O2: 2020-09 | P2: WAL-MART SUPERCENTERS-HENDERSON, NC 6091 | Q2: WAL-MART SUPERCENTERS | R2: BENTONVILLE | S2: AR | T2: 500715304 | U2: WAL-MART SUPERCENTERS | V2: HENDERSON, NC 6091 | W2: HENDERSON | X2: NC | Y2: 27537 | AA2: Invoiced | AB2: NEW YORK APPLE SALES | AC2: APPLE WEDGE | AD2: BULK 55 RPC GOLDEN DELICIOUS XF WALMART APPLES | AE2: GOLDEN DELICIOUS BULK 55 RPC XF WALMART 551001508 $20.35 | AF2: APPLES | AG2: APPLES | AI2: GOLDEN DELICIOUS | AJ2: BULK | AK2: 55 RPC | AL2: XF | AM2: WALMART | AN2: USA | AP2: 2 | AQ2: 1.35 | AR2: 0.04 | AS2: 0 | AT2: 40.7 | AU2: 65.58 | AV2: 42 | AW2: 20.35 | AX2: 21 | AY2: 107897 | BB2: APPLE WEDGE PACKERS | BC2: AW-GOLDEL | BE2: 23607.5 | BF2: 23607.5 | BG2: 44085 | BI2: ctn | BJ2: 20.35 | BK2: N | BL2: 7 | BM2: 124 | BN2: 1 | BO2: 124 | BP2: 4 | BR2: 1 | BT2: C | BU2: 2 | BW2: AW | BX2: 1
A3: 40223 | E3: 250338 | F3: 108343 | G3: 44054 | H3: 44085 | I3: 44086 | J3: 2020 | K3: 9 | L3: 11 | M3: 37 | N3: 2020-37 | O3: 2020-09 | P3: WAL-MART SUPERCENTERS-HENDERSON, NC 6091 | Q3: WAL-MART SUPERCENTERS | R3: BENTONVILLE | S3: AR | T3: 500715304 | U3: WAL-MART SUPERCENTERS | V3: HENDERSON, NC 6091 | W3: HENDERSON | X3: NC | Y3: 27537 | AA3: Invoiced | AB3: NEW YORK APPLE SALES | AC3: APPLE WEDGE | AD3: BULK 55 RPC GOLDEN DELICIOUS XF WALMART APPLES | AE3: GOLDEN DELICIOUS BULK 55 RPC XF WALMART 551001508 $20.35 | AF3: APPLES | AG3: APPLES | AI3: GOLDEN DELICIOUS | AJ3: BULK | AK3: 55 RPC | AL3: XF | AM3: WALMART | AN3: USA | AP3: 46 | AQ3: 31.05 | AR3: 0.92 | AS3: 0 | AT3: 936.1 | AU3: 1508.34 | AV3: 966 | AW3: 20.35 | AX3: 21 | AY3: 107897 | BB3: APPLE WEDGE PACKERS | BC3: AW-GOLDEL | BE3: 23607.5 | BF3: 23607.5 | BG3: 44085 | BI3: ctn | BJ3: 20.35 | BK3: N | BL3: 7 | BM3: 124 | BN3: 1 | BO3: 124 | BP3: 4 | BR3: 1 | BT3: C | BU3: 2 | BW3: AW | BX3: 1
A4: 40223 | E4: 250339 | F4: 108344 | G4: 44054 | H4: 44085 | I4: 44086 | J4: 2020 | K4: 9 | L4: 11 | M4: 37 | N4: 2020-37 | O4: 2020-09 | P4: WAL-MART SUPERCENTERS-HENDERSON, NC 6091 | Q4: WAL-MART SUPERCENTERS | R4: BENTONVILLE | S4: AR | T4: 500715304 | U4: WAL-MART SUPERCENTERS | V4: HENDERSON, NC 6091 | W4: HENDERSON | X4: NC | Y4: 27537 | AA4: Invoiced | AB4: NEW YORK APPLE SALES | AC4: APPLE WEDGE | AD4: BULK 55 RPC GOLDEN DELICIOUS XF WALMART APPLES | AE4: GOLDEN DELICIOUS BULK 55 RPC XF WALMART 551001508 $20.35 | AF4: APPLES | AG4: APPLES | AI4: GOLDEN DELICIOUS | AJ4: BULK | AK4: 55 RPC | AL4: XF | AM4: WALMART | AN4: USA | AP4: 66 | AQ4: 44.55 | AR4: 1.32 | AS4: 0 | AT4: 1343.1 | AU4: 2164.14 | AV4: 1386 | AW4: 20.35 | AX4: 21 | AY4: 107897 | BB4: APPLE WEDGE PACKERS | BC4: AW-GOLDEL | BE4: 23607.5 | BF4: 23607.5 | BG4: 44085 | BI4: ctn | BJ4: 20.35 | BK4: N | BL4: 7 | BM4: 124 | BN4: 1 | BO4: 124 | BP4: 4 | BR4: 1 | BT4: C | BU4: 2 | BW4: AW | BX4: 1
A5: 40223 | E5: 250336 | F5: 108341 | G5: 44054 | H5: 44085 | I5: 44086 | J5: 2020 | K5: 9 | L5: 11 | M5: 37 | N5: 2020-37 | O5: 2020-09 | P5: WAL-MART SUPERCENTERS-HENDERSON, NC 6091 | Q5: WAL-MART SUPERCENTERS | R5: BENTONVILLE | S5: AR | T5: 500715304 | U5: WAL-MART SUPERCENTERS | V5: HENDERSON, NC 6091 | W5: HENDERSON | X5: NC | Y5: 27537 | AA5: Invoiced | AB5: NEW YORK APPLE SALES | AC5: APPLE WEDGE | AD5: BULK 55 RPC GOLDEN DELICIOUS XF WALMART APPLES | AE5: GOLDEN DELICIOUS BULK 55 RPC XF WALMART 551001508 $20.35 | AF5: APPLES | AG5: APPLES | AI5: GOLDEN DELICIOUS | AJ5: BULK | AK5: 55 RPC | AL5: XF | AM5: WALMART | AN5: USA | AP5: 1 | AQ5: 0.675 | AR5: 0.02 | AS5: 0 | AT5: 20.35 | AU5: 32.79 | AV5: 21 | AW5: 20.35 | AX5: 21 | AY5: 107976 | BB5: APPLE WEDGE PACKERS | BC5: AW-GOLDEL | BE5: 23607.5 | BF5: 23607.5 | BG5: 44085 | BI5: ctn | BJ5: 20.35 | BK5: N | BL5: 7 | BM5: 124 | BN5: 1 | BO5: 124 | BP5: 4 | BR5: 1 | BT5: C | BU5: 2 | BW5: AW | BX5: 1
A6: 40223 | E6: 250341 | F6: 108346 | G6: 44054 | H6: 44085 | I6: 44086 | J6: 2020 | K6: 9 | L6: 11 | M6: 37 | N6: 2020-37 | O6: 2020-09 | P6: WAL-MART SUPERCENTERS-HENDERSON, NC 6091 | Q6: WAL-MART SUPERCENTERS | R6: BENTONVILLE | S6: AR | T6: 500715304 | U6: WAL-MART SUPERCENTERS | V6: HENDERSON, NC 6091 | W6: HENDERSON | X6: NC | Y6: 27537 | AA6: Invoiced | AB6: NEW YORK APPLE SALES | AC6: APPLE WEDGE | AD6: BULK 55 RPC GOLDEN DELICIOUS XF WALMART APPLES | AE6: GOLDEN DELICIOUS BULK 55 RPC XF WALMART 551001508 $20.35 | AF6: APPLES | AG6: APPLES | AI6: GOLDEN DELICIOUS | AJ6: BULK | AK6: 55 RPC | AL6: XF | AM6: WALMART | AN6: USA | AP6: 5 | AQ6: 3.375 | AR6: 0.1 | AS6: 0 | AT6: 101.75 | AU6: 163.95 | AV6: 105 | AW6: 20.35 | AX6: 21 | AY6: 5849 | BB6: APPLE WEDGE PACKERS | BC6: AW-GOLDEL | BE6: 23607.5 | BF6: 23607.5 | BG6: 44085 | BI6: ctn | BJ6: 20.35 | BK6: N | BL6: 7 | BM6: 124 | BN6: 1 | BO6: 124 | BP6: 4 | BR6: 1 | BT6: C | BU6: 2 | BW6: AW | BX6: 1
A7: 40223 | E7: 250340 | F7: 108345 | G7: 44054 | H7: 44085 | I7: 44086 | J7: 2020 | K7: 9 | L7: 11 | M7: 37 | N7: 2020-37 | O7: 2020-09 | P7: WAL-MART SUPERCENTERS-HENDERSON, NC 6091 | Q7: WAL-MART SUPERCENTERS | R7: BENTONVILLE | S7: AR | T7: 500715304 | U7: WAL-MART SUPERCENTERS | V7: HENDERSON, NC 6091 | W7: HENDERSON | X7: NC | Y7: 27537 | AA7: Invoiced | AB7: NEW YORK APPLE SALES | AC7: APPLE WEDGE | AD7: TOTES TOTES GINGERGOLD XF WALMART APPLES | AE7: GINGERGOLD TOTES TOTES XF WALMART 580033936 $23.45 | AF7: APPLES | AG7: APPLES | AI7: GINGERGOLD | AJ7: TOTES | AK7: TOTES | AL7: XF | AM7: WALMART | AN7: USA | AP7: 105 | AQ7: 105 | AR7: 3 | AS7: 0 | AT7: 2462.25 | AU7: 4988.55 | AV7: 2530.5 | AW7: 23.45 | AX7: 24.1 | AY7: 107984 | BB7: APPLE WEDGE PACKERS | BC7: AW-GINGGOLD | BE7: 23607.5 | BF7: 23607.5 | BG7: 44085 | BI7: ctn | BJ7: 23.45 | BK7: N | BL7: 9 | BM7: 124 | BN7: 1 | BO7: 124 | BP7: 4 | BR7: 1 | BT7: C | BU7: 2 | BW7: AW | BX7: 1
A8: 40223 | E8: 250334 | F8: 108339 | G8: 44054 | H8: 44085 | I8: 44086 | J8: 2020 | K8: 9 | L8: 11 | M8: 37 | N8: 2020-37 | O8: 2020-09 | P8: WAL-MART SUPERCENTERS-HENDERSON, NC 6091 | Q8: WAL-MART SUPERCENTERS | R8: BENTONVILLE | S8: AR | T8: 500715304 | U8: WAL-MART SUPERCENTERS | V8: HENDERSON, NC 6091 | W8: HENDERSON | X8: NC | Y8: 27537 | AA8: Invoiced | AB8: NEW YORK APPLE SALES | AC8: APPLE WEDGE | AD8: TOTES TOTES GOLDEN DELICIOUS XF WALMART APPLES | AE8: APPLES TOTES 8 1/2-21/4 XF WALMART 580033936 $23.45 | AF8: APPLES | AG8: APPLES | AI8: GOLDEN DELICIOUS | AJ8: TOTES | AK8: TOTES | AL8: XF | AM8: WALMART | AN8: USA | AP8: 35 | AQ8: 35 | AR8: 1 | AS8: 0 | AT8: 820.75 | AU8: 1662.85 | AV8: 843.5 | AW8: 23.45 | AX8: 24.1 | AY8: 107951 | AZ8: 896767002995 | BA8: 580033936 | BB8: APPLE WEDGE PACKERS | BC8: AW-GOLDEL | BE8: 23607.5 | BF8: 23607.5 | BG8: 44085 | BI8: ctn | BJ8: 23.45 | BK8: N | BL8: 9 | BM8: 124 | BN8: 1 | BO8: 124 | BP8: 4 | BR8: 1 | BT8: C | BU8: 2 | BW8: AW | BX8: 1
A9: 40223 | E9: 250335 | F9: 108340 | G9: 44054 | H9: 44085 | I9: 44086 | J9: 2020 | K9: 9 | L9: 11 | M9: 37 | N9: 2020-37 | O9: 2020-09 | P9: WAL-MART SUPERCENTERS-HENDERSON, NC 6091 | Q9: WAL-MART SUPERCENTERS | R9: BENTONVILLE | S9: AR | T9: 500715304 | U9: WAL-MART SUPERCENTERS | V9: HENDERSON, NC 6091 | W9: HENDERSON | X9: NC | Y9: 27537 | AA9: Invoiced | AB9: NEW YORK APPLE SALES | AC9: APPLE WEDGE | AD9: TOTES TOTES JONATHAN XF WALMART APPLES | AE9: JONATHAN TOTES TOTES XF WALMART 580033936 $23.45 | AF9: APPLES | AG9: APPLES | AI9: JONATHAN | AJ9: TOTES | AK9: TOTES | AL9: XF | AM9: WALMART | AN9: USA | AP9: 735 | AQ9: 735 | AR9: 21 | AS9: 0 | AT9: 17235.75 | AU9: 34919.85 | AV9: 17713.5 | AW9: 23.45 | AX9: 24.1 | AY9: 107957 | BB9: APPLE WEDGE PACKERS | BC9: AW-JONATHAN | BE9: 23607.5 | BF9: 23607.5 | BG9: 44085 | BI9: ctn | BJ9: 23.45 | BK9: N | BL9: 9 | BM9: 124 | BN9: 1 | BO9: 124 | BP9: 4 | BR9: 1 | BT9: C | BU9: 2 | BW9: AW | BX9: 1
A10: 40224 | E10: 249820 | F10: 108038 | G10: 44054 | H10: 44078 | I10: 44079 | J10: 2020 | K10: 9 | L10: 4 | M10: 36 | N10: 2020-36 | O10: 2020-09 | P10: WAL-MART SUPERCENTERS-HENDERSON, NC 6091 | Q10: WAL-MART SUPERCENTERS | R10: BENTONVILLE | S10: AR | T10: 500715302 | U10: WAL-MART SUPERCENTERS | V10: HENDERSON, NC 6091 | W10: HENDERSON | X10: NC | Y10: 27537 | AA10: Invoiced | AB10: NEW YORK APPLE SALES | AC10: APPLE WEDGE | AD10: TOTES TOTES APPLES XF WALMART APPLES | AE10: APPLES TOTES 8 1/2-21/4 XF WALMART 580033936 $23.45 | AF10: APPLES | AG10: APPLES | AI10: APPLES | AJ10: TOTES | AK10: TOTES | AL10: XF | AM10: WALMART | AN10: USA | AP10: 189 | AQ10: 189 | AR10: 5.4 | AS10: 0 | AT10: 4432.05 | AU10: 8979.39 | AV10: 4554.9 | AW10: 23.45 | AX10: 24.1 | AY10: 107899 | AZ10: 896767002995 | BA10: 580033936 | BB10: APPLE WEDGE PACKERS | BC10: AW-GOLDEL | BE10: 23618 | BF10: 23618 | BG10: 44078 | BI10: ctn | BJ10: 23.45 | BK10: N | BL10: 9 | BM10: 124 | BN10: 1 | BO10: 124 | BP10: 4 | BR10: 1 | BT10: C | BU10: 2 | BW10: AW | BX10: 1
A11: 40224 | E11: 249819 | F11: 108037 | G11: 44054 | H11: 44078 | I11: 44079 | J11: 2020 | K11: 9 | L11: 4 | M11: 36 | N11: 2020-36 | O11: 2020-09 | P11: WAL-MART SUPERCENTERS-HENDERSON, NC 6091 | Q11: WAL-MART SUPERCENTERS | R11: BENTONVILLE | S11: AR | T11: 500715302 | U11: WAL-MART SUPERCENTERS | V11: HENDERSON, NC 6091 | W11: HENDERSON | X11: NC | Y11: 27537 | AA11: Invoiced | AB11: NEW YORK APPLE SALES | AC11: APPLE WEDGE | AD11: TOTES TOTES APPLES XF WALMART APPLES | AE11: APPLES TOTES 8 1/2-21/4 XF WALMART 580033936 $23.45 | AF11: APPLES | AG11: APPLES | AI11: APPLES | AJ11: TOTES | AK11: TOTES | AL11: XF | AM11: WALMART | AN11: USA | AP11: 210 | AQ11: 210 | AR11: 6 | AS11: 0 | AT11: 4924.5 | AU11: 9977.1 | AV11: 5061 | AW11: 23.45 | AX11: 24.1 | AY11: 107917 | AZ11: 896767002995 | BA11: 580033936 | BB11: APPLE WEDGE PACKERS | BC11: AW-GOLDEL | BE11: 23618 | BF11: 23618 | BG11: 44078 | BI11: ctn | BJ11: 23.45 | BK11: N | BL11: 9 | BM11: 124 | BN11: 1 | BO11: 124 | BP11: 4 | BR11: 1 | BT11: C | BU11: 2 | BW11: AW | BX11: 1
A12: 40224 | E12: 249818 | F12: 108036 | G12: 44054 | H12: 44078 | I12: 44079 | J12: 2020 | K12: 9 | L12: 4 | M12: 36 | N12: 2020-36 | O12: 2020-09 | P12: WAL-MART SUPERCENTERS-HENDERSON, NC 6091 | Q12: WAL-MART SUPERCENTERS | R12: BENTONVILLE | S12: AR | T12: 500715302 | U12: WAL-MART SUPERCENTERS | V12: HENDERSON, NC 6091 | W12: HENDERSON | X12: NC | Y12: 27537 | AA12: Invoiced | AB12: NEW YORK APPLE SALES | AC12: APPLE WEDGE | AD12: TOTES TOTES APPLES XF WALMART APPLES | AE12: APPLES TOTES 8 1/2-21/4 XF WALMART 580033936 $23.45 | AF12: APPLES | AG12: APPLES | AI12: APPLES | AJ12: TOTES | AK12: TOTES | AL12: XF | AM12: WALMART | AN12: USA | AP12: 581 | AQ12: 581 | AR12: 16.6 | AS12: 0 | AT12: 13624.45 | AU12: 27603.31 | AV12: 14002.1 | AW12: 23.45 | AX12: 24.1 | AY12: 5697 | AZ12: 896767002995 | BA12: 580033936 | BB12: APPLE WEDGE PACKERS | BC12: AW-GOLDEL | BE12: 23618 | BF12: 23618 | BG12: 44078 | BI12: ctn | BJ12: 23.45 | BK12: N | BL12: 9 | BM12: 124 | BN12: 1 | BO12: 124 | BP12: 4 | BR12: 1 | BT12: C | BU12: 2 | BW12: AW | BX12: 1
A13: 40225 | B13: 20152 | C13: X | D13: MODERN FREIGHT SOLUTIONS, LLC | E13: 250167 | F13: 108249 | G13: 44054 | H13: 44083 | I13: 44085 | J13: 2020 | K13: 9 | L13: 9 | M13: 37 | N13: 2020-37 | O13: 2020-09 | P13: WAL-MART SUPERCENTERS-MEBANE, NC 6858 | Q13: WAL-MART SUPERCENTERS | R13: BENTONVILLE | S13: AR | T13: 500715329 | U13: WAL-MART SUPERCENTERS | V13: MEBANE, NC 6858 | W13: MEBANE | X13: NC | Y13: 27302 | AA13: Invoiced | AB13: NEW YORK APPLE SALES | AC13: GLAIZE | AD13: BULK 55 RPC GOLDEN DELICIOUS XF WALMART APPLES | AE13: GOLDEN DELICIOUS BULK 55 RPC XF WALMART 573579449 $18.85 | AF13: APPLES | AG13: APPLES | AI13: GOLDEN DELICIOUS | AJ13: BULK | AK13: 55 RPC | AL13: XF | AM13: WALMART | AN13: USA | AP13: 100 | AQ13: 67.5 | AR13: 2 | AS13: 221.19 | AT13: 1885 | AU13: 3279 | AV13: 2225 | AW13: 18.85 | AX13: 22.25 | AY13: 90880 | BB13: GLAIZE | BC13: GL-GINGGOLD | BE13: 23747.5 | BF13: 23747.5 | BG13: 44083 | BI13: ctn | BJ13: 18.85 | BK13: N | BL13: 7 | BM13: 124 | BN13: 1 | BO13: 124 | BP13: 39 | BR13: 1 | BT13: C | BU13: 2
A14: 40225 | B14: 20152 | C14: X | D14: MODERN FREIGHT SOLUTIONS, LLC | E14: 250168 | F14: 108250 | G14: 44054 | H14: 44083 | I14: 44085 | J14: 2020 | K14: 9 | L14: 9 | M14: 37 | N14: 2020-37 | O14: 2020-09 | P14: WAL-MART SUPERCENTERS-MEBANE, NC 6858 | Q14: WAL-MART SUPERCENTERS | R14: BENTONVILLE | S14: AR | T14: 500715329 | U14: WAL-MART SUPERCENTERS | V14: MEBANE, NC 6858 | W14: MEBANE | X14: NC | Y14: 27302 | AA14: Invoiced | AB14: NEW YORK APPLE SALES | AC14: GLAIZE | AD14: BULK 55 RPC GOLDEN DELICIOUS XF WALMART APPLES | AE14: GOLDEN DELICIOUS BULK 55 RPC XF WALMART 573579449 $18.85 | AF14: APPLES | AG14: APPLES | AI14: GOLDEN DELICIOUS | AJ14: BULK | AK14: 55 RPC | AL14: XF | AM14: WALMART | AN14: USA | AP14: 50 | AQ14: 33.75 | AR14: 1 | AS14: 110.59 | AT14: 942.5 | AU14: 1639.5 | AV14: 1112.5 | AW14: 18.85 | AX14: 22.25 | AY14: 90880 | BB14: GLAIZE | BC14: GL-GINGGOLD | BE14: 23747.5 | BF14: 23747.5 | BG14: 44083 | BI14: ctn | BJ14: 18.85 | BK14: N | BL14: 7 | BM14: 124 | BN14: 1 | BO14: 124 | BP14: 39 | BR14: 1 | BT14: C | BU14: 2
A15: 40225 | B15: 20152 | C15: X | D15: MODERN FREIGHT SOLUTIONS, LLC | E15: 250086 | F15: 108204 | G15: 44054 | H15: 44083 | I15: 44085 | J15: 2020 | K15: 9 | L15: 9 | M15: 37 | N15: 2020-37 | O15: 2020-09 | P15: WAL-MART SUPERCENTERS-MEBANE, NC 6858 | Q15: WAL-MART SUPERCENTERS | R15: BENTONVILLE | S15: AR | T15: 500715329 | U15: WAL-MART SUPERCENTERS | V15: MEBANE, NC 6858 | W15: MEBANE | X15: NC | Y15: 27302 | AA15: Invoiced | AB15: NEW YORK APPLE SALES | AC15: YONDER FARMS | AD15: BULK 60 COR GINGERGOLD XF WALMART APPLES | AE15: GINGERGOLD BULK 60 CORRUGATED XF WALMART | AF15: APPLES | AG15: APPLES | AI15: GINGERGOLD | AJ15: BULK | AK15: 60 COR | AL15: XF | AM15: WALMART | AN15: USA | AP15: 50 | AQ15: 33.75 | AR15: 1 | AS15: 110.59 | AT15: 912.38 | AU15: 1536 | AV15: 1112.5 | AW15: 18.2476 | AX15: 22.25 | AY15: 34346 | BB15: YONDER FARMS FRUIT DIST., LLC | BC15: YF-GINGGOLD | BD15: YONDER FARMS FRUIT DIST., LLC | BE15: 23747.5 | BF15: 23747.5 | BG15: 44083 | BI15: ctn | BJ15: 18.2476 | BK15: N | BL15: 7 | BM15: 124 | BN15: 1 | BO15: 124 | BP15: 39 | BR15: 1 | BT15: C | BU15: 2
A16: 40225 | B16: 20152 | C16: X | D16: MODERN FREIGHT SOLUTIONS, LLC | E16: 250088 | F16: 108206 | G16: 44054 | H16: 44083 | I16: 44085 | J16: 2020 | K16: 9 | L16: 9 | M16: 37 | N16: 2020-37 | O16: 2020-09 | P16: WAL-MART SUPERCENTERS-MEBANE, NC 6858 | Q16: WAL-MART SUPERCENTERS | R16: BENTONVILLE | S16: AR | T16: 500715329 | U16: WAL-MART SUPERCENTERS | V16: MEBANE, NC 6858 | W16: MEBANE | X16: NC | Y16: 27302 | AA16: Invoiced | AB16: NEW YORK APPLE SALES | AC16: CRIST BROTHERS | AD16: TOTES TOTES JONAMAC XF WALMART APPLES | AE16: JONAMAC TOTES 8 1/2 RPC XF WALMART | AF16: APPLES | AG16: APPLES | AI16: JONAMAC | AJ16: TOTES | AK16: TOTES | AL16: XF | AM16: WALMART | AN16: USA | AP16: 420 | AQ16: 420 | AR16: 12 | AS16: 1376.27 | AT16: 9125.634 | AU16: 19954.2 | AV16: 10806.6 | AW16: 21.7277 | AX16: 25.73 | AY16: 35701 | AZ16: 879329007287 | BA16: 580033931 | BB16: CRIST | BC16: CB-JONAMAC | BD16: CRIST | BE16: 23747.5 | BF16: 23747.5 | BG16: 44083 | BI16: ctn | BJ16: 21.7277 | BK16: N | BL16: 9 | BM16: 124 | BN16: 1 | BO16: 124 | BP16: 39 | BR16: 1 | BT16: C | BU16: 2
A17: 40225 | B17: 20152 | C17: X | D17: MODERN FREIGHT SOLUTIONS, LLC | E17: 250087 | F17: 108205 | G17: 44054 | H17: 44083 | I17: 44085 | J17: 2020 | K17: 9 | L17: 9 | M17: 37 | N17: 2020-37 | O17: 2020-09 | P17: WAL-MART SUPERCENTERS-MEBANE, NC 6858 | Q17: WAL-MART SUPERCENTERS | R17: BENTONVILLE | S17: AR | T17: 500715329 | U17: WAL-MART SUPERCENTERS | V17: MEBANE, NC 6858 | W17: MEBANE | X17: NC | Y17: 27302 | AA17: Invoiced | AB17: NEW YORK APPLE SALES | AC17: FIX BROS | AD17: TOTES TOTES MCINTOSH XF WALMART APPLES | AE17: FOUND FOUND FOUND XF WALMART | AF17: APPLES | AG17: APPLES | AH17: MCINTOSH | AI17: MCINTOSH | AJ17: TOTES | AK17: TOTES | AL17: XF | AM17: WALMART | AN17: USA | AP17: 329 | AQ17: 329 | AR17: 9.4 | AS17: 1078.08 | AT17: 7148.4133 | AU17: 15630.79 | AV17: 8465.17 | AW17: 21.7277 | AX17: 25.73 | AY17: 209 | AZ17: 879329007287 | BA17: 580033931 | BB17: FIX BROTHERS INC. | BC17: FB-MCINTOSH | BD17: FIX BROTHERS INC. | BE17: 23747.5 | BF17: 23747.5 | BG17: 44083 | BI17: ctn | BJ17: 21.7277 | BK17: N | BL17: 9 | BM17: 124 | BN17: 1 | BO17: 124 | BP17: 39 | BQ17: 3 | BR17: 1 | BT17: C | BU17: 2
A18: 40225 | B18: 20152 | C18: X | D18: MODERN FREIGHT SOLUTIONS, LLC | E18: 250265 | F18: 108301 | G18: 44054 | H18: 44083 | I18: 44085 | J18: 2020 | K18: 9 | L18: 9 | M18: 37 | N18: 2020-37 | O18: 2020-09 | P18: WAL-MART SUPERCENTERS-MEBANE, NC 6858 | Q18: WAL-MART SUPERCENTERS | R18: BENTONVILLE | S18: AR | T18: 500715329 | U18: WAL-MART SUPERCENTERS | V18: MEBANE, NC 6858 | W18: MEBANE | X18: NC | Y18: 27302 | AA18: Invoiced | AB18: NEW YORK APPLE SALES | AC18: MAIN OFFICE | AD18: TOTES TOTES MCINTOSH XF WALMART APPLES | AE18: FOUND FOUND FOUND XF WALMART | AF18: APPLES | AG18: APPLES | AH18: MCINTOSH | AI18: MCINTOSH | AJ18: TOTES | AK18: TOTES | AL18: XF | AM18: WALMART | AN18: USA | AP18: 1 | AQ18: 1 | AR18: 0.02857142857 | AS18: 3.28 | AT18: 21.7277 | AU18: 47.51 | AV18: 25.73 | AW18: 21.7277 | AX18: 25.73 | AY18: 40225 | AZ18: 879329007287 | BA18: 580033931 | BB18: NEW YORK APPLE SALES | BC18: NYAFOUND | BD18: LAKE ONTARIO FRUIT | BE18: 23747.5 | BF18: 23747.5 | BG18: 44083 | BI18: ctn | BJ18: 21.7277 | BK18: N | BL18: 9 | BM18: 124 | BN18: 1 | BO18: 124 | BP18: 39 | BQ18: 3 | BR18: 1 | BT18: C | BU18: 2
A19: 40226 | B19: 20141 | C19: X | D19: TG LOGISTICS LLC | E19: 250019 | F19: 108181 | G19: 44054 | H19: 44083 | I19: 44084 | J19: 2020 | K19: 9 | L19: 9 | M19: 37 | N19: 2020-37 | O19: 2020-09 | P19: WAL-MART SUPERCENTERS-COCOA, FL 8851 | Q19: WAL-MART SUPERCENTERS | R19: BENTONVILLE | S19: AR | T19: 500715328 | U19: WAL-MART SUPERCENTERS | V19: COCOA, FL 8851 | W19: COCOA | X19: FL | Y19: 32922 | AA19: Invoiced | AB19: NEW YORK APPLE SALES | AC19: GLAIZE | AD19: BULK 50 RPC GINGERGOLD XF WALMART APPLES | AE19: GOLDEN DELICIOUS BULK 50 RPC XF WALMART 573579449 | AF19: APPLES | AG19: APPLES | AI19: GINGERGOLD | AJ19: BULK | AK19: 50 RPC | AL19: XF | AM19: WALMART | AN19: USA | AP19: 100 | AQ19: 67.5 | AR19: 2 | AS19: 319.83 | AT19: 1885 | AU19: 3279 | AV19: 2350 | AW19: 18.85 | AX19: 23.5 | AY19: 90880 | BB19: GLAIZE | BC19: GL-GINGGOLD | BE19: 25340.8 | BF19: 25340.8 | BG19: 44083 | BI19: ctn | BJ19: 18.85 | BK19: N | BL19: 7 | BM19: 124 | BN19: 1 | BO19: 124 | BP19: 42 | BR19: 1 | BT19: C | BU19: 2
A20: 40226 | B20: 20141 | C20: X | D20: TG LOGISTICS LLC | E20: 249813 | F20: G3885TOTEWAL | G20: 44054 | H20: 44083 | I20: 44084 | J20: 2020 | K20: 9 | L20: 9 | M20: 37 | N20: 2020-37 | O20: 2020-09 | P20: WAL-MART SUPERCENTERS-COCOA, FL 8851 | Q20: WAL-MART SUPERCENTERS | R20: BENTONVILLE | S20: AR | T20: 500715328 | U20: WAL-MART SUPERCENTERS | V20: COCOA, FL 8851 | W20: COCOA | X20: FL | Y20: 32922 | AA20: Invoiced | AB20: NEW YORK APPLE SALES | AC20: EMPIRE FRUIT | AD20: TOTES 8 1/2-21/4 GINGERGOLD XF WALMART APPLES | AE20: GINGERGOLD TOTES 8 1/2-21/4 XF WALMART 009444862 | AF20: APPLES | AG20: APPLES | AI20: GINGERGOLD | AJ20: TOTES | AK20: 8 1/2-21/4 | AL20: XF | AM20: WALMART | AN20: USA | AP20: 420 | AQ20: 420 | AR20: 10.5 | AS20: 1990.08 | AT20: 9436.896 | AU20: 19000.8 | AV20: 11495.4 | AW20: 22.4688 | AX20: 27.37 | AY20: G3885 | AZ20: 879329007287 | BA20: 580033931 | BB20: EMPIRE FRUIT | BC20: EF-GINGGOLD | BD20: EMPIRE FRUIT | BE20: 25340.8 | BF20: 25340.8 | BG20: 44083 | BI20: ctn | BJ20: 22.4688 | BK20: N | BL20: 9 | BM20: 124 | BN20: 1 | BO20: 124 | BP20: 42 | BR20: 1 | BT20: C | BU20: 2
A21: 40226 | B21: 20141 | C21: X | D21: TG LOGISTICS LLC | E21: 249764 | F21: G3881WALTOTE | G21: 44054 | H21: 44083 | I21: 44084 | J21: 2020 | K21: 9 | L21: 9 | M21: 37 | N21: 2020-37 | O21: 2020-09 | P21: WAL-MART SUPERCENTERS-COCOA, FL 8851 | Q21: WAL-MART SUPERCENTERS | R21: BENTONVILLE | S21: AR | T21: 500715328 | U21: WAL-MART SUPERCENTERS | V21: COCOA, FL 8851 | W21: COCOA | X21: FL | Y21: 32922 | AA21: Invoiced | AB21: NEW YORK APPLE SALES | AC21: EMPIRE FRUIT | AD21: TOTES 8 1/2-21/4 PAULA RED XF WALMART APPLES | AE21: PAULA RED TOTES 8 1/2-21/2 XF WALMART | AF21: APPLES | AG21: APPLES | AI21: PAULA RED | AJ21: TOTES | AK21: 8 1/2-21/4 | AL21: XF | AM21: WALMART | AN21: USA | AP21: 140 | AQ21: 140 | AR21: 3.5 | AS21: 663.36 | AT21: 3145.632 | AU21: 6333.6 | AV21: 3831.8 | AW21: 22.4688 | AX21: 27.37 | AY21: 3881 | AZ21: 879329007287 | BA21: 580033931 | BB21: EMPIRE FRUIT | BC21: EF-PAULARED | BD21: EMPIRE FRUIT | BE21: 25340.8 | BF21: 25340.8 | BG21: 44083 | BI21: ctn | BJ21: 22.4688 | BK21: N | BL21: 9 | BM21: 124 | BN21: 1 | BO21: 124 | BP21: 42 | BR21: 1 | BT21: C | BU21: 2
A22: 40226 | B22: 20141 | C22: X | D22: TG LOGISTICS LLC | E22: 249766 | F22: G3882WALTOTE | G22: 44054 | H22: 44083 | I22: 44084 | J22: 2020 | K22: 9 | L22: 9 | M22: 37 | N22: 2020-37 | O22: 2020-09 | P22: WAL-MART SUPERCENTERS-COCOA, FL 8851 | Q22: WAL-MART SUPERCENTERS | R22: BENTONVILLE | S22: AR | T22: 500715328 | U22: WAL-MART SUPERCENTERS | V22: COCOA, FL 8851 | W22: COCOA | X22: FL | Y22: 32922 | AA22: Invoiced | AB22: NEW YORK APPLE SALES | AC22: EMPIRE FRUIT | AD22: TOTES 8 1/2-21/4 PAULA RED XF WALMART APPLES | AE22: PAULA RED TOTES 8 1/2-21/2 XF WALMART | AF22: APPLES | AG22: APPLES | AI22: PAULA RED | AJ22: TOTES | AK22: 8 1/2-21/4 | AL22: XF | AM22: WALMART | AN22: USA | AP22: 280 | AQ22: 280 | AR22: 7 | AS22: 1326.73 | AT22: 6291.264 | AU22: 12667.2 | AV22: 7663.6 | AW22: 22.4688 | AX22: 27.37 | AY22: 3882 | AZ22: 879329007287 | BA22: 580033931 | BB22: EMPIRE FRUIT | BC22: EF-PAULARED | BD22: EMPIRE FRUIT | BE22: 25340.8 | BF22: 25340.8 | BG22: 44083 | BI22: ctn | BJ22: 22.4688 | BK22: N | BL22: 9 | BM22: 124 | BN22: 1 | BO22: 124 | BP22: 42 | BR22: 1 | BT22: C | BU22: 2
A23: 40227 | B23: 20123 | C23: X | D23: SCOTLYNN COMMODITIES INC. | E23: 249778 | F23: 108013 | G23: 44054 | H23: 44077 | I23: 44079 | J23: 2020 | K23: 9 | L23: 3 | M23: 36 | N23: 2020-36 | O23: 2020-09 | P23: WAL-MART SUPERCENTERS-OPELIKA, AL 6095 | Q23: WAL-MART SUPERCENTERS | R23: BENTONVILLE | S23: AR | T23: 500715331 | U23: WAL-MART SUPERCENTERS | V23: OPELIKA, AL 6095 | W23: OPELIKA | X23: AL | Y23: 36801 | AA23: Invoiced | AB23: NEW YORK APPLE SALES | AC23: YONDER FARMS | AD23: TOTES 8 1/2-21/4 GINGERGOLD XF WALMART APPLES | AE23: GINGERGOLD TOTES 8 1/2-21/4 XF WALMART 009444862 | AF23: APPLES | AG23: APPLES | AI23: GINGERGOLD | AJ23: TOTES | AK23: 8 1/2-21/4 | AL23: XF | AM23: WALMART | AN23: USA | AP23: 563 | AQ23: 563 | AR23: 14.075 | AS23: 1856.04 | AT23: 13107.3156 | AU23: 25470.12 | AV23: 15302.34 | AW23: 23.2812 | AX23: 27.18 | AY23: 114 | AZ23: 879329007287 | BA23: 580033931 | BB23: YONDER FARMS FRUIT DIST., LLC | BC23: YF-GINGGOLD | BD23: YONDER FARMS FRUIT DIST., LLC | BE23: 24733.8 | BF23: 24733.8 | BG23: 44077 | BI23: ctn | BJ23: 23.2812 | BK23: N | BL23: 9 | BM23: 124 | BN23: 1 | BO23: 124 | BP23: 12 | BR23: 1 | BT23: C | BU23: 2
A24: 40227 | B24: 20123 | C24: X | D24: SCOTLYNN COMMODITIES INC. | E24: 249779 | F24: 108014 | G24: 44054 | H24: 44077 | I24: 44079 | J24: 2020 | K24: 9 | L24: 3 | M24: 36 | N24: 2020-36 | O24: 2020-09 | P24: WAL-MART SUPERCENTERS-OPELIKA, AL 6095 | Q24: WAL-MART SUPERCENTERS | R24: BENTONVILLE | S24: AR | T24: 500715331 | U24: WAL-MART SUPERCENTERS | V24: OPELIKA, AL 6095 | W24: OPELIKA | X24: AL | Y24: 36801 | AA24: Invoiced | AB24: NEW YORK APPLE SALES | AC24: YONDER FARMS | AD24: TOTES 8 1/2-21/4 JONAMAC XF WALMART APPLES | AE24: JONAMAC TOTES 8 1/2-21/4 XF WALMART 9444862 | AF24: APPLES | AG24: APPLES | AI24: JONAMAC | AJ24: TOTES | AK24: 8 1/2-21/4 | AL24: XF | AM24: WALMART | AN24: USA | AP24: 347 | AQ24: 347 | AR24: 8.675 | AS24: 1143.96 | AT24: 8078.5764 | AU24: 15698.28 | AV24: 9431.46 | AW24: 23.2812 | AX24: 27.18 | AY24: 116 | AZ24: 879329007287 | BA24: 580033931 | BB24: YONDER FARMS FRUIT DIST., LLC | BC24: YF-JONAMAC | BD24: YONDER FARMS FRUIT DIST., LLC | BE24: 24733.8 | BF24: 24733.8 | BG24: 44077 | BI24: ctn | BJ24: 23.2812 | BK24: N | BL24: 9 | BM24: 124 | BN24: 1 | BO24: 124 | BP24: 12 | BR24: 1 | BT24: C | BU24: 2
A25: 40228 | B25: 20121 | C25: X | D25: TG LOGISTICS LLC | E25: 249531 | F25: 107832 | G25: 44054 | H25: 44077 | I25: 44079 | J25: 2020 | K25: 9 | L25: 3 | M25: 36 | N25: 2020-36 | O25: 2020-09 | P25: WAL-MART SUPERCENTERS-BRUNDIDGE, AL 7019 | Q25: WAL-MART SUPERCENTERS | R25: BENTONVILLE | S25: AR | T25: 500715324 | U25: WAL-MART SUPERCENTERS | V25: BRUNDIDGE, AL 7019 | W25: BRUNDIDGE | X25: AL | Y25: 36010 | AA25: Invoiced | AB25: NEW YORK APPLE SALES | AC25: CRIST BROTHERS | AD25: TOTES 8 1/2 RPC GINGERGOLD XF WALMART APPLES | AE25: GINGERGOLD TOTES 8 1/2 RPC XF WALMART | AF25: APPLES | AG25: APPLES | AI25: GINGERGOLD | AJ25: TOTES | AK25: 8 1/2 RPC | AL25: XF | AM25: WALMART | AN25: USA | AP25: 23 | AQ25: 23 | AR25: 0.6571428571 | AS25: 85.93 | AT25: 530.449 | AU25: 1092.73 | AV25: 625.14 | AW25: 23.063 | AX25: 27.18 | AY25: 31201 | AZ25: 879329007287 | BA25: 580033931 | BB25: CRIST | BC25: CB-GINGGOLD | BD25: CRIST | BE25: 24733.8 | BF25: 24733.8 | BG25: 44077 | BI25: ctn | BJ25: 23.063 | BK25: N | BL25: 9 | BM25: 124 | BN25: 1 | BO25: 124 | BP25: 3 | BR25: 1 | BT25: C | BU25: 2
A26: 40228 | B26: 20121 | C26: X | D26: TG LOGISTICS LLC | E26: 249559 | F26: 107860 | G26: 44054 | H26: 44077 | I26: 44079 | J26: 2020 | K26: 9 | L26: 3 | M26: 36 | N26: 2020-36 | O26: 2020-09 | P26: WAL-MART SUPERCENTERS-BRUNDIDGE, AL 7019 | Q26: WAL-MART SUPERCENTERS | R26: BENTONVILLE | S26: AR | T26: 500715324 | U26: WAL-MART SUPERCENTERS | V26: BRUNDIDGE, AL 7019 | W26: BRUNDIDGE | X26: AL | Y26: 36010 | AA26: Invoiced | AB26: NEW YORK APPLE SALES | AC26: CRIST BROTHERS | AD26: TOTES 8 1/2 RPC GINGERGOLD XF WALMART APPLES | AE26: GINGERGOLD TOTES 8 1/2 RPC XF WALMART | AF26: APPLES | AG26: APPLES | AI26: GINGERGOLD | AJ26: TOTES | AK26: 8 1/2 RPC | AL26: XF | AM26: WALMART | AN26: USA | AP26: 34 | AQ26: 34 | AR26: 0.9714285714 | AS26: 127.03 | AT26: 784.142 | AU26: 1615.34 | AV26: 924.12 | AW26: 23.063 | AX26: 27.18 | AY26: 31402 | AZ26: 879329007287 | BA26: 580033931 | BB26: CRIST | BC26: CB-GINGGOLD | BD26: CRIST | BE26: 24733.8 | BF26: 24733.8 | BG26: 44077 | BI26: ctn | BJ26: 23.063 | BK26: N | BL26: 9 | BM26: 124 | BN26: 1 | BO26: 124 | BP26: 3 | BR26: 1 | BT26: C | BU26: 2
A27: 40228 | B27: 20121 | C27: X | D27: TG LOGISTICS LLC | E27: 249560 | F27: 107861 | G27: 44054 | H27: 44077 | I27: 44079 | J27: 2020 | K27: 9 | L27: 3 | M27: 36 | N27: 2020-36 | O27: 2020-09 | P27: WAL-MART SUPERCENTERS-BRUNDIDGE, AL 7019 | Q27: WAL-MART SUPERCENTERS | R27: BENTONVILLE | S27: AR | T27: 500715324 | U27: WAL-MART SUPERCENTERS | V27: BRUNDIDGE, AL 7019 | W27: BRUNDIDGE | X27: AL | Y27: 36010 | AA27: Invoiced | AB27: NEW YORK APPLE SALES | AC27: CRIST BROTHERS | AD27: TOTES 8 1/2 RPC GINGERGOLD XF WALMART APPLES | AE27: GINGERGOLD TOTES 8 1/2 RPC XF WALMART | AF27: APPLES | AG27: APPLES | AI27: GINGERGOLD | AJ27: TOTES | AK27: 8 1/2 RPC | AL27: XF | AM27: WALMART | AN27: USA | AP27: 27 | AQ27: 27 | AR27: 0.7714285714 | AS27: 100.88 | AT27: 622.701 | AU27: 1282.77 | AV27: 733.86 | AW27: 23.063 | AX27: 27.18 | AY27: 31403 | AZ27: 879329007287 | BA27: 580033931 | BB27: CRIST | BC27: CB-GINGGOLD | BD27: CRIST | BE27: 24733.8 | BF27: 24733.8 | BG27: 44077 | BI27: ctn | BJ27: 23.063 | BK27: N | BL27: 9 | BM27: 124 | BN27: 1 | BO27: 124 | BP27: 3 | BR27: 1 | BT27: C | BU27: 2
A28: 40228 | B28: 20121 | C28: X | D28: TG LOGISTICS LLC | E28: 249628 | F28: 107917 | G28: 44054 | H28: 44077 | I28: 44079 | J28: 2020 | K28: 9 | L28: 3 | M28: 36 | N28: 2020-36 | O28: 2020-09 | P28: WAL-MART SUPERCENTERS-BRUNDIDGE, AL 7019 | Q28: WAL-MART SUPERCENTERS | R28: BENTONVILLE | S28: AR | T28: 500715324 | U28: WAL-MART SUPERCENTERS | V28: BRUNDIDGE, AL 7019 | W28: BRUNDIDGE | X28: AL | Y28: 36010 | AA28: Invoiced | AB28: NEW YORK APPLE SALES | AC28: CRIST BROTHERS | AD28: TOTES 8 1/2 RPC GINGERGOLD XF WALMART APPLES | AE28: GINGERGOLD TOTES 8 1/2 RPC XF WALMART | AF28: APPLES | AG28: APPLES | AI28: GINGERGOLD | AJ28: TOTES | AK28: 8 1/2 RPC | AL28: XF | AM28: WALMART | AN28: USA | AP28: 231 | AQ28: 231 | AR28: 6.6 | AS28: 863.08 | AT28: 5327.553 | AU28: 10974.81 | AV28: 6278.58 | AW28: 23.063 | AX28: 27.18 | AY28: 32403 | AZ28: 879329007287 | BA28: 580033931 | BB28: CRIST | BC28: CB-GINGGOLD | BD28: CRIST | BE28: 24733.8 | BF28: 24733.8 | BG28: 44077 | BI28: ctn | BJ28: 23.063 | BK28: N | BL28: 9 | BM28: 124 | BN28: 1 | BO28: 124 | BP28: 3 | BR28: 1 | BT28: C | BU28: 2
A29: 40228 | B29: 20121 | C29: X | D29: TG LOGISTICS LLC | E29: 249631 | F29: 107920 | G29: 44054 | H29: 44077 | I29: 44079 | J29: 2020 | K29: 9 | L29: 3 | M29: 36 | N29: 2020-36 | O29: 2020-09 | P29: WAL-MART SUPERCENTERS-BRUNDIDGE, AL 7019 | Q29: WAL-MART SUPERCENTERS | R29: BENTONVILLE | S29: AR | T29: 500715324 | U29: WAL-MART SUPERCENTERS | V29: BRUNDIDGE, AL 7019 | W29: BRUNDIDGE | X29: AL | Y29: 36010 | AA29: Invoiced | AB29: NEW YORK APPLE SALES | AC29: CRIST BROTHERS | AD29: TOTES 8 1/2 RPC GINGERGOLD XF WALMART APPLES | AE29: GINGERGOLD TOTES 8 1/2 RPC XF WALMART | AF29: APPLES | AG29: APPLES | AI29: GINGERGOLD | AJ29: TOTES | AK29: 8 1/2 RPC | AL29: XF | AM29: WALMART | AN29: USA | AP29: 140 | AQ29: 140 | AR29: 4 | AS29: 523.08 | AT29: 3228.82 | AU29: 6651.4 | AV29: 3805.2 | AW29: 23.063 | AX29: 27.18 | AY29: 32406 | AZ29: 879329007287 | BA29: 580033931 | BB29: CRIST | BC29: CB-GINGGOLD | BD29: CRIST | BE29: 24733.8 | BF29: 24733.8 | BG29: 44077 | BI29: ctn | BJ29: 23.063 | BK29: N | BL29: 9 | BM29: 124 | BN29: 1 | BO29: 124 | BP29: 3 | BR29: 1 | BT29: C | BU29: 2
A30: 40228 | B30: 20121 | C30: X | D30: TG LOGISTICS LLC | E30: 249716 | F30: 108005 | G30: 44054 | H30: 44077 | I30: 44079 | J30: 2020 | K30: 9 | L30: 3 | M30: 36 | N30: 2020-36 | O30: 2020-09 | P30: WAL-MART SUPERCENTERS-BRUNDIDGE, AL 7019 | Q30: WAL-MART SUPERCENTERS | R30: BENTONVILLE | S30: AR | T30: 500715324 | U30: WAL-MART SUPERCENTERS | V30: BRUNDIDGE, AL 7019 | W30: BRUNDIDGE | X30: AL | Y30: 36010 | AA30: Invoiced | AB30: NEW YORK APPLE SALES | AC30: CRIST BROTHERS | AD30: TOTES 8 1/2 RPC JONAMAC XF WALMART APPLES | AE30: JONAMAC TOTES 8 1/2 RPC XF WALMART | AF30: APPLES | AG30: APPLES | AI30: JONAMAC | AJ30: TOTES | AK30: 8 1/2 RPC | AL30: XF | AM30: WALMART | AN30: USA | AP30: 280 | AQ30: 280 | AR30: 8 | AS30: 1046.15 | AT30: 6457.64 | AU30: 13302.8 | AV30: 7610.4 | AW30: 23.063 | AX30: 27.18 | AY30: 33001 | AZ30: 879329007287 | BA30: 580033931 | BB30: CRIST | BC30: CB-JONAMAC | BD30: CRIST | BE30: 24733.8 | BF30: 24733.8 | BG30: 44077 | BI30: ctn | BJ30: 23.063 | BK30: N | BL30: 9 | BM30: 124 | BN30: 1 | BO30: 124 | BP30: 3 | BR30: 1 | BT30: C | BU30: 2
A31: 40228 | B31: 20121 | C31: X | D31: TG LOGISTICS LLC | E31: 249689 | F31: 107978 | G31: 44054 | H31: 44077 | I31: 44079 | J31: 2020 | K31: 9 | L31: 3 | M31: 36 | N31: 2020-36 | O31: 2020-09 | P31: WAL-MART SUPERCENTERS-BRUNDIDGE, AL 7019 | Q31: WAL-MART SUPERCENTERS | R31: BENTONVILLE | S31: AR | T31: 500715324 | U31: WAL-MART SUPERCENTERS | V31: BRUNDIDGE, AL 7019 | W31: BRUNDIDGE | X31: AL | Y31: 36010 | AA31: Invoiced | AB31: NEW YORK APPLE SALES | AC31: CRIST BROTHERS | AD31: TOTES 8 1/2 RPC JONAMAC XF WALMART APPLES | AE31: JONAMAC TOTES 8 1/2 RPC XF WALMART | AF31: APPLES | AG31: APPLES | AI31: JONAMAC | AJ31: TOTES | AK31: 8 1/2 RPC | AL31: XF | AM31: WALMART | AN31: USA | AP31: 175 | AQ31: 175 | AR31: 5 | AS31: 653.85 | AT31: 4036.025 | AU31: 8314.25 | AV31: 4756.5 | AW31: 23.063 | AX31: 27.18 | AY31: 33501 | AZ31: 879329007287 | BA31: 580033931 | BB31: CRIST | BC31: CB-JONAMAC | BD31: CRIST | BE31: 24733.8 | BF31: 24733.8 | BG31: 44077 | BI31: ctn | BJ31: 23.063 | BK31: N | BL31: 9 | BM31: 124 | BN31: 1 | BO31: 124 | BP31: 3 | BR31: 1 | BT31: C | BU31: 2
A32: 40229 | B32: 20150 | C32: X | D32: ENTOURAGE FREIGHT SOLUTIONS | E32: 249984 | F32: G3886RPC45 | G32: 44054 | H32: 44084 | I32: 44085 | J32: 2020 | K32: 9 | L32: 10 | M32: 37 | N32: 2020-37 | O32: 2020-09 | P32: WAL-MART SUPERCENTERS-MONROE, GA 6055 | Q32: WAL-MART SUPERCENTERS | R32: BENTONVILLE | S32: AR | T32: 500715323 | U32: WAL-MART SUPERCENTERS | V32: MONROE, GA 6055 | W32: MONROE | X32: GA | Y32: 30655 | AA32: Invoiced | AB32: NEW YORK APPLE SALES | AC32: EMPIRE FRUIT | AD32: BULK 45 RPC GINGERGOLD XF WALMART APPLES | AE32: GINGERGOLD BULK 45 RPC XF WALMART | AF32: APPLES | AG32: APPLES | AI32: GINGERGOLD | AJ32: BULK | AK32: 45 RPC | AL32: XF | AM32: WALMART | AN32: USA | AP32: 10 | AQ32: 6.75 | AR32: 0.2 | AS32: 37.41 | AT32: 110.417 | AU32: 327.9 | AV32: 231 | AW32: 11.0417 | AX32: 23.1 | AY32: G3886 | BB32: EMPIRE FRUIT | BC32: EF-GINGGOLD | BD32: EMPIRE FRUIT | BE32: 25079.25 | BF32: 25079.25 | BG32: 44084 | BI32: ctn | BJ32: 11.0417 | BK32: N | BL32: 7 | BM32: 124 | BN32: 1 | BO32: 124 | BP32: 9 | BR32: 1 | BT32: C | BU32: 2
A33: 40229 | B33: 20150 | C33: X | D33: ENTOURAGE FREIGHT SOLUTIONS | E33: 250046 | F33: G3887RPC45 | G33: 44054 | H33: 44084 | I33: 44085 | J33: 2020 | K33: 9 | L33: 10 | M33: 37 | N33: 2020-37 | O33: 2020-09 | P33: WAL-MART SUPERCENTERS-MONROE, GA 6055 | Q33: WAL-MART SUPERCENTERS | R33: BENTONVILLE | S33: AR | T33: 500715323 | U33: WAL-MART SUPERCENTERS | V33: MONROE, GA 6055 | W33: MONROE | X33: GA | Y33: 30655 | AA33: Invoiced | AB33: NEW YORK APPLE SALES | AC33: EMPIRE FRUIT | AD33: BULK 45 RPC GINGERGOLD XF WALMART APPLES | AE33: GINGERGOLD BULK 45 RPC XF WALMART | AF33: APPLES | AG33: APPLES | AI33: GINGERGOLD | AJ33: BULK | AK33: 45 RPC | AL33: XF | AM33: WALMART | AN33: USA | AP33: 2 | AQ33: 1.35 | AR33: 0.04 | AS33: 7.48 | AT33: 22.0834 | AU33: 65.58 | AV33: 46.2 | AW33: 11.0417 | AX33: 23.1 | AY33: G3887 | BB33: EMPIRE FRUIT | BC33: EF-GINGGOLD | BD33: EMPIRE FRUIT | BE33: 25079.25 | BF33: 25079.25 | BG33: 44084 | BI33: ctn | BJ33: 11.0417 | BK33: N | BL33: 7 | BM33: 124 | BN33: 1 | BO33: 124 | BP33: 9 | BR33: 1 | BT33: C | BU33: 2
A34: 40229 | B34: 20150 | C34: X | D34: ENTOURAGE FREIGHT SOLUTIONS | E34: 249787 | F34: G3884RPC50 | G34: 44054 | H34: 44084 | I34: 44085 | J34: 2020 | K34: 9 | L34: 10 | M34: 37 | N34: 2020-37 | O34: 2020-09 | P34: WAL-MART SUPERCENTERS-MONROE, GA 6055 | Q34: WAL-MART SUPERCENTERS | R34: BENTONVILLE | S34: AR | T34: 500715323 | U34: WAL-MART SUPERCENTERS | V34: MONROE, GA 6055 | W34: MONROE | X34: GA | Y34: 30655 | AA34: Invoiced | AB34: NEW YORK APPLE SALES | AC34: EMPIRE FRUIT | AD34: BULK 50 RPC GINGERGOLD XF WALMART APPLES | AE34: GINGERGOLD BULK 50 RPC XF WALMART | AF34: APPLES | AG34: APPLES | AI34: GINGERGOLD | AJ34: BULK | AK34: 50 RPC | AL34: XF | AM34: WALMART | AN34: USA | AP34: 1 | AQ34: 0.675 | AR34: 0.02 | AS34: 3.74 | AT34: 11.0424 | AU34: 32.79 | AV34: 23.1 | AW34: 11.0424 | AX34: 23.1 | AY34: G3884 | BB34: EMPIRE FRUIT | BC34: EF-GINGGOLD | BD34: EMPIRE FRUIT | BE34: 25079.25 | BF34: 25079.25 | BG34: 44084 | BI34: ctn | BJ34: 11.0424 | BK34: N | BL34: 7 | BM34: 124 | BN34: 1 | BO34: 124 | BP34: 9 | BR34: 1 | BT34: C | BU34: 2
A35: 40229 | B35: 20150 | C35: X | D35: ENTOURAGE FREIGHT SOLUTIONS | E35: 249806 | F35: G3885RPC50 | G35: 44054 | H35: 44084 | I35: 44085 | J35: 2020 | K35: 9 | L35: 10 | M35: 37 | N35: 2020-37 | O35: 2020-09 | P35: WAL-MART SUPERCENTERS-MONROE, GA 6055 | Q35: WAL-MART SUPERCENTERS | R35: BENTONVILLE | S35: AR | T35: 500715323 | U35: WAL-MART SUPERCENTERS | V35: MONROE, GA 6055 | W35: MONROE | X35: GA | Y35: 30655 | AA35: Invoiced | AB35: NEW YORK APPLE SALES | AC35: EMPIRE FRUIT | AD35: BULK 50 RPC GINGERGOLD XF WALMART APPLES | AE35: GINGERGOLD BULK 50 RPC XF WALMART | AF35: APPLES | AG35: APPLES | AI35: GINGERGOLD | AJ35: BULK | AK35: 50 RPC | AL35: XF | AM35: WALMART | AN35: USA | AP35: 27 | AQ35: 18.225 | AR35: 0.54 | AS35: 101.01 | AT35: 298.1448 | AU35: 885.33 | AV35: 623.7 | AW35: 11.0424 | AX35: 23.1 | AY35: G3885 | BB35: EMPIRE FRUIT | BC35: EF-GINGGOLD | BD35: EMPIRE FRUIT | BE35: 25079.25 | BF35: 25079.25 | BG35: 44084 | BI35: ctn | BJ35: 11.0424 | BK35: N | BL35: 7 | BM35: 124 | BN35: 1 | BO35: 124 | BP35: 9 | BR35: 1 | BT35: C | BU35: 2
A36: 40229 | B36: 20150 | C36: X | D36: ENTOURAGE FREIGHT SOLUTIONS | E36: 249982 | F36: G3886RPC50 | G36: 44054 | H36: 44084 | I36: 44085 | J36: 2020 | K36: 9 | L36: 10 | M36: 37 | N36: 2020-37 | O36: 2020-09 | P36: WAL-MART SUPERCENTERS-MONROE, GA 6055 | Q36: WAL-MART SUPERCENTERS | R36: BENTONVILLE | S36: AR | T36: 500715323 | U36: WAL-MART SUPERCENTERS | V36: MONROE, GA 6055 | W36: MONROE | X36: GA | Y36: 30655 | AA36: Invoiced | AB36: NEW YORK APPLE SALES | AC36: EMPIRE FRUIT | AD36: BULK 50 RPC GINGERGOLD XF WALMART APPLES | AE36: GINGERGOLD BULK 50 RPC XF WALMART | AF36: APPLES | AG36: APPLES | AI36: GINGERGOLD | AJ36: BULK | AK36: 50 RPC | AL36: XF | AM36: WALMART | AN36: USA | AP36: 18 | AQ36: 12.15 | AR36: 0.36 | AS36: 67.34 | AT36: 198.7632 | AU36: 590.22 | AV36: 415.8 | AW36: 11.0424 | AX36: 23.1 | AY36: G3886 | BB36: EMPIRE FRUIT | BC36: EF-GINGGOLD | BD36: EMPIRE FRUIT | BE36: 25079.25 | BF36: 25079.25 | BG36: 44084 | BI36: ctn | BJ36: 11.0424 | BK36: N | BL36: 7 | BM36: 124 | BN36: 1 | BO36: 124 | BP36: 9 | BR36: 1 | BT36: C | BU36: 2
A37: 40229 | B37: 20150 | C37: X | D37: ENTOURAGE FREIGHT SOLUTIONS | E37: 250047 | F37: G3887RPC50 | G37: 44054 | H37: 44084 | I37: 44085 | J37: 2020 | K37: 9 | L37: 10 | M37: 37 | N37: 2020-37 | O37: 2020-09 | P37: WAL-MART SUPERCENTERS-MONROE, GA 6055 | Q37: WAL-MART SUPERCENTERS | R37: BENTONVILLE | S37: AR | T37: 500715323 | U37: WAL-MART SUPERCENTERS | V37: MONROE, GA 6055 | W37: MONROE | X37: GA | Y37: 30655 | AA37: Invoiced | AB37: NEW YORK APPLE SALES | AC37: EMPIRE FRUIT | AD37: BULK 50 RPC GINGERGOLD XF WALMART APPLES | AE37: GINGERGOLD BULK 50 RPC XF WALMART | AF37: APPLES | AG37: APPLES | AI37: GINGERGOLD | AJ37: BULK | AK37: 50 RPC | AL37: XF | AM37: WALMART | AN37: USA | AP37: 4 | AQ37: 2.7 | AR37: 0.08 | AS37: 14.96 | AT37: 44.1696 | AU37: 131.16 | AV37: 92.4 | AW37: 11.0424 | AX37: 23.1 | AY37: G3887 | BB37: EMPIRE FRUIT | BC37: EF-GINGGOLD | BD37: EMPIRE FRUIT | BE37: 25079.25 | BF37: 25079.25 | BG37: 44084 | BI37: ctn | BJ37: 11.0424 | BK37: N | BL37: 7 | BM37: 124 | BN37: 1 | BO37: 124 | BP37: 9 | BR37: 1 | BT37: C | BU37: 2
A38: 40229 | B38: 20150 | C38: X | D38: ENTOURAGE FREIGHT SOLUTIONS | E38: 249807 | F38: G3885RPC55 | G38: 44054 | H38: 44084 | I38: 44085 | J38: 2020 | K38: 9 | L38: 10 | M38: 37 | N38: 2020-37 | O38: 2020-09 | P38: WAL-MART SUPERCENTERS-MONROE, GA 6055 | Q38: WAL-MART SUPERCENTERS | R38: BENTONVILLE | S38: AR | T38: 500715323 | U38: WAL-MART SUPERCENTERS | V38: MONROE, GA 6055 | W38: MONROE | X38: GA | Y38: 30655 | AA38: Invoiced | AB38: NEW YORK APPLE SALES | AC38: EMPIRE FRUIT | AD38: BULK 55 RPC GINGERGOLD XF WALMART APPLES | AE38: GINGERGOLD BULK 55 RPC XF WALMART | AF38: APPLES | AG38: APPLES | AI38: GINGERGOLD | AJ38: BULK | AK38: 55 RPC | AL38: XF | AM38: WALMART | AN38: USA | AP38: 13 | AQ38: 8.775 | AR38: 0.26 | AS38: 48.63 | AT38: 143.5538 | AU38: 426.27 | AV38: 300.3 | AW38: 11.0426 | AX38: 23.1 | AY38: G3885 | BB38: EMPIRE FRUIT | BC38: EF-GINGGOLD | BD38: EMPIRE FRUIT | BE38: 25079.25 | BF38: 25079.25 | BG38: 44084 | BI38: ctn | BJ38: 11.0426 | BK38: N | BL38: 7 | BM38: 124 | BN38: 1 | BO38: 124 | BP38: 9 | BR38: 1 | BT38: C | BU38: 2
A39: 40229 | B39: 20150 | C39: X | D39: ENTOURAGE FREIGHT SOLUTIONS | E39: 249980 | F39: G3886RPC55 | G39: 44054 | H39: 44084 | I39: 44085 | J39: 2020 | K39: 9 | L39: 10 | M39: 37 | N39: 2020-37 | O39: 2020-09 | P39: WAL-MART SUPERCENTERS-MONROE, GA 6055 | Q39: WAL-MART SUPERCENTERS | R39: BENTONVILLE | S39: AR | T39: 500715323 | U39: WAL-MART SUPERCENTERS | V39: MONROE, GA 6055 | W39: MONROE | X39: GA | Y39: 30655 | AA39: Invoiced | AB39: NEW YORK APPLE SALES | AC39: EMPIRE FRUIT | AD39: BULK 55 RPC GINGERGOLD XF WALMART APPLES | AE39: GINGERGOLD BULK 55 RPC XF WALMART | AF39: APPLES | AG39: APPLES | AI39: GINGERGOLD | AJ39: BULK | AK39: 55 RPC | AL39: XF | AM39: WALMART | AN39: USA | AP39: 47 | AQ39: 31.725 | AR39: 0.94 | AS39: 175.83 | AT39: 519.0022 | AU39: 1541.13 | AV39: 1085.7 | AW39: 11.0426 | AX39: 23.1 | AY39: G3886 | BB39: EMPIRE FRUIT | BC39: EF-GINGGOLD | BD39: EMPIRE FRUIT | BE39: 25079.25 | BF39: 25079.25 | BG39: 44084 | BI39: ctn | BJ39: 11.0426 | BK39: N | BL39: 7 | BM39: 124 | BN39: 1 | BO39: 124 | BP39: 9 | BR39: 1 | BT39: C | BU39: 2
A40: 40229 | B40: 20150 | C40: X | D40: ENTOURAGE FREIGHT SOLUTIONS | E40: 250048 | F40: G3887RPC55 | G40: 44054 | H40: 44084 | I40: 44085 | J40: 2020 | K40: 9 | L40: 10 | M40: 37 | N40: 2020-37 | O40: 2020-09 | P40: WAL-MART SUPERCENTERS-MONROE, GA 6055 | Q40: WAL-MART SUPERCENTERS | R40: BENTONVILLE | S40: AR | T40: 500715323 | U40: WAL-MART SUPERCENTERS | V40: MONROE, GA 6055 | W40: MONROE | X40: GA | Y40: 30655 | AA40: Invoiced | AB40: NEW YORK APPLE SALES | AC40: EMPIRE FRUIT | AD40: BULK 55 RPC GINGERGOLD XF WALMART APPLES | AE40: GINGERGOLD BULK 55 RPC XF WALMART | AF40: APPLES | AG40: APPLES | AI40: GINGERGOLD | AJ40: BULK | AK40: 55 RPC | AL40: XF | AM40: WALMART | AN40: USA | AP40: 28 | AQ40: 18.9 | AR40: 0.56 | AS40: 104.75 | AT40: 309.1928 | AU40: 918.12 | AV40: 646.8 | AW40: 11.0426 | AX40: 23.1 | AY40: G3887 | BB40: EMPIRE FRUIT | BC40: EF-GINGGOLD | BD40: EMPIRE FRUIT | BE40: 25079.25 | BF40: 25079.25 | BG40: 44084 | BI40: ctn | BJ40: 11.0426 | BK40: N | BL40: 7 | BM40: 124 | BN40: 1 | BO40: 124 | BP40: 9 | BR40: 1 | BT40: C | BU40: 2
A41: 40229 | B41: 20150 | C41: X | D41: ENTOURAGE FREIGHT SOLUTIONS | E41: 249813 | F41: G3885TOTEWAL | G41: 44054 | H41: 44084 | I41: 44085 | J41: 2020 | K41: 9 | L41: 10 | M41: 37 | N41: 2020-37 | O41: 2020-09 | P41: WAL-MART SUPERCENTERS-MONROE, GA 6055 | Q41: WAL-MART SUPERCENTERS | R41: BENTONVILLE | S41: AR | T41: 500715323 | U41: WAL-MART SUPERCENTERS | V41: MONROE, GA 6055 | W41: MONROE | X41: GA | Y41: 30655 | AA41: Invoiced | AB41: NEW YORK APPLE SALES | AC41: EMPIRE FRUIT | AD41: TOTES 8 1/2-21/4 GINGERGOLD XF WALMART APPLES | AE41: GINGERGOLD TOTES 8 1/2-21/4 XF WALMART 009444862 | AF41: APPLES | AG41: APPLES | AI41: GINGERGOLD | AJ41: TOTES | AK41: 8 1/2-21/4 | AL41: XF | AM41: WALMART | AN41: USA | AP41: 29 | AQ41: 29 | AR41: 0.725 | AS41: 160.72 | AT41: 428.9825 | AU41: 1311.96 | AV41: 778.65 | AW41: 14.7925 | AX41: 26.85 | AY41: G3885 | BB41: EMPIRE FRUIT | BC41: EF-GINGGOLD | BD41: EMPIRE FRUIT | BE41: 25079.25 | BF41: 25079.25 | BG41: 44084 | BI41: ctn | BJ41: 14.7925 | BK41: N | BL41: 9 | BM41: 124 | BN41: 1 | BO41: 124 | BP41: 9 | BR41: 1 | BT41: C | BU41: 2
A42: 40229 | B42: 20150 | C42: X | D42: ENTOURAGE FREIGHT SOLUTIONS | E42: 249983 | F42: G3886WALTOTE | G42: 44054 | H42: 44084 | I42: 44085 | J42: 2020 | K42: 9 | L42: 10 | M42: 37 | N42: 2020-37 | O42: 2020-09 | P42: WAL-MART SUPERCENTERS-MONROE, GA 6055 | Q42: WAL-MART SUPERCENTERS | R42: BENTONVILLE | S42: AR | T42: 500715323 | U42: WAL-MART SUPERCENTERS | V42: MONROE, GA 6055 | W42: MONROE | X42: GA | Y42: 30655 | AA42: Invoiced | AB42: NEW YORK APPLE SALES | AC42: EMPIRE FRUIT | AD42: TOTES 8 1/2-21/4 GINGERGOLD XF WALMART APPLES | AE42: GINGERGOLD TOTES 8 1/2-21/4 XF WALMART 009444862 | AF42: APPLES | AG42: APPLES | AI42: GINGERGOLD | AJ42: TOTES | AK42: 8 1/2-21/4 | AL42: XF | AM42: WALMART | AN42: USA | AP42: 251 | AQ42: 251 | AR42: 6.275 | AS42: 1391.09 | AT42: 3712.9175 | AU42: 11355.24 | AV42: 6739.35 | AW42: 14.7925 | AX42: 26.85 | AY42: G3886 | BB42: EMPIRE FRUIT | BC42: EF-GINGGOLD | BD42: EMPIRE FRUIT | BE42: 25079.25 | BF42: 25079.25 | BG42: 44084 | BI42: ctn | BJ42: 14.7925 | BK42: N | BL42: 9 | BM42: 124 | BN42: 1 | BO42: 124 | BP42: 9 | BR42: 1 | BT42: C | BU42: 2
A43: 40229 | B43: 20150 | C43: X | D43: ENTOURAGE FREIGHT SOLUTIONS | E43: 250210 | F43: 108266 | G43: 44054 | H43: 44084 | I43: 44085 | J43: 2020 | K43: 9 | L43: 10 | M43: 37 | N43: 2020-37 | O43: 2020-09 | P43: WAL-MART SUPERCENTERS-MONROE, GA 6055 | Q43: WAL-MART SUPERCENTERS | R43: BENTONVILLE | S43: AR | T43: 500715323 | U43: WAL-MART SUPERCENTERS | V43: MONROE, GA 6055 | W43: MONROE | X43: GA | Y43: 30655 | AA43: Invoiced | AB43: NEW YORK APPLE SALES | AC43: CROWN ORCHARDS | AD43: TOTES TOTES APPLES XF WALMART APPLES | AE43: APPLES TOTES TOTES XF WALMART 580033931 $21.45 | AF43: APPLES | AG43: APPLES | AI43: APPLES | AJ43: TOTES | AK43: TOTES | AL43: XF | AM43: WALMART | AN43: USA | AP43: 105 | AQ43: 105 | AR43: 3 | AS43: 581.93 | AT43: 2252.25 | AU43: 4988.55 | AV43: 2819.25 | AW43: 21.45 | AX43: 26.85 | AY43: 208T620 | AZ43: 879329007287 | BA43: 580033931 | BB43: CROWN ORCHARD COMPANY LP LLP | BC43: CO-GOLDEL | BE43: 25079.25 | BF43: 25079.25 | BG43: 44084 | BI43: ctn | BJ43: 21.45 | BK43: N | BL43: 9 | BM43: 124 | BN43: 1 | BO43: 124 | BP43: 9 | BR43: 1 | BT43: C | BU43: 2
A44: 40229 | B44: 20150 | C44: X | D44: ENTOURAGE FREIGHT SOLUTIONS | E44: 250206 | F44: 108262 | G44: 44054 | H44: 44084 | I44: 44085 | J44: 2020 | K44: 9 | L44: 10 | M44: 37 | N44: 2020-37 | O44: 2020-09 | P44: WAL-MART SUPERCENTERS-MONROE, GA 6055 | Q44: WAL-MART SUPERCENTERS | R44: BENTONVILLE | S44: AR | T44: 500715323 | U44: WAL-MART SUPERCENTERS | V44: MONROE, GA 6055 | W44: MONROE | X44: GA | Y44: 30655 | AA44: Invoiced | AB44: NEW YORK APPLE SALES | AC44: CROWN ORCHARDS | AD44: TOTES TOTES APPLES XF WALMART APPLES | AE44: APPLES TOTES TOTES XF WALMART 580033931 $21.45 | AF44: APPLES | AG44: APPLES | AI44: APPLES | AJ44: TOTES | AK44: TOTES | AL44: XF | AM44: WALMART | AN44: USA | AP44: 314 | AQ44: 314 | AR44: 8.971428571 | AS44: 1740.24 | AT44: 6735.3 | AU44: 14918.14 | AV44: 8430.9 | AW44: 21.45 | AX44: 26.85 | AY44: 209T220 | AZ44: 879329007287 | BA44: 580033931 | BB44: CROWN ORCHARD COMPANY LP LLP | BC44: CO-JONATHO | BE44: 25079.25 | BF44: 25079.25 | BG44: 44084 | BI44: ctn | BJ44: 21.45 | BK44: N | BL44: 9 | BM44: 124 | BN44: 1 | BO44: 124 | BP44: 9 | BR44: 1 | BT44: C | BU44: 2
A45: 40229 | B45: 20150 | C45: X | D45: ENTOURAGE FREIGHT SOLUTIONS | E45: 250207 | F45: 108263 | G45: 44054 | H45: 44084 | I45: 44085 | J45: 2020 | K45: 9 | L45: 10 | M45: 37 | N45: 2020-37 | O45: 2020-09 | P45: WAL-MART SUPERCENTERS-MONROE, GA 6055 | Q45: WAL-MART SUPERCENTERS | R45: BENTONVILLE | S45: AR | T45: 500715323 | U45: WAL-MART SUPERCENTERS | V45: MONROE, GA 6055 | W45: MONROE | X45: GA | Y45: 30655 | AA45: Invoiced | AB45: NEW YORK APPLE SALES | AC45: CROWN ORCHARDS | AD45: TOTES TOTES APPLES XF WALMART APPLES | AE45: APPLES TOTES TOTES XF WALMART 580033931 $21.45 | AF45: APPLES | AG45: APPLES | AI45: APPLES | AJ45: TOTES | AK45: TOTES | AL45: XF | AM45: WALMART | AN45: USA | AP45: 57 | AQ45: 57 | AR45: 1.628571429 | AS45: 315.9 | AT45: 1222.65 | AU45: 2708.07 | AV45: 1530.45 | AW45: 21.45 | AX45: 26.85 | AY45: 209T420 | AZ45: 879329007287 | BA45: 580033931 | BB45: CROWN ORCHARD COMPANY LP LLP | BC45: CO-JONATHO | BE45: 25079.25 | BF45: 25079.25 | BG45: 44084 | BI45: ctn | BJ45: 21.45 | BK45: N | BL45: 9 | BM45: 124 | BN45: 1 | BO45: 124 | BP45: 9 | BR45: 1 | BT45: C | BU45: 2
A46: 40229 | B46: 20150 | C46: X | D46: ENTOURAGE FREIGHT SOLUTIONS | E46: 250209 | F46: 108265 | G46: 44054 | H46: 44084 | I46: 44085 | J46: 2020 | K46: 9 | L46: 10 | M46: 37 | N46: 2020-37 | O46: 2020-09 | P46: WAL-MART SUPERCENTERS-MONROE, GA 6055 | Q46: WAL-MART SUPERCENTERS | R46: BENTONVILLE | S46: AR | T46: 500715323 | U46: WAL-MART SUPERCENTERS | V46: MONROE, GA 6055 | W46: MONROE | X46: GA | Y46: 30655 | AA46: Invoiced | AB46: NEW YORK APPLE SALES | AC46: CROWN ORCHARDS | AD46: TOTES TOTES APPLES XF WALMART APPLES | AE46: APPLES TOTES TOTES XF WALMART 580033931 $21.45 | AF46: APPLES | AG46: APPLES | AI46: APPLES | AJ46: TOTES | AK46: TOTES | AL46: XF | AM46: WALMART | AN46: USA | AP46: 35 | AQ46: 35 | AR46: 1 | AS46: 193.98 | AT46: 750.75 | AU46: 1662.85 | AV46: 939.75 | AW46: 21.45 | AX46: 26.85 | AY46: DG4030920 | AZ46: 879329007287 | BA46: 580033931 | BB46: CROWN ORCHARD COMPANY LP LLP | BC46: CO-GOLDEL | BE46: 25079.25 | BF46: 25079.25 | BG46: 44084 | BI46: ctn | BJ46: 21.45 | BK46: N | BL46: 9 | BM46: 124 | BN46: 1 | BO46: 124 | BP46: 9 | BR46: 1 | BT46: C | BU46: 2
A47: 40229 | B47: 20150 | C47: X | D47: ENTOURAGE FREIGHT SOLUTIONS | E47: 250208 | F47: 108264 | G47: 44054 | H47: 44084 | I47: 44085 | J47: 2020 | K47: 9 | L47: 10 | M47: 37 | N47: 2020-37 | O47: 2020-09 | P47: WAL-MART SUPERCENTERS-MONROE, GA 6055 | Q47: WAL-MART SUPERCENTERS | R47: BENTONVILLE | S47: AR | T47: 500715323 | U47: WAL-MART SUPERCENTERS | V47: MONROE, GA 6055 | W47: MONROE | X47: GA | Y47: 30655 | AA47: Invoiced | AB47: NEW YORK APPLE SALES | AC47: CROWN ORCHARDS | AD47: TOTES TOTES APPLES XF WALMART APPLES | AE47: APPLES TOTES TOTES XF WALMART 580033931 $21.45 | AF47: APPLES | AG47: APPLES | AI47: APPLES | AJ47: TOTES | AK47: TOTES | AL47: XF | AM47: WALMART | AN47: USA | AP47: 14 | AQ47: 14 | AR47: 0.4 | AS47: 77.59 | AT47: 300.3 | AU47: 665.14 | AV47: 375.9 | AW47: 21.45 | AX47: 26.85 | AY47: JO3030920 | AZ47: 879329007287 | BA47: 580033931 | BB47: CROWN ORCHARD COMPANY LP LLP | BC47: CO-JONATHO | BE47: 25079.25 | BF47: 25079.25 | BG47: 44084 | BI47: ctn | BJ47: 21.45 | BK47: N | BL47: 9 | BM47: 124 | BN47: 1 | BO47: 124 | BP47: 9 | BR47: 1 | BT47: C | BU47: 2
A48: 40230 | E48: 250085 | F48: 108203 | G48: 44054 | H48: 44083 | I48: 44084 | J48: 2020 | K48: 9 | L48: 9 | M48: 37 | N48: 2020-37 | O48: 2020-09 | P48: WAL-MART SUPERCENTERS-PAGELAND, SC 6073 | Q48: WAL-MART SUPERCENTERS | R48: BENTONVILLE | S48: AR | T48: 500715326 | U48: WAL-MART SUPERCENTERS | V48: PAGELAND, SC 6073 | W48: PAGELAND | X48: SC | Y48: 29728 | AA48: Invoiced | AB48: NEW YORK APPLE SALES | AC48: CROWN ORCHARDS | AD48: BULK 55 RPC GOLDEN DELICIOUS XF WALMART APPLES | AE48: GOLDEN DELICIOUS BULK 55 RPC XF WALMART 573579449 $20.35 | AF48: APPLES | AG48: APPLES | AI48: GOLDEN DELICIOUS | AJ48: BULK | AK48: 55 RPC | AL48: XF | AM48: WALMART | AN48: USA | AP48: 100 | AQ48: 67.5 | AR48: 2 | AS48: 0 | AT48: 2250 | AU48: 3279 | AV48: 2250 | AW48: 22.5 | AX48: 22.5 | AY48: DG4030920 | BB48: CROWN ORCHARD COMPANY LP LLP | BC48: CO-GOLDEL | BE48: 24140.4 | BF48: 24140.4 | BG48: 44083 | BI48: ctn | BJ48: 22.5 | BK48: N | BL48: 7 | BM48: 124 | BN48: 1 | BO48: 124 | BP48: 10 | BR48: 1 | BT48: C | BU48: 2
A49: 40230 | E49: 250077 | F49: 108195 | G49: 44054 | H49: 44083 | I49: 44084 | J49: 2020 | K49: 9 | L49: 9 | M49: 37 | N49: 2020-37 | O49: 2020-09 | P49: WAL-MART SUPERCENTERS-PAGELAND, SC 6073 | Q49: WAL-MART SUPERCENTERS | R49: BENTONVILLE | S49: AR | T49: 500715326 | U49: WAL-MART SUPERCENTERS | V49: PAGELAND, SC 6073 | W49: PAGELAND | X49: SC | Y49: 29728 | AA49: Invoiced | AB49: NEW YORK APPLE SALES | AC49: CROWN ORCHARDS | AD49: TOTES TOTES APPLES XF WALMART APPLES | AE49: GOLDEN DELICIOUS TOTES TOTES XF WALMART 580033931 $23.45 | AF49: APPLES | AG49: APPLES | AI49: APPLES | AJ49: TOTES | AK49: TOTES | AL49: XF | AM49: WALMART | AN49: USA | AP49: 11 | AQ49: 11 | AR49: 0.3142857143 | AS49: 0 | AT49: 257.95 | AU49: 522.61 | AV49: 286.66 | AW49: 23.45 | AX49: 26.06 | AY49: DG4030320 | AZ49: 879329007287 | BA49: 580033931 | BB49: CROWN ORCHARD COMPANY LP LLP | BC49: CO-GOLDEL | BE49: 24140.4 | BF49: 24140.4 | BG49: 44083 | BI49: ctn | BJ49: 23.45 | BK49: N | BL49: 9 | BM49: 124 | BN49: 1 | BO49: 124 | BP49: 10 | BR49: 1 | BT49: C | BU49: 2
A50: 40230 | E50: 250078 | F50: 108196 | G50: 44054 | H50: 44083 | I50: 44084 | J50: 2020 | K50: 9 | L50: 9 | M50: 37 | N50: 2020-37 | O50: 2020-09 | P50: WAL-MART SUPERCENTERS-PAGELAND, SC 6073 | Q50: WAL-MART SUPERCENTERS | R50: BENTONVILLE | S50: AR | T50: 500715326 | U50: WAL-MART SUPERCENTERS | V50: PAGELAND, SC 6073 | W50: PAGELAND | X50: SC | Y50: 29728 | AA50: Invoiced | AB50: NEW YORK APPLE SALES | AC50: CROWN ORCHARDS | AD50: TOTES TOTES APPLES XF WALMART APPLES | AE50: GOLDEN DELICIOUS TOTES TOTES XF WALMART 580033931 $23.45 | AF50: APPLES | AG50: APPLES | AI50: APPLES | AJ50: TOTES | AK50: TOTES | AL50: XF | AM50: WALMART | AN50: USA | AP50: 24 | AQ50: 24 | AR50: 0.6857142857 | AS50: 0 | AT50: 562.8 | AU50: 1140.24 | AV50: 625.44 | AW50: 23.45 | AX50: 26.06 | AY50: DG4030420 | AZ50: 879329007287 | BA50: 580033931 | BB50: CROWN ORCHARD COMPANY LP LLP | BC50: CO-GOLDEL | BE50: 24140.4 | BF50: 24140.4 | BG50: 44083 | BI50: ctn | BJ50: 23.45 | BK50: N | BL50: 9 | BM50: 124 | BN50: 1 | BO50: 124 | BP50: 10 | BR50: 1 | BT50: C | BU50: 2
A51: 40230 | E51: 250079 | F51: 108197 | G51: 44054 | H51: 44083 | I51: 44084 | J51: 2020 | K51: 9 | L51: 9 | M51: 37 | N51: 2020-37 | O51: 2020-09 | P51: WAL-MART SUPERCENTERS-PAGELAND, SC 6073 | Q51: WAL-MART SUPERCENTERS | R51: BENTONVILLE | S51: AR | T51: 500715326 | U51: WAL-MART SUPERCENTERS | V51: PAGELAND, SC 6073 | W51: PAGELAND | X51: SC | Y51: 29728 | AA51: Invoiced | AB51: NEW YORK APPLE SALES | AC51: CROWN ORCHARDS | AD51: TOTES TOTES APPLES XF WALMART APPLES | AE51: GOLDEN DELICIOUS TOTES TOTES XF WALMART 580033931 $23.45 | AF51: APPLES | AG51: APPLES | AI51: APPLES | AJ51: TOTES | AK51: TOTES | AL51: XF | AM51: WALMART | AN51: USA | AP51: 57 | AQ51: 57 | AR51: 1.628571429 | AS51: 0 | AT51: 1336.65 | AU51: 2708.07 | AV51: 1485.42 | AW51: 23.45 | AX51: 26.06 | AY51: DG4030720 | AZ51: 879329007287 | BA51: 580033931 | BB51: CROWN ORCHARD COMPANY LP LLP | BC51: CO-GOLDEL | BE51: 24140.4 | BF51: 24140.4 | BG51: 44083 | BI51: ctn | BJ51: 23.45 | BK51: N | BL51: 9 | BM51: 124 | BN51: 1 | BO51: 124 | BP51: 10 | BR51: 1 | BT51: C | BU51: 2
A52: 40230 | E52: 250080 | F52: 108198 | G52: 44054 | H52: 44083 | I52: 44084 | J52: 2020 | K52: 9 | L52: 9 | M52: 37 | N52: 2020-37 | O52: 2020-09 | P52: WAL-MART SUPERCENTERS-PAGELAND, SC 6073 | Q52: WAL-MART SUPERCENTERS | R52: BENTONVILLE | S52: AR | T52: 500715326 | U52: WAL-MART SUPERCENTERS | V52: PAGELAND, SC 6073 | W52: PAGELAND | X52: SC | Y52: 29728 | AA52: Invoiced | AB52: NEW YORK APPLE SALES | AC52: CROWN ORCHARDS | AD52: TOTES TOTES APPLES XF WALMART APPLES | AE52: GOLDEN DELICIOUS TOTES TOTES XF WALMART 580033931 $23.45 | AF52: APPLES | AG52: APPLES | AI52: APPLES | AJ52: TOTES | AK52: TOTES | AL52: XF | AM52: WALMART | AN52: USA | AP52: 35 | AQ52: 35 | AR52: 1 | AS52: 0 | AT52: 820.75 | AU52: 1662.85 | AV52: 912.1 | AW52: 23.45 | AX52: 26.06 | AY52: DG4030820 | AZ52: 879329007287 | BA52: 580033931 | BB52: CROWN ORCHARD COMPANY LP LLP | BC52: CO-GOLDEL | BE52: 24140.4 | BF52: 24140.4 | BG52: 44083 | BI52: ctn | BJ52: 23.45 | BK52: N | BL52: 9 | BM52: 124 | BN52: 1 | BO52: 124 | BP52: 10 | BR52: 1 | BT52: C | BU52: 2
A53: 40230 | E53: 250076 | F53: 108194 | G53: 44054 | H53: 44083 | I53: 44084 | J53: 2020 | K53: 9 | L53: 9 | M53: 37 | N53: 2020-37 | O53: 2020-09 | P53: WAL-MART SUPERCENTERS-PAGELAND, SC 6073 | Q53: WAL-MART SUPERCENTERS | R53: BENTONVILLE | S53: AR | T53: 500715326 | U53: WAL-MART SUPERCENTERS | V53: PAGELAND, SC 6073 | W53: PAGELAND | X53: SC | Y53: 29728 | AA53: Invoiced | AB53: NEW YORK APPLE SALES | AC53: CROWN ORCHARDS | AD53: TOTES TOTES APPLES XF WALMART APPLES | AE53: GOLDEN DELICIOUS TOTES TOTES XF WALMART 580033931 $23.45 | AF53: APPLES | AG53: APPLES | AI53: APPLES | AJ53: TOTES | AK53: TOTES | AL53: XF | AM53: WALMART | AN53: USA | AP53: 70 | AQ53: 70 | AR53: 2 | AS53: 0 | AT53: 1641.5 | AU53: 3325.7 | AV53: 1824.2 | AW53: 23.45 | AX53: 26.06 | AY53: DG4030920 | AZ53: 879329007287 | BA53: 580033931 | BB53: CROWN ORCHARD COMPANY LP LLP | BC53: CO-GOLDEL | BE53: 24140.4 | BF53: 24140.4 | BG53: 44083 | BI53: ctn | BJ53: 23.45 | BK53: N | BL53: 9 | BM53: 124 | BN53: 1 | BO53: 124 | BP53: 10 | BR53: 1 | BT53: C | BU53: 2
A54: 40230 | E54: 250081 | F54: 108199 | G54: 44054 | H54: 44083 | I54: 44084 | J54: 2020 | K54: 9 | L54: 9 | M54: 37 | N54: 2020-37 | O54: 2020-09 | P54: WAL-MART SUPERCENTERS-PAGELAND, SC 6073 | Q54: WAL-MART SUPERCENTERS | R54: BENTONVILLE | S54: AR | T54: 500715326 | U54: WAL-MART SUPERCENTERS | V54: PAGELAND, SC 6073 | W54: PAGELAND | X54: SC | Y54: 29728 | AA54: Invoiced | AB54: NEW YORK APPLE SALES | AC54: CROWN ORCHARDS | AD54: TOTES TOTES APPLES XF WALMART APPLES | AE54: GOLDEN DELICIOUS TOTES TOTES XF WALMART 580033931 $23.45 | AF54: APPLES | AG54: APPLES | AI54: APPLES | AJ54: TOTES | AK54: TOTES | AL54: XF | AM54: WALMART | AN54: USA | AP54: 83 | AQ54: 83 | AR54: 2.371428571 | AS54: 0 | AT54: 1946.35 | AU54: 3943.33 | AV54: 2162.98 | AW54: 23.45 | AX54: 26.06 | AY54: DG4030920 | AZ54: 879329007287 | BA54: 580033931 | BB54: CROWN ORCHARD COMPANY LP LLP | BC54: CO-GOLDEL | BE54: 24140.4 | BF54: 24140.4 | BG54: 44083 | BI54: ctn | BJ54: 23.45 | BK54: N | BL54: 9 | BM54: 124 | BN54: 1 | BO54: 124 | BP54: 10 | BR54: 1 | BT54: C | BU54: 2
A55: 40230 | E55: 250082 | F55: 108200 | G55: 44054 | H55: 44083 | I55: 44084 | J55: 2020 | K55: 9 | L55: 9 | M55: 37 | N55: 2020-37 | O55: 2020-09 | P55: WAL-MART SUPERCENTERS-PAGELAND, SC 6073 | Q55: WAL-MART SUPERCENTERS | R55: BENTONVILLE | S55: AR | T55: 500715326 | U55: WAL-MART SUPERCENTERS | V55: PAGELAND, SC 6073 | W55: PAGELAND | X55: SC | Y55: 29728 | AA55: Invoiced | AB55: NEW YORK APPLE SALES | AC55: CROWN ORCHARDS | AD55: TOTES TOTES APPLES XF WALMART APPLES | AE55: GOLDEN DELICIOUS TOTES TOTES XF WALMART 580033931 $23.45 | AF55: APPLES | AG55: APPLES | AI55: APPLES | AJ55: TOTES | AK55: TOTES | AL55: XF | AM55: WALMART | AN55: USA | AP55: 19 | AQ55: 19 | AR55: 0.5428571429 | AS55: 0 | AT55: 445.55 | AU55: 902.69 | AV55: 495.14 | AW55: 23.45 | AX55: 26.06 | AY55: JO3030420 | AZ55: 879329007287 | BA55: 580033931 | BB55: CROWN ORCHARD COMPANY LP LLP | BC55: CO-JONATHO | BE55: 24140.4 | BF55: 24140.4 | BG55: 44083 | BI55: ctn | BJ55: 23.45 | BK55: N | BL55: 9 | BM55: 124 | BN55: 1 | BO55: 124 | BP55: 10 | BR55: 1 | BT55: C | BU55: 2
A56: 40230 | E56: 250083 | F56: 108201 | G56: 44054 | H56: 44083 | I56: 44084 | J56: 2020 | K56: 9 | L56: 9 | M56: 37 | N56: 2020-37 | O56: 2020-09 | P56: WAL-MART SUPERCENTERS-PAGELAND, SC 6073 | Q56: WAL-MART SUPERCENTERS | R56: BENTONVILLE | S56: AR | T56: 500715326 | U56: WAL-MART SUPERCENTERS | V56: PAGELAND, SC 6073 | W56: PAGELAND | X56: SC | Y56: 29728 | AA56: Invoiced | AB56: NEW YORK APPLE SALES | AC56: CROWN ORCHARDS | AD56: TOTES TOTES APPLES XF WALMART APPLES | AE56: GOLDEN DELICIOUS TOTES TOTES XF WALMART 580033931 $23.45 | AF56: APPLES | AG56: APPLES | AI56: APPLES | AJ56: TOTES | AK56: TOTES | AL56: XF | AM56: WALMART | AN56: USA | AP56: 401 | AQ56: 401 | AR56: 11.45714286 | AS56: 0 | AT56: 9403.45 | AU56: 19051.51 | AV56: 10450.06 | AW56: 23.45 | AX56: 26.06 | AY56: JO3030820 | AZ56: 879329007287 | BA56: 580033931 | BB56: CROWN ORCHARD COMPANY LP LLP | BC56: CO-JONATHO | BE56: 24140.4 | BF56: 24140.4 | BG56: 44083 | BI56: ctn | BJ56: 23.45 | BK56: N | BL56: 9 | BM56: 124 | BN56: 1 | BO56: 124 | BP56: 10 | BR56: 1 | BT56: C | BU56: 2
A57: 40230 | E57: 250084 | F57: 108202 | G57: 44054 | H57: 44083 | I57: 44084 | J57: 2020 | K57: 9 | L57: 9 | M57: 37 | N57: 2020-37 | O57: 2020-09 | P57: WAL-MART SUPERCENTERS-PAGELAND, SC 6073 | Q57: WAL-MART SUPERCENTERS | R57: BENTONVILLE | S57: AR | T57: 500715326 | U57: WAL-MART SUPERCENTERS | V57: PAGELAND, SC 6073 | W57: PAGELAND | X57: SC | Y57: 29728 | AA57: Invoiced | AB57: NEW YORK APPLE SALES | AC57: CROWN ORCHARDS | AD57: TOTES TOTES APPLES XF WALMART APPLES | AE57: GOLDEN DELICIOUS TOTES TOTES XF WALMART 580033931 $23.45 | AF57: APPLES | AG57: APPLES | AI57: APPLES | AJ57: TOTES | AK57: TOTES | AL57: XF | AM57: WALMART | AN57: USA | AP57: 140 | AQ57: 140 | AR57: 4 | AS57: 0 | AT57: 3283 | AU57: 6651.4 | AV57: 3648.4 | AW57: 23.45 | AX57: 26.06 | AY57: JO3030920 | AZ57: 879329007287 | BA57: 580033931 | BB57: CROWN ORCHARD COMPANY LP LLP | BC57: CO-JONATHO | BE57: 24140.4 | BF57: 24140.4 | BG57: 44083 | BI57: ctn | BJ57: 23.45 | BK57: N | BL57: 9 | BM57: 124 | BN57: 1 | BO57: 124 | BP57: 10 | BR57: 1 | BT57: C | BU57: 2
A58: 40231 | B58: 20114 | C58: X | D58: MODERN FREIGHT SOLUTIONS, LLC | E58: 249702 | F58: 107991 | G58: 44054 | H58: 44076 | I58: 44079 | J58: 2020 | K58: 9 | L58: 2 | M58: 36 | N58: 2020-36 | O58: 2020-09 | P58: WAL-MART SUPERCENTERS-WINTERHAVEN, FL 6071 | Q58: WAL-MART SUPERCENTERS | R58: BENTONVILLE | S58: AR | T58: 500715317 | U58: WAL-MART SUPERCENTERS | V58: WINTERHAVEN, FL 6071 | W58: WINTER HAVEN | X58: FL | Y58: 33881 | AA58: Invoiced | AB58: NEW YORK APPLE SALES | AC58: YONDER FARMS | AD58: TOTES 8 1/2-21/4 GINGERGOLD XF WALMART APPLES | AE58: GINGER GOLD TOTES TOTES XF WALMART 580033931 | AF58: APPLES | AG58: APPLES | AI58: GINGERGOLD | AJ58: TOTES | AK58: 8 1/2-21/4 | AL58: XF | AM58: WALMART | AN58: USA | AP58: 65 | AQ58: 65 | AR58: 1.625 | AS58: 264.29 | AT58: 1475.63 | AU58: 2940.6 | AV58: 1779.05 | AW58: 22.702 | AX58: 27.37 | AY58: 106 | AZ58: 879329007287 | BA58: 580033931 | BB58: YONDER FARMS FRUIT DIST., LLC | BC58: YF-GINGGOLD | BD58: YONDER FARMS FRUIT DIST., LLC | BE58: 24906.7 | BF58: 24906.7 | BG58: 44076 | BI58: ctn | BJ58: 22.702 | BK58: N | BL58: 9 | BM58: 124 | BN58: 1 | BO58: 124 | BP58: 11 | BR58: 1 | BT58: C | BU58: 2
A59: 40231 | B59: 20114 | C59: X | D59: MODERN FREIGHT SOLUTIONS, LLC | E59: 249701 | F59: 107990 | G59: 44054 | H59: 44076 | I59: 44079 | J59: 2020 | K59: 9 | L59: 2 | M59: 36 | N59: 2020-36 | O59: 2020-09 | P59: WAL-MART SUPERCENTERS-WINTERHAVEN, FL 6071 | Q59: WAL-MART SUPERCENTERS | R59: BENTONVILLE | S59: AR | T59: 500715317 | U59: WAL-MART SUPERCENTERS | V59: WINTERHAVEN, FL 6071 | W59: WINTER HAVEN | X59: FL | Y59: 33881 | AA59: Invoiced | AB59: NEW YORK APPLE SALES | AC59: YONDER FARMS | AD59: TOTES 8 1/2-21/4 GINGERGOLD XF WALMART APPLES | AE59: GINGER GOLD TOTES TOTES XF WALMART 580033931 | AF59: APPLES | AG59: APPLES | AI59: GINGERGOLD | AJ59: TOTES | AK59: 8 1/2-21/4 | AL59: XF | AM59: WALMART | AN59: USA | AP59: 36 | AQ59: 36 | AR59: 0.9 | AS59: 146.37 | AT59: 817.272 | AU59: 1628.64 | AV59: 985.32 | AW59: 22.702 | AX59: 27.37 | AY59: 107 | AZ59: 879329007287 | BA59: 580033931 | BB59: YONDER FARMS FRUIT DIST., LLC | BC59: YF-GINGGOLD | BD59: YONDER FARMS FRUIT DIST., LLC | BE59: 24906.7 | BF59: 24906.7 | BG59: 44076 | BI59: ctn | BJ59: 22.702 | BK59: N | BL59: 9 | BM59: 124 | BN59: 1 | BO59: 124 | BP59: 11 | BR59: 1 | BT59: C | BU59: 2
A60: 40231 | B60: 20114 | C60: X | D60: MODERN FREIGHT SOLUTIONS, LLC | E60: 249700 | F60: 107989 | G60: 44054 | H60: 44076 | I60: 44079 | J60: 2020 | K60: 9 | L60: 2 | M60: 36 | N60: 2020-36 | O60: 2020-09 | P60: WAL-MART SUPERCENTERS-WINTERHAVEN, FL 6071 | Q60: WAL-MART SUPERCENTERS | R60: BENTONVILLE | S60: AR | T60: 500715317 | U60: WAL-MART SUPERCENTERS | V60: WINTERHAVEN, FL 6071 | W60: WINTER HAVEN | X60: FL | Y60: 33881 | AA60: Invoiced | AB60: NEW YORK APPLE SALES | AC60: YONDER FARMS | AD60: TOTES 8 1/2-21/4 GINGERGOLD XF WALMART APPLES | AE60: GINGER GOLD TOTES TOTES XF WALMART 580033931 | AF60: APPLES | AG60: APPLES | AI60: GINGERGOLD | AJ60: TOTES | AK60: 8 1/2-21/4 | AL60: XF | AM60: WALMART | AN60: USA | AP60: 47 | AQ60: 47 | AR60: 1.175 | AS60: 191.1 | AT60: 1066.994 | AU60: 2126.28 | AV60: 1286.39 | AW60: 22.702 | AX60: 27.37 | AY60: 108 | AZ60: 879329007287 | BA60: 580033931 | BB60: YONDER FARMS FRUIT DIST., LLC | BC60: YF-GINGGOLD | BD60: YONDER FARMS FRUIT DIST., LLC | BE60: 24906.7 | BF60: 24906.7 | BG60: 44076 | BI60: ctn | BJ60: 22.702 | BK60: N | BL60: 9 | BM60: 124 | BN60: 1 | BO60: 124 | BP60: 11 | BR60: 1 | BT60: C | BU60: 2
A61: 40231 | B61: 20114 | C61: X | D61: MODERN FREIGHT SOLUTIONS, LLC | E61: 249698 | F61: 107987 | G61: 44054 | H61: 44076 | I61: 44079 | J61: 2020 | K61: 9 | L61: 2 | M61: 36 | N61: 2020-36 | O61: 2020-09 | P61: WAL-MART SUPERCENTERS-WINTERHAVEN, FL 6071 | Q61: WAL-MART SUPERCENTERS | R61: BENTONVILLE | S61: AR | T61: 500715317 | U61: WAL-MART SUPERCENTERS | V61: WINTERHAVEN, FL 6071 | W61: WINTER HAVEN | X61: FL | Y61: 33881 | AA61: Invoiced | AB61: NEW YORK APPLE SALES | AC61: YONDER FARMS | AD61: TOTES 8 1/2-21/4 GINGERGOLD XF WALMART APPLES | AE61: GINGER GOLD TOTES TOTES XF WALMART 580033931 | AF61: APPLES | AG61: APPLES | AI61: GINGERGOLD | AJ61: TOTES | AK61: 8 1/2-21/4 | AL61: XF | AM61: WALMART | AN61: USA | AP61: 62 | AQ61: 62 | AR61: 1.55 | AS61: 252.09 | AT61: 1407.524 | AU61: 2804.88 | AV61: 1696.94 | AW61: 22.702 | AX61: 27.37 | AY61: 109 | AZ61: 879329007287 | BA61: 580033931 | BB61: YONDER FARMS FRUIT DIST., LLC | BC61: YF-GINGGOLD | BD61: YONDER FARMS FRUIT DIST., LLC | BE61: 24906.7 | BF61: 24906.7 | BG61: 44076 | BI61: ctn | BJ61: 22.702 | BK61: N | BL61: 9 | BM61: 124 | BN61: 1 | BO61: 124 | BP61: 11 | BR61: 1 | BT61: C | BU61: 2
A62: 40231 | B62: 20114 | C62: X | D62: MODERN FREIGHT SOLUTIONS, LLC | E62: 249699 | F62: 107988 | G62: 44054 | H62: 44076 | I62: 44079 | J62: 2020 | K62: 9 | L62: 2 | M62: 36 | N62: 2020-36 | O62: 2020-09 | P62: WAL-MART SUPERCENTERS-WINTERHAVEN, FL 6071 | Q62: WAL-MART SUPERCENTERS | R62: BENTONVILLE | S62: AR | T62: 500715317 | U62: WAL-MART SUPERCENTERS | V62: WINTERHAVEN, FL 6071 | W62: WINTER HAVEN | X62: FL | Y62: 33881 | AA62: Invoiced | AB62: NEW YORK APPLE SALES | AC62: YONDER FARMS | AD62: TOTES 8 1/2-21/4 GINGERGOLD XF WALMART APPLES | AE62: GINGER GOLD TOTES TOTES XF WALMART 580033931 | AF62: APPLES | AG62: APPLES | AI62: GINGERGOLD | AJ62: TOTES | AK62: 8 1/2-21/4 | AL62: XF | AM62: WALMART | AN62: USA | AP62: 131 | AQ62: 131 | AR62: 3.275 | AS62: 532.64 | AT62: 2973.962 | AU62: 5926.44 | AV62: 3585.47 | AW62: 22.702 | AX62: 27.37 | AY62: 109 | AZ62: 879329007287 | BA62: 580033931 | BB62: YONDER FARMS FRUIT DIST., LLC | BC62: YF-GINGGOLD | BD62: YONDER FARMS FRUIT DIST., LLC | BE62: 24906.7 | BF62: 24906.7 | BG62: 44076 | BI62: ctn | BJ62: 22.702 | BK62: N | BL62: 9 | BM62: 124 | BN62: 1 | BO62: 124 | BP62: 11 | BR62: 1 | BT62: C | BU62: 2
A63: 40231 | B63: 20114 | C63: X | D63: MODERN FREIGHT SOLUTIONS, LLC | E63: 249697 | F63: 107986 | G63: 44054 | H63: 44076 | I63: 44079 | J63: 2020 | K63: 9 | L63: 2 | M63: 36 | N63: 2020-36 | O63: 2020-09 | P63: WAL-MART SUPERCENTERS-WINTERHAVEN, FL 6071 | Q63: WAL-MART SUPERCENTERS | R63: BENTONVILLE | S63: AR | T63: 500715317 | U63: WAL-MART SUPERCENTERS | V63: WINTERHAVEN, FL 6071 | W63: WINTER HAVEN | X63: FL | Y63: 33881 | AA63: Invoiced | AB63: NEW YORK APPLE SALES | AC63: YONDER FARMS | AD63: TOTES 8 1/2-21/4 GINGERGOLD XF WALMART APPLES | AE63: GINGER GOLD TOTES TOTES XF WALMART 580033931 | AF63: APPLES | AG63: APPLES | AI63: GINGERGOLD | AJ63: TOTES | AK63: 8 1/2-21/4 | AL63: XF | AM63: WALMART | AN63: USA | AP63: 149 | AQ63: 149 | AR63: 3.725 | AS63: 605.82 | AT63: 3382.598 | AU63: 6740.76 | AV63: 4078.13 | AW63: 22.702 | AX63: 27.37 | AY63: 113 | AZ63: 879329007287 | BA63: 580033931 | BB63: YONDER FARMS FRUIT DIST., LLC | BC63: YF-GINGGOLD | BD63: YONDER FARMS FRUIT DIST., LLC | BE63: 24906.7 | BF63: 24906.7 | BG63: 44076 | BI63: ctn | BJ63: 22.702 | BK63: N | BL63: 9 | BM63: 124 | BN63: 1 | BO63: 124 | BP63: 11 | BR63: 1 | BT63: C | BU63: 2
A64: 40231 | B64: 20114 | C64: X | D64: MODERN FREIGHT SOLUTIONS, LLC | E64: 249696 | F64: 107985 | G64: 44054 | H64: 44076 | I64: 44079 | J64: 2020 | K64: 9 | L64: 2 | M64: 36 | N64: 2020-36 | O64: 2020-09 | P64: WAL-MART SUPERCENTERS-WINTERHAVEN, FL 6071 | Q64: WAL-MART SUPERCENTERS | R64: BENTONVILLE | S64: AR | T64: 500715317 | U64: WAL-MART SUPERCENTERS | V64: WINTERHAVEN, FL 6071 | W64: WINTER HAVEN | X64: FL | Y64: 33881 | AA64: Invoiced | AB64: NEW YORK APPLE SALES | AC64: YONDER FARMS | AD64: TOTES 8 1/2-21/4 GINGERGOLD XF WALMART APPLES | AE64: GINGER GOLD TOTES TOTES XF WALMART 580033931 | AF64: APPLES | AG64: APPLES | AI64: GINGERGOLD | AJ64: TOTES | AK64: 8 1/2-21/4 | AL64: XF | AM64: WALMART | AN64: USA | AP64: 100 | AQ64: 100 | AR64: 2.5 | AS64: 406.59 | AT64: 2270.2 | AU64: 4524 | AV64: 2737 | AW64: 22.702 | AX64: 27.37 | AY64: 114 | AZ64: 879329007287 | BA64: 580033931 | BB64: YONDER FARMS FRUIT DIST., LLC | BC64: YF-GINGGOLD | BD64: YONDER FARMS FRUIT DIST., LLC | BE64: 24906.7 | BF64: 24906.7 | BG64: 44076 | BI64: ctn | BJ64: 22.702 | BK64: N | BL64: 9 | BM64: 124 | BN64: 1 | BO64: 124 | BP64: 11 | BR64: 1 | BT64: C | BU64: 2
A65: 40231 | B65: 20114 | C65: X | D65: MODERN FREIGHT SOLUTIONS, LLC | E65: 249706 | F65: 107995 | G65: 44054 | H65: 44076 | I65: 44079 | J65: 2020 | K65: 9 | L65: 2 | M65: 36 | N65: 2020-36 | O65: 2020-09 | P65: WAL-MART SUPERCENTERS-WINTERHAVEN, FL 6071 | Q65: WAL-MART SUPERCENTERS | R65: BENTONVILLE | S65: AR | T65: 500715317 | U65: WAL-MART SUPERCENTERS | V65: WINTERHAVEN, FL 6071 | W65: WINTER HAVEN | X65: FL | Y65: 33881 | AA65: Invoiced | AB65: NEW YORK APPLE SALES | AC65: YONDER FARMS | AD65: TOTES 8 1/2-21/4 PAULA RED XF WALMART APPLES | AE65: PAULA RED TOTES TOTES XF WALMART 580033931 | AF65: APPLES | AG65: APPLES | AI65: PAULA RED | AJ65: TOTES | AK65: 8 1/2-21/4 | AL65: XF | AM65: WALMART | AN65: USA | AP65: 103 | AQ65: 103 | AR65: 2.575 | AS65: 418.79 | AT65: 2338.306 | AU65: 4659.72 | AV65: 2819.11 | AW65: 22.702 | AX65: 27.37 | AY65: 100 | AZ65: 879329007287 | BA65: 580033931 | BB65: YONDER FARMS FRUIT DIST., LLC | BC65: YF-PAULARED | BD65: YONDER FARMS FRUIT DIST., LLC | BE65: 24906.7 | BF65: 24906.7 | BG65: 44076 | BI65: ctn | BJ65: 22.702 | BK65: N | BL65: 9 | BM65: 124 | BN65: 1 | BO65: 124 | BP65: 11 | BR65: 1 | BT65: C | BU65: 2
A66: 40231 | B66: 20114 | C66: X | D66: MODERN FREIGHT SOLUTIONS, LLC | E66: 249705 | F66: 107994 | G66: 44054 | H66: 44076 | I66: 44079 | J66: 2020 | K66: 9 | L66: 2 | M66: 36 | N66: 2020-36 | O66: 2020-09 | P66: WAL-MART SUPERCENTERS-WINTERHAVEN, FL 6071 | Q66: WAL-MART SUPERCENTERS | R66: BENTONVILLE | S66: AR | T66: 500715317 | U66: WAL-MART SUPERCENTERS | V66: WINTERHAVEN, FL 6071 | W66: WINTER HAVEN | X66: FL | Y66: 33881 | AA66: Invoiced | AB66: NEW YORK APPLE SALES | AC66: YONDER FARMS | AD66: TOTES 8 1/2-21/4 PAULA RED XF WALMART APPLES | AE66: PAULA RED TOTES TOTES XF WALMART 580033931 | AF66: APPLES | AG66: APPLES | AI66: PAULA RED | AJ66: TOTES | AK66: 8 1/2-21/4 | AL66: XF | AM66: WALMART | AN66: USA | AP66: 95 | AQ66: 95 | AR66: 2.375 | AS66: 386.26 | AT66: 2156.69 | AU66: 4297.8 | AV66: 2600.15 | AW66: 22.702 | AX66: 27.37 | AY66: 101 | AZ66: 879329007287 | BA66: 580033931 | BB66: YONDER FARMS FRUIT DIST., LLC | BC66: YF-PAULARED | BD66: YONDER FARMS FRUIT DIST., LLC | BE66: 24906.7 | BF66: 24906.7 | BG66: 44076 | BI66: ctn | BJ66: 22.702 | BK66: N | BL66: 9 | BM66: 124 | BN66: 1 | BO66: 124 | BP66: 11 | BR66: 1 | BT66: C | BU66: 2
A67: 40231 | B67: 20114 | C67: X | D67: MODERN FREIGHT SOLUTIONS, LLC | E67: 249707 | F67: 107996 | G67: 44054 | H67: 44076 | I67: 44079 | J67: 2020 | K67: 9 | L67: 2 | M67: 36 | N67: 2020-36 | O67: 2020-09 | P67: WAL-MART SUPERCENTERS-WINTERHAVEN, FL 6071 | Q67: WAL-MART SUPERCENTERS | R67: BENTONVILLE | S67: AR | T67: 500715317 | U67: WAL-MART SUPERCENTERS | V67: WINTERHAVEN, FL 6071 | W67: WINTER HAVEN | X67: FL | Y67: 33881 | AA67: Invoiced | AB67: NEW YORK APPLE SALES | AC67: YONDER FARMS | AD67: TOTES 8 1/2-21/4 PAULA RED XF WALMART APPLES | AE67: PAULA RED TOTES TOTES XF WALMART 580033931 | AF67: APPLES | AG67: APPLES | AI67: PAULA RED | AJ67: TOTES | AK67: 8 1/2-21/4 | AL67: XF | AM67: WALMART | AN67: USA | AP67: 16 | AQ67: 16 | AR67: 0.4 | AS67: 65.05 | AT67: 363.232 | AU67: 723.84 | AV67: 437.92 | AW67: 22.702 | AX67: 27.37 | AY67: 102 | AZ67: 879329007287 | BA67: 580033931 | BB67: YONDER FARMS FRUIT DIST., LLC | BC67: YF-PAULARED | BD67: YONDER FARMS FRUIT DIST., LLC | BE67: 24906.7 | BF67: 24906.7 | BG67: 44076 | BI67: ctn | BJ67: 22.702 | BK67: N | BL67: 9 | BM67: 124 | BN67: 1 | BO67: 124 | BP67: 11 | BR67: 1 | BT67: C | BU67: 2
A68: 40231 | B68: 20114 | C68: X | D68: MODERN FREIGHT SOLUTIONS, LLC | E68: 249704 | F68: 107993 | G68: 44054 | H68: 44076 | I68: 44079 | J68: 2020 | K68: 9 | L68: 2 | M68: 36 | N68: 2020-36 | O68: 2020-09 | P68: WAL-MART SUPERCENTERS-WINTERHAVEN, FL 6071 | Q68: WAL-MART SUPERCENTERS | R68: BENTONVILLE | S68: AR | T68: 500715317 | U68: WAL-MART SUPERCENTERS | V68: WINTERHAVEN, FL 6071 | W68: WINTER HAVEN | X68: FL | Y68: 33881 | AA68: Invoiced | AB68: NEW YORK APPLE SALES | AC68: YONDER FARMS | AD68: TOTES 8 1/2-21/4 PAULA RED XF WALMART APPLES | AE68: PAULA RED TOTES TOTES XF WALMART 580033931 | AF68: APPLES | AG68: APPLES | AI68: PAULA RED | AJ68: TOTES | AK68: 8 1/2-21/4 | AL68: XF | AM68: WALMART | AN68: USA | AP68: 93 | AQ68: 93 | AR68: 2.325 | AS68: 378.13 | AT68: 2111.286 | AU68: 4207.32 | AV68: 2545.41 | AW68: 22.702 | AX68: 27.37 | AY68: 103 | AZ68: 879329007287 | BA68: 580033931 | BB68: YONDER FARMS FRUIT DIST., LLC | BC68: YF-PAULARED | BD68: YONDER FARMS FRUIT DIST., LLC | BE68: 24906.7 | BF68: 24906.7 | BG68: 44076 | BI68: ctn | BJ68: 22.702 | BK68: N | BL68: 9 | BM68: 124 | BN68: 1 | BO68: 124 | BP68: 11 | BR68: 1 | BT68: C | BU68: 2
A69: 40231 | B69: 20114 | C69: X | D69: MODERN FREIGHT SOLUTIONS, LLC | E69: 249703 | F69: 107992 | G69: 44054 | H69: 44076 | I69: 44079 | J69: 2020 | K69: 9 | L69: 2 | M69: 36 | N69: 2020-36 | O69: 2020-09 | P69: WAL-MART SUPERCENTERS-WINTERHAVEN, FL 6071 | Q69: WAL-MART SUPERCENTERS | R69: BENTONVILLE | S69: AR | T69: 500715317 | U69: WAL-MART SUPERCENTERS | V69: WINTERHAVEN, FL 6071 | W69: WINTER HAVEN | X69: FL | Y69: 33881 | AA69: Invoiced | AB69: NEW YORK APPLE SALES | AC69: YONDER FARMS | AD69: TOTES 8 1/2-21/4 PAULA RED XF WALMART APPLES | AE69: PAULA RED TOTES TOTES XF WALMART 580033931 | AF69: APPLES | AG69: APPLES | AI69: PAULA RED | AJ69: TOTES | AK69: 8 1/2-21/4 | AL69: XF | AM69: WALMART | AN69: USA | AP69: 13 | AQ69: 13 | AR69: 0.325 | AS69: 52.87 | AT69: 295.126 | AU69: 588.12 | AV69: 355.81 | AW69: 22.702 | AX69: 27.37 | AY69: 104 | AZ69: 879329007287 | BA69: 580033931 | BB69: YONDER FARMS FRUIT DIST., LLC | BC69: YF-PAULARED | BD69: YONDER FARMS FRUIT DIST., LLC | BE69: 24906.7 | BF69: 24906.7 | BG69: 44076 | BI69: ctn | BJ69: 22.702 | BK69: N | BL69: 9 | BM69: 124 | BN69: 1 | BO69: 124 | BP69: 11 | BR69: 1 | BT69: C | BU69: 2
A70: 40232 | E70: 249833 | F70: 108051 | G70: 44054 | H70: 44078 | I70: 44079 | J70: 2020 | K70: 9 | L70: 4 | M70: 36 | N70: 2020-36 | O70: 2020-09 | P70: WAL-MART SUPERCENTERS-PAGELAND, SC 6073 | Q70: WAL-MART SUPERCENTERS | R70: BENTONVILLE | S70: AR | T70: 500715313 | U70: WAL-MART SUPERCENTERS | V70: PAGELAND, SC 6073 | W70: PAGELAND | X70: SC | Y70: 29728 | AA70: Invoiced | AB70: NEW YORK APPLE SALES | AC70: CROWN ORCHARDS | AD70: TOTES TOTES GOLDEN DELICIOUS XF WALMART APPLES | AE70: APPLES TOTES TOTES XF WALMART $23.45 | AF70: APPLES | AG70: APPLES | AI70: GOLDEN DELICIOUS | AJ70: TOTES | AK70: TOTES | AL70: XF | AM70: WALMART | AN70: USA | AP70: 210 | AQ70: 210 | AR70: 6 | AS70: 0 | AT70: 4924.5 | AU70: 9977.1 | AV70: 5472.6 | AW70: 23.45 | AX70: 26.06 | AY70: 203C20 | BB70: CROWN ORCHARD COMPANY LP LLP | BC70: CO-APPLES | BE70: 23714.6 | BF70: 23714.6 | BG70: 44078 | BI70: ctn | BJ70: 23.45 | BK70: N | BL70: 9 | BM70: 124 | BN70: 1 | BO70: 124 | BP70: 10 | BR70: 1 | BT70: C | BU70: 2
A71: 40232 | E71: 249832 | F71: 108050 | G71: 44054 | H71: 44078 | I71: 44079 | J71: 2020 | K71: 9 | L71: 4 | M71: 36 | N71: 2020-36 | O71: 2020-09 | P71: WAL-MART SUPERCENTERS-PAGELAND, SC 6073 | Q71: WAL-MART SUPERCENTERS | R71: BENTONVILLE | S71: AR | T71: 500715313 | U71: WAL-MART SUPERCENTERS | V71: PAGELAND, SC 6073 | W71: PAGELAND | X71: SC | Y71: 29728 | AA71: Invoiced | AB71: NEW YORK APPLE SALES | AC71: CROWN ORCHARDS | AD71: TOTES TOTES JONATHAN XF WALMART APPLES | AE71: APPLES TOTES TOTES XF WALMART 580033931 $23.45 | AF71: APPLES | AG71: APPLES | AI71: JONATHAN | AJ71: TOTES | AK71: TOTES | AL71: XF | AM71: WALMART | AN71: USA | AP71: 700 | AQ71: 700 | AR71: 20 | AS71: 0 | AT71: 16415 | AU71: 33257 | AV71: 18242 | AW71: 23.45 | AX71: 26.06 | AY71: JO3030420 | AZ71: 879329007287 | BA71: 580033931 | BB71: CROWN ORCHARD COMPANY LP LLP | BC71: CO-JONAMAC | BE71: 23714.6 | BF71: 23714.6 | BG71: 44078 | BI71: ctn | BJ71: 23.45 | BK71: N | BL71: 9 | BM71: 124 | BN71: 1 | BO71: 124 | BP71: 10 | BR71: 1 | BT71: C | BU71: 2
A72: 40233 | E72: 249903 | F72: 108121 | G72: 44054 | H72: 44078 | I72: 44079 | J72: 2020 | K72: 9 | L72: 4 | M72: 36 | N72: 2020-36 | O72: 2020-09 | P72: WAL-MART SUPERCENTERS-MONROE, GA 6055 | Q72: WAL-MART SUPERCENTERS | R72: BENTONVILLE | S72: AR | T72: 500715316 | U72: WAL-MART SUPERCENTERS | V72: MONROE, GA 6055 | W72: MONROE | X72: GA | Y72: 30655 | AA72: Invoiced | AB72: NEW YORK APPLE SALES | AC72: CROWN ORCHARDS | AD72: TOTES TOTES GOLDEN DELICIOUS XF WALMART APPLES | AE72: GOLDEN DELICIOUS TOTES TOTES XF WALMART $24.25 | AF72: APPLES | AG72: APPLES | AI72: GOLDEN DELICIOUS | AJ72: TOTES | AK72: TOTES | AL72: XF | AM72: WALMART | AN72: USA | AP72: 600 | AQ72: 600 | AR72: 17.14285714 | AS72: 0 | AT72: 14550 | AU72: 28506 | AV72: 16110 | AW72: 24.25 | AX72: 26.85 | AY72: 2020C20 | BB72: CROWN ORCHARD COMPANY LP LLP | BC72: CO-GOLDEL | BE72: 24433.5 | BF72: 24433.5 | BG72: 44078 | BI72: ctn | BJ72: 24.25 | BK72: N | BL72: 9 | BM72: 124 | BN72: 1 | BO72: 124 | BP72: 9 | BR72: 1 | BT72: C | BU72: 2
A73: 40233 | E73: 249904 | F73: 108122 | G73: 44054 | H73: 44078 | I73: 44079 | J73: 2020 | K73: 9 | L73: 4 | M73: 36 | N73: 2020-36 | O73: 2020-09 | P73: WAL-MART SUPERCENTERS-MONROE, GA 6055 | Q73: WAL-MART SUPERCENTERS | R73: BENTONVILLE | S73: AR | T73: 500715316 | U73: WAL-MART SUPERCENTERS | V73: MONROE, GA 6055 | W73: MONROE | X73: GA | Y73: 30655 | AA73: Invoiced | AB73: NEW YORK APPLE SALES | AC73: CROWN ORCHARDS | AD73: TOTES TOTES GOLDEN DELICIOUS XF WALMART APPLES | AE73: GOLDEN DELICIOUS TOTES TOTES XF WALMART $24.25 | AF73: APPLES | AG73: APPLES | AI73: GOLDEN DELICIOUS | AJ73: TOTES | AK73: TOTES | AL73: XF | AM73: WALMART | AN73: USA | AP73: 30 | AQ73: 30 | AR73: 0.8571428571 | AS73: 0 | AT73: 727.5 | AU73: 1425.3 | AV73: 805.5 | AW73: 24.25 | AX73: 26.85 | AY73: 203C20 | BB73: CROWN ORCHARD COMPANY LP LLP | BC73: CO-GOLDEL | BE73: 24433.5 | BF73: 24433.5 | BG73: 44078 | BI73: ctn | BJ73: 24.25 | BK73: N | BL73: 9 | BM73: 124 | BN73: 1 | BO73: 124 | BP73: 9 | BR73: 1 | BT73: C | BU73: 2
A74: 40233 | E74: 249902 | F74: 108120 | G74: 44054 | H74: 44078 | I74: 44079 | J74: 2020 | K74: 9 | L74: 4 | M74: 36 | N74: 2020-36 | O74: 2020-09 | P74: WAL-MART SUPERCENTERS-MONROE, GA 6055 | Q74: WAL-MART SUPERCENTERS | R74: BENTONVILLE | S74: AR | T74: 500715316 | U74: WAL-MART SUPERCENTERS | V74: MONROE, GA 6055 | W74: MONROE | X74: GA | Y74: 30655 | AA74: Invoiced | AB74: NEW YORK APPLE SALES | AC74: CROWN ORCHARDS | AD74: TOTES TOTES JONATHAN XF WALMART APPLES | AE74: APPLES TOTES TOTES XF WALMART $24.25 | AF74: APPLES | AG74: APPLES | AI74: JONATHAN | AJ74: TOTES | AK74: TOTES | AL74: XF | AM74: WALMART | AN74: USA | AP74: 280 | AQ74: 280 | AR74: 8 | AS74: 0 | AT74: 6790 | AU74: 13302.8 | AV74: 7518 | AW74: 24.25 | AX74: 26.85 | AY74: JO3030420 | AZ74: 879329007287 | BA74: 580033931 | BB74: CROWN ORCHARD COMPANY LP LLP | BC74: CO-JONATHO | BE74: 24433.5 | BF74: 24433.5 | BG74: 44078 | BI74: ctn | BJ74: 24.25 | BK74: N | BL74: 9 | BM74: 124 | BN74: 1 | BO74: 124 | BP74: 9 | BR74: 1 | BT74: C | BU74: 2
A75: 40234 | B75: 20149 | C75: X | D75: J. TORNABENE TRUCK BROKERS | E75: 249788 | F75: G3884RPC55 | G75: 44054 | H75: 44083 | I75: 44084 | J75: 2020 | K75: 9 | L75: 9 | M75: 37 | N75: 2020-37 | O75: 2020-09 | P75: WAL-MART SUPERCENTERS-JOHNSTOWN, NY 6096 | Q75: WAL-MART SUPERCENTERS | R75: BENTONVILLE | S75: AR | T75: 500715330 | U75: WAL-MART SUPERCENTERS | V75: JOHNSTOWN, NY 6096 | W75: JOHNSTOWN | X75: NY | Y75: 12095 | AA75: Invoiced | AB75: NEW YORK APPLE SALES | AC75: EMPIRE FRUIT | AD75: BULK 55 RPC GINGERGOLD XF WALMART APPLES | AE75: GINGERGOLD BULK 55 RPC XF WALMART | AF75: APPLES | AG75: APPLES | AI75: GINGERGOLD | AJ75: BULK | AK75: 55 RPC | AL75: XF | AM75: WALMART | AN75: USA | AP75: 32 | AQ75: 21.6 | AR75: 0.64 | AS75: 50.05 | AT75: 589.568 | AU75: 1049.28 | AV75: 672 | AW75: 18.424 | AX75: 21 | AY75: G3884 | BB75: EMPIRE FRUIT | BC75: EF-GINGGOLD | BD75: EMPIRE FRUIT | BE75: 22534.4 | BF75: 22534.4 | BG75: 44083 | BI75: ctn | BJ75: 18.424 | BK75: N | BL75: 7 | BM75: 124 | BN75: 1 | BO75: 124 | BP75: 5 | BR75: 1 | BT75: C | BU75: 2
A76: 40234 | B76: 20149 | C76: X | D76: J. TORNABENE TRUCK BROKERS | E76: 249807 | F76: G3885RPC55 | G76: 44054 | H76: 44083 | I76: 44084 | J76: 2020 | K76: 9 | L76: 9 | M76: 37 | N76: 2020-37 | O76: 2020-09 | P76: WAL-MART SUPERCENTERS-JOHNSTOWN, NY 6096 | Q76: WAL-MART SUPERCENTERS | R76: BENTONVILLE | S76: AR | T76: 500715330 | U76: WAL-MART SUPERCENTERS | V76: JOHNSTOWN, NY 6096 | W76: JOHNSTOWN | X76: NY | Y76: 12095 | AA76: Invoiced | AB76: NEW YORK APPLE SALES | AC76: EMPIRE FRUIT | AD76: BULK 55 RPC GINGERGOLD XF WALMART APPLES | AE76: GINGERGOLD BULK 55 RPC XF WALMART | AF76: APPLES | AG76: APPLES | AI76: GINGERGOLD | AJ76: BULK | AK76: 55 RPC | AL76: XF | AM76: WALMART | AN76: USA | AP76: 18 | AQ76: 12.15 | AR76: 0.36 | AS76: 28.15 | AT76: 331.632 | AU76: 590.22 | AV76: 378 | AW76: 18.424 | AX76: 21 | AY76: G3885 | BB76: EMPIRE FRUIT | BC76: EF-GINGGOLD | BD76: EMPIRE FRUIT | BE76: 22534.4 | BF76: 22534.4 | BG76: 44083 | BI76: ctn | BJ76: 18.424 | BK76: N | BL76: 7 | BM76: 124 | BN76: 1 | BO76: 124 | BP76: 5 | BR76: 1 | BT76: C | BU76: 2
A77: 40234 | B77: 20149 | C77: X | D77: J. TORNABENE TRUCK BROKERS | E77: 249789 | F77: G3884RPC60 | G77: 44054 | H77: 44083 | I77: 44084 | J77: 2020 | K77: 9 | L77: 9 | M77: 37 | N77: 2020-37 | O77: 2020-09 | P77: WAL-MART SUPERCENTERS-JOHNSTOWN, NY 6096 | Q77: WAL-MART SUPERCENTERS | R77: BENTONVILLE | S77: AR | T77: 500715330 | U77: WAL-MART SUPERCENTERS | V77: JOHNSTOWN, NY 6096 | W77: JOHNSTOWN | X77: NY | Y77: 12095 | AA77: Invoiced | AB77: NEW YORK APPLE SALES | AC77: EMPIRE FRUIT | AD77: BULK 60 RPC GINGERGOLD XF WALMART APPLES | AE77: GINGERGOLD BULK 60 RPC XF WALMART 573579449 | AF77: APPLES | AG77: APPLES | AI77: GINGERGOLD | AJ77: BULK | AK77: 60 RPC | AL77: XF | AM77: WALMART | AN77: USA | AP77: 85 | AQ77: 57.375 | AR77: 1.7 | AS77: 132.95 | AT77: 1566.04 | AU77: 2787.15 | AV77: 1785 | AW77: 18.424 | AX77: 21 | AY77: G3884 | BB77: EMPIRE FRUIT | BC77: EF-GINGGOLD | BD77: EMPIRE FRUIT | BE77: 22534.4 | BF77: 22534.4 | BG77: 44083 | BI77: ctn | BJ77: 18.424 | BK77: N | BL77: 7 | BM77: 124 | BN77: 1 | BO77: 124 | BP77: 5 | BR77: 1 | BT77: C | BU77: 2
A78: 40234 | B78: 20149 | C78: X | D78: J. TORNABENE TRUCK BROKERS | E78: 249808 | F78: G3885RPC60 | G78: 44054 | H78: 44083 | I78: 44084 | J78: 2020 | K78: 9 | L78: 9 | M78: 37 | N78: 2020-37 | O78: 2020-09 | P78: WAL-MART SUPERCENTERS-JOHNSTOWN, NY 6096 | Q78: WAL-MART SUPERCENTERS | R78: BENTONVILLE | S78: AR | T78: 500715330 | U78: WAL-MART SUPERCENTERS | V78: JOHNSTOWN, NY 6096 | W78: JOHNSTOWN | X78: NY | Y78: 12095 | AA78: Invoiced | AB78: NEW YORK APPLE SALES | AC78: EMPIRE FRUIT | AD78: BULK 60 RPC GINGERGOLD XF WALMART APPLES | AE78: GINGERGOLD BULK 60 RPC XF WALMART 573579449 | AF78: APPLES | AG78: APPLES | AI78: GINGERGOLD | AJ78: BULK | AK78: 60 RPC | AL78: XF | AM78: WALMART | AN78: USA | AP78: 15 | AQ78: 10.125 | AR78: 0.3 | AS78: 23.46 | AT78: 276.36 | AU78: 491.85 | AV78: 315 | AW78: 18.424 | AX78: 21 | AY78: G3885 | BB78: EMPIRE FRUIT | BC78: EF-GINGGOLD | BD78: EMPIRE FRUIT | BE78: 22534.4 | BF78: 22534.4 | BG78: 44083 | BI78: ctn | BJ78: 18.424 | BK78: N | BL78: 7 | BM78: 124 | BN78: 1 | BO78: 124 | BP78: 5 | BR78: 1 | BT78: C | BU78: 2
A79: 40234 | B79: 20149 | C79: X | D79: J. TORNABENE TRUCK BROKERS | E79: 249764 | F79: G3881WALTOTE | G79: 44054 | H79: 44083 | I79: 44084 | J79: 2020 | K79: 9 | L79: 9 | M79: 37 | N79: 2020-37 | O79: 2020-09 | P79: WAL-MART SUPERCENTERS-JOHNSTOWN, NY 6096 | Q79: WAL-MART SUPERCENTERS | R79: BENTONVILLE | S79: AR | T79: 500715330 | U79: WAL-MART SUPERCENTERS | V79: JOHNSTOWN, NY 6096 | W79: JOHNSTOWN | X79: NY | Y79: 12095 | AA79: Invoiced | AB79: NEW YORK APPLE SALES | AC79: EMPIRE FRUIT | AD79: TOTES 8 1/2-21/2 PAULA RED XF WALMART APPLES | AE79: PAULA RED TOTES 8 1/2-21/2 XF WALMART | AF79: APPLES | AG79: APPLES | AI79: PAULA RED | AJ79: TOTES | AK79: 8 1/2-21/2 | AL79: XF | AM79: WALMART | AN79: USA | AP79: 280 | AQ79: 280 | AR79: 7 | AS79: 648.83 | AT79: 6021.12 | AU79: 12667.2 | AV79: 6742.4 | AW79: 21.504 | AX79: 24.08 | AY79: 3881 | AZ79: 879329007287 | BA79: 580033931 | BB79: EMPIRE FRUIT | BC79: EF-PAULARED | BD79: EMPIRE FRUIT | BE79: 22534.4 | BF79: 22534.4 | BG79: 44083 | BI79: ctn | BJ79: 21.504 | BK79: N | BL79: 9 | BM79: 124 | BN79: 1 | BO79: 124 | BP79: 5 | BR79: 1 | BT79: C | BU79: 2
A80: 40234 | B80: 20149 | C80: X | D80: J. TORNABENE TRUCK BROKERS | E80: 249766 | F80: G3882WALTOTE | G80: 44054 | H80: 44083 | I80: 44084 | J80: 2020 | K80: 9 | L80: 9 | M80: 37 | N80: 2020-37 | O80: 2020-09 | P80: WAL-MART SUPERCENTERS-JOHNSTOWN, NY 6096 | Q80: WAL-MART SUPERCENTERS | R80: BENTONVILLE | S80: AR | T80: 500715330 | U80: WAL-MART SUPERCENTERS | V80: JOHNSTOWN, NY 6096 | W80: JOHNSTOWN | X80: NY | Y80: 12095 | AA80: Invoiced | AB80: NEW YORK APPLE SALES | AC80: EMPIRE FRUIT | AD80: TOTES 8 1/2-21/2 PAULA RED XF WALMART APPLES | AE80: PAULA RED TOTES 8 1/2-21/2 XF WALMART | AF80: APPLES | AG80: APPLES | AI80: PAULA RED | AJ80: TOTES | AK80: 8 1/2-21/2 | AL80: XF | AM80: WALMART | AN80: USA | AP80: 6 | AQ80: 6 | AR80: 0.15 | AS80: 13.9 | AT80: 129.024 | AU80: 271.44 | AV80: 144.48 | AW80: 21.504 | AX80: 24.08 | AY80: 3882 | AZ80: 879329007287 | BA80: 580033931 | BB80: EMPIRE FRUIT | BC80: EF-PAULARED | BD80: EMPIRE FRUIT | BE80: 22534.4 | BF80: 22534.4 | BG80: 44083 | BI80: ctn | BJ80: 21.504 | BK80: N | BL80: 9 | BM80: 124 | BN80: 1 | BO80: 124 | BP80: 5 | BR80: 1 | BT80: C | BU80: 2
A81: 40234 | B81: 20149 | C81: X | D81: J. TORNABENE TRUCK BROKERS | E81: 249813 | F81: G3885TOTEWAL | G81: 44054 | H81: 44083 | I81: 44084 | J81: 2020 | K81: 9 | L81: 9 | M81: 37 | N81: 2020-37 | O81: 2020-09 | P81: WAL-MART SUPERCENTERS-JOHNSTOWN, NY 6096 | Q81: WAL-MART SUPERCENTERS | R81: BENTONVILLE | S81: AR | T81: 500715330 | U81: WAL-MART SUPERCENTERS | V81: JOHNSTOWN, NY 6096 | W81: JOHNSTOWN | X81: NY | Y81: 12095 | AA81: Invoiced | AB81: NEW YORK APPLE SALES | AC81: EMPIRE FRUIT | AD81: TOTES 8 1/2-21/4 GINGERGOLD XF WALMART APPLES | AE81: GINGERGOLD TOTES 8 1/2-21/4 XF WALMART 009444862 | AF81: APPLES | AG81: APPLES | AI81: GINGERGOLD | AJ81: TOTES | AK81: 8 1/2-21/4 | AL81: XF | AM81: WALMART | AN81: USA | AP81: 35 | AQ81: 35 | AR81: 0.875 | AS81: 81.1 | AT81: 752.64 | AU81: 1583.4 | AV81: 842.8 | AW81: 21.504 | AX81: 24.08 | AY81: G3885 | AZ81: 879329007287 | BA81: 580033931 | BB81: EMPIRE FRUIT | BC81: EF-GINGGOLD | BD81: EMPIRE FRUIT | BE81: 22534.4 | BF81: 22534.4 | BG81: 44083 | BI81: ctn | BJ81: 21.504 | BK81: N | BL81: 9 | BM81: 124 | BN81: 1 | BO81: 124 | BP81: 5 | BR81: 1 | BT81: C | BU81: 2
A82: 40234 | B82: 20149 | C82: X | D82: J. TORNABENE TRUCK BROKERS | E82: 250053 | F82: G3887TOTEWAL | G82: 44054 | H82: 44083 | I82: 44084 | J82: 2020 | K82: 9 | L82: 9 | M82: 37 | N82: 2020-37 | O82: 2020-09 | P82: WAL-MART SUPERCENTERS-JOHNSTOWN, NY 6096 | Q82: WAL-MART SUPERCENTERS | R82: BENTONVILLE | S82: AR | T82: 500715330 | U82: WAL-MART SUPERCENTERS | V82: JOHNSTOWN, NY 6096 | W82: JOHNSTOWN | X82: NY | Y82: 12095 | AA82: Invoiced | AB82: NEW YORK APPLE SALES | AC82: EMPIRE FRUIT | AD82: TOTES 8 1/2-21/4 GINGERGOLD XF WALMART APPLES | AE82: GINGERGOLD TOTES 8 1/2-21/4 XF WALMART 009444862 | AF82: APPLES | AG82: APPLES | AI82: GINGERGOLD | AJ82: TOTES | AK82: 8 1/2-21/4 | AL82: XF | AM82: WALMART | AN82: USA | AP82: 28 | AQ82: 28 | AR82: 0.7 | AS82: 64.88 | AT82: 602.112 | AU82: 1266.72 | AV82: 674.24 | AW82: 21.504 | AX82: 24.08 | AY82: G3887 | AZ82: 879329007287 | BA82: 580033931 | BB82: EMPIRE FRUIT | BC82: EF-GINGGOLD | BD82: EMPIRE FRUIT | BE82: 22534.4 | BF82: 22534.4 | BG82: 44083 | BI82: ctn | BJ82: 21.504 | BK82: N | BL82: 9 | BM82: 124 | BN82: 1 | BO82: 124 | BP82: 5 | BR82: 1 | BT82: C | BU82: 2
A83: 40234 | B83: 20149 | C83: X | D83: J. TORNABENE TRUCK BROKERS | E83: 250036 | F83: 108182 | G83: 44054 | H83: 44083 | I83: 44084 | J83: 2020 | K83: 9 | L83: 9 | M83: 37 | N83: 2020-37 | O83: 2020-09 | P83: WAL-MART SUPERCENTERS-JOHNSTOWN, NY 6096 | Q83: WAL-MART SUPERCENTERS | R83: BENTONVILLE | S83: AR | T83: 500715330 | U83: WAL-MART SUPERCENTERS | V83: JOHNSTOWN, NY 6096 | W83: JOHNSTOWN | X83: NY | Y83: 12095 | AA83: Invoiced | AB83: NEW YORK APPLE SALES | AC83: FIX BROS | AD83: TOTES TOTES GINGERGOLD XF WALMART APPLES | AE83: GINGERGOLD TOTES TOTES XF WALMART 580033931 | AF83: APPLES | AG83: APPLES | AI83: GINGERGOLD | AJ83: TOTES | AK83: TOTES | AL83: XF | AM83: WALMART | AN83: USA | AP83: 265 | AQ83: 265 | AR83: 7.571428571 | AS83: 614.07 | AT83: 5698.56 | AU83: 12590.15 | AV83: 6381.2 | AW83: 21.504 | AX83: 24.08 | AY83: 125 | AZ83: 879329007287 | BA83: 580033931 | BB83: FIX BROTHERS INC. | BC83: FB-GINGGOLD | BD83: FIX BROTHERS INC. | BE83: 22534.4 | BF83: 22534.4 | BG83: 44083 | BI83: ctn | BJ83: 21.504 | BK83: N | BL83: 9 | BM83: 124 | BN83: 1 | BO83: 124 | BP83: 5 | BR83: 1 | BT83: C | BU83: 2
A84: 40234 | B84: 20149 | C84: X | D84: J. TORNABENE TRUCK BROKERS | E84: 249870 | F84: 108088 | G84: 44054 | H84: 44083 | I84: 44084 | J84: 2020 | K84: 9 | L84: 9 | M84: 37 | N84: 2020-37 | O84: 2020-09 | P84: WAL-MART SUPERCENTERS-JOHNSTOWN, NY 6096 | Q84: WAL-MART SUPERCENTERS | R84: BENTONVILLE | S84: AR | T84: 500715330 | U84: WAL-MART SUPERCENTERS | V84: JOHNSTOWN, NY 6096 | W84: JOHNSTOWN | X84: NY | Y84: 12095 | AA84: Invoiced | AB84: NEW YORK APPLE SALES | AC84: CRIST BROTHERS | AD84: TOTES TOTES JONAMAC XF WALMART APPLES | AE84: JONAMAC TOTES 8 1/2 RPC XF WALMART | AF84: APPLES | AG84: APPLES | AI84: JONAMAC | AJ84: TOTES | AK84: TOTES | AL84: XF | AM84: WALMART | AN84: USA | AP84: 191 | AQ84: 191 | AR84: 5.457142857 | AS84: 442.61 | AT84: 4107.264 | AU84: 9074.41 | AV84: 4599.28 | AW84: 21.504 | AX84: 24.08 | AY84: 35001 | AZ84: 879329007287 | BA84: 580033931 | BB84: CRIST | BC84: CB-JONAMAC | BD84: CRIST | BE84: 22534.4 | BF84: 22534.4 | BG84: 44083 | BI84: ctn | BJ84: 21.504 | BK84: N | BL84: 9 | BM84: 124 | BN84: 1 | BO84: 124 | BP84: 5 | BR84: 1 | BT84: C | BU84: 2
A85: 40235 | B85: 20118 | C85: X | D85: ENTOURAGE FREIGHT SOLUTIONS | E85: 249508 | F85: 107809 | G85: 44054 | H85: 44077 | I85: 44079 | J85: 2020 | K85: 9 | L85: 3 | M85: 36 | N85: 2020-36 | O85: 2020-09 | P85: WAL-MART SUPERCENTERS-PAGELAND, SC 6073 | Q85: WAL-MART SUPERCENTERS | R85: BENTONVILLE | S85: AR | T85: 500715327 | U85: WAL-MART SUPERCENTERS | V85: PAGELAND, SC 6073 | W85: PAGELAND | X85: SC | Y85: 29728 | AA85: Invoiced | AB85: NEW YORK APPLE SALES | AC85: CRIST BROTHERS | AD85: TOTES 8 1/2 RPC GINGERGOLD XF WALMART APPLES | AE85: GINGERGOLD TOTES 8 1/2 RPC XF WALMART | AF85: APPLES | AG85: APPLES | AI85: GINGERGOLD | AJ85: TOTES | AK85: 8 1/2 RPC | AL85: XF | AM85: WALMART | AN85: USA | AP85: 44 | AQ85: 44 | AR85: 1.257142857 | AS85: 130.55 | AT85: 999.328 | AU85: 2090.44 | AV85: 1146.64 | AW85: 22.712 | AX85: 26.06 | AY85: 30901 | AZ85: 879329007287 | BA85: 580033931 | BB85: CRIST | BC85: CB-GINGGOLD | BD85: CRIST | BE85: 23714.6 | BF85: 23714.6 | BG85: 44077 | BI85: ctn | BJ85: 22.712 | BK85: N | BL85: 9 | BM85: 124 | BN85: 1 | BO85: 124 | BP85: 10 | BR85: 1 | BT85: C | BU85: 2
A86: 40235 | B86: 20118 | C86: X | D86: ENTOURAGE FREIGHT SOLUTIONS | E86: 249716 | F86: 108005 | G86: 44054 | H86: 44077 | I86: 44079 | J86: 2020 | K86: 9 | L86: 3 | M86: 36 | N86: 2020-36 | O86: 2020-09 | P86: WAL-MART SUPERCENTERS-PAGELAND, SC 6073 | Q86: WAL-MART SUPERCENTERS | R86: BENTONVILLE | S86: AR | T86: 500715327 | U86: WAL-MART SUPERCENTERS | V86: PAGELAND, SC 6073 | W86: PAGELAND | X86: SC | Y86: 29728 | AA86: Invoiced | AB86: NEW YORK APPLE SALES | AC86: CRIST BROTHERS | AD86: TOTES 8 1/2 RPC JONAMAC XF WALMART APPLES | AE86: JONAMAC TOTES 8 1/2 RPC XF WALMART | AF86: APPLES | AG86: APPLES | AI86: JONAMAC | AJ86: TOTES | AK86: 8 1/2 RPC | AL86: XF | AM86: WALMART | AN86: USA | AP86: 175 | AQ86: 175 | AR86: 5 | AS86: 519.23 | AT86: 3974.6525 | AU86: 8314.25 | AV86: 4560.5 | AW86: 22.7123 | AX86: 26.06 | AY86: 33001 | AZ86: 879329007287 | BA86: 580033931 | BB86: CRIST | BC86: CB-JONAMAC | BD86: CRIST | BE86: 23714.6 | BF86: 23714.6 | BG86: 44077 | BI86: ctn | BJ86: 22.7123 | BK86: N | BL86: 9 | BM86: 124 | BN86: 1 | BO86: 124 | BP86: 10 | BR86: 1 | BT86: C | BU86: 2
A87: 40235 | B87: 20118 | C87: X | D87: ENTOURAGE FREIGHT SOLUTIONS | E87: 249689 | F87: 107978 | G87: 44054 | H87: 44077 | I87: 44079 | J87: 2020 | K87: 9 | L87: 3 | M87: 36 | N87: 2020-36 | O87: 2020-09 | P87: WAL-MART SUPERCENTERS-PAGELAND, SC 6073 | Q87: WAL-MART SUPERCENTERS | R87: BENTONVILLE | S87: AR | T87: 500715327 | U87: WAL-MART SUPERCENTERS | V87: PAGELAND, SC 6073 | W87: PAGELAND | X87: SC | Y87: 29728 | AA87: Invoiced | AB87: NEW YORK APPLE SALES | AC87: CRIST BROTHERS | AD87: TOTES 8 1/2 RPC JONAMAC XF WALMART APPLES | AE87: JONAMAC TOTES 8 1/2 RPC XF WALMART | AF87: APPLES | AG87: APPLES | AI87: JONAMAC | AJ87: TOTES | AK87: 8 1/2 RPC | AL87: XF | AM87: WALMART | AN87: USA | AP87: 140 | AQ87: 140 | AR87: 4 | AS87: 415.38 | AT87: 3179.722 | AU87: 6651.4 | AV87: 3648.4 | AW87: 22.7123 | AX87: 26.06 | AY87: 33501 | AZ87: 879329007287 | BA87: 580033931 | BB87: CRIST | BC87: CB-JONAMAC | BD87: CRIST | BE87: 23714.6 | BF87: 23714.6 | BG87: 44077 | BI87: ctn | BJ87: 22.7123 | BK87: N | BL87: 9 | BM87: 124 | BN87: 1 | BO87: 124 | BP87: 10 | BR87: 1 | BT87: C | BU87: 2
A88: 40235 | B88: 20118 | C88: X | D88: ENTOURAGE FREIGHT SOLUTIONS | E88: 249714 | F88: 108003 | G88: 44054 | H88: 44077 | I88: 44079 | J88: 2020 | K88: 9 | L88: 3 | M88: 36 | N88: 2020-36 | O88: 2020-09 | P88: WAL-MART SUPERCENTERS-PAGELAND, SC 6073 | Q88: WAL-MART SUPERCENTERS | R88: BENTONVILLE | S88: AR | T88: 500715327 | U88: WAL-MART SUPERCENTERS | V88: PAGELAND, SC 6073 | W88: PAGELAND | X88: SC | Y88: 29728 | AA88: Invoiced | AB88: NEW YORK APPLE SALES | AC88: CRIST BROTHERS | AD88: TOTES 8 1/2 RPC JONAMAC XF WALMART APPLES | AE88: JONAMAC TOTES 8 1/2 RPC XF WALMART | AF88: APPLES | AG88: APPLES | AI88: JONAMAC | AJ88: TOTES | AK88: 8 1/2 RPC | AL88: XF | AM88: WALMART | AN88: USA | AP88: 26 | AQ88: 26 | AR88: 0.7428571429 | AS88: 77.14 | AT88: 590.5198 | AU88: 1235.26 | AV88: 677.56 | AW88: 22.7123 | AX88: 26.06 | AY88: 33601 | AZ88: 879329007287 | BA88: 580033931 | BB88: CRIST | BC88: CB-JONAMAC | BD88: CRIST | BE88: 23714.6 | BF88: 23714.6 | BG88: 44077 | BI88: ctn | BJ88: 22.7123 | BK88: N | BL88: 9 | BM88: 124 | BN88: 1 | BO88: 124 | BP88: 10 | BR88: 1 | BT88: C | BU88: 2
A89: 40235 | B89: 20118 | C89: X | D89: ENTOURAGE FREIGHT SOLUTIONS | E89: 249773 | F89: 108008 | G89: 44054 | H89: 44077 | I89: 44079 | J89: 2020 | K89: 9 | L89: 3 | M89: 36 | N89: 2020-36 | O89: 2020-09 | P89: WAL-MART SUPERCENTERS-PAGELAND, SC 6073 | Q89: WAL-MART SUPERCENTERS | R89: BENTONVILLE | S89: AR | T89: 500715327 | U89: WAL-MART SUPERCENTERS | V89: PAGELAND, SC 6073 | W89: PAGELAND | X89: SC | Y89: 29728 | AA89: Invoiced | AB89: NEW YORK APPLE SALES | AC89: PORPIGLIA FARMS | AD89: TOTES 8 1/2-21/4 GINGERGOLD XF WALMART APPLES | AE89: GINGERGOLD TOTES 8 1/2-21/4 XF WALMART 009444862 | AF89: APPLES | AG89: APPLES | AI89: GINGERGOLD | AJ89: TOTES | AK89: 8 1/2-21/4 | AL89: XF | AM89: WALMART | AN89: USA | AP89: 525 | AQ89: 525 | AR89: 13.125 | AS89: 1557.7 | AT89: 11923.9575 | AU89: 23751 | AV89: 13681.5 | AW89: 22.7123 | AX89: 26.06 | AY89: 121650 | AZ89: 879329007287 | BA89: 580033931 | BB89: PORPIGLIA FARMS | BC89: PF-GINGGOLD | BD89: PORPIGLIA FARMS | BE89: 23714.6 | BF89: 23714.6 | BG89: 44077 | BI89: ctn | BJ89: 22.7123 | BK89: N | BL89: 9 | BM89: 124 | BN89: 1 | BO89: 124 | BP89: 10 | BR89: 1 | BT89: C | BU89: 2
A90: 40236 | B90: 20110 | C90: X | D90: ENTOURAGE FREIGHT SOLUTIONS | E90: 249471 | F90: 107772 | G90: 44054 | H90: 44076 | I90: 44079 | J90: 2020 | K90: 9 | L90: 2 | M90: 36 | N90: 2020-36 | O90: 2020-09 | P90: WAL-MART SUPERCENTERS-WINTERHAVEN, FL 6071 | Q90: WAL-MART SUPERCENTERS | R90: BENTONVILLE | S90: AR | T90: 500715325 | U90: WAL-MART SUPERCENTERS | V90: WINTERHAVEN, FL 6071 | W90: WINTER HAVEN | X90: FL | Y90: 33881 | AA90: Invoiced | AB90: NEW YORK APPLE SALES | AC90: CRIST BROTHERS | AD90: TOTES 8 1/2 RPC GINGERGOLD XF WALMART APPLES | AE90: GINGERGOLD TOTES 8 1/2 RPC XF WALMART | AF90: APPLES | AG90: APPLES | AI90: GINGERGOLD | AJ90: TOTES | AK90: 8 1/2 RPC | AL90: XF | AM90: WALMART | AN90: USA | AP90: 249 | AQ90: 249 | AR90: 7.114285714 | AS90: 957.69 | AT90: 5762.6319 | AU90: 11829.99 | AV90: 6815.13 | AW90: 23.1431 | AX90: 27.37 | AY90: 30402 | AZ90: 879329007287 | BA90: 580033931 | BB90: CRIST | BC90: CB-GINGGOLD | BD90: CRIST | BE90: 24906.7 | BF90: 24906.7 | BG90: 44076 | BI90: ctn | BJ90: 23.1431 | BK90: N | BL90: 9 | BM90: 124 | BN90: 1 | BO90: 124 | BP90: 11 | BR90: 1 | BT90: C | BU90: 2
A91: 40236 | B91: 20110 | C91: X | D91: ENTOURAGE FREIGHT SOLUTIONS | E91: 249478 | F91: 107779 | G91: 44054 | H91: 44076 | I91: 44079 | J91: 2020 | K91: 9 | L91: 2 | M91: 36 | N91: 2020-36 | O91: 2020-09 | P91: WAL-MART SUPERCENTERS-WINTERHAVEN, FL 6071 | Q91: WAL-MART SUPERCENTERS | R91: BENTONVILLE | S91: AR | T91: 500715325 | U91: WAL-MART SUPERCENTERS | V91: WINTERHAVEN, FL 6071 | W91: WINTER HAVEN | X91: FL | Y91: 33881 | AA91: Invoiced | AB91: NEW YORK APPLE SALES | AC91: CRIST BROTHERS | AD91: TOTES 8 1/2 RPC GINGERGOLD XF WALMART APPLES | AE91: GINGERGOLD TOTES 8 1/2 RPC XF WALMART | AF91: APPLES | AG91: APPLES | AI91: GINGERGOLD | AJ91: TOTES | AK91: 8 1/2 RPC | AL91: XF | AM91: WALMART | AN91: USA | AP91: 101 | AQ91: 101 | AR91: 2.885714286 | AS91: 388.46 | AT91: 2337.4531 | AU91: 4798.51 | AV91: 2764.37 | AW91: 23.1431 | AX91: 27.37 | AY91: 30702 | AZ91: 879329007287 | BA91: 580033931 | BB91: CRIST | BC91: CB-GINGGOLD | BD91: CRIST | BE91: 24906.7 | BF91: 24906.7 | BG91: 44076 | BI91: ctn | BJ91: 23.1431 | BK91: N | BL91: 9 | BM91: 124 | BN91: 1 | BO91: 124 | BP91: 11 | BR91: 1 | BT91: C | BU91: 2
A92: 40236 | B92: 20110 | C92: X | D92: ENTOURAGE FREIGHT SOLUTIONS | E92: 249479 | F92: 107780 | G92: 44054 | H92: 44076 | I92: 44079 | J92: 2020 | K92: 9 | L92: 2 | M92: 36 | N92: 2020-36 | O92: 2020-09 | P92: WAL-MART SUPERCENTERS-WINTERHAVEN, FL 6071 | Q92: WAL-MART SUPERCENTERS | R92: BENTONVILLE | S92: AR | T92: 500715325 | U92: WAL-MART SUPERCENTERS | V92: WINTERHAVEN, FL 6071 | W92: WINTER HAVEN | X92: FL | Y92: 33881 | AA92: Invoiced | AB92: NEW YORK APPLE SALES | AC92: CRIST BROTHERS | AD92: TOTES 8 1/2 RPC GINGERGOLD XF WALMART APPLES | AE92: GINGERGOLD TOTES 8 1/2 RPC XF WALMART | AF92: APPLES | AG92: APPLES | AI92: GINGERGOLD | AJ92: TOTES | AK92: 8 1/2 RPC | AL92: XF | AM92: WALMART | AN92: USA | AP92: 70 | AQ92: 70 | AR92: 2 | AS92: 269.23 | AT92: 1620.017 | AU92: 3325.7 | AV92: 1915.9 | AW92: 23.1431 | AX92: 27.37 | AY92: 30703 | AZ92: 879329007287 | BA92: 580033931 | BB92: CRIST | BC92: CB-GINGGOLD | BD92: CRIST | BE92: 24906.7 | BF92: 24906.7 | BG92: 44076 | BI92: ctn | BJ92: 23.1431 | BK92: N | BL92: 9 | BM92: 124 | BN92: 1 | BO92: 124 | BP92: 11 | BR92: 1 | BT92: C | BU92: 2
A93: 40236 | B93: 20110 | C93: X | D93: ENTOURAGE FREIGHT SOLUTIONS | E93: 249509 | F93: 107810 | G93: 44054 | H93: 44076 | I93: 44079 | J93: 2020 | K93: 9 | L93: 2 | M93: 36 | N93: 2020-36 | O93: 2020-09 | P93: WAL-MART SUPERCENTERS-WINTERHAVEN, FL 6071 | Q93: WAL-MART SUPERCENTERS | R93: BENTONVILLE | S93: AR | T93: 500715325 | U93: WAL-MART SUPERCENTERS | V93: WINTERHAVEN, FL 6071 | W93: WINTER HAVEN | X93: FL | Y93: 33881 | AA93: Invoiced | AB93: NEW YORK APPLE SALES | AC93: CRIST BROTHERS | AD93: TOTES 8 1/2 RPC GINGERGOLD XF WALMART APPLES | AE93: GINGERGOLD TOTES 8 1/2 RPC XF WALMART | AF93: APPLES | AG93: APPLES | AI93: GINGERGOLD | AJ93: TOTES | AK93: 8 1/2 RPC | AL93: XF | AM93: WALMART | AN93: USA | AP93: 35 | AQ93: 35 | AR93: 1 | AS93: 134.62 | AT93: 810.0085 | AU93: 1662.85 | AV93: 957.95 | AW93: 23.1431 | AX93: 27.37 | AY93: 30902 | AZ93: 879329007287 | BA93: 580033931 | BB93: CRIST | BC93: CB-GINGGOLD | BD93: CRIST | BE93: 24906.7 | BF93: 24906.7 | BG93: 44076 | BI93: ctn | BJ93: 23.1431 | BK93: N | BL93: 9 | BM93: 124 | BN93: 1 | BO93: 124 | BP93: 11 | BR93: 1 | BT93: C | BU93: 2
A94: 40236 | B94: 20110 | C94: X | D94: ENTOURAGE FREIGHT SOLUTIONS | E94: 249597 | F94: 107886 | G94: 44054 | H94: 44076 | I94: 44079 | J94: 2020 | K94: 9 | L94: 2 | M94: 36 | N94: 2020-36 | O94: 2020-09 | P94: WAL-MART SUPERCENTERS-WINTERHAVEN, FL 6071 | Q94: WAL-MART SUPERCENTERS | R94: BENTONVILLE | S94: AR | T94: 500715325 | U94: WAL-MART SUPERCENTERS | V94: WINTERHAVEN, FL 6071 | W94: WINTER HAVEN | X94: FL | Y94: 33881 | AA94: Invoiced | AB94: NEW YORK APPLE SALES | AC94: CRIST BROTHERS | AD94: TOTES 8 1/2 RPC JONAMAC XF WALMART APPLES | AE94: JONAMAC TOTES 8 1/2 RPC XF WALMART | AF94: APPLES | AG94: APPLES | AI94: JONAMAC | AJ94: TOTES | AK94: 8 1/2 RPC | AL94: XF | AM94: WALMART | AN94: USA | AP94: 17 | AQ94: 17 | AR94: 0.4857142857 | AS94: 65.38 | AT94: 393.4327 | AU94: 807.67 | AV94: 465.29 | AW94: 23.1431 | AX94: 27.37 | AY94: 31601 | AZ94: 879329007287 | BA94: 580033931 | BB94: CRIST | BC94: CB-JONAMAC | BD94: CRIST | BE94: 24906.7 | BF94: 24906.7 | BG94: 44076 | BI94: ctn | BJ94: 23.1431 | BK94: N | BL94: 9 | BM94: 124 | BN94: 1 | BO94: 124 | BP94: 11 | BR94: 1 | BT94: C | BU94: 2
A95: 40236 | B95: 20110 | C95: X | D95: ENTOURAGE FREIGHT SOLUTIONS | E95: 249608 | F95: 107897 | G95: 44054 | H95: 44076 | I95: 44079 | J95: 2020 | K95: 9 | L95: 2 | M95: 36 | N95: 2020-36 | O95: 2020-09 | P95: WAL-MART SUPERCENTERS-WINTERHAVEN, FL 6071 | Q95: WAL-MART SUPERCENTERS | R95: BENTONVILLE | S95: AR | T95: 500715325 | U95: WAL-MART SUPERCENTERS | V95: WINTERHAVEN, FL 6071 | W95: WINTER HAVEN | X95: FL | Y95: 33881 | AA95: Invoiced | AB95: NEW YORK APPLE SALES | AC95: CRIST BROTHERS | AD95: TOTES 8 1/2 RPC JONAMAC XF WALMART APPLES | AE95: JONAMAC TOTES 8 1/2 RPC XF WALMART | AF95: APPLES | AG95: APPLES | AI95: JONAMAC | AJ95: TOTES | AK95: 8 1/2 RPC | AL95: XF | AM95: WALMART | AN95: USA | AP95: 208 | AQ95: 208 | AR95: 5.942857143 | AS95: 800 | AT95: 4813.7648 | AU95: 9882.08 | AV95: 5692.96 | AW95: 23.1431 | AX95: 27.37 | AY95: 31901 | AZ95: 879329007287 | BA95: 580033931 | BB95: CRIST | BC95: CB-JONAMAC | BD95: CRIST | BE95: 24906.7 | BF95: 24906.7 | BG95: 44076 | BI95: ctn | BJ95: 23.1431 | BK95: N | BL95: 9 | BM95: 124 | BN95: 1 | BO95: 124 | BP95: 11 | BR95: 1 | BT95: C | BU95: 2
A96: 40236 | B96: 20110 | C96: X | D96: ENTOURAGE FREIGHT SOLUTIONS | E96: 249610 | F96: 107899 | G96: 44054 | H96: 44076 | I96: 44079 | J96: 2020 | K96: 9 | L96: 2 | M96: 36 | N96: 2020-36 | O96: 2020-09 | P96: WAL-MART SUPERCENTERS-WINTERHAVEN, FL 6071 | Q96: WAL-MART SUPERCENTERS | R96: BENTONVILLE | S96: AR | T96: 500715325 | U96: WAL-MART SUPERCENTERS | V96: WINTERHAVEN, FL 6071 | W96: WINTER HAVEN | X96: FL | Y96: 33881 | AA96: Invoiced | AB96: NEW YORK APPLE SALES | AC96: CRIST BROTHERS | AD96: TOTES 8 1/2 RPC JONAMAC XF WALMART APPLES | AE96: JONAMAC TOTES 8 1/2 RPC XF WALMART | AF96: APPLES | AG96: APPLES | AI96: JONAMAC | AJ96: TOTES | AK96: 8 1/2 RPC | AL96: XF | AM96: WALMART | AN96: USA | AP96: 230 | AQ96: 230 | AR96: 6.571428571 | AS96: 884.62 | AT96: 5322.913 | AU96: 10927.3 | AV96: 6295.1 | AW96: 23.1431 | AX96: 27.37 | AY96: 32001 | AZ96: 879329007287 | BA96: 580033931 | BB96: CRIST | BC96: CB-JONAMAC | BD96: CRIST | BE96: 24906.7 | BF96: 24906.7 | BG96: 44076 | BI96: ctn | BJ96: 23.1431 | BK96: N | BL96: 9 | BM96: 124 | BN96: 1 | BO96: 124 | BP96: 11 | BR96: 1 | BT96: C | BU96: 2
A97: 40237 | B97: 20139 | C97: X | D97: TG LOGISTICS LLC | E97: 249786 | F97: G3884RPC45 | G97: 44054 | H97: 44082 | I97: 44084 | J97: 2020 | K97: 9 | L97: 8 | M97: 37 | N97: 2020-37 | O97: 2020-09 | P97: WAL-MART SUPERCENTERS-MACCLENNY, FL 6099 | Q97: WAL-MART SUPERCENTERS | R97: BENTONVILLE | S97: AR | T97: 500715308 | U97: WAL-MART SUPERCENTERS | V97: MACCLENNY, FL 6099 | W97: MACCLENNY | X97: FL | Y97: 32063 | AA97: Invoiced | AB97: NEW YORK APPLE SALES | AC97: EMPIRE FRUIT | AD97: BULK 45 RPC GINGERGOLD XF WALMART APPLES | AE97: GINGERGOLD BULK 45 RPC XF WALMART | AF97: APPLES | AG97: APPLES | AI97: GINGERGOLD | AJ97: BULK | AK97: 45 RPC | AL97: XF | AM97: WALMART | AN97: USA | AP97: 8 | AQ97: 5.4 | AR97: 0.16 | AS97: 22.64 | AT97: 150.9352 | AU97: 262.32 | AV97: 186 | AW97: 18.8669 | AX97: 23.25 | AY97: G3884 | BB97: EMPIRE FRUIT | BC97: EF-GINGGOLD | BD97: EMPIRE FRUIT | BE97: 25262.75 | BF97: 25262.75 | BG97: 44082 | BI97: ctn | BJ97: 18.8669 | BK97: N | BL97: 7 | BM97: 124 | BN97: 1 | BO97: 124 | BP97: 8 | BR97: 1 | BT97: C | BU97: 2
A98: 40237 | B98: 20139 | C98: X | D98: TG LOGISTICS LLC | E98: 249805 | F98: G3885RPC45 | G98: 44054 | H98: 44082 | I98: 44084 | J98: 2020 | K98: 9 | L98: 8 | M98: 37 | N98: 2020-37 | O98: 2020-09 | P98: WAL-MART SUPERCENTERS-MACCLENNY, FL 6099 | Q98: WAL-MART SUPERCENTERS | R98: BENTONVILLE | S98: AR | T98: 500715308 | U98: WAL-MART SUPERCENTERS | V98: MACCLENNY, FL 6099 | W98: MACCLENNY | X98: FL | Y98: 32063 | AA98: Invoiced | AB98: NEW YORK APPLE SALES | AC98: EMPIRE FRUIT | AD98: BULK 45 RPC GINGERGOLD XF WALMART APPLES | AE98: GINGERGOLD BULK 45 RPC XF WALMART | AF98: APPLES | AG98: APPLES | AI98: GINGERGOLD | AJ98: BULK | AK98: 45 RPC | AL98: XF | AM98: WALMART | AN98: USA | AP98: 18 | AQ98: 12.15 | AR98: 0.36 | AS98: 50.95 | AT98: 339.6042 | AU98: 590.22 | AV98: 418.5 | AW98: 18.8669 | AX98: 23.25 | AY98: G3885 | BB98: EMPIRE FRUIT | BC98: EF-GINGGOLD | BD98: EMPIRE FRUIT | BE98: 25262.75 | BF98: 25262.75 | BG98: 44082 | BI98: ctn | BJ98: 18.8669 | BK98: N | BL98: 7 | BM98: 124 | BN98: 1 | BO98: 124 | BP98: 8 | BR98: 1 | BT98: C | BU98: 2
A99: 40237 | B99: 20139 | C99: X | D99: TG LOGISTICS LLC | E99: 249910 | F99: 108127 | G99: 44054 | H99: 44082 | I99: 44084 | J99: 2020 | K99: 9 | L99: 8 | M99: 37 | N99: 2020-37 | O99: 2020-09 | P99: WAL-MART SUPERCENTERS-MACCLENNY, FL 6099 | Q99: WAL-MART SUPERCENTERS | R99: BENTONVILLE | S99: AR | T99: 500715308 | U99: WAL-MART SUPERCENTERS | V99: MACCLENNY, FL 6099 | W99: MACCLENNY | X99: FL | Y99: 32063 | AA99: Invoiced | AB99: NEW YORK APPLE SALES | AC99: YONDER FARMS | AD99: BULK 45 RPC GINGERGOLD XF WALMART APPLES | AE99: GINGERGOLD BULK 45 RPC XF WALMART | AF99: APPLES | AG99: APPLES | AI99: GINGERGOLD | AJ99: BULK | AK99: 45 RPC | AL99: XF | AM99: WALMART | AN99: USA | AP99: 9 | AQ99: 6.075 | AR99: 0.18 | AS99: 25.47 | AT99: 169.8102 | AU99: 295.11 | AV99: 209.25 | AW99: 18.8678 | AX99: 23.25 | AY99: 114 | BB99: YONDER FARMS FRUIT DIST., LLC | BC99: YF-GINGGOLD | BD99: YONDER FARMS FRUIT DIST., LLC | BE99: 25262.75 | BF99: 25262.75 | BG99: 44082 | BI99: ctn | BJ99: 18.8678 | BK99: N | BL99: 7 | BM99: 124 | BN99: 1 | BO99: 124 | BP99: 8 | BR99: 1 | BT99: C | BU99: 2
A100: 40237 | B100: 20139 | C100: X | D100: TG LOGISTICS LLC | E100: 249787 | F100: G3884RPC50 | G100: 44054 | H100: 44082 | I100: 44084 | J100: 2020 | K100: 9 | L100: 8 | M100: 37 | N100: 2020-37 | O100: 2020-09 | P100: WAL-MART SUPERCENTERS-MACCLENNY, FL 6099 | Q100: WAL-MART SUPERCENTERS | R100: BENTONVILLE | S100: AR | T100: 500715308 | U100: WAL-MART SUPERCENTERS | V100: MACCLENNY, FL 6099 | W100: MACCLENNY | X100: FL | Y100: 32063 | AA100: Invoiced | AB100: NEW YORK APPLE SALES | AC100: EMPIRE FRUIT | AD100: BULK 50 RPC GINGERGOLD XF WALMART APPLES | AE100: GINGERGOLD BULK 50 RPC XF WALMART | AF100: APPLES | AG100: APPLES | AI100: GINGERGOLD | AJ100: BULK | AK100: 50 RPC | AL100: XF | AM100: WALMART | AN100: USA | AP100: 50 | AQ100: 33.75 | AR100: 1 | AS100: 141.52 | AT100: 943.35 | AU100: 1639.5 | AV100: 1162.5 | AW100: 18.867 | AX100: 23.25 | AY100: G3884 | BB100: EMPIRE FRUIT | BC100: EF-GINGGOLD | BD100: EMPIRE FRUIT | BE100: 25262.75 | BF100: 25262.75 | BG100: 44082 | BI100: ctn | BJ100: 18.867 | BK100: N | BL100: 7 | BM100: 124 | BN100: 1 | BO100: 124 | BP100: 8 | BR100: 1 | BT100: C | BU100: 2
A101: 40237 | B101: 20139 | C101: X | D101: TG LOGISTICS LLC | E101: 249788 | F101: G3884RPC55 | G101: 44054 | H101: 44082 | I101: 44084 | J101: 2020 | K101: 9 | L101: 8 | M101: 37 | N101: 2020-37 | O101: 2020-09 | P101: WAL-MART SUPERCENTERS-MACCLENNY, FL 6099 | Q101: WAL-MART SUPERCENTERS | R101: BENTONVILLE | S101: AR | T101: 500715308 | U101: WAL-MART SUPERCENTERS | V101: MACCLENNY, FL 6099 | W101: MACCLENNY | X101: FL | Y101: 32063 | AA101: Invoiced | AB101: NEW YORK APPLE SALES | AC101: EMPIRE FRUIT | AD101: BULK 55 RPC GINGERGOLD XF WALMART APPLES | AE101: GINGERGOLD BULK 55 RPC XF WALMART | AF101: APPLES | AG101: APPLES | AI101: GINGERGOLD | AJ101: BULK | AK101: 55 RPC | AL101: XF | AM101: WALMART | AN101: USA | AP101: 50 | AQ101: 33.75 | AR101: 1 | AS101: 141.52 | AT101: 943.36 | AU101: 1639.5 | AV101: 1162.5 | AW101: 18.8672 | AX101: 23.25 | AY101: G3884 | BB101: EMPIRE FRUIT | BC101: EF-GINGGOLD | BD101: EMPIRE FRUIT | BE101: 25262.75 | BF101: 25262.75 | BG101: 44082 | BI101: ctn | BJ101: 18.8672 | BK101: N | BL101: 7 | BM101: 124 | BN101: 1 | BO101: 124 | BP101: 8 | BR101: 1 | BT101: C | BU101: 2
A102: 40237 | B102: 20139 | C102: X | D102: TG LOGISTICS LLC | E102: 249807 | F102: G3885RPC55 | G102: 44054 | H102: 44082 | I102: 44084 | J102: 2020 | K102: 9 | L102: 8 | M102: 37 | N102: 2020-37 | O102: 2020-09 | P102: WAL-MART SUPERCENTERS-MACCLENNY, FL 6099 | Q102: WAL-MART SUPERCENTERS | R102: BENTONVILLE | S102: AR | T102: 500715308 | U102: WAL-MART SUPERCENTERS | V102: MACCLENNY, FL 6099 | W102: MACCLENNY | X102: FL | Y102: 32063 | AA102: Invoiced | AB102: NEW YORK APPLE SALES | AC102: EMPIRE FRUIT | AD102: BULK 55 RPC GINGERGOLD XF WALMART APPLES | AE102: GINGERGOLD BULK 55 RPC XF WALMART | AF102: APPLES | AG102: APPLES | AI102: GINGERGOLD | AJ102: BULK | AK102: 55 RPC | AL102: XF | AM102: WALMART | AN102: USA | AP102: 15 | AQ102: 10.125 | AR102: 0.3 | AS102: 42.46 | AT102: 283.008 | AU102: 491.85 | AV102: 348.75 | AW102: 18.8672 | AX102: 23.25 | AY102: G3885 | BB102: EMPIRE FRUIT | BC102: EF-GINGGOLD | BD102: EMPIRE FRUIT | BE102: 25262.75 | BF102: 25262.75 | BG102: 44082 | BI102: ctn | BJ102: 18.8672 | BK102: N | BL102: 7 | BM102: 124 | BN102: 1 | BO102: 124 | BP102: 8 | BR102: 1 | BT102: C | BU102: 2
A103: 40237 | B103: 20139 | C103: X | D103: TG LOGISTICS LLC | E103: 249769 | F103: G3883WALTOTE | G103: 44054 | H103: 44082 | I103: 44084 | J103: 2020 | K103: 9 | L103: 8 | M103: 37 | N103: 2020-37 | O103: 2020-09 | P103: WAL-MART SUPERCENTERS-MACCLENNY, FL 6099 | Q103: WAL-MART SUPERCENTERS | R103: BENTONVILLE | S103: AR | T103: 500715308 | U103: WAL-MART SUPERCENTERS | V103: MACCLENNY, FL 6099 | W103: MACCLENNY | X103: FL | Y103: 32063 | AA103: Invoiced | AB103: NEW YORK APPLE SALES | AC103: EMPIRE FRUIT | AD103: TOTES 8 1/2-21/4 GINGERGOLD XF WALMART APPLES | AE103: GINGERGOLD TOTES 8 1/2-21/4 XF WALMART 009444862 | AF103: APPLES | AG103: APPLES | AI103: GINGERGOLD | AJ103: TOTES | AK103: 8 1/2-21/4 | AL103: XF | AM103: WALMART | AN103: USA | AP103: 177 | AQ103: 177 | AR103: 4.425 | AS103: 742.18 | AT103: 4008.4836 | AU103: 8007.48 | AV103: 4787.85 | AW103: 22.6468 | AX103: 27.05 | AY103: 3883 | AZ103: 879329007287 | BA103: 580033931 | BB103: EMPIRE FRUIT | BC103: EF-GINGGOLD | BD103: EMPIRE FRUIT | BE103: 25262.75 | BF103: 25262.75 | BG103: 44082 | BI103: ctn | BJ103: 22.6468 | BK103: N | BL103: 9 | BM103: 124 | BN103: 1 | BO103: 124 | BP103: 8 | BR103: 1 | BT103: C | BU103: 2
A104: 40237 | B104: 20139 | C104: X | D104: TG LOGISTICS LLC | E104: 249791 | F104: G3884TOTEWAL | G104: 44054 | H104: 44082 | I104: 44084 | J104: 2020 | K104: 9 | L104: 8 | M104: 37 | N104: 2020-37 | O104: 2020-09 | P104: WAL-MART SUPERCENTERS-MACCLENNY, FL 6099 | Q104: WAL-MART SUPERCENTERS | R104: BENTONVILLE | S104: AR | T104: 500715308 | U104: WAL-MART SUPERCENTERS | V104: MACCLENNY, FL 6099 | W104: MACCLENNY | X104: FL | Y104: 32063 | AA104: Invoiced | AB104: NEW YORK APPLE SALES | AC104: EMPIRE FRUIT | AD104: TOTES 8 1/2-21/4 GINGERGOLD XF WALMART APPLES | AE104: GINGERGOLD TOTES 8 1/2-21/4 XF WALMART 009444862 | AF104: APPLES | AG104: APPLES | AI104: GINGERGOLD | AJ104: TOTES | AK104: 8 1/2-21/4 | AL104: XF | AM104: WALMART | AN104: USA | AP104: 348 | AQ104: 348 | AR104: 8.7 | AS104: 1459.2 | AT104: 7881.0864 | AU104: 15743.52 | AV104: 9413.4 | AW104: 22.6468 | AX104: 27.05 | AY104: G3884 | AZ104: 879329007287 | BA104: 580033931 | BB104: EMPIRE FRUIT | BC104: EF-GINGGOLD | BD104: EMPIRE FRUIT | BE104: 25262.75 | BF104: 25262.75 | BG104: 44082 | BI104: ctn | BJ104: 22.6468 | BK104: N | BL104: 9 | BM104: 124 | BN104: 1 | BO104: 124 | BP104: 8 | BR104: 1 | BT104: C | BU104: 2
A105: 40237 | B105: 20139 | C105: X | D105: TG LOGISTICS LLC | E105: 249912 | F105: 108129 | G105: 44054 | H105: 44082 | I105: 44084 | J105: 2020 | K105: 9 | L105: 8 | M105: 37 | N105: 2020-37 | O105: 2020-09 | P105: WAL-MART SUPERCENTERS-MACCLENNY, FL 6099 | Q105: WAL-MART SUPERCENTERS | R105: BENTONVILLE | S105: AR | T105: 500715308 | U105: WAL-MART SUPERCENTERS | V105: MACCLENNY, FL 6099 | W105: MACCLENNY | X105: FL | Y105: 32063 | AA105: Invoiced | AB105: NEW YORK APPLE SALES | AC105: YONDER FARMS | AD105: TOTES 8 1/2-21/4 JONAMAC XF WALMART APPLES | AE105: JONAMAC TOTES 8 1/2-21/4 XF WALMART 9444862 | AF105: APPLES | AG105: APPLES | AI105: JONAMAC | AJ105: TOTES | AK105: 8 1/2-21/4 | AL105: XF | AM105: WALMART | AN105: USA | AP105: 63 | AQ105: 63 | AR105: 1.575 | AS105: 264.17 | AT105: 1426.7421 | AU105: 2850.12 | AV105: 1704.15 | AW105: 22.6467 | AX105: 27.05 | AY105: 123 | AZ105: 879329007287 | BA105: 580033931 | BB105: YONDER FARMS FRUIT DIST., LLC | BC105: YF-JONAMAC | BD105: YONDER FARMS FRUIT DIST., LLC | BE105: 25262.75 | BF105: 25262.75 | BG105: 44082 | BI105: ctn | BJ105: 22.6467 | BK105: N | BL105: 9 | BM105: 124 | BN105: 1 | BO105: 124 | BP105: 8 | BR105: 1 | BT105: C | BU105: 2
A106: 40237 | B106: 20139 | C106: X | D106: TG LOGISTICS LLC | E106: 249913 | F106: 108130 | G106: 44054 | H106: 44082 | I106: 44084 | J106: 2020 | K106: 9 | L106: 8 | M106: 37 | N106: 2020-37 | O106: 2020-09 | P106: WAL-MART SUPERCENTERS-MACCLENNY, FL 6099 | Q106: WAL-MART SUPERCENTERS | R106: BENTONVILLE | S106: AR | T106: 500715308 | U106: WAL-MART SUPERCENTERS | V106: MACCLENNY, FL 6099 | W106: MACCLENNY | X106: FL | Y106: 32063 | AA106: Invoiced | AB106: NEW YORK APPLE SALES | AC106: YONDER FARMS | AD106: TOTES 8 1/2-21/4 JONAMAC XF WALMART APPLES | AE106: JONAMAC TOTES 8 1/2-21/4 XF WALMART 9444862 | AF106: APPLES | AG106: APPLES | AI106: JONAMAC | AJ106: TOTES | AK106: 8 1/2-21/4 | AL106: XF | AM106: WALMART | AN106: USA | AP106: 7 | AQ106: 7 | AR106: 0.175 | AS106: 29.35 | AT106: 158.5269 | AU106: 316.68 | AV106: 189.35 | AW106: 22.6467 | AX106: 27.05 | AY106: 124 | AZ106: 879329007287 | BA106: 580033931 | BB106: YONDER FARMS FRUIT DIST., LLC | BC106: YF-JONAMAC | BD106: YONDER FARMS FRUIT DIST., LLC | BE106: 25262.75 | BF106: 25262.75 | BG106: 44082 | BI106: ctn | BJ106: 22.6467 | BK106: N | BL106: 9 | BM106: 124 | BN106: 1 | BO106: 124 | BP106: 8 | BR106: 1 | BT106: C | BU106: 2
A107: 40237 | B107: 20139 | C107: X | D107: TG LOGISTICS LLC | E107: 249915 | F107: 108132 | G107: 44054 | H107: 44082 | I107: 44084 | J107: 2020 | K107: 9 | L107: 8 | M107: 37 | N107: 2020-37 | O107: 2020-09 | P107: WAL-MART SUPERCENTERS-MACCLENNY, FL 6099 | Q107: WAL-MART SUPERCENTERS | R107: BENTONVILLE | S107: AR | T107: 500715308 | U107: WAL-MART SUPERCENTERS | V107: MACCLENNY, FL 6099 | W107: MACCLENNY | X107: FL | Y107: 32063 | AA107: Invoiced | AB107: NEW YORK APPLE SALES | AC107: YONDER FARMS | AD107: TOTES 8 1/2-21/4 JONAMAC XF WALMART APPLES | AE107: JONAMAC TOTES 8 1/2-21/4 XF WALMART 9444862 | AF107: APPLES | AG107: APPLES | AI107: JONAMAC | AJ107: TOTES | AK107: 8 1/2-21/4 | AL107: XF | AM107: WALMART | AN107: USA | AP107: 6 | AQ107: 6 | AR107: 0.15 | AS107: 25.16 | AT107: 135.8802 | AU107: 271.44 | AV107: 162.3 | AW107: 22.6467 | AX107: 27.05 | AY107: 126 | AZ107: 879329007287 | BA107: 580033931 | BB107: YONDER FARMS FRUIT DIST., LLC | BC107: YF-JONAMAC | BD107: YONDER FARMS FRUIT DIST., LLC | BE107: 25262.75 | BF107: 25262.75 | BG107: 44082 | BI107: ctn | BJ107: 22.6467 | BK107: N | BL107: 9 | BM107: 124 | BN107: 1 | BO107: 124 | BP107: 8 | BR107: 1 | BT107: C | BU107: 2
A108: 40237 | B108: 20139 | C108: X | D108: TG LOGISTICS LLC | E108: 249911 | F108: 108128 | G108: 44054 | H108: 44082 | I108: 44084 | J108: 2020 | K108: 9 | L108: 8 | M108: 37 | N108: 2020-37 | O108: 2020-09 | P108: WAL-MART SUPERCENTERS-MACCLENNY, FL 6099 | Q108: WAL-MART SUPERCENTERS | R108: BENTONVILLE | S108: AR | T108: 500715308 | U108: WAL-MART SUPERCENTERS | V108: MACCLENNY, FL 6099 | W108: MACCLENNY | X108: FL | Y108: 32063 | AA108: Invoiced | AB108: NEW YORK APPLE SALES | AC108: YONDER FARMS | AD108: TOTES 8 1/2-21/4 MCINTOSH XF WALMART APPLES | AE108: MCINTOSH TOTES 8 1/2-21/4 XF WALMART 9444862 | AF108: APPLES | AG108: APPLES | AH108: MCINTOSH | AI108: MCINTOSH | AJ108: TOTES | AK108: 8 1/2-21/4 | AL108: XF | AM108: WALMART | AN108: USA | AP108: 121 | AQ108: 121 | AR108: 3.025 | AS108: 507.37 | AT108: 2740.2628 | AU108: 5474.04 | AV108: 3273.05 | AW108: 22.6468 | AX108: 27.05 | AY108: 122 | AZ108: 879329007287 | BA108: 580033931 | BB108: YONDER FARMS FRUIT DIST., LLC | BC108: YF-MCINTOSH | BD108: YONDER FARMS FRUIT DIST., LLC | BE108: 25262.75 | BF108: 25262.75 | BG108: 44082 | BI108: ctn | BJ108: 22.6468 | BK108: N | BL108: 9 | BM108: 124 | BN108: 1 | BO108: 124 | BP108: 8 | BQ108: 3 | BR108: 1 | BT108: C | BU108: 2
A109: 40237 | B109: 20139 | C109: X | D109: TG LOGISTICS LLC | E109: 249914 | F109: 108131 | G109: 44054 | H109: 44082 | I109: 44084 | J109: 2020 | K109: 9 | L109: 8 | M109: 37 | N109: 2020-37 | O109: 2020-09 | P109: WAL-MART SUPERCENTERS-MACCLENNY, FL 6099 | Q109: WAL-MART SUPERCENTERS | R109: BENTONVILLE | S109: AR | T109: 500715308 | U109: WAL-MART SUPERCENTERS | V109: MACCLENNY, FL 6099 | W109: MACCLENNY | X109: FL | Y109: 32063 | AA109: Invoiced | AB109: NEW YORK APPLE SALES | AC109: YONDER FARMS | AD109: TOTES 8 1/2-21/4 MCINTOSH XF WALMART APPLES | AE109: MCINTOSH TOTES 8 1/2-21/4 XF WALMART 9444862 | AF109: APPLES | AG109: APPLES | AH109: MCINTOSH | AI109: MCINTOSH | AJ109: TOTES | AK109: 8 1/2-21/4 | AL109: XF | AM109: WALMART | AN109: USA | AP109: 83 | AQ109: 83 | AR109: 2.075 | AS109: 348.01 | AT109: 1879.6844 | AU109: 3754.92 | AV109: 2245.15 | AW109: 22.6468 | AX109: 27.05 | AY109: 125 | AZ109: 879329007287 | BA109: 580033931 | BB109: YONDER FARMS FRUIT DIST., LLC | BC109: YF-MCINTOSH | BD109: YONDER FARMS FRUIT DIST., LLC | BE109: 25262.75 | BF109: 25262.75 | BG109: 44082 | BI109: ctn | BJ109: 22.6468 | BK109: N | BL109: 9 | BM109: 124 | BN109: 1 | BO109: 124 | BP109: 8 | BQ109: 3 | BR109: 1 | BT109: C | BU109: 2
A110: 40238 | B110: 20142 | C110: X | D110: MODERN FREIGHT SOLUTIONS, LLC | E110: 249935 | F110: 108139 | G110: 44054 | H110: 44082 | I110: 44084 | J110: 2020 | K110: 9 | L110: 8 | M110: 37 | N110: 2020-37 | O110: 2020-09 | P110: WAL-MART SUPERCENTERS-WINTERHAVEN, FL 6071 | Q110: WAL-MART SUPERCENTERS | R110: BENTONVILLE | S110: AR | T110: 500715310 | U110: WAL-MART SUPERCENTERS | V110: WINTERHAVEN, FL 6071 | W110: WINTER HAVEN | X110: FL | Y110: 33881 | AA110: Invoiced | AB110: NEW YORK APPLE SALES | AC110: PORPIGLIA FARMS | AD110: BULK 45 RPC GINGERGOLD XF WALMART APPLES | AE110: GINGERGOLD BULK 45 CORRUGATED XF WALMART | AF110: APPLES | AG110: APPLES | AI110: GINGERGOLD | AJ110: BULK | AK110: 45 RPC | AL110: XF | AM110: WALMART | AN110: USA | AP110: 23 | AQ110: 15.525 | AR110: 0.46 | AS110: 64.24 | AT110: 441.5103 | AU110: 754.17 | AV110: 540.5 | AW110: 19.1961 | AX110: 23.5 | AY110: 2450101 | BB110: PORPIGLIA FARMS | BC110: PF-GINGGOLD | BD110: PORPIGLIA FARMS | BE110: 25557.85 | BF110: 25557.85 | BG110: 44082 | BI110: ctn | BJ110: 19.1961 | BK110: N | BL110: 7 | BM110: 124 | BN110: 1 | BO110: 124 | BP110: 11 | BR110: 1 | BT110: C | BU110: 2
A111: 40238 | B111: 20142 | C111: X | D111: MODERN FREIGHT SOLUTIONS, LLC | E111: 249936 | F111: 108140 | G111: 44054 | H111: 44082 | I111: 44084 | J111: 2020 | K111: 9 | L111: 8 | M111: 37 | N111: 2020-37 | O111: 2020-09 | P111: WAL-MART SUPERCENTERS-WINTERHAVEN, FL 6071 | Q111: WAL-MART SUPERCENTERS | R111: BENTONVILLE | S111: AR | T111: 500715310 | U111: WAL-MART SUPERCENTERS | V111: WINTERHAVEN, FL 6071 | W111: WINTER HAVEN | X111: FL | Y111: 33881 | AA111: Invoiced | AB111: NEW YORK APPLE SALES | AC111: PORPIGLIA FARMS | AD111: BULK 50 RPC GINGERGOLD XF WALMART APPLES | AE111: GINGERGOLD BULK 50 CORRUGATED XF WALMART | AF111: APPLES | AG111: APPLES | AI111: GINGERGOLD | AJ111: BULK | AK111: 50 RPC | AL111: XF | AM111: WALMART | AN111: USA | AP111: 39 | AQ111: 26.325 | AR111: 0.78 | AS111: 108.93 | AT111: 748.6596 | AU111: 1278.81 | AV111: 916.5 | AW111: 19.1964 | AX111: 23.5 | AY111: 2450101 | BB111: PORPIGLIA FARMS | BC111: PF-GINGGOLD | BD111: PORPIGLIA FARMS | BE111: 25557.85 | BF111: 25557.85 | BG111: 44082 | BI111: ctn | BJ111: 19.1964 | BK111: N | BL111: 7 | BM111: 124 | BN111: 1 | BO111: 124 | BP111: 11 | BR111: 1 | BT111: C | BU111: 2
A112: 40238 | B112: 20142 | C112: X | D112: MODERN FREIGHT SOLUTIONS, LLC | E112: 249937 | F112: 108141 | G112: 44054 | H112: 44082 | I112: 44084 | J112: 2020 | K112: 9 | L112: 8 | M112: 37 | N112: 2020-37 | O112: 2020-09 | P112: WAL-MART SUPERCENTERS-WINTERHAVEN, FL 6071 | Q112: WAL-MART SUPERCENTERS | R112: BENTONVILLE | S112: AR | T112: 500715310 | U112: WAL-MART SUPERCENTERS | V112: WINTERHAVEN, FL 6071 | W112: WINTER HAVEN | X112: FL | Y112: 33881 | AA112: Invoiced | AB112: NEW YORK APPLE SALES | AC112: PORPIGLIA FARMS | AD112: BULK 55 RPC GINGERGOLD XF WALMART APPLES | AE112: GINGERGOLD BULK 55 CORRUGATED XF WALMART | AF112: APPLES | AG112: APPLES | AI112: GINGERGOLD | AJ112: BULK | AK112: 55 RPC | AL112: XF | AM112: WALMART | AN112: USA | AP112: 88 | AQ112: 59.4 | AR112: 1.76 | AS112: 245.79 | AT112: 1689.2832 | AU112: 2885.52 | AV112: 2068 | AW112: 19.1964 | AX112: 23.5 | AY112: 2450101 | BB112: PORPIGLIA FARMS | BC112: PF-GINGGOLD | BD112: PORPIGLIA FARMS | BE112: 25557.85 | BF112: 25557.85 | BG112: 44082 | BI112: ctn | BJ112: 19.1964 | BK112: N | BL112: 7 | BM112: 124 | BN112: 1 | BO112: 124 | BP112: 11 | BR112: 1 | BT112: C | BU112: 2
A113: 40238 | B113: 20142 | C113: X | D113: MODERN FREIGHT SOLUTIONS, LLC | E113: 249866 | F113: 108084 | G113: 44054 | H113: 44082 | I113: 44084 | J113: 2020 | K113: 9 | L113: 8 | M113: 37 | N113: 2020-37 | O113: 2020-09 | P113: WAL-MART SUPERCENTERS-WINTERHAVEN, FL 6071 | Q113: WAL-MART SUPERCENTERS | R113: BENTONVILLE | S113: AR | T113: 500715310 | U113: WAL-MART SUPERCENTERS | V113: WINTERHAVEN, FL 6071 | W113: WINTER HAVEN | X113: FL | Y113: 33881 | AA113: Invoiced | AB113: NEW YORK APPLE SALES | AC113: CRIST BROTHERS | AD113: TOTES TOTES GINGERGOLD XF WALMART APPLES | AE113: GINGERGOLD TOTES 8 1/2 RPC XF WALMART | AF113: APPLES | AG113: APPLES | AI113: GINGERGOLD | AJ113: TOTES | AK113: TOTES | AL113: XF | AM113: WALMART | AN113: USA | AP113: 280 | AQ113: 280 | AR113: 8 | AS113: 1158.62 | AT113: 6458.564 | AU113: 13302.8 | AV113: 7663.6 | AW113: 23.0663 | AX113: 27.37 | AY113: 34901 | AZ113: 879329007287 | BA113: 580033931 | BB113: CRIST | BC113: CB-GINGGOLD | BD113: CRIST | BE113: 25557.85 | BF113: 25557.85 | BG113: 44082 | BI113: ctn | BJ113: 23.0663 | BK113: N | BL113: 9 | BM113: 124 | BN113: 1 | BO113: 124 | BP113: 11 | BR113: 1 | BT113: C | BU113: 2
A114: 40238 | B114: 20142 | C114: X | D114: MODERN FREIGHT SOLUTIONS, LLC | E114: 249716 | F114: 108005 | G114: 44054 | H114: 44082 | I114: 44084 | J114: 2020 | K114: 9 | L114: 8 | M114: 37 | N114: 2020-37 | O114: 2020-09 | P114: WAL-MART SUPERCENTERS-WINTERHAVEN, FL 6071 | Q114: WAL-MART SUPERCENTERS | R114: BENTONVILLE | S114: AR | T114: 500715310 | U114: WAL-MART SUPERCENTERS | V114: WINTERHAVEN, FL 6071 | W114: WINTER HAVEN | X114: FL | Y114: 33881 | AA114: Invoiced | AB114: NEW YORK APPLE SALES | AC114: CRIST BROTHERS | AD114: TOTES TOTES JONAMAC XF WALMART APPLES | AE114: JONAMAC TOTES TOTES XF WALMART 580033931 | AF114: APPLES | AG114: APPLES | AI114: JONAMAC | AJ114: TOTES | AK114: TOTES | AL114: XF | AM114: WALMART | AN114: USA | AP114: 35 | AQ114: 35 | AR114: 1 | AS114: 144.83 | AT114: 807.3205 | AU114: 1662.85 | AV114: 957.95 | AW114: 23.0663 | AX114: 27.37 | AY114: 33001 | AZ114: 879329007287 | BA114: 580033931 | BB114: CRIST | BC114: CB-JONAMAC | BD114: CRIST | BE114: 25557.85 | BF114: 25557.85 | BG114: 44082 | BI114: ctn | BJ114: 23.0663 | BK114: N | BL114: 9 | BM114: 124 | BN114: 1 | BO114: 124 | BP114: 11 | BR114: 1 | BT114: C | BU114: 2
A115: 40238 | B115: 20142 | C115: X | D115: MODERN FREIGHT SOLUTIONS, LLC | E115: 249837 | F115: 108055 | G115: 44054 | H115: 44082 | I115: 44084 | J115: 2020 | K115: 9 | L115: 8 | M115: 37 | N115: 2020-37 | O115: 2020-09 | P115: WAL-MART SUPERCENTERS-WINTERHAVEN, FL 6071 | Q115: WAL-MART SUPERCENTERS | R115: BENTONVILLE | S115: AR | T115: 500715310 | U115: WAL-MART SUPERCENTERS | V115: WINTERHAVEN, FL 6071 | W115: WINTER HAVEN | X115: FL | Y115: 33881 | AA115: Invoiced | AB115: NEW YORK APPLE SALES | AC115: CRIST BROTHERS | AD115: TOTES TOTES JONAMAC XF WALMART APPLES | AE115: JONAMAC TOTES TOTES XF WALMART 580033931 | AF115: APPLES | AG115: APPLES | AI115: JONAMAC | AJ115: TOTES | AK115: TOTES | AL115: XF | AM115: WALMART | AN115: USA | AP115: 70 | AQ115: 70 | AR115: 2 | AS115: 289.66 | AT115: 1614.641 | AU115: 3325.7 | AV115: 1915.9 | AW115: 23.0663 | AX115: 27.37 | AY115: 33102 | AZ115: 879329007287 | BA115: 580033931 | BB115: CRIST | BC115: CB-JONAMAC | BD115: CRIST | BE115: 25557.85 | BF115: 25557.85 | BG115: 44082 | BI115: ctn | BJ115: 23.0663 | BK115: N | BL115: 9 | BM115: 124 | BN115: 1 | BO115: 124 | BP115: 11 | BR115: 1 | BT115: C | BU115: 2
A116: 40238 | B116: 20142 | C116: X | D116: MODERN FREIGHT SOLUTIONS, LLC | E116: 249841 | F116: 108059 | G116: 44054 | H116: 44082 | I116: 44084 | J116: 2020 | K116: 9 | L116: 8 | M116: 37 | N116: 2020-37 | O116: 2020-09 | P116: WAL-MART SUPERCENTERS-WINTERHAVEN, FL 6071 | Q116: WAL-MART SUPERCENTERS | R116: BENTONVILLE | S116: AR | T116: 500715310 | U116: WAL-MART SUPERCENTERS | V116: WINTERHAVEN, FL 6071 | W116: WINTER HAVEN | X116: FL | Y116: 33881 | AA116: Invoiced | AB116: NEW YORK APPLE SALES | AC116: CRIST BROTHERS | AD116: TOTES TOTES JONAMAC XF WALMART APPLES | AE116: JONAMAC TOTES TOTES XF WALMART 580033931 | AF116: APPLES | AG116: APPLES | AI116: JONAMAC | AJ116: TOTES | AK116: TOTES | AL116: XF | AM116: WALMART | AN116: USA | AP116: 6 | AQ116: 6 | AR116: 0.1714285714 | AS116: 24.83 | AT116: 138.3978 | AU116: 285.06 | AV116: 164.22 | AW116: 23.0663 | AX116: 27.37 | AY116: 34301 | AZ116: 879329007287 | BA116: 580033931 | BB116: CRIST | BC116: CB-JONAMAC | BD116: CRIST | BE116: 25557.85 | BF116: 25557.85 | BG116: 44082 | BI116: ctn | BJ116: 23.0663 | BK116: N | BL116: 9 | BM116: 124 | BN116: 1 | BO116: 124 | BP116: 11 | BR116: 1 | BT116: C | BU116: 2
A117: 40238 | B117: 20142 | C117: X | D117: MODERN FREIGHT SOLUTIONS, LLC | E117: 249870 | F117: 108088 | G117: 44054 | H117: 44082 | I117: 44084 | J117: 2020 | K117: 9 | L117: 8 | M117: 37 | N117: 2020-37 | O117: 2020-09 | P117: WAL-MART SUPERCENTERS-WINTERHAVEN, FL 6071 | Q117: WAL-MART SUPERCENTERS | R117: BENTONVILLE | S117: AR | T117: 500715310 | U117: WAL-MART SUPERCENTERS | V117: WINTERHAVEN, FL 6071 | W117: WINTER HAVEN | X117: FL | Y117: 33881 | AA117: Invoiced | AB117: NEW YORK APPLE SALES | AC117: CRIST BROTHERS | AD117: TOTES TOTES JONAMAC XF WALMART APPLES | AE117: JONAMAC TOTES TOTES XF WALMART 580033931 | AF117: APPLES | AG117: APPLES | AI117: JONAMAC | AJ117: TOTES | AK117: TOTES | AL117: XF | AM117: WALMART | AN117: USA | AP117: 414 | AQ117: 414 | AR117: 11.82857143 | AS117: 1713.1 | AT117: 9549.4482 | AU117: 19669.14 | AV117: 11331.18 | AW117: 23.0663 | AX117: 27.37 | AY117: 35001 | AZ117: 879329007287 | BA117: 580033931 | BB117: CRIST | BC117: CB-JONAMAC | BD117: CRIST | BE117: 25557.85 | BF117: 25557.85 | BG117: 44082 | BI117: ctn | BJ117: 23.0663 | BK117: N | BL117: 9 | BM117: 124 | BN117: 1 | BO117: 124 | BP117: 11 | BR117: 1 | BT117: C | BU117: 2
A118: 40239 | B118: 20129 | C118: X | D118: GWB TRUCKING | E118: 249479 | F118: 107780 | G118: 44054 | H118: 44078 | I118: 44079 | J118: 2020 | K118: 9 | L118: 4 | M118: 36 | N118: 2020-36 | O118: 2020-09 | P118: WAL-MART SUPERCENTERS-JOHNSTOWN, NY 6096 | Q118: WAL-MART SUPERCENTERS | R118: BENTONVILLE | S118: AR | T118: 500715320 | U118: WAL-MART SUPERCENTERS | V118: JOHNSTOWN, NY 6096 | W118: JOHNSTOWN | X118: NY | Y118: 12095 | AA118: Invoiced | AB118: NEW YORK APPLE SALES | AC118: CRIST BROTHERS | AD118: TOTES 8 1/2 RPC GINGERGOLD XF WALMART APPLES | AE118: GINGERGOLD TOTES 8 1/2 RPC XF WALMART | AF118: APPLES | AG118: APPLES | AI118: GINGERGOLD | AJ118: TOTES | AK118: 8 1/2 RPC | AL118: XF | AM118: WALMART | AN118: USA | AP118: 21 | AQ118: 21 | AR118: 0.6 | AS118: 31.15 | AT118: 466.5339 | AU118: 997.71 | AV118: 505.68 | AW118: 22.2159 | AX118: 24.08 | AY118: 30703 | AZ118: 879329007287 | BA118: 580033931 | BB118: CRIST | BC118: CB-GINGGOLD | BD118: CRIST | BE118: 21912.8 | BF118: 21912.8 | BG118: 44078 | BI118: ctn | BJ118: 22.2159 | BK118: N | BL118: 9 | BM118: 124 | BN118: 1 | BO118: 124 | BP118: 5 | BR118: 1 | BT118: C | BU118: 2
A119: 40239 | B119: 20129 | C119: X | D119: GWB TRUCKING | E119: 249508 | F119: 107809 | G119: 44054 | H119: 44078 | I119: 44079 | J119: 2020 | K119: 9 | L119: 4 | M119: 36 | N119: 2020-36 | O119: 2020-09 | P119: WAL-MART SUPERCENTERS-JOHNSTOWN, NY 6096 | Q119: WAL-MART SUPERCENTERS | R119: BENTONVILLE | S119: AR | T119: 500715320 | U119: WAL-MART SUPERCENTERS | V119: JOHNSTOWN, NY 6096 | W119: JOHNSTOWN | X119: NY | Y119: 12095 | AA119: Invoiced | AB119: NEW YORK APPLE SALES | AC119: CRIST BROTHERS | AD119: TOTES 8 1/2 RPC GINGERGOLD XF WALMART APPLES | AE119: GINGERGOLD TOTES 8 1/2 RPC XF WALMART | AF119: APPLES | AG119: APPLES | AI119: GINGERGOLD | AJ119: TOTES | AK119: 8 1/2 RPC | AL119: XF | AM119: WALMART | AN119: USA | AP119: 11 | AQ119: 11 | AR119: 0.3142857143 | AS119: 16.32 | AT119: 244.3749 | AU119: 522.61 | AV119: 264.88 | AW119: 22.2159 | AX119: 24.08 | AY119: 30901 | AZ119: 879329007287 | BA119: 580033931 | BB119: CRIST | BC119: CB-GINGGOLD | BD119: CRIST | BE119: 21912.8 | BF119: 21912.8 | BG119: 44078 | BI119: ctn | BJ119: 22.2159 | BK119: N | BL119: 9 | BM119: 124 | BN119: 1 | BO119: 124 | BP119: 5 | BR119: 1 | BT119: C | BU119: 2
A120: 40239 | B120: 20129 | C120: X | D120: GWB TRUCKING | E120: 249509 | F120: 107810 | G120: 44054 | H120: 44078 | I120: 44079 | J120: 2020 | K120: 9 | L120: 4 | M120: 36 | N120: 2020-36 | O120: 2020-09 | P120: WAL-MART SUPERCENTERS-JOHNSTOWN, NY 6096 | Q120: WAL-MART SUPERCENTERS | R120: BENTONVILLE | S120: AR | T120: 500715320 | U120: WAL-MART SUPERCENTERS | V120: JOHNSTOWN, NY 6096 | W120: JOHNSTOWN | X120: NY | Y120: 12095 | AA120: Invoiced | AB120: NEW YORK APPLE SALES | AC120: CRIST BROTHERS | AD120: TOTES 8 1/2 RPC GINGERGOLD XF WALMART APPLES | AE120: GINGERGOLD TOTES 8 1/2 RPC XF WALMART | AF120: APPLES | AG120: APPLES | AI120: GINGERGOLD | AJ120: TOTES | AK120: 8 1/2 RPC | AL120: XF | AM120: WALMART | AN120: USA | AP120: 14 | AQ120: 14 | AR120: 0.4 | AS120: 20.77 | AT120: 311.0226 | AU120: 665.14 | AV120: 337.12 | AW120: 22.2159 | AX120: 24.08 | AY120: 30902 | AZ120: 879329007287 | BA120: 580033931 | BB120: CRIST | BC120: CB-GINGGOLD | BD120: CRIST | BE120: 21912.8 | BF120: 21912.8 | BG120: 44078 | BI120: ctn | BJ120: 22.2159 | BK120: N | BL120: 9 | BM120: 124 | BN120: 1 | BO120: 124 | BP120: 5 | BR120: 1 | BT120: C | BU120: 2
A121: 40239 | B121: 20129 | C121: X | D121: GWB TRUCKING | E121: 249628 | F121: 107917 | G121: 44054 | H121: 44078 | I121: 44079 | J121: 2020 | K121: 9 | L121: 4 | M121: 36 | N121: 2020-36 | O121: 2020-09 | P121: WAL-MART SUPERCENTERS-JOHNSTOWN, NY 6096 | Q121: WAL-MART SUPERCENTERS | R121: BENTONVILLE | S121: AR | T121: 500715320 | U121: WAL-MART SUPERCENTERS | V121: JOHNSTOWN, NY 6096 | W121: JOHNSTOWN | X121: NY | Y121: 12095 | AA121: Invoiced | AB121: NEW YORK APPLE SALES | AC121: CRIST BROTHERS | AD121: TOTES 8 1/2 RPC GINGERGOLD XF WALMART APPLES | AE121: GINGERGOLD TOTES 8 1/2 RPC XF WALMART | AF121: APPLES | AG121: APPLES | AI121: GINGERGOLD | AJ121: TOTES | AK121: 8 1/2 RPC | AL121: XF | AM121: WALMART | AN121: USA | AP121: 68 | AQ121: 68 | AR121: 1.942857143 | AS121: 100.88 | AT121: 1510.6812 | AU121: 3230.68 | AV121: 1637.44 | AW121: 22.2159 | AX121: 24.08 | AY121: 32403 | AZ121: 879329007287 | BA121: 580033931 | BB121: CRIST | BC121: CB-GINGGOLD | BD121: CRIST | BE121: 21912.8 | BF121: 21912.8 | BG121: 44078 | BI121: ctn | BJ121: 22.2159 | BK121: N | BL121: 9 | BM121: 124 | BN121: 1 | BO121: 124 | BP121: 5 | BR121: 1 | BT121: C | BU121: 2
A122: 40239 | B122: 20129 | C122: X | D122: GWB TRUCKING | E122: 249631 | F122: 107920 | G122: 44054 | H122: 44078 | I122: 44079 | J122: 2020 | K122: 9 | L122: 4 | M122: 36 | N122: 2020-36 | O122: 2020-09 | P122: WAL-MART SUPERCENTERS-JOHNSTOWN, NY 6096 | Q122: WAL-MART SUPERCENTERS | R122: BENTONVILLE | S122: AR | T122: 500715320 | U122: WAL-MART SUPERCENTERS | V122: JOHNSTOWN, NY 6096 | W122: JOHNSTOWN | X122: NY | Y122: 12095 | AA122: Invoiced | AB122: NEW YORK APPLE SALES | AC122: CRIST BROTHERS | AD122: TOTES 8 1/2 RPC GINGERGOLD XF WALMART APPLES | AE122: GINGERGOLD TOTES 8 1/2 RPC XF WALMART | AF122: APPLES | AG122: APPLES | AI122: GINGERGOLD | AJ122: TOTES | AK122: 8 1/2 RPC | AL122: XF | AM122: WALMART | AN122: USA | AP122: 9 | AQ122: 9 | AR122: 0.2571428571 | AS122: 13.35 | AT122: 199.9431 | AU122: 427.59 | AV122: 216.72 | AW122: 22.2159 | AX122: 24.08 | AY122: 32406 | AZ122: 879329007287 | BA122: 580033931 | BB122: CRIST | BC122: CB-GINGGOLD | BD122: CRIST | BE122: 21912.8 | BF122: 21912.8 | BG122: 44078 | BI122: ctn | BJ122: 22.2159 | BK122: N | BL122: 9 | BM122: 124 | BN122: 1 | BO122: 124 | BP122: 5 | BR122: 1 | BT122: C | BU122: 2
A123: 40239 | B123: 20129 | C123: X | D123: GWB TRUCKING | E123: 249909 | F123: 108126 | G123: 44054 | H123: 44078 | I123: 44079 | J123: 2020 | K123: 9 | L123: 4 | M123: 36 | N123: 2020-36 | O123: 2020-09 | P123: WAL-MART SUPERCENTERS-JOHNSTOWN, NY 6096 | Q123: WAL-MART SUPERCENTERS | R123: BENTONVILLE | S123: AR | T123: 500715320 | U123: WAL-MART SUPERCENTERS | V123: JOHNSTOWN, NY 6096 | W123: JOHNSTOWN | X123: NY | Y123: 12095 | AA123: Invoiced | AB123: NEW YORK APPLE SALES | AC123: CRIST BROTHERS | AD123: TOTES 8 1/2 RPC JONAMAC XF WALMART APPLES | AE123: JONAMAC TOTES 8 1/2 RPC XF WALMART | AF123: APPLES | AG123: APPLES | AI123: JONAMAC | AJ123: TOTES | AK123: 8 1/2 RPC | AL123: XF | AM123: WALMART | AN123: USA | AP123: 35 | AQ123: 35 | AR123: 1 | AS123: 51.92 | AT123: 777.546 | AU123: 1662.85 | AV123: 842.8 | AW123: 22.2156 | AX123: 24.08 | AY123: 33102 | AZ123: 879329007287 | BA123: 580033931 | BB123: CRIST | BC123: CB-JONAMAC | BD123: CRIST | BE123: 21912.8 | BF123: 21912.8 | BG123: 44078 | BI123: ctn | BJ123: 22.2156 | BK123: N | BL123: 9 | BM123: 124 | BN123: 1 | BO123: 124 | BP123: 5 | BR123: 1 | BT123: C | BU123: 2
A124: 40239 | B124: 20129 | C124: X | D124: GWB TRUCKING | E124: 249841 | F124: 108059 | G124: 44054 | H124: 44078 | I124: 44079 | J124: 2020 | K124: 9 | L124: 4 | M124: 36 | N124: 2020-36 | O124: 2020-09 | P124: WAL-MART SUPERCENTERS-JOHNSTOWN, NY 6096 | Q124: WAL-MART SUPERCENTERS | R124: BENTONVILLE | S124: AR | T124: 500715320 | U124: WAL-MART SUPERCENTERS | V124: JOHNSTOWN, NY 6096 | W124: JOHNSTOWN | X124: NY | Y124: 12095 | AA124: Invoiced | AB124: NEW YORK APPLE SALES | AC124: CRIST BROTHERS | AD124: TOTES 8 1/2 RPC JONAMAC XF WALMART APPLES | AE124: JONAMAC TOTES 8 1/2 RPC XF WALMART | AF124: APPLES | AG124: APPLES | AI124: JONAMAC | AJ124: TOTES | AK124: 8 1/2 RPC | AL124: XF | AM124: WALMART | AN124: USA | AP124: 1 | AQ124: 1 | AR124: 0.02857142857 | AS124: 1.48 | AT124: 22.2156 | AU124: 47.51 | AV124: 24.08 | AW124: 22.2156 | AX124: 24.08 | AY124: 34301 | AZ124: 879329007287 | BA124: 580033931 | BB124: CRIST | BC124: CB-JONAMAC | BD124: CRIST | BE124: 21912.8 | BF124: 21912.8 | BG124: 44078 | BI124: ctn | BJ124: 22.2161 | BK124: N | BL124: 9 | BM124: 124 | BN124: 1 | BO124: 124 | BP124: 5 | BR124: 1 | BT124: C | BU124: 2
A125: 40239 | B125: 20129 | C125: X | D125: GWB TRUCKING | E125: 249942 | F125: 108146 | G125: 44054 | H125: 44078 | I125: 44079 | J125: 2020 | K125: 9 | L125: 4 | M125: 36 | N125: 2020-36 | O125: 2020-09 | P125: WAL-MART SUPERCENTERS-JOHNSTOWN, NY 6096 | Q125: WAL-MART SUPERCENTERS | R125: BENTONVILLE | S125: AR | T125: 500715320 | U125: WAL-MART SUPERCENTERS | V125: JOHNSTOWN, NY 6096 | W125: JOHNSTOWN | X125: NY | Y125: 12095 | AA125: Invoiced | AB125: NEW YORK APPLE SALES | AC125: CRIST BROTHERS | AD125: TOTES 8 1/2-21/2 MCINTOSH XF WALMART APPLES | AE125: MCINTOSH TOTES 8 1/2 RPC XF WALMART | AF125: APPLES | AG125: APPLES | AH125: MCINTOSH | AI125: MCINTOSH | AJ125: TOTES | AK125: 8 1/2-21/2 | AL125: XF | AM125: WALMART | AN125: USA | AP125: 69 | AQ125: 69 | AR125: 1.725 | AS125: 102.36 | AT125: 1532.8902 | AU125: 3121.56 | AV125: 1661.52 | AW125: 22.2158 | AX125: 24.08 | AY125: 34001 | AZ125: 879329007287 | BA125: 580033931 | BB125: CRIST | BC125: CB-MCINTOSH | BD125: CRIST | BE125: 21912.8 | BF125: 21912.8 | BG125: 44078 | BI125: ctn | BJ125: 22.2158 | BK125: N | BL125: 9 | BM125: 124 | BN125: 1 | BO125: 124 | BP125: 5 | BQ125: 3 | BR125: 1 | BT125: C | BU125: 2
A126: 40239 | B126: 20129 | C126: X | D126: GWB TRUCKING | E126: 249817 | F126: 108035 | G126: 44054 | H126: 44078 | I126: 44079 | J126: 2020 | K126: 9 | L126: 4 | M126: 36 | N126: 2020-36 | O126: 2020-09 | P126: WAL-MART SUPERCENTERS-JOHNSTOWN, NY 6096 | Q126: WAL-MART SUPERCENTERS | R126: BENTONVILLE | S126: AR | T126: 500715320 | U126: WAL-MART SUPERCENTERS | V126: JOHNSTOWN, NY 6096 | W126: JOHNSTOWN | X126: NY | Y126: 12095 | AA126: Invoiced | AB126: NEW YORK APPLE SALES | AC126: FIX BROS | AD126: TOTES TOTES GINGERGOLD XF WALMART APPLES | AE126: GINGERGOLD TOTES TOTES XF WALMART 580033931 | AF126: APPLES | AG126: APPLES | AI126: GINGERGOLD | AJ126: TOTES | AK126: TOTES | AL126: XF | AM126: WALMART | AN126: USA | AP126: 610 | AQ126: 610 | AR126: 17.42857143 | AS126: 904.95 | AT126: 13551.638 | AU126: 28981.1 | AV126: 14688.8 | AW126: 22.2158 | AX126: 24.08 | AY126: 126 | AZ126: 879329007287 | BA126: 580033931 | BB126: FIX BROTHERS INC. | BC126: FB-GINGGOLD | BD126: FIX BROTHERS INC. | BE126: 21912.8 | BF126: 21912.8 | BG126: 44078 | BI126: ctn | BJ126: 22.2158 | BK126: N | BL126: 9 | BM126: 124 | BN126: 1 | BO126: 124 | BP126: 5 | BR126: 1 | BT126: C | BU126: 2
A127: 40239 | B127: 20129 | C127: X | D127: GWB TRUCKING | E127: 249816 | F127: 108034 | G127: 44054 | H127: 44078 | I127: 44079 | J127: 2020 | K127: 9 | L127: 4 | M127: 36 | N127: 2020-36 | O127: 2020-09 | P127: WAL-MART SUPERCENTERS-JOHNSTOWN, NY 6096 | Q127: WAL-MART SUPERCENTERS | R127: BENTONVILLE | S127: AR | T127: 500715320 | U127: WAL-MART SUPERCENTERS | V127: JOHNSTOWN, NY 6096 | W127: JOHNSTOWN | X127: NY | Y127: 12095 | AA127: Invoiced | AB127: NEW YORK APPLE SALES | AC127: FIX BROS | AD127: TOTES TOTES ZESTAR XF WALMART APPLES | AE127: ZESTAR TOTES TOTES XF WALMART 580033931 | AF127: APPLES | AG127: APPLES | AI127: ZESTAR | AJ127: TOTES | AK127: TOTES | AL127: XF | AM127: WALMART | AN127: USA | AP127: 72 | AQ127: 72 | AR127: 2.057142857 | AS127: 106.82 | AT127: 1599.5376 | AU127: 3420.72 | AV127: 1733.76 | AW127: 22.2158 | AX127: 24.08 | AY127: 131 | AZ127: 879329007287 | BA127: 580033931 | BB127: FIX BROTHERS INC. | BC127: FB-ZESTAR | BD127: FIX BROTHERS INC. | BE127: 21912.8 | BF127: 21912.8 | BG127: 44078 | BI127: ctn | BJ127: 22.2158 | BK127: N | BL127: 9 | BM127: 124 | BN127: 1 | BO127: 124 | BP127: 5 | BR127: 1 | BT127: C | BU127: 2
A128: 40240 | B128: 20112 | C128: X | D128: TG LOGISTICS LLC | E128: 249450 | F128: 107732 | G128: 44054 | H128: 44077 | I128: 44079 | J128: 2020 | K128: 9 | L128: 3 | M128: 36 | N128: 2020-36 | O128: 2020-09 | P128: WAL-MART SUPERCENTERS-MACCLENNY, FL 6099 | Q128: WAL-MART SUPERCENTERS | R128: BENTONVILLE | S128: AR | T128: 500715321 | U128: WAL-MART SUPERCENTERS | V128: MACCLENNY, FL 6099 | W128: MACCLENNY | X128: FL | Y128: 32063 | AA128: Invoiced | AB128: NEW YORK APPLE SALES | AC128: CRIST BROTHERS | AD128: TOTES 8 1/2 RPC GINGERGOLD XF WALMART APPLES | AE128: GINGERGOLD TOTES 8 1/2 RPC XF WALMART | AF128: APPLES | AG128: APPLES | AI128: GINGERGOLD | AJ128: TOTES | AK128: 8 1/2 RPC | AL128: XF | AM128: WALMART | AN128: USA | AP128: 35 | AQ128: 35 | AR128: 1 | AS128: 138.46 | AT128: 796.887 | AU128: 1662.85 | AV128: 946.75 | AW128: 22.7682 | AX128: 27.05 | AY128: 30102 | AZ128: 879329007287 | BA128: 580033931 | BB128: CRIST | BC128: CB-GINGGOLD | BD128: CRIST | BE128: 24615.5 | BF128: 24615.5 | BG128: 44077 | BI128: ctn | BJ128: 22.7682 | BK128: N | BL128: 9 | BM128: 124 | BN128: 1 | BO128: 124 | BP128: 8 | BR128: 1 | BT128: C | BU128: 2
A129: 40240 | B129: 20112 | C129: X | D129: TG LOGISTICS LLC | E129: 249481 | F129: 107782 | G129: 44054 | H129: 44077 | I129: 44079 | J129: 2020 | K129: 9 | L129: 3 | M129: 36 | N129: 2020-36 | O129: 2020-09 | P129: WAL-MART SUPERCENTERS-MACCLENNY, FL 6099 | Q129: WAL-MART SUPERCENTERS | R129: BENTONVILLE | S129: AR | T129: 500715321 | U129: WAL-MART SUPERCENTERS | V129: MACCLENNY, FL 6099 | W129: MACCLENNY | X129: FL | Y129: 32063 | AA129: Invoiced | AB129: NEW YORK APPLE SALES | AC129: CRIST BROTHERS | AD129: TOTES 8 1/2 RPC GINGERGOLD XF WALMART APPLES | AE129: GINGERGOLD TOTES 8 1/2 RPC XF WALMART | AF129: APPLES | AG129: APPLES | AI129: GINGERGOLD | AJ129: TOTES | AK129: 8 1/2 RPC | AL129: XF | AM129: WALMART | AN129: USA | AP129: 28 | AQ129: 28 | AR129: 0.8 | AS129: 110.77 | AT129: 637.5096 | AU129: 1330.28 | AV129: 757.4 | AW129: 22.7682 | AX129: 27.05 | AY129: 30705 | AZ129: 879329007287 | BA129: 580033931 | BB129: CRIST | BC129: CB-GINGGOLD | BD129: CRIST | BE129: 24615.5 | BF129: 24615.5 | BG129: 44077 | BI129: ctn | BJ129: 22.7682 | BK129: N | BL129: 9 | BM129: 124 | BN129: 1 | BO129: 124 | BP129: 8 | BR129: 1 | BT129: C | BU129: 2
A130: 40240 | B130: 20112 | C130: X | D130: TG LOGISTICS LLC | E130: 249508 | F130: 107809 | G130: 44054 | H130: 44077 | I130: 44079 | J130: 2020 | K130: 9 | L130: 3 | M130: 36 | N130: 2020-36 | O130: 2020-09 | P130: WAL-MART SUPERCENTERS-MACCLENNY, FL 6099 | Q130: WAL-MART SUPERCENTERS | R130: BENTONVILLE | S130: AR | T130: 500715321 | U130: WAL-MART SUPERCENTERS | V130: MACCLENNY, FL 6099 | W130: MACCLENNY | X130: FL | Y130: 32063 | AA130: Invoiced | AB130: NEW YORK APPLE SALES | AC130: CRIST BROTHERS | AD130: TOTES 8 1/2 RPC GINGERGOLD XF WALMART APPLES | AE130: GINGERGOLD TOTES 8 1/2 RPC XF WALMART | AF130: APPLES | AG130: APPLES | AI130: GINGERGOLD | AJ130: TOTES | AK130: 8 1/2 RPC | AL130: XF | AM130: WALMART | AN130: USA | AP130: 336 | AQ130: 336 | AR130: 9.6 | AS130: 1329.23 | AT130: 7650.1152 | AU130: 15963.36 | AV130: 9088.8 | AW130: 22.7682 | AX130: 27.05 | AY130: 30901 | AZ130: 879329007287 | BA130: 580033931 | BB130: CRIST | BC130: CB-GINGGOLD | BD130: CRIST | BE130: 24615.5 | BF130: 24615.5 | BG130: 44077 | BI130: ctn | BJ130: 22.7682 | BK130: N | BL130: 9 | BM130: 124 | BN130: 1 | BO130: 124 | BP130: 8 | BR130: 1 | BT130: C | BU130: 2
A131: 40240 | B131: 20112 | C131: X | D131: TG LOGISTICS LLC | E131: 249597 | F131: 107886 | G131: 44054 | H131: 44077 | I131: 44079 | J131: 2020 | K131: 9 | L131: 3 | M131: 36 | N131: 2020-36 | O131: 2020-09 | P131: WAL-MART SUPERCENTERS-MACCLENNY, FL 6099 | Q131: WAL-MART SUPERCENTERS | R131: BENTONVILLE | S131: AR | T131: 500715321 | U131: WAL-MART SUPERCENTERS | V131: MACCLENNY, FL 6099 | W131: MACCLENNY | X131: FL | Y131: 32063 | AA131: Invoiced | AB131: NEW YORK APPLE SALES | AC131: CRIST BROTHERS | AD131: TOTES 8 1/2 RPC JONAMAC XF WALMART APPLES | AE131: JONAMAC TOTES 8 1/2 RPC XF WALMART | AF131: APPLES | AG131: APPLES | AI131: JONAMAC | AJ131: TOTES | AK131: 8 1/2 RPC | AL131: XF | AM131: WALMART | AN131: USA | AP131: 35 | AQ131: 35 | AR131: 1 | AS131: 138.46 | AT131: 796.887 | AU131: 1662.85 | AV131: 946.75 | AW131: 22.7682 | AX131: 27.05 | AY131: 31601 | AZ131: 879329007287 | BA131: 580033931 | BB131: CRIST | BC131: CB-JONAMAC | BD131: CRIST | BE131: 24615.5 | BF131: 24615.5 | BG131: 44077 | BI131: ctn | BJ131: 22.7682 | BK131: N | BL131: 9 | BM131: 124 | BN131: 1 | BO131: 124 | BP131: 8 | BR131: 1 | BT131: C | BU131: 2
A132: 40240 | B132: 20112 | C132: X | D132: TG LOGISTICS LLC | E132: 249648 | F132: 107937 | G132: 44054 | H132: 44077 | I132: 44079 | J132: 2020 | K132: 9 | L132: 3 | M132: 36 | N132: 2020-36 | O132: 2020-09 | P132: WAL-MART SUPERCENTERS-MACCLENNY, FL 6099 | Q132: WAL-MART SUPERCENTERS | R132: BENTONVILLE | S132: AR | T132: 500715321 | U132: WAL-MART SUPERCENTERS | V132: MACCLENNY, FL 6099 | W132: MACCLENNY | X132: FL | Y132: 32063 | AA132: Invoiced | AB132: NEW YORK APPLE SALES | AC132: CRIST BROTHERS | AD132: TOTES 8 1/2 RPC JONAMAC XF WALMART APPLES | AE132: JONAMAC TOTES 8 1/2 RPC XF WALMART | AF132: APPLES | AG132: APPLES | AI132: JONAMAC | AJ132: TOTES | AK132: 8 1/2 RPC | AL132: XF | AM132: WALMART | AN132: USA | AP132: 99 | AQ132: 99 | AR132: 2.828571429 | AS132: 391.65 | AT132: 2254.0518 | AU132: 4703.49 | AV132: 2677.95 | AW132: 22.7682 | AX132: 27.05 | AY132: 32503 | AZ132: 879329007287 | BA132: 580033931 | BB132: CRIST | BC132: CB-JONAMAC | BD132: CRIST | BE132: 24615.5 | BF132: 24615.5 | BG132: 44077 | BI132: ctn | BJ132: 22.7682 | BK132: N | BL132: 9 | BM132: 124 | BN132: 1 | BO132: 124 | BP132: 8 | BR132: 1 | BT132: C | BU132: 2
A133: 40240 | B133: 20112 | C133: X | D133: TG LOGISTICS LLC | E133: 249658 | F133: 107947 | G133: 44054 | H133: 44077 | I133: 44079 | J133: 2020 | K133: 9 | L133: 3 | M133: 36 | N133: 2020-36 | O133: 2020-09 | P133: WAL-MART SUPERCENTERS-MACCLENNY, FL 6099 | Q133: WAL-MART SUPERCENTERS | R133: BENTONVILLE | S133: AR | T133: 500715321 | U133: WAL-MART SUPERCENTERS | V133: MACCLENNY, FL 6099 | W133: MACCLENNY | X133: FL | Y133: 32063 | AA133: Invoiced | AB133: NEW YORK APPLE SALES | AC133: CRIST BROTHERS | AD133: TOTES 8 1/2 RPC JONAMAC XF WALMART APPLES | AE133: JONAMAC TOTES 8 1/2 RPC XF WALMART | AF133: APPLES | AG133: APPLES | AI133: JONAMAC | AJ133: TOTES | AK133: 8 1/2 RPC | AL133: XF | AM133: WALMART | AN133: USA | AP133: 35 | AQ133: 35 | AR133: 1 | AS133: 138.46 | AT133: 796.887 | AU133: 1662.85 | AV133: 946.75 | AW133: 22.7682 | AX133: 27.05 | AY133: 32701 | AZ133: 879329007287 | BA133: 580033931 | BB133: CRIST | BC133: CB-JONAMAC | BD133: CRIST | BE133: 24615.5 | BF133: 24615.5 | BG133: 44077 | BI133: ctn | BJ133: 22.7682 | BK133: N | BL133: 9 | BM133: 124 | BN133: 1 | BO133: 124 | BP133: 8 | BR133: 1 | BT133: C | BU133: 2
A134: 40240 | B134: 20112 | C134: X | D134: TG LOGISTICS LLC | E134: 249659 | F134: 107948 | G134: 44054 | H134: 44077 | I134: 44079 | J134: 2020 | K134: 9 | L134: 3 | M134: 36 | N134: 2020-36 | O134: 2020-09 | P134: WAL-MART SUPERCENTERS-MACCLENNY, FL 6099 | Q134: WAL-MART SUPERCENTERS | R134: BENTONVILLE | S134: AR | T134: 500715321 | U134: WAL-MART SUPERCENTERS | V134: MACCLENNY, FL 6099 | W134: MACCLENNY | X134: FL | Y134: 32063 | AA134: Invoiced | AB134: NEW YORK APPLE SALES | AC134: CRIST BROTHERS | AD134: TOTES 8 1/2 RPC JONAMAC XF WALMART APPLES | AE134: JONAMAC TOTES 8 1/2 RPC XF WALMART | AF134: APPLES | AG134: APPLES | AI134: JONAMAC | AJ134: TOTES | AK134: 8 1/2 RPC | AL134: XF | AM134: WALMART | AN134: USA | AP134: 106 | AQ134: 106 | AR134: 3.028571429 | AS134: 419.34 | AT134: 2413.4292 | AU134: 5036.06 | AV134: 2867.3 | AW134: 22.7682 | AX134: 27.05 | AY134: 32807 | AZ134: 879329007287 | BA134: 580033931 | BB134: CRIST | BC134: CB-JONAMAC | BD134: CRIST | BE134: 24615.5 | BF134: 24615.5 | BG134: 44077 | BI134: ctn | BJ134: 22.7682 | BK134: N | BL134: 9 | BM134: 124 | BN134: 1 | BO134: 124 | BP134: 8 | BR134: 1 | BT134: C | BU134: 2
A135: 40240 | B135: 20112 | C135: X | D135: TG LOGISTICS LLC | E135: 249660 | F135: 107949 | G135: 44054 | H135: 44077 | I135: 44079 | J135: 2020 | K135: 9 | L135: 3 | M135: 36 | N135: 2020-36 | O135: 2020-09 | P135: WAL-MART SUPERCENTERS-MACCLENNY, FL 6099 | Q135: WAL-MART SUPERCENTERS | R135: BENTONVILLE | S135: AR | T135: 500715321 | U135: WAL-MART SUPERCENTERS | V135: MACCLENNY, FL 6099 | W135: MACCLENNY | X135: FL | Y135: 32063 | AA135: Invoiced | AB135: NEW YORK APPLE SALES | AC135: CRIST BROTHERS | AD135: TOTES 8 1/2 RPC JONAMAC XF WALMART APPLES | AE135: JONAMAC TOTES 8 1/2 RPC XF WALMART | AF135: APPLES | AG135: APPLES | AI135: JONAMAC | AJ135: TOTES | AK135: 8 1/2 RPC | AL135: XF | AM135: WALMART | AN135: USA | AP135: 75 | AQ135: 75 | AR135: 2.142857143 | AS135: 296.7 | AT135: 1707.615 | AU135: 3563.25 | AV135: 2028.75 | AW135: 22.7682 | AX135: 27.05 | AY135: 32907 | AZ135: 879329007287 | BA135: 580033931 | BB135: CRIST | BC135: CB-JONAMAC | BD135: CRIST | BE135: 24615.5 | BF135: 24615.5 | BG135: 44077 | BI135: ctn | BJ135: 22.7682 | BK135: N | BL135: 9 | BM135: 124 | BN135: 1 | BO135: 124 | BP135: 8 | BR135: 1 | BT135: C | BU135: 2
A136: 40240 | B136: 20112 | C136: X | D136: TG LOGISTICS LLC | E136: 249457 | F136: 107758 | G136: 44054 | H136: 44077 | I136: 44079 | J136: 2020 | K136: 9 | L136: 3 | M136: 36 | N136: 2020-36 | O136: 2020-09 | P136: WAL-MART SUPERCENTERS-MACCLENNY, FL 6099 | Q136: WAL-MART SUPERCENTERS | R136: BENTONVILLE | S136: AR | T136: 500715321 | U136: WAL-MART SUPERCENTERS | V136: MACCLENNY, FL 6099 | W136: MACCLENNY | X136: FL | Y136: 32063 | AA136: Invoiced | AB136: NEW YORK APPLE SALES | AC136: CRIST BROTHERS | AD136: TOTES 8 1/2 RPC PAULA RED XF WALMART APPLES | AE136: PAULA RED TOTES 8 1/2 RPC XF WALMART | AF136: APPLES | AG136: APPLES | AI136: PAULA RED | AJ136: TOTES | AK136: 8 1/2 RPC | AL136: XF | AM136: WALMART | AN136: USA | AP136: 68 | AQ136: 68 | AR136: 1.942857143 | AS136: 269.01 | AT136: 1548.2376 | AU136: 3230.68 | AV136: 1839.4 | AW136: 22.7682 | AX136: 27.05 | AY136: 30202 | AZ136: 879329007287 | BA136: 580033931 | BB136: CRIST | BC136: CB-PAULARED | BD136: CRIST | BE136: 24615.5 | BF136: 24615.5 | BG136: 44077 | BI136: ctn | BJ136: 22.7682 | BK136: N | BL136: 9 | BM136: 124 | BN136: 1 | BO136: 124 | BP136: 8 | BR136: 1 | BT136: C | BU136: 2
A137: 40240 | B137: 20112 | C137: X | D137: TG LOGISTICS LLC | E137: 249464 | F137: 107765 | G137: 44054 | H137: 44077 | I137: 44079 | J137: 2020 | K137: 9 | L137: 3 | M137: 36 | N137: 2020-36 | O137: 2020-09 | P137: WAL-MART SUPERCENTERS-MACCLENNY, FL 6099 | Q137: WAL-MART SUPERCENTERS | R137: BENTONVILLE | S137: AR | T137: 500715321 | U137: WAL-MART SUPERCENTERS | V137: MACCLENNY, FL 6099 | W137: MACCLENNY | X137: FL | Y137: 32063 | AA137: Invoiced | AB137: NEW YORK APPLE SALES | AC137: CRIST BROTHERS | AD137: TOTES 8 1/2 RPC PAULA RED XF WALMART APPLES | AE137: PAULA RED TOTES 8 1/2 RPC XF WALMART | AF137: APPLES | AG137: APPLES | AI137: PAULA RED | AJ137: TOTES | AK137: 8 1/2 RPC | AL137: XF | AM137: WALMART | AN137: USA | AP137: 93 | AQ137: 93 | AR137: 2.657142857 | AS137: 367.92 | AT137: 2117.4426 | AU137: 4418.43 | AV137: 2515.65 | AW137: 22.7682 | AX137: 27.05 | AY137: 30301 | AZ137: 879329007287 | BA137: 580033931 | BB137: CRIST | BC137: CB-PAULARED | BD137: CRIST | BE137: 24615.5 | BF137: 24615.5 | BG137: 44077 | BI137: ctn | BJ137: 22.7682 | BK137: N | BL137: 9 | BM137: 124 | BN137: 1 | BO137: 124 | BP137: 8 | BR137: 1 | BT137: C | BU137: 2
A138: 40241 | E138: 249829 | F138: 108047 | G138: 44054 | H138: 44078 | I138: 44079 | J138: 2020 | K138: 9 | L138: 4 | M138: 36 | N138: 2020-36 | O138: 2020-09 | P138: WAL-MART SUPERCENTERS-LONDON, KY 6097 | Q138: WAL-MART SUPERCENTERS | R138: BENTONVILLE | S138: AR | T138: 500715307 | U138: WAL-MART SUPERCENTERS | V138: LONDON, KY 6097 | W138: LONDON | X138: KY | Y138: 40741 | AA138: Invoiced | AB138: NEW YORK APPLE SALES | AC138: APPLE WEDGE | AD138: TOTES TOTES APPLES XF WALMART APPLES | AE138: APPLES TOTES TOTES XF WALMART 580033931 $23.45 | AF138: APPLES | AG138: APPLES | AI138: APPLES | AJ138: TOTES | AK138: TOTES | AL138: XF | AM138: WALMART | AN138: USA | AP138: 12 | AQ138: 12 | AR138: 0.3428571429 | AS138: 0 | AT138: 281.4 | AU138: 570.12 | AV138: 301.2 | AW138: 23.45 | AX138: 25.1 | AY138: 107897 | AZ138: 879329007287 | BA138: 580033931 | BB138: APPLE WEDGE PACKERS | BC138: AW-GOLDEL | BE138: 22841 | BF138: 22841 | BG138: 44078 | BI138: ctn | BJ138: 23.45 | BK138: N | BL138: 9 | BM138: 124 | BN138: 1 | BO138: 124 | BP138: 7 | BR138: 1 | BT138: C | BU138: 2
A139: 40241 | E139: 249827 | F139: 108045 | G139: 44054 | H139: 44078 | I139: 44079 | J139: 2020 | K139: 9 | L139: 4 | M139: 36 | N139: 2020-36 | O139: 2020-09 | P139: WAL-MART SUPERCENTERS-LONDON, KY 6097 | Q139: WAL-MART SUPERCENTERS | R139: BENTONVILLE | S139: AR | T139: 500715307 | U139: WAL-MART SUPERCENTERS | V139: LONDON, KY 6097 | W139: LONDON | X139: KY | Y139: 40741 | AA139: Invoiced | AB139: NEW YORK APPLE SALES | AC139: APPLE WEDGE | AD139: TOTES TOTES APPLES XF WALMART APPLES | AE139: APPLES TOTES TOTES XF WALMART 580033931 $23.45 | AF139: APPLES | AG139: APPLES | AI139: APPLES | AJ139: TOTES | AK139: TOTES | AL139: XF | AM139: WALMART | AN139: USA | AP139: 74 | AQ139: 74 | AR139: 2.114285714 | AS139: 0 | AT139: 1735.3 | AU139: 3515.74 | AV139: 1857.4 | AW139: 23.45 | AX139: 25.1 | AY139: 107917 | AZ139: 879329007287 | BA139: 580033931 | BB139: APPLE WEDGE PACKERS | BC139: AW-GOLDEL | BE139: 22841 | BF139: 22841 | BG139: 44078 | BI139: ctn | BJ139: 23.45 | BK139: N | BL139: 9 | BM139: 124 | BN139: 1 | BO139: 124 | BP139: 7 | BR139: 1 | BT139: C | BU139: 2
A140: 40241 | E140: 249826 | F140: 108044 | G140: 44054 | H140: 44078 | I140: 44079 | J140: 2020 | K140: 9 | L140: 4 | M140: 36 | N140: 2020-36 | O140: 2020-09 | P140: WAL-MART SUPERCENTERS-LONDON, KY 6097 | Q140: WAL-MART SUPERCENTERS | R140: BENTONVILLE | S140: AR | T140: 500715307 | U140: WAL-MART SUPERCENTERS | V140: LONDON, KY 6097 | W140: LONDON | X140: KY | Y140: 40741 | AA140: Invoiced | AB140: NEW YORK APPLE SALES | AC140: APPLE WEDGE | AD140: TOTES TOTES APPLES XF WALMART APPLES | AE140: APPLES TOTES TOTES XF WALMART 580033931 $23.45 | AF140: APPLES | AG140: APPLES | AI140: APPLES | AJ140: TOTES | AK140: TOTES | AL140: XF | AM140: WALMART | AN140: USA | AP140: 381 | AQ140: 381 | AR140: 10.88571429 | AS140: 0 | AT140: 8934.45 | AU140: 18101.31 | AV140: 9563.1 | AW140: 23.45 | AX140: 25.1 | AY140: 107951 | AZ140: 879329007287 | BA140: 580033931 | BB140: APPLE WEDGE PACKERS | BC140: AW-GOLDEL | BE140: 22841 | BF140: 22841 | BG140: 44078 | BI140: ctn | BJ140: 23.45 | BK140: N | BL140: 9 | BM140: 124 | BN140: 1 | BO140: 124 | BP140: 7 | BR140: 1 | BT140: C | BU140: 2
A141: 40241 | E141: 249828 | F141: 108046 | G141: 44054 | H141: 44078 | I141: 44079 | J141: 2020 | K141: 9 | L141: 4 | M141: 36 | N141: 2020-36 | O141: 2020-09 | P141: WAL-MART SUPERCENTERS-LONDON, KY 6097 | Q141: WAL-MART SUPERCENTERS | R141: BENTONVILLE | S141: AR | T141: 500715307 | U141: WAL-MART SUPERCENTERS | V141: LONDON, KY 6097 | W141: LONDON | X141: KY | Y141: 40741 | AA141: Invoiced | AB141: NEW YORK APPLE SALES | AC141: APPLE WEDGE | AD141: TOTES TOTES APPLES XF WALMART APPLES | AE141: APPLES TOTES TOTES XF WALMART 580033931 $23.45 | AF141: APPLES | AG141: APPLES | AI141: APPLES | AJ141: TOTES | AK141: TOTES | AL141: XF | AM141: WALMART | AN141: USA | AP141: 23 | AQ141: 23 | AR141: 0.6571428571 | AS141: 0 | AT141: 539.35 | AU141: 1092.73 | AV141: 577.3 | AW141: 23.45 | AX141: 25.1 | AY141: 5697 | AZ141: 879329007287 | BA141: 580033931 | BB141: APPLE WEDGE PACKERS | BC141: AW-GOLDEL | BE141: 22841 | BF141: 22841 | BG141: 44078 | BI141: ctn | BJ141: 23.45 | BK141: N | BL141: 9 | BM141: 124 | BN141: 1 | BO141: 124 | BP141: 7 | BR141: 1 | BT141: C | BU141: 2
A142: 40241 | E142: 249830 | F142: 108048 | G142: 44054 | H142: 44078 | I142: 44079 | J142: 2020 | K142: 9 | L142: 4 | M142: 36 | N142: 2020-36 | O142: 2020-09 | P142: WAL-MART SUPERCENTERS-LONDON, KY 6097 | Q142: WAL-MART SUPERCENTERS | R142: BENTONVILLE | S142: AR | T142: 500715307 | U142: WAL-MART SUPERCENTERS | V142: LONDON, KY 6097 | W142: LONDON | X142: KY | Y142: 40741 | AA142: Invoiced | AB142: NEW YORK APPLE SALES | AC142: APPLE WEDGE | AD142: TOTES TOTES APPLES XF WALMART APPLES | AE142: APPLES TOTES TOTES XF WALMART 580033931 $23.45 | AF142: APPLES | AG142: APPLES | AI142: APPLES | AJ142: TOTES | AK142: TOTES | AL142: XF | AM142: WALMART | AN142: USA | AP142: 10 | AQ142: 10 | AR142: 0.2857142857 | AS142: 0 | AT142: 234.5 | AU142: 475.1 | AV142: 251 | AW142: 23.45 | AX142: 25.1 | AY142: 5713 | AZ142: 879329007287 | BA142: 580033931 | BB142: APPLE WEDGE PACKERS | BC142: AW-JONATHAN | BE142: 22841 | BF142: 22841 | BG142: 44078 | BI142: ctn | BJ142: 23.45 | BK142: N | BL142: 9 | BM142: 124 | BN142: 1 | BO142: 124 | BP142: 7 | BR142: 1 | BT142: C | BU142: 2
A143: 40241 | E143: 249831 | F143: 108049 | G143: 44054 | H143: 44078 | I143: 44079 | J143: 2020 | K143: 9 | L143: 4 | M143: 36 | N143: 2020-36 | O143: 2020-09 | P143: WAL-MART SUPERCENTERS-LONDON, KY 6097 | Q143: WAL-MART SUPERCENTERS | R143: BENTONVILLE | S143: AR | T143: 500715307 | U143: WAL-MART SUPERCENTERS | V143: LONDON, KY 6097 | W143: LONDON | X143: KY | Y143: 40741 | AA143: Invoiced | AB143: NEW YORK APPLE SALES | AC143: APPLE WEDGE | AD143: TOTES TOTES APPLES XF WALMART APPLES | AE143: APPLES TOTES TOTES XF WALMART 580033931 $23.45 | AF143: APPLES | AG143: APPLES | AI143: APPLES | AJ143: TOTES | AK143: TOTES | AL143: XF | AM143: WALMART | AN143: USA | AP143: 410 | AQ143: 410 | AR143: 11.71428571 | AS143: 0 | AT143: 9614.5 | AU143: 19479.1 | AV143: 10291 | AW143: 23.45 | AX143: 25.1 | AY143: 5713 | AZ143: 879329007287 | BA143: 580033931 | BB143: APPLE WEDGE PACKERS | BC143: AW-JONATHAN | BE143: 22841 | BF143: 22841 | BG143: 44078 | BI143: ctn | BJ143: 23.45 | BK143: N | BL143: 9 | BM143: 124 | BN143: 1 | BO143: 124 | BP143: 7 | BR143: 1 | BT143: C | BU143: 2
A144: 40242 | B144: 20148 | C144: X | D144: MEGACORP LOGISTICS | E144: 249997 | F144: 108172 | G144: 44054 | H144: 44083 | I144: 44084 | J144: 2020 | K144: 9 | L144: 9 | M144: 37 | N144: 2020-37 | O144: 2020-09 | P144: WAL-MART SUPERCENTERS-LONDON, KY 6097 | Q144: WAL-MART SUPERCENTERS | R144: BENTONVILLE | S144: AR | T144: 500715300 | U144: WAL-MART SUPERCENTERS | V144: LONDON, KY 6097 | W144: LONDON | X144: KY | Y144: 40741 | AA144: Invoiced | AB144: NEW YORK APPLE SALES | AC144: GLAIZE | AD144: BULK 50 RPC GINGERGOLD XF WALMART APPLES | AE144: GOLDEN DELICIOUS BULK 50 RPC XF WALMART 009475905 | AF144: APPLES | AG144: APPLES | AI144: GINGERGOLD | AJ144: BULK | AK144: 50 RPC | AL144: XF | AM144: WALMART | AN144: USA | AP144: 138 | AQ144: 93.15 | AR144: 2.76 | AS144: 247.03 | AT144: 2273.6604 | AU144: 4525.02 | AV144: 3008.4 | AW144: 16.4758 | AX144: 21.8 | AY144: 90880 | BB144: GLAIZE | BC144: GL-GINGGOLD | BE144: 23379 | BF144: 23379 | BG144: 44083 | BI144: ctn | BJ144: 16.4758 | BK144: N | BL144: 7 | BM144: 124 | BN144: 1 | BO144: 124 | BP144: 7 | BR144: 1 | BT144: C | BU144: 2 | BW144: GL | BX144: 4
A145: 40242 | B145: 20148 | C145: X | D145: MEGACORP LOGISTICS | E145: 249998 | F145: 108173 | G145: 44054 | H145: 44083 | I145: 44084 | J145: 2020 | K145: 9 | L145: 9 | M145: 37 | N145: 2020-37 | O145: 2020-09 | P145: WAL-MART SUPERCENTERS-LONDON, KY 6097 | Q145: WAL-MART SUPERCENTERS | R145: BENTONVILLE | S145: AR | T145: 500715300 | U145: WAL-MART SUPERCENTERS | V145: LONDON, KY 6097 | W145: LONDON | X145: KY | Y145: 40741 | AA145: Invoiced | AB145: NEW YORK APPLE SALES | AC145: GLAIZE | AD145: BULK 50 RPC GINGERGOLD XF WALMART APPLES | AE145: GOLDEN DELICIOUS BULK 50 RPC XF WALMART 009475905 | AF145: APPLES | AG145: APPLES | AI145: GINGERGOLD | AJ145: BULK | AK145: 50 RPC | AL145: XF | AM145: WALMART | AN145: USA | AP145: 50 | AQ145: 33.75 | AR145: 1 | AS145: 89.5 | AT145: 823.79 | AU145: 1639.5 | AV145: 1090 | AW145: 16.4758 | AX145: 21.8 | AY145: 90880 | BB145: GLAIZE | BC145: GL-GINGGOLD | BE145: 23379 | BF145: 23379 | BG145: 44083 | BI145: ctn | BJ145: 16.4758 | BK145: N | BL145: 7 | BM145: 124 | BN145: 1 | BO145: 124 | BP145: 7 | BR145: 1 | BT145: C | BU145: 2 | BW145: GL | BX145: 4
A146: 40242 | B146: 20148 | C146: X | D146: MEGACORP LOGISTICS | E146: 249999 | F146: 108174 | G146: 44054 | H146: 44083 | I146: 44084 | J146: 2020 | K146: 9 | L146: 9 | M146: 37 | N146: 2020-37 | O146: 2020-09 | P146: WAL-MART SUPERCENTERS-LONDON, KY 6097 | Q146: WAL-MART SUPERCENTERS | R146: BENTONVILLE | S146: AR | T146: 500715300 | U146: WAL-MART SUPERCENTERS | V146: LONDON, KY 6097 | W146: LONDON | X146: KY | Y146: 40741 | AA146: Invoiced | AB146: NEW YORK APPLE SALES | AC146: GLAIZE | AD146: BULK 50 RPC GINGERGOLD XF WALMART APPLES | AE146: GOLDEN DELICIOUS BULK 50 RPC XF WALMART 009475905 | AF146: APPLES | AG146: APPLES | AI146: GINGERGOLD | AJ146: BULK | AK146: 50 RPC | AL146: XF | AM146: WALMART | AN146: USA | AP146: 12 | AQ146: 8.1 | AR146: 0.24 | AS146: 21.48 | AT146: 197.7096 | AU146: 393.48 | AV146: 261.6 | AW146: 16.4758 | AX146: 21.8 | AY146: 90880 | BB146: GLAIZE | BC146: GL-GINGGOLD | BE146: 23379 | BF146: 23379 | BG146: 44083 | BI146: ctn | BJ146: 16.4758 | BK146: N | BL146: 7 | BM146: 124 | BN146: 1 | BO146: 124 | BP146: 7 | BR146: 1 | BT146: C | BU146: 2 | BW146: GL | BX146: 4
A147: 40242 | B147: 20148 | C147: X | D147: MEGACORP LOGISTICS | E147: 250037 | F147: 108183 | G147: 44054 | H147: 44083 | I147: 44084 | J147: 2020 | K147: 9 | L147: 9 | M147: 37 | N147: 2020-37 | O147: 2020-09 | P147: WAL-MART SUPERCENTERS-LONDON, KY 6097 | Q147: WAL-MART SUPERCENTERS | R147: BENTONVILLE | S147: AR | T147: 500715300 | U147: WAL-MART SUPERCENTERS | V147: LONDON, KY 6097 | W147: LONDON | X147: KY | Y147: 40741 | AA147: Invoiced | AB147: NEW YORK APPLE SALES | AC147: CROWN ORCHARDS | AD147: TOTES 8 1/2 RPC GOLDEN DELICIOUS XF WALMART APPLES | AE147: APPLES TOTES TOTES XF WALMART 580033933 | AF147: APPLES | AG147: APPLES | AI147: GOLDEN DELICIOUS | AJ147: TOTES | AK147: 8 1/2 RPC | AL147: XF | AM147: WALMART | AN147: USA | AP147: 350 | AQ147: 350 | AR147: 10 | AS147: 928.18 | AT147: 6641.53 | AU147: 16628.5 | AV147: 8645 | AW147: 18.9758 | AX147: 24.7 | AY147: DG4030320 | AZ147: 898205002840 | BA147: 580033933 | BB147: CROWN ORCHARD COMPANY LP LLP | BC147: CO-GOLDEL | BE147: 23379 | BF147: 23379 | BG147: 44083 | BI147: ctn | BJ147: 18.9758 | BK147: N | BL147: 9 | BM147: 124 | BN147: 1 | BO147: 124 | BP147: 7 | BR147: 1 | BT147: C | BU147: 2 | BW147: GL | BX147: 4
A148: 40242 | B148: 20148 | C148: X | D148: MEGACORP LOGISTICS | E148: 250038 | F148: 108184 | G148: 44054 | H148: 44083 | I148: 44084 | J148: 2020 | K148: 9 | L148: 9 | M148: 37 | N148: 2020-37 | O148: 2020-09 | P148: WAL-MART SUPERCENTERS-LONDON, KY 6097 | Q148: WAL-MART SUPERCENTERS | R148: BENTONVILLE | S148: AR | T148: 500715300 | U148: WAL-MART SUPERCENTERS | V148: LONDON, KY 6097 | W148: LONDON | X148: KY | Y148: 40741 | AA148: Invoiced | AB148: NEW YORK APPLE SALES | AC148: CROWN ORCHARDS | AD148: TOTES 8 1/2 RPC GOLDEN DELICIOUS XF WALMART APPLES | AE148: APPLES TOTES TOTES XF WALMART 580033933 | AF148: APPLES | AG148: APPLES | AI148: GOLDEN DELICIOUS | AJ148: TOTES | AK148: 8 1/2 RPC | AL148: XF | AM148: WALMART | AN148: USA | AP148: 35 | AQ148: 35 | AR148: 1 | AS148: 92.82 | AT148: 664.153 | AU148: 1662.85 | AV148: 864.5 | AW148: 18.9758 | AX148: 24.7 | AY148: DG4030720 | AZ148: 898205002840 | BA148: 580033933 | BB148: CROWN ORCHARD COMPANY LP LLP | BC148: CO-GOLDEL | BE148: 23379 | BF148: 23379 | BG148: 44083 | BI148: ctn | BJ148: 18.9758 | BK148: N | BL148: 9 | BM148: 124 | BN148: 1 | BO148: 124 | BP148: 7 | BR148: 1 | BT148: C | BU148: 2 | BW148: GL | BX148: 4
A149: 40242 | B149: 20148 | C149: X | D149: MEGACORP LOGISTICS | E149: 250039 | F149: 108185 | G149: 44054 | H149: 44083 | I149: 44084 | J149: 2020 | K149: 9 | L149: 9 | M149: 37 | N149: 2020-37 | O149: 2020-09 | P149: WAL-MART SUPERCENTERS-LONDON, KY 6097 | Q149: WAL-MART SUPERCENTERS | R149: BENTONVILLE | S149: AR | T149: 500715300 | U149: WAL-MART SUPERCENTERS | V149: LONDON, KY 6097 | W149: LONDON | X149: KY | Y149: 40741 | AA149: Invoiced | AB149: NEW YORK APPLE SALES | AC149: CROWN ORCHARDS | AD149: TOTES TOTES JONATHAN XF WALMART APPLES | AE149: JONATHAN TOTES TOTES XF WALMART | AF149: APPLES | AG149: APPLES | AI149: JONATHAN | AJ149: TOTES | AK149: TOTES | AL149: XF | AM149: WALMART | AN149: USA | AP149: 105 | AQ149: 105 | AR149: 3 | AS149: 278.45 | AT149: 1992.459 | AU149: 4988.55 | AV149: 2593.5 | AW149: 18.9758 | AX149: 24.7 | AY149: JO3030420 | BB149: CROWN ORCHARD COMPANY LP LLP | BC149: CO-JONATHO | BE149: 23379 | BF149: 23379 | BG149: 44083 | BI149: ctn | BJ149: 18.9758 | BK149: N | BL149: 9 | BM149: 124 | BN149: 1 | BO149: 124 | BP149: 7 | BR149: 1 | BT149: C | BU149: 2 | BW149: GL | BX149: 4
A150: 40242 | B150: 20148 | C150: X | D150: MEGACORP LOGISTICS | E150: 250040 | F150: 108186 | G150: 44054 | H150: 44083 | I150: 44084 | J150: 2020 | K150: 9 | L150: 9 | M150: 37 | N150: 2020-37 | O150: 2020-09 | P150: WAL-MART SUPERCENTERS-LONDON, KY 6097 | Q150: WAL-MART SUPERCENTERS | R150: BENTONVILLE | S150: AR | T150: 500715300 | U150: WAL-MART SUPERCENTERS | V150: LONDON, KY 6097 | W150: LONDON | X150: KY | Y150: 40741 | AA150: Invoiced | AB150: NEW YORK APPLE SALES | AC150: CROWN ORCHARDS | AD150: TOTES TOTES JONATHAN XF WALMART APPLES | AE150: JONATHAN TOTES TOTES XF WALMART | AF150: APPLES | AG150: APPLES | AI150: JONATHAN | AJ150: TOTES | AK150: TOTES | AL150: XF | AM150: WALMART | AN150: USA | AP150: 280 | AQ150: 280 | AR150: 8 | AS150: 742.54 | AT150: 5313.224 | AU150: 13302.8 | AV150: 6916 | AW150: 18.9758 | AX150: 24.7 | AY150: JO3030820 | BB150: CROWN ORCHARD COMPANY LP LLP | BC150: CO-JONATHO | BE150: 23379 | BF150: 23379 | BG150: 44083 | BI150: ctn | BJ150: 18.9758 | BK150: N | BL150: 9 | BM150: 124 | BN150: 1 | BO150: 124 | BP150: 7 | BR150: 1 | BT150: C | BU150: 2 | BW150: GL | BX150: 4
A151: 40243 | E151: 249803 | F151: 108031 | G151: 44054 | H151: 44077 | I151: 44079 | J151: 2020 | K151: 9 | L151: 3 | M151: 36 | N151: 2020-36 | O151: 2020-09 | P151: WAL-MART SUPERCENTERS-LONDON, KY 6097 | Q151: WAL-MART SUPERCENTERS | R151: BENTONVILLE | S151: AR | T151: 500715303 | U151: WAL-MART SUPERCENTERS | V151: LONDON, KY 6097 | W151: LONDON | X151: KY | Y151: 40741 | AA151: Invoiced | AB151: NEW YORK APPLE SALES | AC151: GLAIZE | AD151: TOTES TOTES GINGERGOLD XF WALMART APPLES | AE151: APPLES TOTES TOTES XF WALMART 580033933 $24.05 | AF151: APPLES | AG151: APPLES | AI151: GINGERGOLD | AJ151: TOTES | AK151: TOTES | AL151: XF | AM151: WALMART | AN151: USA | AP151: 880 | AQ151: 880 | AR151: 25.14285714 | AS151: 0 | AT151: 21164 | AU151: 41808.8 | AV151: 21736 | AW151: 24.05 | AX151: 24.7 | AY151: 82415 | AZ151: 898205002840 | BA151: 580033933 | BB151: GLAIZE | BC151: GL-GINGGOLD | BE151: 21736 | BF151: 21736 | BG151: 44077 | BI151: ctn | BJ151: 24.05 | BK151: N | BL151: 9 | BM151: 124 | BN151: 1 | BO151: 124 | BP151: 7 | BR151: 1 | BT151: C | BU151: 2 | BW151: GL | BX151: 4
A152: 40244 | B152: 20151 | C152: X | D152: MEGACORP LOGISTICS | E152: 250143 | F152: 108241 | G152: 44054 | H152: 44084 | I152: 44085 | J152: 2020 | K152: 9 | L152: 10 | M152: 37 | N152: 2020-37 | O152: 2020-09 | P152: WAL-MART SUPERCENTERS-OPELIKA, AL 6095 | Q152: WAL-MART SUPERCENTERS | R152: BENTONVILLE | S152: AR | T152: 500715322 | U152: WAL-MART SUPERCENTERS | V152: OPELIKA, AL 6095 | W152: OPELIKA | X152: AL | Y152: 36801 | AA152: Invoiced | AB152: NEW YORK APPLE SALES | AC152: GLAIZE | AD152: BULK 50 RPC GINGERGOLD XF WALMART APPLES | AE152: GOLDEN DELICIOUS BULK 50 RPC XF WALMART 573579449 | AF152: APPLES | AG152: APPLES | AI152: GINGERGOLD | AJ152: BULK | AK152: 50 RPC | AL152: XF | AM152: WALMART | AN152: USA | AP152: 200 | AQ152: 135 | AR152: 4 | AS152: 507.18 | AT152: 3770 | AU152: 6558 | AV152: 4670 | AW152: 18.85 | AX152: 23.35 | AY152: 90880 | BB152: GLAIZE | BC152: GL-GINGGOLD | BE152: 25598.6 | BF152: 25598.6 | BG152: 44084 | BI152: ctn | BJ152: 18.85 | BK152: N | BL152: 7 | BM152: 124 | BN152: 1 | BO152: 124 | BP152: 12 | BR152: 1 | BT152: C | BU152: 2
A153: 40244 | B153: 20151 | C153: X | D153: MEGACORP LOGISTICS | E153: 249870 | F153: 108088 | G153: 44054 | H153: 44084 | I153: 44085 | J153: 2020 | K153: 9 | L153: 10 | M153: 37 | N153: 2020-37 | O153: 2020-09 | P153: WAL-MART SUPERCENTERS-OPELIKA, AL 6095 | Q153: WAL-MART SUPERCENTERS | R153: BENTONVILLE | S153: AR | T153: 500715322 | U153: WAL-MART SUPERCENTERS | V153: OPELIKA, AL 6095 | W153: OPELIKA | X153: AL | Y153: 36801 | AA153: Invoiced | AB153: NEW YORK APPLE SALES | AC153: CRIST BROTHERS | AD153: TOTES 8 1/2 RPC JONAMAC XF WALMART APPLES | AE153: JONAMAC TOTES 8 1/2 RPC XF WALMART | AF153: APPLES | AG153: APPLES | AI153: JONAMAC | AJ153: TOTES | AK153: 8 1/2 RPC | AL153: XF | AM153: WALMART | AN153: USA | AP153: 9 | AQ153: 9 | AR153: 0.2571428571 | AS153: 33.81 | AT153: 202.1796 | AU153: 427.59 | AV153: 244.62 | AW153: 22.4644 | AX153: 27.18 | AY153: 35001 | AZ153: 879329007287 | BA153: 580033931 | BB153: CRIST | BC153: CB-JONAMAC | BD153: CRIST | BE153: 25598.6 | BF153: 25598.6 | BG153: 44084 | BI153: ctn | BJ153: 22.4644 | BK153: N | BL153: 9 | BM153: 124 | BN153: 1 | BO153: 124 | BP153: 12 | BR153: 1 | BT153: C | BU153: 2
A154: 40244 | B154: 20151 | C154: X | D154: MEGACORP LOGISTICS | E154: 250088 | F154: 108206 | G154: 44054 | H154: 44084 | I154: 44085 | J154: 2020 | K154: 9 | L154: 10 | M154: 37 | N154: 2020-37 | O154: 2020-09 | P154: WAL-MART SUPERCENTERS-OPELIKA, AL 6095 | Q154: WAL-MART SUPERCENTERS | R154: BENTONVILLE | S154: AR | T154: 500715322 | U154: WAL-MART SUPERCENTERS | V154: OPELIKA, AL 6095 | W154: OPELIKA | X154: AL | Y154: 36801 | AA154: Invoiced | AB154: NEW YORK APPLE SALES | AC154: CRIST BROTHERS | AD154: TOTES 8 1/2 RPC JONAMAC XF WALMART APPLES | AE154: JONAMAC TOTES 8 1/2 RPC XF WALMART | AF154: APPLES | AG154: APPLES | AI154: JONAMAC | AJ154: TOTES | AK154: 8 1/2 RPC | AL154: XF | AM154: WALMART | AN154: USA | AP154: 633 | AQ154: 633 | AR154: 18.08571429 | AS154: 2378.12 | AT154: 14219.9652 | AU154: 30073.83 | AV154: 17204.94 | AW154: 22.4644 | AX154: 27.18 | AY154: 35701 | AZ154: 879329007287 | BA154: 580033931 | BB154: CRIST | BC154: CB-JONAMAC | BD154: CRIST | BE154: 25598.6 | BF154: 25598.6 | BG154: 44084 | BI154: ctn | BJ154: 22.4644 | BK154: N | BL154: 9 | BM154: 124 | BN154: 1 | BO154: 124 | BP154: 12 | BR154: 1 | BT154: C | BU154: 2
